Workbook

Sheet Vs Status Quo
B2: Modelling variables
B3: Model checks | C3: =SUM(K76:Q76,K138:Q138) -> 0
B5: Transition period (years) | L5: Model changes compared to consultation:
B6: Years | C6: 6 | L6: - FP status quo
L7: - Regional CBD reduced to 7
B8: PT target differentials - highlevel | L8: - PT differential for Business - excl Wairarapa reduced to 1.4
B9: Category group | C9: Differential
B10: Regional CBD | C10: 7 | L10: - Transition period extended to 6 years
B11: Business - excl Wairarapa | C11: 1.4 | L11: - Otaki rating area differentials for residential to be set the same as Wairarapa
B12: Business - Wairarapa | C12: 1
B13: Residential - excl Wairarapa | C13: 1
B14: Residential - Wairarapa | C14: 0.5 | L14: - Note all figures are presented ex-GST
B15: Rural | C15: 0.25
B16: Tararua | C16: 0
B18: PT target differentials - TA override
B19: TA full name | C19: Category group | D19: Concatenated row | K19: Highlevel | L19: Override | M19: To use
B20: Wellington City | C20: Regional CBD | D20: =B20&C20 -> Wellington CityRegional CBD | F20: Regional CBD | K20: =INDEX($C$10:$C$16,MATCH(F20,$B$10:$B$16,0),) -> 7 | M20: =IF(L20>0,L20,K20) -> 7
B21: Wellington City | C21: Business | D21: Wellington CityBusiness | F21: Business - excl Wairarapa | K21: 1.4 | M21: 1.4
B22: Wellington City | C22: Residential | D22: Wellington CityResidential | F22: Residential - excl Wairarapa | K22: 1 | M22: 1
B23: Wellington City | C23: Rural | D23: Wellington CityRural | F23: Rural | K23: 0.25 | M23: 0.25
B24: Hutt City | C24: Business | D24: Hutt CityBusiness | F24: Business - excl Wairarapa | K24: 1.4 | M24: 1.4
B25: Hutt City | C25: Residential | D25: Hutt CityResidential | F25: Residential - excl Wairarapa | K25: 1 | M25: 1
B26: Hutt City | C26: Rural | D26: Hutt CityRural | F26: Rural | K26: 0.25 | M26: 0.25
B27: Upper Hutt City | C27: Business | D27: Upper Hutt CityBusiness | F27: Business - excl Wairarapa | K27: 1.4 | M27: 1.4
B28: Upper Hutt City | C28: Residential | D28: Upper Hutt CityResidential | F28: Residential - excl Wairarapa | K28: 1 | M28: 1
B29: Upper Hutt City | C29: Rural | D29: Upper Hutt CityRural | F29: Rural | K29: 0.25 | M29: 0.25
B30: Porirua City | C30: Business | D30: Porirua CityBusiness | F30: Business - excl Wairarapa | K30: 1.4 | M30: 1.4
B31: Porirua City | C31: Residential | D31: Porirua CityResidential | F31: Residential - excl Wairarapa | K31: 1 | M31: 1
B32: Porirua City | C32: Rural | D32: Porirua CityRural | F32: Rural | K32: 0.25 | M32: 0.25
B33: Kapiti Coast District | C33: Business | D33: Kapiti Coast DistrictBusiness | F33: Business - excl Wairarapa | K33: 1.4 | M33: 1.4
B34: Kapiti Coast District | C34: Residential | D34: Kapiti Coast DistrictResidential | F34: Residential - excl Wairarapa | K34: 1 | M34: 1
B35: Kapiti Coast District | C35: Rural | D35: Kapiti Coast DistrictRural | F35: Rural | K35: 0.25 | M35: 0.25
B36: Masterton District | C36: Business | D36: Masterton DistrictBusiness | F36: Business - Wairarapa | K36: 1 | M36: 1
B37: Masterton District | C37: Residential | D37: Masterton DistrictResidential | F37: Residential - Wairarapa | K37: 0.5 | M37: 0.5
B38: Masterton District | C38: Rural | D38: Masterton DistrictRural | F38: Rural | K38: 0.25 | M38: 0.25
B39: Carterton District | C39: Business | D39: Carterton DistrictBusiness | F39: Business - Wairarapa | K39: 1 | M39: 1
B40: Carterton District | C40: Residential | D40: Carterton DistrictResidential | F40: Residential - Wairarapa | K40: 0.5 | M40: 0.5
B41: Carterton District | C41: Rural | D41: Carterton DistrictRural | F41: Rural | K41: 0.25 | M41: 0.25
B42: South Wairarapa District | C42: Business | D42: South Wairarapa DistrictBusiness | F42: Business - Wairarapa | K42: 1 | M42: 1
B43: South Wairarapa District | C43: Residential | D43: South Wairarapa DistrictResidential | F43: Residential - Wairarapa | K43: 0.5 | M43: 0.5
B44: South Wairarapa District | C44: Rural | D44: South Wairarapa DistrictRural | F44: Rural | K44: 0.25 | M44: 0.25
B45: Tararua District | C45: Rural | D45: Tararua DistrictRural | F45: Tararua | K45: 0 | M45: 0
B47: Kapiti Coast District | C47: Residential - Otaki rating area | D47: Kapiti Coast DistrictResidential - Otaki rating area | F47: Residential - Wairarapa | K47: =INDEX($C$10:$C$16,MATCH(F47,$B$10:$B$16,0),) -> 0.5 | M47: =IF(L47>0,L47,K47) -> 0.5
B48: Kapiti Coast District | C48: Residential - ex-Otaki rating area | D48: Kapiti Coast DistrictResidential - ex-Otaki rating area | F48: Residential - excl Wairarapa | K48: 1 | M48: 1
B50: Public transport
B51: Proposed or status quo model | C51: Proposed
B54: Summary
B56: TA | C56: South Wairarapa District - Business
B57: Rating category | C57: =INDEX($C$91:$C$130,MATCH(C56,$F$91:$F$130,0),) -> Business
B58: Look up | C58: =INDEX($D$91:$D$130,MATCH(C56,$F$91:$F$130,0),) -> South Wairarapa DistrictBusiness
B59: Graph title | C59: ="GWRC district-wide rates - "&C56 -> GWRC district-wide rates - South Wairarapa District - Business
B61: Category summary | K61: 2017/18 | L61: 2018/19
B62: CV | K62: =INDEX('Capital values'!D$8:D$45,MATCH($C$58,'Capital values'!$C$8:$C$45,0),) -> 190419802 | L62: =INDEX('Capital values'!E$8:E$45,MATCH($C$58,'Capital values'!$C$8:$C$45,0),) -> 206493600
B63: Assessments | K63: =INDEX('Capital values'!D$57:D$94,MATCH($C$58,'Capital values'!$C$57:$C$94,0),) -> 312 | L63: =INDEX('Capital values'!E$57:E$94,MATCH($C$58,'Capital values'!$C$57:$C$94,0),) -> 304
B64: Regional strategy rate assessments | K64: =K63-INDEX('Capital values'!D$104:D$140,MATCH($C58,'Capital values'!$C$104:$C$140,0),) -> 312 | L64: =L63-INDEX('Capital values'!E$104:E$140,MATCH($C58,'Capital values'!$C$104:$C$140,0),) -> 304
B65: Average CV | K65: =K62/K63 -> 610319.8782 | L65: =L62/L63 -> 679255.2632
B67: GWRC district wide rate for the average property (excl-GST) | K67: 2017/18 | L67: 2018/19 | M67: 2019/20 | N67: 2020/21 | O67: 2021/22 | P67: 2022/23 | Q67: 2023/24 | R67: 2024/25 | S67: 2025/26 | T67: 2026/27 | U67: 2027/28
B68: General rate | K68: =INDEX($W$91:$AC$130,MATCH($C$58,$D$91:$D$130,0),MATCH(K$67,$W$87:$AC$87,0))/$K$62*$K$65 -> 210.4112208 | L68: =INDEX($W$91:$AG$130,MATCH($C$58,$D$91:$D$130,0),MATCH(L$67,$W$87:$AG$87,0))/$L$62*$L$65 -> 227.2990552 | M68: 250.6067941 | N68: 247.5241025 | O68: 265.3357933 | P68: 275.1477739 | Q68: 280.3759807 | R68: 288.8794257 | S68: 301.2762723 | T68: 312.2562586 | U68: 326.8643646
B69: Flood protection – regional rate | K69: =INDEX($AI$91:$AO$130,MATCH($C$58,$D$91:$D$130,0),MATCH(K$67,$AI$87:$AO$87,0))/$K$62*$K$65 -> 0 | L69: =INDEX($AI$91:$AS$130,MATCH($C$58,$D$91:$D$130,0),MATCH(L$67,$AI$87:$AS$87,0))/$L$62*$L$65 -> 0 | M69: 0 | N69: 0 | O69: 0 | P69: 0 | Q69: 0 | R69: 0 | S69: 0 | T69: 0 | U69: 0
B70: Flood protection – catchment rate | K70: =INDEX($AU$91:$BA$130,MATCH($C$58,$D$91:$D$130,0),MATCH(K$67,$AU$87:$BA$87,0))/$K$62*$K$65 -> 0 | L70: =INDEX($AU$91:$BE$130,MATCH($C$58,$D$91:$D$130,0),MATCH(L$67,$AU$87:$BE$87,0))/$L$62*$L$65 -> 0 | M70: 0 | N70: 0 | O70: 0 | P70: 0 | Q70: 0 | R70: 0 | S70: 0 | T70: 0 | U70: 0
B71: River management rate | K71: =INDEX($BG$91:$BM$130,MATCH($C$58,$D$91:$D$130,0),MATCH(K$67,$BG$87:$BM$87,0))/$K$62*$K$65 -> 0 | L71: =INDEX($BG$91:$BQ$130,MATCH($C$58,$D$91:$D$130,0),MATCH(L$67,$BG$87:$BQ$87,0))/$L$62*$L$65 -> 0 | M71: 0 | N71: 0 | O71: 0 | P71: 0 | Q71: 0 | R71: 0 | S71: 0 | T71: 0 | U71: 0
B72: Public transport rate | K72: =INDEX($BS$91:$BY$130,MATCH($C$58,$D$91:$D$130,0),MATCH(K$67,$BS$87:$BY$87,0))/$K$62*$K$65 -> 142.091343 | L72: =INDEX($BS$91:$CC$130,MATCH($C$58,$D$91:$D$130,0),MATCH(L$67,$BS$87:$CC$87,0))/$L$62*$L$65 -> 161.4883218 | M72: 181.9275404 | N72: 220.49573 | O72: 258.4090093 | P72: 299.2344149 | Q72: 331.0478892 | R72: 343.0436398 | S72: 348.2061577 | T72: 365.8787966 | U72: 365.8774961
B73: Stadium purposes rate | K73: =INDEX($CE$91:$CK$130,MATCH($C$58,$D$91:$D$130,0),MATCH(K$67,$CE$87:$CK$87,0))/$K$62*$K$65 -> 3.98619428 | L73: =INDEX($CE$91:$CO$130,MATCH($C$58,$D$91:$D$130,0),MATCH(L$67,$CE$87:$CO$87,0))/$L$62*$L$65 -> 0 | M73: 0 | N73: 0 | O73: 0 | P73: 0 | Q73: 0 | R73: 0 | S73: 0 | T73: 0 | U73: 0
B74: Regional strategy rate | K74: =IF(OR($C$57="Residential",$C$57="rural"),INDEX($CQ$91:$CW$130,MATCH($C$58,$D$91:$D$130,0),MATCH(K$67,$CQ$87:$CW$87,0))/$K$64,INDEX($CQ$91:$CW$130,MATCH($C$58,$D$91:$D$130,0),MATCH(K$67,$CQ$87:$CW$87,0))/$K$62*$K$65) -> 56.1254608 | L74: =IF(OR($C$57="Residential",$C$57="rural"),INDEX($CQ$91:$DA$130,MATCH($C$58,$D$91:$D$130,0),MATCH(L$67,$CQ$87:$DA$87,0))/$L$64,INDEX($CQ$91:$DA$130,MATCH($C$58,$D$91:$D$130,0),MATCH(L$67,$CQ$87:$DA$87,0))/$L$62*$L$65) -> 57.55903239 | M74: 60.68930821 | N74: 66.46844796 | O74: 72.22545503 | P74: 75.30986734 | Q74: 78.25186216 | R74: 81.397296 | S74: 84.63095117 | T74: 87.8808014 | U74: 91.21906612
B75: District wide rate modelled (excl-GST) | K75: =SUM(K68:K74) -> 412.6142189 | L75: 446.3464094 | M75: 493.2236427 | N75: 534.4882805 | O75: 595.9702576 | P75: 649.6920562 | Q75: 689.675732 | R75: 713.3203616 | S75: 734.1133811 | T75: 766.0158566 | U75: 783.9609269
B76: Check | K76: =ROUND(INDEX(K$185:K$224,MATCH($C$58,$D$185:$D$224,0),)-K75,5) -> 0 | L76: 0 | M76: 0 | N76: 0 | O76: 0 | P76: 0 | Q76: 0 | R76: 0 | S76: 0 | T76: 0 | U76: 0
B77: YoY change $ | L77: =L75-K75 -> 33.73219052 | M77: 46.87723329 | N77: 41.26463778 | O77: 61.48197718 | P77: 53.72179855 | Q77: 39.98367582 | R77: 23.64462953 | S77: 20.79301959 | T77: 31.90247546 | U77: 17.94507028
B78: YoY change % | L78: =L75/K75-1 -> 0.08175237056 | M78: 0.1050243316 | N78: 0.0836631382 | O78: 0.1150296076 | P78: 0.09014174426 | Q78: 0.06154250377 | R78: 0.03428369078 | S78: 0.02914962296 | T78: 0.04345715019 | U78: 0.02342649976
B79: District wide rate proposed in consultation (excl-GST) | L79: =INDEX($K$273:$U$311,MATCH($C$58,$D$273:$D$311,0),MATCH(L67,$K$269:$U$269,0)) -> 432.8709934 | M79: 464.252687 | N79: 481.3386237 | O79: 519.3435221 | P79: 542.1767655 | Q79: 559.7556443 | R79: 579.7990668 | S79: 599.867768 | T79: 626.8304914 | U79: 643.5352671
B81: Note: Years beyond 2018/19 based on static rating base. In reality rating base will change both in terms of valuation movements and rateable properties
B85: District-wide rates | W85: General rate | AI85: Flood protection – regional rate | AU85: Not used | BG85: River management rate | BS85: Public transport rate | CE85: Stadium purposes rate | CQ85: Regional strategy rate
B87: TA full name | C87: Category group | D87: Concatenated row | H87: ECV 2017/18 | I87: 2018/19 ECV | K87: 2017/18 | L87: 2018/19 | M87: 2019/20 | N87: 2020/21 | O87: 2021/22 | P87: 2022/23 | Q87: 2023/24 | R87: 2024/25 | S87: 2025/26 | T87: 2026/27 | U87: 2027/28 | W87: 2017/18 | X87: 2018/19 | Y87: 2019/20 | Z87: 2020/21 | AA87: 2021/22 | AB87: 2022/23 | AC87: 2023/24 | AD87: 2024/25 | AE87: 2025/26 | AF87: 2026/27 | AG87: 2027/28 | AI87: 2017/18 | AJ87: 2018/19 | AK87: 2019/20 | AL87: 2020/21 | AM87: 2021/22 | AN87: 2022/23 | AO87: 2023/24 | AP87: 2024/25 | AQ87: 2025/26 | AR87: 2026/27 | AS87: 2027/28 | AU87: 2017/18 | AV87: 2018/19 | AW87: 2019/20 | AX87: 2020/21 | AY87: 2021/22 | AZ87: 2022/23 | BA87: 2023/24 | BB87: 2024/25 | BC87: 2025/26 | BD87: 2026/27 | BE87: 2027/28 | BG87: 2017/18 | BH87: 2018/19 | BI87: 2019/20 | BJ87: 2020/21 | BK87: 2021/22 | BL87: 2022/23 | BM87: 2023/24 | BN87: 2024/25 | BO87: 2025/26 | BP87: 2026/27 | BQ87: 2027/28 | BS87: 2017/18 | BT87: 2018/19 | BU87: 2019/20 | BV87: 2020/21 | BW87: 2021/22 | BX87: 2022/23 | BY87: 2023/24 | BZ87: 2024/25 | CA87: 2025/26 | CB87: 2026/27 | CC87: 2027/28 | CE87: 2017/18 | CF87: 2018/19 | CG87: 2019/20 | CH87: 2020/21 | CI87: 2021/22 | CJ87: 2022/23 | CK87: 2023/24 | CL87: 2024/25 | CM87: 2025/26 | CN87: 2026/27 | CO87: 2027/28 | CQ87: 2017/18 | CR87: 2018/19 | CS87: 2019/20 | CT87: 2020/21 | CU87: 2021/22 | CV87: 2022/23 | CW87: 2023/24 | CX87: 2024/25 | CY87: 2025/26 | CZ87: 2026/27 | DA87: 2027/28
B89: Rates by TA - agreed option
B90: By TA - $
B91: Wellington City | C91: District wide | D91: =B91&C91 -> Wellington CityDistrict wide | F91: =B91&" - "&C91 -> Wellington City - District wide | I91: =INDEX('Capital values'!$G$8:$G$45,MATCH(D91,'Capital values'!$C$8:$C$45,0),) -> 68975077410 | K91: =SUMIF($B$104:$B$129,$B91,K$104:K$129) -> 62570979.07 | L91: 66367076.57 | M91: 71145503.08 | N91: 77292706.28 | O91: 84950507.55 | P91: =SUMIF($B$104:$B$129,$B91,P$104:P$129) -> 91979010.82 | Q91: 96440707.76 | R91: 99736262.47 | S91: 102085273.6 | T91: 106751874.5 | U91: 108312726.2 | W91: =SUMIF($B$104:$B$129,$B91,W$104:W$129) -> 21189528.41 | X91: =INDEX(Gen!$G$10:$P$18,MATCH($B91,Gen!$A$10:$A$18,0),MATCH(X$87,Gen!$G$7:$P$7,0)) -> 23048092.46 | Y91: =INDEX(Gen!$G$10:$P$18,MATCH($B91,Gen!$A$10:$A$18,0),MATCH(Y$87,Gen!$G$7:$P$7,0)) -> 25411493.94 | Z91: =INDEX(Gen!$G$10:$P$18,MATCH($B91,Gen!$A$10:$A$18,0),MATCH(Z$87,Gen!$G$7:$P$7,0)) -> 25098909.44 | AA91: =INDEX(Gen!$G$10:$P$18,MATCH($B91,Gen!$A$10:$A$18,0),MATCH(AA$87,Gen!$G$7:$P$7,0)) -> 26905012.4 | AB91: =INDEX(Gen!$G$10:$P$18,MATCH($B91,Gen!$A$10:$A$18,0),MATCH(AB$87,Gen!$G$7:$P$7,0)) -> 27899945.87 | AC91: =INDEX(Gen!$G$10:$P$18,MATCH($B91,Gen!$A$10:$A$18,0),MATCH(AC$87,Gen!$G$7:$P$7,0)) -> 28430085.3 | AD91: =INDEX(Gen!$G$10:$P$18,MATCH($B91,Gen!$A$10:$A$18,0),MATCH(AD$87,Gen!$G$7:$P$7,0)) -> 29292333.44 | AE91: =INDEX(Gen!$G$10:$P$18,MATCH($B91,Gen!$A$10:$A$18,0),MATCH(AE$87,Gen!$G$7:$P$7,0)) -> 30549371.95 | AF91: =INDEX(Gen!$G$10:$P$18,MATCH($B91,Gen!$A$10:$A$18,0),MATCH(AF$87,Gen!$G$7:$P$7,0)) -> 31662741.03 | AG91: =INDEX(Gen!$G$10:$P$18,MATCH($B91,Gen!$A$10:$A$18,0),MATCH(AG$87,Gen!$G$7:$P$7,0)) -> 33144000.94 | AI91: =SUMIF($B$104:$B$129,$B91,AI$104:AI$129) -> 0 | AJ91: =INDEX('Not used'!$G$10:$P$18,MATCH($B91,'Not used'!$A$10:$A$18,0),MATCH(AJ$87,'Not used'!$G$7:$P$7,0)) -> 0 | AK91: =INDEX('Not used'!$G$10:$P$18,MATCH($B91,'Not used'!$A$10:$A$18,0),MATCH(AK$87,'Not used'!$G$7:$P$7,0)) -> 0 | AL91: =INDEX('Not used'!$G$10:$P$18,MATCH($B91,'Not used'!$A$10:$A$18,0),MATCH(AL$87,'Not used'!$G$7:$P$7,0)) -> 0 | AM91: =INDEX('Not used'!$G$10:$P$18,MATCH($B91,'Not used'!$A$10:$A$18,0),MATCH(AM$87,'Not used'!$G$7:$P$7,0)) -> 0 | AN91: =INDEX('Not used'!$G$10:$P$18,MATCH($B91,'Not used'!$A$10:$A$18,0),MATCH(AN$87,'Not used'!$G$7:$P$7,0)) -> 0 | AO91: =INDEX('Not used'!$G$10:$P$18,MATCH($B91,'Not used'!$A$10:$A$18,0),MATCH(AO$87,'Not used'!$G$7:$P$7,0)) -> 0 | AP91: =INDEX('Not used'!$G$10:$P$18,MATCH($B91,'Not used'!$A$10:$A$18,0),MATCH(AP$87,'Not used'!$G$7:$P$7,0)) -> 0 | AQ91: =INDEX('Not used'!$G$10:$P$18,MATCH($B91,'Not used'!$A$10:$A$18,0),MATCH(AQ$87,'Not used'!$G$7:$P$7,0)) -> 0 | AR91: =INDEX('Not used'!$G$10:$P$18,MATCH($B91,'Not used'!$A$10:$A$18,0),MATCH(AR$87,'Not used'!$G$7:$P$7,0)) -> 0 | AS91: =INDEX('Not used'!$G$10:$P$18,MATCH($B91,'Not used'!$A$10:$A$18,0),MATCH(AS$87,'Not used'!$G$7:$P$7,0)) -> 0 | BG91: =SUMIF($B$104:$B$129,$B91,BG$104:BG$129) -> 43255.4241 | BH91: =INDEX('River management'!$F$10:$O$18,MATCH($B91,'River management'!$A$10:$A$18,0),MATCH(BH$87,'River management'!$F$7:$O$7,0)) -> 42679.2791 | BI91: =INDEX('River management'!$F$10:$O$18,MATCH($B91,'River management'!$A$10:$A$18,0),MATCH(BI$87,'River management'!$F$7:$O$7,0)) -> 42519.38139 | BJ91: =INDEX('River management'!$F$10:$O$18,MATCH($B91,'River management'!$A$10:$A$18,0),MATCH(BJ$87,'River management'!$F$7:$O$7,0)) -> 43789.13452 | BK91: =INDEX('River management'!$F$10:$O$18,MATCH($B91,'River management'!$A$10:$A$18,0),MATCH(BK$87,'River management'!$F$7:$O$7,0)) -> 44615.69486 | BL91: =INDEX('River management'!$F$10:$O$18,MATCH($B91,'River management'!$A$10:$A$18,0),MATCH(BL$87,'River management'!$F$7:$O$7,0)) -> 44956.9485 | BM91: =INDEX('River management'!$F$10:$O$18,MATCH($B91,'River management'!$A$10:$A$18,0),MATCH(BM$87,'River management'!$F$7:$O$7,0)) -> 46333.16191 | BN91: =INDEX('River management'!$F$10:$O$18,MATCH($B91,'River management'!$A$10:$A$18,0),MATCH(BN$87,'River management'!$F$7:$O$7,0)) -> 46705.08272 | BO91: =INDEX('River management'!$F$10:$O$18,MATCH($B91,'River management'!$A$10:$A$18,0),MATCH(BO$87,'River management'!$F$7:$O$7,0)) -> 48152.19295 | BP91: =INDEX('River management'!$F$10:$O$18,MATCH($B91,'River management'!$A$10:$A$18,0),MATCH(BP$87,'River management'!$F$7:$O$7,0)) -> 49097.3187 | BQ91: =INDEX('River management'!$F$10:$O$18,MATCH($B91,'River management'!$A$10:$A$18,0),MATCH(BQ$87,'River management'!$F$7:$O$7,0)) -> 51733.71631 | BS91: =SUMIF($B$104:$B$129,$B91,BS$104:BS$129) -> 38457358 | BT91: =SUMIF($B$104:$B$129,$B91,BT$104:BT$129) -> 40924832.41 | BU91: 43267616.67 | BV91: 49592467.94 | BW91: 55310184.91 | BX91: 61272073.57 | BY91: 65134208.98 | BZ91: 67494392.37 | CA91: 68510126.12 | CB91: 71987246.5 | CC91: 71986990.62 | CE91: =SUMIF($B$104:$B$129,$B91,CE$104:CE$129) -> 580986.2619 | CF91: =SUMIF($B$104:$B$129,$B91,CF$104:CF$129) -> 0 | CG91: 0 | CH91: 0 | CI91: 0 | CJ91: 0 | CK91: 0 | CL91: 0 | CM91: 0 | CN91: 0 | CO91: 0 | CQ91: =SUMIF($B$104:$B$129,$B91,CQ$104:CQ$129) -> 2299850.973 | CR91: =SUMIF($B$104:$B$129,$B91,CR$104:CR$129) -> 2351472.423 | CS91: 2423873.092 | CT91: 2557539.776 | CU91: 2690694.548 | CV91: 2762034.433 | CW91: 2830080.32 | CX91: 2902831.582 | CY91: 2977623.33 | CZ91: 3052789.656 | DA91: 3130000.935
B92: Hutt City | C92: District wide | D92: =B92&C92 -> Hutt CityDistrict wide | F92: =B92&" - "&C92 -> Hutt City - District wide | I92: =INDEX('Capital values'!$G$8:$G$45,MATCH(D92,'Capital values'!$C$8:$C$45,0),) -> 24118117072 | K92: 23454231.3 | L92: 25013959.46 | M92: 25927740.8 | N92: 26906246.89 | O92: 28180969.34 | P92: 29049142.73 | Q92: 29426972.18 | R92: 30620997.03 | S92: 31659194.62 | T92: 33169514.05 | U92: 34636955.02 | W92: =SUMIF($B$104:$B$129,$B92,W$104:W$129) -> 7179456.053 | X92: =INDEX(Gen!$G$10:$P$18,MATCH($B92,Gen!$A$10:$A$18,0),MATCH(X$87,Gen!$G$7:$P$7,0)) -> 8059093.417 | Y92: =INDEX(Gen!$G$10:$P$18,MATCH($B92,Gen!$A$10:$A$18,0),MATCH(Y$87,Gen!$G$7:$P$7,0)) -> 8885490.365 | Z92: =INDEX(Gen!$G$10:$P$18,MATCH($B92,Gen!$A$10:$A$18,0),MATCH(Z$87,Gen!$G$7:$P$7,0)) -> 8776190.748 | AA92: =INDEX(Gen!$G$10:$P$18,MATCH($B92,Gen!$A$10:$A$18,0),MATCH(AA$87,Gen!$G$7:$P$7,0)) -> 9407720.342 | AB92: =INDEX(Gen!$G$10:$P$18,MATCH($B92,Gen!$A$10:$A$18,0),MATCH(AB$87,Gen!$G$7:$P$7,0)) -> 9755612.984 | AC92: =INDEX(Gen!$G$10:$P$18,MATCH($B92,Gen!$A$10:$A$18,0),MATCH(AC$87,Gen!$G$7:$P$7,0)) -> 9940983.778 | AD92: =INDEX(Gen!$G$10:$P$18,MATCH($B92,Gen!$A$10:$A$18,0),MATCH(AD$87,Gen!$G$7:$P$7,0)) -> 10242481.11 | AE92: =INDEX(Gen!$G$10:$P$18,MATCH($B92,Gen!$A$10:$A$18,0),MATCH(AE$87,Gen!$G$7:$P$7,0)) -> 10682022.51 | AF92: =INDEX(Gen!$G$10:$P$18,MATCH($B92,Gen!$A$10:$A$18,0),MATCH(AF$87,Gen!$G$7:$P$7,0)) -> 11071327.84 | AG92: =INDEX(Gen!$G$10:$P$18,MATCH($B92,Gen!$A$10:$A$18,0),MATCH(AG$87,Gen!$G$7:$P$7,0)) -> 11589271.44 | AI92: =SUMIF($B$104:$B$129,$B92,AI$104:AI$129) -> 0 | AJ92: =INDEX('Not used'!$G$10:$P$18,MATCH($B92,'Not used'!$A$10:$A$18,0),MATCH(AJ$87,'Not used'!$G$7:$P$7,0)) -> 0 | AK92: =INDEX('Not used'!$G$10:$P$18,MATCH($B92,'Not used'!$A$10:$A$18,0),MATCH(AK$87,'Not used'!$G$7:$P$7,0)) -> 0 | AL92: =INDEX('Not used'!$G$10:$P$18,MATCH($B92,'Not used'!$A$10:$A$18,0),MATCH(AL$87,'Not used'!$G$7:$P$7,0)) -> 0 | AM92: =INDEX('Not used'!$G$10:$P$18,MATCH($B92,'Not used'!$A$10:$A$18,0),MATCH(AM$87,'Not used'!$G$7:$P$7,0)) -> 0 | AN92: =INDEX('Not used'!$G$10:$P$18,MATCH($B92,'Not used'!$A$10:$A$18,0),MATCH(AN$87,'Not used'!$G$7:$P$7,0)) -> 0 | AO92: =INDEX('Not used'!$G$10:$P$18,MATCH($B92,'Not used'!$A$10:$A$18,0),MATCH(AO$87,'Not used'!$G$7:$P$7,0)) -> 0 | AP92: =INDEX('Not used'!$G$10:$P$18,MATCH($B92,'Not used'!$A$10:$A$18,0),MATCH(AP$87,'Not used'!$G$7:$P$7,0)) -> 0 | AQ92: =INDEX('Not used'!$G$10:$P$18,MATCH($B92,'Not used'!$A$10:$A$18,0),MATCH(AQ$87,'Not used'!$G$7:$P$7,0)) -> 0 | AR92: =INDEX('Not used'!$G$10:$P$18,MATCH($B92,'Not used'!$A$10:$A$18,0),MATCH(AR$87,'Not used'!$G$7:$P$7,0)) -> 0 | AS92: =INDEX('Not used'!$G$10:$P$18,MATCH($B92,'Not used'!$A$10:$A$18,0),MATCH(AS$87,'Not used'!$G$7:$P$7,0)) -> 0 | BG92: =SUMIF($B$104:$B$129,$B92,BG$104:BG$129) -> 3685586.303 | BH92: =INDEX('River management'!$F$10:$O$18,MATCH($B92,'River management'!$A$10:$A$18,0),MATCH(BH$87,'River management'!$F$7:$O$7,0)) -> 4356561.508 | BI92: =INDEX('River management'!$F$10:$O$18,MATCH($B92,'River management'!$A$10:$A$18,0),MATCH(BI$87,'River management'!$F$7:$O$7,0)) -> 4691920.894 | BJ92: =INDEX('River management'!$F$10:$O$18,MATCH($B92,'River management'!$A$10:$A$18,0),MATCH(BJ$87,'River management'!$F$7:$O$7,0)) -> 5073643.41 | BK92: =INDEX('River management'!$F$10:$O$18,MATCH($B92,'River management'!$A$10:$A$18,0),MATCH(BK$87,'River management'!$F$7:$O$7,0)) -> 5330597.586 | BL92: =INDEX('River management'!$F$10:$O$18,MATCH($B92,'River management'!$A$10:$A$18,0),MATCH(BL$87,'River management'!$F$7:$O$7,0)) -> 5574841.85 | BM92: =INDEX('River management'!$F$10:$O$18,MATCH($B92,'River management'!$A$10:$A$18,0),MATCH(BM$87,'River management'!$F$7:$O$7,0)) -> 6032357.552 | BN92: =INDEX('River management'!$F$10:$O$18,MATCH($B92,'River management'!$A$10:$A$18,0),MATCH(BN$87,'River management'!$F$7:$O$7,0)) -> 6454345.581 | BO92: =INDEX('River management'!$F$10:$O$18,MATCH($B92,'River management'!$A$10:$A$18,0),MATCH(BO$87,'River management'!$F$7:$O$7,0)) -> 6838698.741 | BP92: =INDEX('River management'!$F$10:$O$18,MATCH($B92,'River management'!$A$10:$A$18,0),MATCH(BP$87,'River management'!$F$7:$O$7,0)) -> 7275182.673 | BQ92: =INDEX('River management'!$F$10:$O$18,MATCH($B92,'River management'!$A$10:$A$18,0),MATCH(BQ$87,'River management'!$F$7:$O$7,0)) -> 8203774.658 | BS92: 11536013.2 | BT92: 11715213.08 | BU92: 11447589.37 | BV92: 12117396.97 | BW92: 12467498.97 | BX92: 12724174.63 | BY92: 12440650.71 | BZ92: 12891446.35 | CA92: 13085451.76 | CB92: 13749582.64 | CC92: 13749533.77 | CE92: 190923.4315 | CF92: 0 | CG92: 0 | CH92: 0 | CI92: 0 | CJ92: 0 | CK92: 0 | CL92: 0 | CM92: 0 | CN92: 0 | CO92: 0 | CQ92: =SUMIF($B$104:$B$129,$B92,CQ$104:CQ$129) -> 862252.3181 | CR92: 883091.458 | CS92: 902740.1673 | CT92: 939015.7684 | CU92: 975152.4429 | CV92: 994513.2675 | CW92: 1012980.139 | CX92: 1032723.995 | CY92: 1053021.615 | CZ92: 1073420.892 | DA92: 1094375.146
B93: Upper Hutt City | C93: District wide | D93: Upper Hutt CityDistrict wide | F93: Upper Hutt City - District wide | I93: =INDEX('Capital values'!$G$8:$G$45,MATCH(D93,'Capital values'!$C$8:$C$45,0),) -> 9172479133 | K93: 8387211.703 | L93: 8680468.613 | M93: 8956401.422 | N93: 9171234.179 | O93: 9569627.54 | P93: 9593811.71 | Q93: 9456856.207 | R93: 9741199.275 | S93: 9997338.179 | T93: 10395358.87 | U93: 10624703.87 | W93: 2718137.091 | X93: =INDEX(Gen!$G$10:$P$18,MATCH($B93,Gen!$A$10:$A$18,0),MATCH(X$87,Gen!$G$7:$P$7,0)) -> 3064993.257 | Y93: =INDEX(Gen!$G$10:$P$18,MATCH($B93,Gen!$A$10:$A$18,0),MATCH(Y$87,Gen!$G$7:$P$7,0)) -> 3379284.324 | Z93: =INDEX(Gen!$G$10:$P$18,MATCH($B93,Gen!$A$10:$A$18,0),MATCH(Z$87,Gen!$G$7:$P$7,0)) -> 3337716.052 | AA93: =INDEX(Gen!$G$10:$P$18,MATCH($B93,Gen!$A$10:$A$18,0),MATCH(AA$87,Gen!$G$7:$P$7,0)) -> 3577896.163 | AB93: =INDEX(Gen!$G$10:$P$18,MATCH($B93,Gen!$A$10:$A$18,0),MATCH(AB$87,Gen!$G$7:$P$7,0)) -> 3710204.916 | AC93: =INDEX(Gen!$G$10:$P$18,MATCH($B93,Gen!$A$10:$A$18,0),MATCH(AC$87,Gen!$G$7:$P$7,0)) -> 3780704.19 | AD93: =INDEX(Gen!$G$10:$P$18,MATCH($B93,Gen!$A$10:$A$18,0),MATCH(AD$87,Gen!$G$7:$P$7,0)) -> 3895368.115 | AE93: =INDEX(Gen!$G$10:$P$18,MATCH($B93,Gen!$A$10:$A$18,0),MATCH(AE$87,Gen!$G$7:$P$7,0)) -> 4062532.255 | AF93: =INDEX(Gen!$G$10:$P$18,MATCH($B93,Gen!$A$10:$A$18,0),MATCH(AF$87,Gen!$G$7:$P$7,0)) -> 4210590.872 | AG93: =INDEX(Gen!$G$10:$P$18,MATCH($B93,Gen!$A$10:$A$18,0),MATCH(AG$87,Gen!$G$7:$P$7,0)) -> 4407572.538 | AI93: 0 | AJ93: =INDEX('Not used'!$G$10:$P$18,MATCH($B93,'Not used'!$A$10:$A$18,0),MATCH(AJ$87,'Not used'!$G$7:$P$7,0)) -> 0 | AK93: =INDEX('Not used'!$G$10:$P$18,MATCH($B93,'Not used'!$A$10:$A$18,0),MATCH(AK$87,'Not used'!$G$7:$P$7,0)) -> 0 | AL93: =INDEX('Not used'!$G$10:$P$18,MATCH($B93,'Not used'!$A$10:$A$18,0),MATCH(AL$87,'Not used'!$G$7:$P$7,0)) -> 0 | AM93: =INDEX('Not used'!$G$10:$P$18,MATCH($B93,'Not used'!$A$10:$A$18,0),MATCH(AM$87,'Not used'!$G$7:$P$7,0)) -> 0 | AN93: =INDEX('Not used'!$G$10:$P$18,MATCH($B93,'Not used'!$A$10:$A$18,0),MATCH(AN$87,'Not used'!$G$7:$P$7,0)) -> 0 | AO93: =INDEX('Not used'!$G$10:$P$18,MATCH($B93,'Not used'!$A$10:$A$18,0),MATCH(AO$87,'Not used'!$G$7:$P$7,0)) -> 0 | AP93: =INDEX('Not used'!$G$10:$P$18,MATCH($B93,'Not used'!$A$10:$A$18,0),MATCH(AP$87,'Not used'!$G$7:$P$7,0)) -> 0 | AQ93: =INDEX('Not used'!$G$10:$P$18,MATCH($B93,'Not used'!$A$10:$A$18,0),MATCH(AQ$87,'Not used'!$G$7:$P$7,0)) -> 0 | AR93: =INDEX('Not used'!$G$10:$P$18,MATCH($B93,'Not used'!$A$10:$A$18,0),MATCH(AR$87,'Not used'!$G$7:$P$7,0)) -> 0 | AS93: =INDEX('Not used'!$G$10:$P$18,MATCH($B93,'Not used'!$A$10:$A$18,0),MATCH(AS$87,'Not used'!$G$7:$P$7,0)) -> 0 | BG93: 678045.4338 | BH93: =INDEX('River management'!$F$10:$O$18,MATCH($B93,'River management'!$A$10:$A$18,0),MATCH(BH$87,'River management'!$F$7:$O$7,0)) -> 667062.2202 | BI93: =INDEX('River management'!$F$10:$O$18,MATCH($B93,'River management'!$A$10:$A$18,0),MATCH(BI$87,'River management'!$F$7:$O$7,0)) -> 804991.3165 | BJ93: =INDEX('River management'!$F$10:$O$18,MATCH($B93,'River management'!$A$10:$A$18,0),MATCH(BJ$87,'River management'!$F$7:$O$7,0)) -> 881372.3078 | BK93: =INDEX('River management'!$F$10:$O$18,MATCH($B93,'River management'!$A$10:$A$18,0),MATCH(BK$87,'River management'!$F$7:$O$7,0)) -> 997091.8973 | BL93: =INDEX('River management'!$F$10:$O$18,MATCH($B93,'River management'!$A$10:$A$18,0),MATCH(BL$87,'River management'!$F$7:$O$7,0)) -> 901766.8162 | BM93: =INDEX('River management'!$F$10:$O$18,MATCH($B93,'River management'!$A$10:$A$18,0),MATCH(BM$87,'River management'!$F$7:$O$7,0)) -> 914356.2001 | BN93: =INDEX('River management'!$F$10:$O$18,MATCH($B93,'River management'!$A$10:$A$18,0),MATCH(BN$87,'River management'!$F$7:$O$7,0)) -> 919575.6887 | BO93: =INDEX('River management'!$F$10:$O$18,MATCH($B93,'River management'!$A$10:$A$18,0),MATCH(BO$87,'River management'!$F$7:$O$7,0)) -> 934135.6599 | BP93: =INDEX('River management'!$F$10:$O$18,MATCH($B93,'River management'!$A$10:$A$18,0),MATCH(BP$87,'River management'!$F$7:$O$7,0)) -> 944487.089 | BQ93: =INDEX('River management'!$F$10:$O$18,MATCH($B93,'River management'!$A$10:$A$18,0),MATCH(BQ$87,'River management'!$F$7:$O$7,0)) -> 970408.3884 | BS93: 4596383.562 | BT93: 4597306.191 | BU93: 4414962.067 | BV93: 4583800.051 | BW93: 4615154.481 | BX93: 4596386.951 | BY93: 4370650.325 | BZ93: 4529023.881 | CA93: 4597181.876 | CB93: 4830504.389 | CC93: 4830487.219 | CE93: 51447.60501 | CF93: 0 | CG93: 0 | CH93: 0 | CI93: 0 | CJ93: 0 | CK93: 0 | CL93: 0 | CM93: 0 | CN93: 0 | CO93: 0 | CQ93: 343198.0108 | CR93: 351106.9446 | CS93: 357163.7138 | CT93: 368345.7686 | CU93: 379484.9989 | CV93: 385453.0268 | CW93: 391145.4912 | CX93: 397231.5897 | CY93: 403488.3875 | CZ93: 409776.5212 | DA93: 416235.728
B94: Porirua City | C94: District wide | D94: Porirua CityDistrict wide | F94: Porirua City - District wide | I94: =INDEX('Capital values'!$G$8:$G$45,MATCH(D94,'Capital values'!$C$8:$C$45,0),) -> 11429809803 | K94: 9886888.663 | L94: 10301484.08 | M94: 10425216.23 | N94: 10559607.89 | O94: 10878933.42 | P94: 10965444.76 | Q94: 10707183.29 | R94: 11056913.61 | S94: 11358590.15 | T94: 11845682.89 | U94: 12099131.26 | W94: 3367756.606 | X94: =INDEX(Gen!$G$10:$P$18,MATCH($B94,Gen!$A$10:$A$18,0),MATCH(X$87,Gen!$G$7:$P$7,0)) -> 3819282.603 | Y94: =INDEX(Gen!$G$10:$P$18,MATCH($B94,Gen!$A$10:$A$18,0),MATCH(Y$87,Gen!$G$7:$P$7,0)) -> 4210920.138 | Z94: =INDEX(Gen!$G$10:$P$18,MATCH($B94,Gen!$A$10:$A$18,0),MATCH(Z$87,Gen!$G$7:$P$7,0)) -> 4159121.989 | AA94: =INDEX(Gen!$G$10:$P$18,MATCH($B94,Gen!$A$10:$A$18,0),MATCH(AA$87,Gen!$G$7:$P$7,0)) -> 4458409.994 | AB94: =INDEX(Gen!$G$10:$P$18,MATCH($B94,Gen!$A$10:$A$18,0),MATCH(AB$87,Gen!$G$7:$P$7,0)) -> 4623279.694 | AC94: =INDEX(Gen!$G$10:$P$18,MATCH($B94,Gen!$A$10:$A$18,0),MATCH(AC$87,Gen!$G$7:$P$7,0)) -> 4711128.713 | AD94: =INDEX(Gen!$G$10:$P$18,MATCH($B94,Gen!$A$10:$A$18,0),MATCH(AD$87,Gen!$G$7:$P$7,0)) -> 4854011.224 | AE94: =INDEX(Gen!$G$10:$P$18,MATCH($B94,Gen!$A$10:$A$18,0),MATCH(AE$87,Gen!$G$7:$P$7,0)) -> 5062314.16 | AF94: =INDEX(Gen!$G$10:$P$18,MATCH($B94,Gen!$A$10:$A$18,0),MATCH(AF$87,Gen!$G$7:$P$7,0)) -> 5246809.737 | AG94: =INDEX(Gen!$G$10:$P$18,MATCH($B94,Gen!$A$10:$A$18,0),MATCH(AG$87,Gen!$G$7:$P$7,0)) -> 5492268.238 | AI94: 0 | AJ94: =INDEX('Not used'!$G$10:$P$18,MATCH($B94,'Not used'!$A$10:$A$18,0),MATCH(AJ$87,'Not used'!$G$7:$P$7,0)) -> 0 | AK94: =INDEX('Not used'!$G$10:$P$18,MATCH($B94,'Not used'!$A$10:$A$18,0),MATCH(AK$87,'Not used'!$G$7:$P$7,0)) -> 0 | AL94: =INDEX('Not used'!$G$10:$P$18,MATCH($B94,'Not used'!$A$10:$A$18,0),MATCH(AL$87,'Not used'!$G$7:$P$7,0)) -> 0 | AM94: =INDEX('Not used'!$G$10:$P$18,MATCH($B94,'Not used'!$A$10:$A$18,0),MATCH(AM$87,'Not used'!$G$7:$P$7,0)) -> 0 | AN94: =INDEX('Not used'!$G$10:$P$18,MATCH($B94,'Not used'!$A$10:$A$18,0),MATCH(AN$87,'Not used'!$G$7:$P$7,0)) -> 0 | AO94: =INDEX('Not used'!$G$10:$P$18,MATCH($B94,'Not used'!$A$10:$A$18,0),MATCH(AO$87,'Not used'!$G$7:$P$7,0)) -> 0 | AP94: =INDEX('Not used'!$G$10:$P$18,MATCH($B94,'Not used'!$A$10:$A$18,0),MATCH(AP$87,'Not used'!$G$7:$P$7,0)) -> 0 | AQ94: =INDEX('Not used'!$G$10:$P$18,MATCH($B94,'Not used'!$A$10:$A$18,0),MATCH(AQ$87,'Not used'!$G$7:$P$7,0)) -> 0 | AR94: =INDEX('Not used'!$G$10:$P$18,MATCH($B94,'Not used'!$A$10:$A$18,0),MATCH(AR$87,'Not used'!$G$7:$P$7,0)) -> 0 | AS94: =INDEX('Not used'!$G$10:$P$18,MATCH($B94,'Not used'!$A$10:$A$18,0),MATCH(AS$87,'Not used'!$G$7:$P$7,0)) -> 0 | BG94: 28307.67988 | BH94: =INDEX('River management'!$F$10:$O$18,MATCH($B94,'River management'!$A$10:$A$18,0),MATCH(BH$87,'River management'!$F$7:$O$7,0)) -> 33587.96463 | BI94: =INDEX('River management'!$F$10:$O$18,MATCH($B94,'River management'!$A$10:$A$18,0),MATCH(BI$87,'River management'!$F$7:$O$7,0)) -> 37641.556 | BJ94: =INDEX('River management'!$F$10:$O$18,MATCH($B94,'River management'!$A$10:$A$18,0),MATCH(BJ$87,'River management'!$F$7:$O$7,0)) -> 33929.74687 | BK94: =INDEX('River management'!$F$10:$O$18,MATCH($B94,'River management'!$A$10:$A$18,0),MATCH(BK$87,'River management'!$F$7:$O$7,0)) -> 51739.69056 | BL94: =INDEX('River management'!$F$10:$O$18,MATCH($B94,'River management'!$A$10:$A$18,0),MATCH(BL$87,'River management'!$F$7:$O$7,0)) -> 48613.97009 | BM94: =INDEX('River management'!$F$10:$O$18,MATCH($B94,'River management'!$A$10:$A$18,0),MATCH(BM$87,'River management'!$F$7:$O$7,0)) -> 49636.99122 | BN94: =INDEX('River management'!$F$10:$O$18,MATCH($B94,'River management'!$A$10:$A$18,0),MATCH(BN$87,'River management'!$F$7:$O$7,0)) -> 49840.39342 | BO94: =INDEX('River management'!$F$10:$O$18,MATCH($B94,'River management'!$A$10:$A$18,0),MATCH(BO$87,'River management'!$F$7:$O$7,0)) -> 50900.96312 | BP94: =INDEX('River management'!$F$10:$O$18,MATCH($B94,'River management'!$A$10:$A$18,0),MATCH(BP$87,'River management'!$F$7:$O$7,0)) -> 51550.29889 | BQ94: =INDEX('River management'!$F$10:$O$18,MATCH($B94,'River management'!$A$10:$A$18,0),MATCH(BQ$87,'River management'!$F$7:$O$7,0)) -> 53558.18173 | BS94: 6066071.247 | BT94: 6086081.306 | BU94: 5808492.617 | BV94: 5988000.624 | BW94: 5979874.407 | BX94: 5899094.54 | BY94: 5546669.937 | BZ94: 5747657.382 | CA94: 5834154.784 | CB94: 6130257.852 | CC94: 6130236.062 | CE94: 70226.95893 | CF94: 0 | CG94: 0 | CH94: 0 | CI94: 0 | CJ94: 0 | CK94: 0 | CL94: 0 | CM94: 0 | CN94: 0 | CO94: 0 | CQ94: 354526.1708 | CR94: 362532.2064 | CS94: 368161.9143 | CT94: 378555.5251 | CU94: 388909.331 | CV94: 394456.5547 | CW94: 399747.6448 | CX94: 405404.6139 | CY94: 411220.2465 | CZ94: 417065.0054 | DA94: 423068.7751
B95: Kapiti Coast District | C95: District wide | D95: Kapiti Coast DistrictDistrict wide | F95: Kapiti Coast District - District wide | I95: =INDEX('Capital values'!$G$8:$G$45,MATCH(D95,'Capital values'!$C$8:$C$45,0),) -> 14678791680 | K95: 9327067.548 | L95: 10320048.52 | M95: 11134012.22 | N95: 11818919.09 | O95: 12975027.36 | P95: 13952776.57 | Q95: 14640090.64 | R95: 15189467.95 | S95: 15606633.87 | T95: 16295606.05 | U95: 16741144.47 | W95: 4329462.398 | X95: =INDEX(Gen!$G$10:$P$18,MATCH($B95,Gen!$A$10:$A$18,0),MATCH(X$87,Gen!$G$7:$P$7,0)) -> 4904933.211 | Y95: =INDEX(Gen!$G$10:$P$18,MATCH($B95,Gen!$A$10:$A$18,0),MATCH(Y$87,Gen!$G$7:$P$7,0)) -> 5407895.718 | Z95: =INDEX(Gen!$G$10:$P$18,MATCH($B95,Gen!$A$10:$A$18,0),MATCH(Z$87,Gen!$G$7:$P$7,0)) -> 5341373.68 | AA95: =INDEX(Gen!$G$10:$P$18,MATCH($B95,Gen!$A$10:$A$18,0),MATCH(AA$87,Gen!$G$7:$P$7,0)) -> 5725735.831 | AB95: =INDEX(Gen!$G$10:$P$18,MATCH($B95,Gen!$A$10:$A$18,0),MATCH(AB$87,Gen!$G$7:$P$7,0)) -> 5937470.586 | AC95: =INDEX(Gen!$G$10:$P$18,MATCH($B95,Gen!$A$10:$A$18,0),MATCH(AC$87,Gen!$G$7:$P$7,0)) -> 6050291.138 | AD95: =INDEX(Gen!$G$10:$P$18,MATCH($B95,Gen!$A$10:$A$18,0),MATCH(AD$87,Gen!$G$7:$P$7,0)) -> 6233788.733 | AE95: =INDEX(Gen!$G$10:$P$18,MATCH($B95,Gen!$A$10:$A$18,0),MATCH(AE$87,Gen!$G$7:$P$7,0)) -> 6501302.843 | AF95: =INDEX(Gen!$G$10:$P$18,MATCH($B95,Gen!$A$10:$A$18,0),MATCH(AF$87,Gen!$G$7:$P$7,0)) -> 6738242.232 | AG95: =INDEX(Gen!$G$10:$P$18,MATCH($B95,Gen!$A$10:$A$18,0),MATCH(AG$87,Gen!$G$7:$P$7,0)) -> 7053473.567 | AI95: 0 | AJ95: =INDEX('Not used'!$G$10:$P$18,MATCH($B95,'Not used'!$A$10:$A$18,0),MATCH(AJ$87,'Not used'!$G$7:$P$7,0)) -> 0 | AK95: =INDEX('Not used'!$G$10:$P$18,MATCH($B95,'Not used'!$A$10:$A$18,0),MATCH(AK$87,'Not used'!$G$7:$P$7,0)) -> 0 | AL95: =INDEX('Not used'!$G$10:$P$18,MATCH($B95,'Not used'!$A$10:$A$18,0),MATCH(AL$87,'Not used'!$G$7:$P$7,0)) -> 0 | AM95: =INDEX('Not used'!$G$10:$P$18,MATCH($B95,'Not used'!$A$10:$A$18,0),MATCH(AM$87,'Not used'!$G$7:$P$7,0)) -> 0 | AN95: =INDEX('Not used'!$G$10:$P$18,MATCH($B95,'Not used'!$A$10:$A$18,0),MATCH(AN$87,'Not used'!$G$7:$P$7,0)) -> 0 | AO95: =INDEX('Not used'!$G$10:$P$18,MATCH($B95,'Not used'!$A$10:$A$18,0),MATCH(AO$87,'Not used'!$G$7:$P$7,0)) -> 0 | AP95: =INDEX('Not used'!$G$10:$P$18,MATCH($B95,'Not used'!$A$10:$A$18,0),MATCH(AP$87,'Not used'!$G$7:$P$7,0)) -> 0 | AQ95: =INDEX('Not used'!$G$10:$P$18,MATCH($B95,'Not used'!$A$10:$A$18,0),MATCH(AQ$87,'Not used'!$G$7:$P$7,0)) -> 0 | AR95: =INDEX('Not used'!$G$10:$P$18,MATCH($B95,'Not used'!$A$10:$A$18,0),MATCH(AR$87,'Not used'!$G$7:$P$7,0)) -> 0 | AS95: =INDEX('Not used'!$G$10:$P$18,MATCH($B95,'Not used'!$A$10:$A$18,0),MATCH(AS$87,'Not used'!$G$7:$P$7,0)) -> 0 | BG95: 1368225.795 | BH95: =INDEX('River management'!$F$10:$O$18,MATCH($B95,'River management'!$A$10:$A$18,0),MATCH(BH$87,'River management'!$F$7:$O$7,0)) -> 1335374.835 | BI95: =INDEX('River management'!$F$10:$O$18,MATCH($B95,'River management'!$A$10:$A$18,0),MATCH(BI$87,'River management'!$F$7:$O$7,0)) -> 1323610.457 | BJ95: =INDEX('River management'!$F$10:$O$18,MATCH($B95,'River management'!$A$10:$A$18,0),MATCH(BJ$87,'River management'!$F$7:$O$7,0)) -> 1373034.209 | BK95: =INDEX('River management'!$F$10:$O$18,MATCH($B95,'River management'!$A$10:$A$18,0),MATCH(BK$87,'River management'!$F$7:$O$7,0)) -> 1479000.454 | BL95: =INDEX('River management'!$F$10:$O$18,MATCH($B95,'River management'!$A$10:$A$18,0),MATCH(BL$87,'River management'!$F$7:$O$7,0)) -> 1544375.827 | BM95: =INDEX('River management'!$F$10:$O$18,MATCH($B95,'River management'!$A$10:$A$18,0),MATCH(BM$87,'River management'!$F$7:$O$7,0)) -> 1610101.498 | BN95: =INDEX('River management'!$F$10:$O$18,MATCH($B95,'River management'!$A$10:$A$18,0),MATCH(BN$87,'River management'!$F$7:$O$7,0)) -> 1735483.552 | BO95: =INDEX('River management'!$F$10:$O$18,MATCH($B95,'River management'!$A$10:$A$18,0),MATCH(BO$87,'River management'!$F$7:$O$7,0)) -> 1777571.592 | BP95: =INDEX('River management'!$F$10:$O$18,MATCH($B95,'River management'!$A$10:$A$18,0),MATCH(BP$87,'River management'!$F$7:$O$7,0)) -> 1878284.356 | BQ95: =INDEX('River management'!$F$10:$O$18,MATCH($B95,'River management'!$A$10:$A$18,0),MATCH(BQ$87,'River management'!$F$7:$O$7,0)) -> 2001402.74 | BS95: 3090620.087 | BT95: 3594210.545 | BU95: 3910211.549 | BV95: 4599727.895 | BW95: 5253066.791 | BX95: 5947040.416 | BY95: 6449450.566 | BZ95: 6683150.895 | CA95: 6783726.687 | CB95: 7128023.737 | CC95: 7127998.4 | CE95: 47339.62134 | CF95: 0 | CG95: 0 | CH95: 0 | CI95: 0 | CJ95: 0 | CK95: 0 | CL95: 0 | CM95: 0 | CN95: 0 | CO95: 0 | CQ95: 491419.6459 | CR95: 485529.9273 | CS95: 492294.5 | CT95: 504783.3072 | CU95: 517224.2853 | CV95: 523889.7463 | CW95: 530247.441 | CX95: 537044.7704 | CY95: 544032.7474 | CZ95: 551055.7223 | DA95: 558269.7621
B96: Masterton District | C96: District wide | D96: Masterton DistrictDistrict wide | F96: Masterton District - District wide | I96: =INDEX('Capital values'!$G$8:$G$45,MATCH(D96,'Capital values'!$C$8:$C$45,0),) -> 5891731979 | K96: 2243225.911 | L96: 2650009.423 | M96: 2954454.758 | N96: 3090879.061 | O96: 3413518.472 | P96: 3680908.423 | Q96: 3881163.429 | R96: 4000155.879 | S96: 4128249.832 | T96: 4289261.075 | U96: 4417926.247 | W96: 1675353.225 | X96: =INDEX(Gen!$G$10:$P$18,MATCH($B96,Gen!$A$10:$A$18,0),MATCH(X$87,Gen!$G$7:$P$7,0)) -> 1968728.25 | Y96: =INDEX(Gen!$G$10:$P$18,MATCH($B96,Gen!$A$10:$A$18,0),MATCH(Y$87,Gen!$G$7:$P$7,0)) -> 2170605.921 | Z96: =INDEX(Gen!$G$10:$P$18,MATCH($B96,Gen!$A$10:$A$18,0),MATCH(Z$87,Gen!$G$7:$P$7,0)) -> 2143905.494 | AA96: =INDEX(Gen!$G$10:$P$18,MATCH($B96,Gen!$A$10:$A$18,0),MATCH(AA$87,Gen!$G$7:$P$7,0)) -> 2298179.689 | AB96: =INDEX(Gen!$G$10:$P$18,MATCH($B96,Gen!$A$10:$A$18,0),MATCH(AB$87,Gen!$G$7:$P$7,0)) -> 2383165.187 | AC96: =INDEX(Gen!$G$10:$P$18,MATCH($B96,Gen!$A$10:$A$18,0),MATCH(AC$87,Gen!$G$7:$P$7,0)) -> 2428448.782 | AD96: =INDEX(Gen!$G$10:$P$18,MATCH($B96,Gen!$A$10:$A$18,0),MATCH(AD$87,Gen!$G$7:$P$7,0)) -> 2502100.529 | AE96: =INDEX(Gen!$G$10:$P$18,MATCH($B96,Gen!$A$10:$A$18,0),MATCH(AE$87,Gen!$G$7:$P$7,0)) -> 2609474.588 | AF96: =INDEX(Gen!$G$10:$P$18,MATCH($B96,Gen!$A$10:$A$18,0),MATCH(AF$87,Gen!$G$7:$P$7,0)) -> 2704576.651 | AG96: =INDEX(Gen!$G$10:$P$18,MATCH($B96,Gen!$A$10:$A$18,0),MATCH(AG$87,Gen!$G$7:$P$7,0)) -> 2831103.314 | AI96: 0 | AJ96: =INDEX('Not used'!$G$10:$P$18,MATCH($B96,'Not used'!$A$10:$A$18,0),MATCH(AJ$87,'Not used'!$G$7:$P$7,0)) -> 0 | AK96: =INDEX('Not used'!$G$10:$P$18,MATCH($B96,'Not used'!$A$10:$A$18,0),MATCH(AK$87,'Not used'!$G$7:$P$7,0)) -> 0 | AL96: =INDEX('Not used'!$G$10:$P$18,MATCH($B96,'Not used'!$A$10:$A$18,0),MATCH(AL$87,'Not used'!$G$7:$P$7,0)) -> 0 | AM96: =INDEX('Not used'!$G$10:$P$18,MATCH($B96,'Not used'!$A$10:$A$18,0),MATCH(AM$87,'Not used'!$G$7:$P$7,0)) -> 0 | AN96: =INDEX('Not used'!$G$10:$P$18,MATCH($B96,'Not used'!$A$10:$A$18,0),MATCH(AN$87,'Not used'!$G$7:$P$7,0)) -> 0 | AO96: =INDEX('Not used'!$G$10:$P$18,MATCH($B96,'Not used'!$A$10:$A$18,0),MATCH(AO$87,'Not used'!$G$7:$P$7,0)) -> 0 | AP96: =INDEX('Not used'!$G$10:$P$18,MATCH($B96,'Not used'!$A$10:$A$18,0),MATCH(AP$87,'Not used'!$G$7:$P$7,0)) -> 0 | AQ96: =INDEX('Not used'!$G$10:$P$18,MATCH($B96,'Not used'!$A$10:$A$18,0),MATCH(AQ$87,'Not used'!$G$7:$P$7,0)) -> 0 | AR96: =INDEX('Not used'!$G$10:$P$18,MATCH($B96,'Not used'!$A$10:$A$18,0),MATCH(AR$87,'Not used'!$G$7:$P$7,0)) -> 0 | AS96: =INDEX('Not used'!$G$10:$P$18,MATCH($B96,'Not used'!$A$10:$A$18,0),MATCH(AS$87,'Not used'!$G$7:$P$7,0)) -> 0 | BG96: 0 | BH96: =INDEX('River management'!$F$10:$O$18,MATCH($B96,'River management'!$A$10:$A$18,0),MATCH(BH$87,'River management'!$F$7:$O$7,0)) -> 0 | BI96: =INDEX('River management'!$F$10:$O$18,MATCH($B96,'River management'!$A$10:$A$18,0),MATCH(BI$87,'River management'!$F$7:$O$7,0)) -> 0 | BJ96: =INDEX('River management'!$F$10:$O$18,MATCH($B96,'River management'!$A$10:$A$18,0),MATCH(BJ$87,'River management'!$F$7:$O$7,0)) -> 0 | BK96: =INDEX('River management'!$F$10:$O$18,MATCH($B96,'River management'!$A$10:$A$18,0),MATCH(BK$87,'River management'!$F$7:$O$7,0)) -> 0 | BL96: =INDEX('River management'!$F$10:$O$18,MATCH($B96,'River management'!$A$10:$A$18,0),MATCH(BL$87,'River management'!$F$7:$O$7,0)) -> 0 | BM96: =INDEX('River management'!$F$10:$O$18,MATCH($B96,'River management'!$A$10:$A$18,0),MATCH(BM$87,'River management'!$F$7:$O$7,0)) -> 0 | BN96: =INDEX('River management'!$F$10:$O$18,MATCH($B96,'River management'!$A$10:$A$18,0),MATCH(BN$87,'River management'!$F$7:$O$7,0)) -> 0 | BO96: =INDEX('River management'!$F$10:$O$18,MATCH($B96,'River management'!$A$10:$A$18,0),MATCH(BO$87,'River management'!$F$7:$O$7,0)) -> 0 | BP96: =INDEX('River management'!$F$10:$O$18,MATCH($B96,'River management'!$A$10:$A$18,0),MATCH(BP$87,'River management'!$F$7:$O$7,0)) -> 0 | BQ96: =INDEX('River management'!$F$10:$O$18,MATCH($B96,'River management'!$A$10:$A$18,0),MATCH(BQ$87,'River management'!$F$7:$O$7,0)) -> 0 | BS96: 306748.566 | BT96: 437393.5929 | BU96: 537951.5818 | BV96: 697366.0369 | BW96: 862035.1858 | BX96: 1042459.409 | BY96: 1195542.024 | BZ96: 1238863.321 | CA96: 1257507.171 | CB96: 1321329.909 | CC96: 1321325.212 | CE96: 19561.827 | CF96: 0 | CG96: 0 | CH96: 0 | CI96: 0 | CJ96: 0 | CK96: 0 | CL96: 0 | CM96: 0 | CN96: 0 | CO96: 0 | CQ96: 241562.2933 | CR96: 243887.5806 | CS96: 245897.2547 | CT96: 249607.5309 | CU96: 253303.5976 | CV96: 255283.8269 | CW96: 257172.6224 | CX96: 259192.0282 | CY96: 261268.0731 | CZ96: 263354.5154 | DA96: 265497.7209
B97: Carterton District | C97: District wide | D97: Carterton DistrictDistrict wide | F97: Carterton District - District wide | I97: =INDEX('Capital values'!$G$8:$G$45,MATCH(D97,'Capital values'!$C$8:$C$45,0),) -> 2715649450 | K97: 1093953.066 | L97: 1270495.792 | M97: 1389741.209 | N97: 1430653.828 | O97: 1553040.291 | P97: 1646532.002 | Q97: 1708232.95 | R97: 1760125.57 | S97: 1817908.649 | T97: 1887806.073 | U97: 1947148.046 | W97: 774173.169 | X97: =INDEX(Gen!$G$10:$P$18,MATCH($B97,Gen!$A$10:$A$18,0),MATCH(X$87,Gen!$G$7:$P$7,0)) -> 907437.0334 | Y97: =INDEX(Gen!$G$10:$P$18,MATCH($B97,Gen!$A$10:$A$18,0),MATCH(Y$87,Gen!$G$7:$P$7,0)) -> 1000487.598 | Z97: =INDEX(Gen!$G$10:$P$18,MATCH($B97,Gen!$A$10:$A$18,0),MATCH(Z$87,Gen!$G$7:$P$7,0)) -> 988180.6904 | AA97: =INDEX(Gen!$G$10:$P$18,MATCH($B97,Gen!$A$10:$A$18,0),MATCH(AA$87,Gen!$G$7:$P$7,0)) -> 1059289.599 | AB97: =INDEX(Gen!$G$10:$P$18,MATCH($B97,Gen!$A$10:$A$18,0),MATCH(AB$87,Gen!$G$7:$P$7,0)) -> 1098461.582 | AC97: =INDEX(Gen!$G$10:$P$18,MATCH($B97,Gen!$A$10:$A$18,0),MATCH(AC$87,Gen!$G$7:$P$7,0)) -> 1119333.945 | AD97: =INDEX(Gen!$G$10:$P$18,MATCH($B97,Gen!$A$10:$A$18,0),MATCH(AD$87,Gen!$G$7:$P$7,0)) -> 1153281.913 | AE97: =INDEX(Gen!$G$10:$P$18,MATCH($B97,Gen!$A$10:$A$18,0),MATCH(AE$87,Gen!$G$7:$P$7,0)) -> 1202773.353 | AF97: =INDEX(Gen!$G$10:$P$18,MATCH($B97,Gen!$A$10:$A$18,0),MATCH(AF$87,Gen!$G$7:$P$7,0)) -> 1246608.318 | AG97: =INDEX(Gen!$G$10:$P$18,MATCH($B97,Gen!$A$10:$A$18,0),MATCH(AG$87,Gen!$G$7:$P$7,0)) -> 1304927.683 | AI97: 0 | AJ97: =INDEX('Not used'!$G$10:$P$18,MATCH($B97,'Not used'!$A$10:$A$18,0),MATCH(AJ$87,'Not used'!$G$7:$P$7,0)) -> 0 | AK97: =INDEX('Not used'!$G$10:$P$18,MATCH($B97,'Not used'!$A$10:$A$18,0),MATCH(AK$87,'Not used'!$G$7:$P$7,0)) -> 0 | AL97: =INDEX('Not used'!$G$10:$P$18,MATCH($B97,'Not used'!$A$10:$A$18,0),MATCH(AL$87,'Not used'!$G$7:$P$7,0)) -> 0 | AM97: =INDEX('Not used'!$G$10:$P$18,MATCH($B97,'Not used'!$A$10:$A$18,0),MATCH(AM$87,'Not used'!$G$7:$P$7,0)) -> 0 | AN97: =INDEX('Not used'!$G$10:$P$18,MATCH($B97,'Not used'!$A$10:$A$18,0),MATCH(AN$87,'Not used'!$G$7:$P$7,0)) -> 0 | AO97: =INDEX('Not used'!$G$10:$P$18,MATCH($B97,'Not used'!$A$10:$A$18,0),MATCH(AO$87,'Not used'!$G$7:$P$7,0)) -> 0 | AP97: =INDEX('Not used'!$G$10:$P$18,MATCH($B97,'Not used'!$A$10:$A$18,0),MATCH(AP$87,'Not used'!$G$7:$P$7,0)) -> 0 | AQ97: =INDEX('Not used'!$G$10:$P$18,MATCH($B97,'Not used'!$A$10:$A$18,0),MATCH(AQ$87,'Not used'!$G$7:$P$7,0)) -> 0 | AR97: =INDEX('Not used'!$G$10:$P$18,MATCH($B97,'Not used'!$A$10:$A$18,0),MATCH(AR$87,'Not used'!$G$7:$P$7,0)) -> 0 | AS97: =INDEX('Not used'!$G$10:$P$18,MATCH($B97,'Not used'!$A$10:$A$18,0),MATCH(AS$87,'Not used'!$G$7:$P$7,0)) -> 0 | BG97: 23239.68 | BH97: =INDEX('River management'!$F$10:$O$18,MATCH($B97,'River management'!$A$10:$A$18,0),MATCH(BH$87,'River management'!$F$7:$O$7,0)) -> 23705 | BI97: =INDEX('River management'!$F$10:$O$18,MATCH($B97,'River management'!$A$10:$A$18,0),MATCH(BI$87,'River management'!$F$7:$O$7,0)) -> 24084.28 | BJ97: =INDEX('River management'!$F$10:$O$18,MATCH($B97,'River management'!$A$10:$A$18,0),MATCH(BJ$87,'River management'!$F$7:$O$7,0)) -> 24469.62848 | BK97: =INDEX('River management'!$F$10:$O$18,MATCH($B97,'River management'!$A$10:$A$18,0),MATCH(BK$87,'River management'!$F$7:$O$7,0)) -> 24885.61216 | BL97: =INDEX('River management'!$F$10:$O$18,MATCH($B97,'River management'!$A$10:$A$18,0),MATCH(BL$87,'River management'!$F$7:$O$7,0)) -> 25308.66757 | BM97: =INDEX('River management'!$F$10:$O$18,MATCH($B97,'River management'!$A$10:$A$18,0),MATCH(BM$87,'River management'!$F$7:$O$7,0)) -> 25764.22359 | BN97: =INDEX('River management'!$F$10:$O$18,MATCH($B97,'River management'!$A$10:$A$18,0),MATCH(BN$87,'River management'!$F$7:$O$7,0)) -> 26227.97961 | BO97: =INDEX('River management'!$F$10:$O$18,MATCH($B97,'River management'!$A$10:$A$18,0),MATCH(BO$87,'River management'!$F$7:$O$7,0)) -> 26726.31122 | BP97: =INDEX('River management'!$F$10:$O$18,MATCH($B97,'River management'!$A$10:$A$18,0),MATCH(BP$87,'River management'!$F$7:$O$7,0)) -> 27234.11114 | BQ97: =INDEX('River management'!$F$10:$O$18,MATCH($B97,'River management'!$A$10:$A$18,0),MATCH(BQ$87,'River management'!$F$7:$O$7,0)) -> 27778.79336 | BS97: 198788.9136 | BT97: 249139.4231 | BU97: 274505.1146 | BV97: 326508.7202 | BW97: 376542.8978 | BX97: 429996.2825 | BY97: 469946.4896 | BZ97: 486975.3277 | CA97: 494303.8962 | CB97: 519391.489 | CC97: 519389.6429 | CE97: 6846.63945 | CF97: 0 | CG97: 0 | CH97: 0 | CI97: 0 | CJ97: 0 | CK97: 0 | CL97: 0 | CM97: 0 | CN97: 0 | CO97: 0 | CQ97: 90904.66358 | CR97: 90214.33542 | CS97: 90664.21601 | CT97: 91494.78909 | CU97: 92322.18127 | CV97: 92765.4704 | CW97: 93188.29141 | CX97: 93640.35049 | CY97: 94105.08868 | CZ97: 94572.1544 | DA97: 95051.92698
B98: South Wairarapa District | C98: District wide | D98: South Wairarapa DistrictDistrict wide | F98: South Wairarapa District - District wide | I98: =INDEX('Capital values'!$G$8:$G$45,MATCH(D98,'Capital values'!$C$8:$C$45,0),) -> 4514129051 | K98: 1798671.825 | L98: 2153676.022 | M98: 2335346.771 | N98: 2391252.581 | O98: 2577861.613 | P98: 2713082.871 | Q98: 2792093.726 | R98: 2877939.954 | S98: 2973438.768 | T98: 3089219.767 | U98: 3187173.753 | W98: 1245449.128 | X98: =INDEX(Gen!$G$10:$P$18,MATCH($B98,Gen!$A$10:$A$18,0),MATCH(X$87,Gen!$G$7:$P$7,0)) -> 1508400.826 | Y98: =INDEX(Gen!$G$10:$P$18,MATCH($B98,Gen!$A$10:$A$18,0),MATCH(Y$87,Gen!$G$7:$P$7,0)) -> 1663075.524 | Z98: =INDEX(Gen!$G$10:$P$18,MATCH($B98,Gen!$A$10:$A$18,0),MATCH(Z$87,Gen!$G$7:$P$7,0)) -> 1642618.182 | AA98: =INDEX(Gen!$G$10:$P$18,MATCH($B98,Gen!$A$10:$A$18,0),MATCH(AA$87,Gen!$G$7:$P$7,0)) -> 1760820.033 | AB98: =INDEX(Gen!$G$10:$P$18,MATCH($B98,Gen!$A$10:$A$18,0),MATCH(AB$87,Gen!$G$7:$P$7,0)) -> 1825934.249 | AC98: =INDEX(Gen!$G$10:$P$18,MATCH($B98,Gen!$A$10:$A$18,0),MATCH(AC$87,Gen!$G$7:$P$7,0)) -> 1860629.648 | AD98: =INDEX(Gen!$G$10:$P$18,MATCH($B98,Gen!$A$10:$A$18,0),MATCH(AD$87,Gen!$G$7:$P$7,0)) -> 1917060.166 | AE98: =INDEX(Gen!$G$10:$P$18,MATCH($B98,Gen!$A$10:$A$18,0),MATCH(AE$87,Gen!$G$7:$P$7,0)) -> 1999328.056 | AF98: =INDEX(Gen!$G$10:$P$18,MATCH($B98,Gen!$A$10:$A$18,0),MATCH(AF$87,Gen!$G$7:$P$7,0)) -> 2072193.384 | AG98: =INDEX(Gen!$G$10:$P$18,MATCH($B98,Gen!$A$10:$A$18,0),MATCH(AG$87,Gen!$G$7:$P$7,0)) -> 2169135.623 | AI98: 0 | AJ98: =INDEX('Not used'!$G$10:$P$18,MATCH($B98,'Not used'!$A$10:$A$18,0),MATCH(AJ$87,'Not used'!$G$7:$P$7,0)) -> 0 | AK98: =INDEX('Not used'!$G$10:$P$18,MATCH($B98,'Not used'!$A$10:$A$18,0),MATCH(AK$87,'Not used'!$G$7:$P$7,0)) -> 0 | AL98: =INDEX('Not used'!$G$10:$P$18,MATCH($B98,'Not used'!$A$10:$A$18,0),MATCH(AL$87,'Not used'!$G$7:$P$7,0)) -> 0 | AM98: =INDEX('Not used'!$G$10:$P$18,MATCH($B98,'Not used'!$A$10:$A$18,0),MATCH(AM$87,'Not used'!$G$7:$P$7,0)) -> 0 | AN98: =INDEX('Not used'!$G$10:$P$18,MATCH($B98,'Not used'!$A$10:$A$18,0),MATCH(AN$87,'Not used'!$G$7:$P$7,0)) -> 0 | AO98: =INDEX('Not used'!$G$10:$P$18,MATCH($B98,'Not used'!$A$10:$A$18,0),MATCH(AO$87,'Not used'!$G$7:$P$7,0)) -> 0 | AP98: =INDEX('Not used'!$G$10:$P$18,MATCH($B98,'Not used'!$A$10:$A$18,0),MATCH(AP$87,'Not used'!$G$7:$P$7,0)) -> 0 | AQ98: =INDEX('Not used'!$G$10:$P$18,MATCH($B98,'Not used'!$A$10:$A$18,0),MATCH(AQ$87,'Not used'!$G$7:$P$7,0)) -> 0 | AR98: =INDEX('Not used'!$G$10:$P$18,MATCH($B98,'Not used'!$A$10:$A$18,0),MATCH(AR$87,'Not used'!$G$7:$P$7,0)) -> 0 | AS98: =INDEX('Not used'!$G$10:$P$18,MATCH($B98,'Not used'!$A$10:$A$18,0),MATCH(AS$87,'Not used'!$G$7:$P$7,0)) -> 0 | BG98: 0 | BH98: =INDEX('River management'!$F$10:$O$18,MATCH($B98,'River management'!$A$10:$A$18,0),MATCH(BH$87,'River management'!$F$7:$O$7,0)) -> 0 | BI98: =INDEX('River management'!$F$10:$O$18,MATCH($B98,'River management'!$A$10:$A$18,0),MATCH(BI$87,'River management'!$F$7:$O$7,0)) -> 0 | BJ98: =INDEX('River management'!$F$10:$O$18,MATCH($B98,'River management'!$A$10:$A$18,0),MATCH(BJ$87,'River management'!$F$7:$O$7,0)) -> 0 | BK98: =INDEX('River management'!$F$10:$O$18,MATCH($B98,'River management'!$A$10:$A$18,0),MATCH(BK$87,'River management'!$F$7:$O$7,0)) -> 0 | BL98: =INDEX('River management'!$F$10:$O$18,MATCH($B98,'River management'!$A$10:$A$18,0),MATCH(BL$87,'River management'!$F$7:$O$7,0)) -> 0 | BM98: =INDEX('River management'!$F$10:$O$18,MATCH($B98,'River management'!$A$10:$A$18,0),MATCH(BM$87,'River management'!$F$7:$O$7,0)) -> 0 | BN98: =INDEX('River management'!$F$10:$O$18,MATCH($B98,'River management'!$A$10:$A$18,0),MATCH(BN$87,'River management'!$F$7:$O$7,0)) -> 0 | BO98: =INDEX('River management'!$F$10:$O$18,MATCH($B98,'River management'!$A$10:$A$18,0),MATCH(BO$87,'River management'!$F$7:$O$7,0)) -> 0 | BP98: =INDEX('River management'!$F$10:$O$18,MATCH($B98,'River management'!$A$10:$A$18,0),MATCH(BP$87,'River management'!$F$7:$O$7,0)) -> 0 | BQ98: =INDEX('River management'!$F$10:$O$18,MATCH($B98,'River management'!$A$10:$A$18,0),MATCH(BQ$87,'River management'!$F$7:$O$7,0)) -> 0 | BS98: 404412.5484 | BT98: 505501.2503 | BU98: 531545.6977 | BV98: 606151.9906 | BW98: 672809.0415 | BX98: 741978.4228 | BY98: 785399.5119 | BZ98: 813859.0098 | CA98: 826106.9024 | CB98: 868034.6189 | CC98: 868031.5335 | CE98: 10759.00485 | CF98: 0 | CG98: 0 | CH98: 0 | CI98: 0 | CJ98: 0 | CK98: 0 | CL98: 0 | CM98: 0 | CN98: 0 | CO98: 0 | CQ98: 138051.1438 | CR98: 139773.9458 | CS98: 140725.5497 | CT98: 142482.4082 | CU98: 144232.5383 | CV98: 145170.1997 | CW98: 146064.5661 | CX98: 147020.778 | CY98: 148003.8092 | CZ98: 148991.7636 | DA98: 150006.5961
B99: Tararua District | C99: District wide | D99: Tararua DistrictDistrict wide | F99: Tararua District - District wide | I99: =INDEX('Capital values'!$G$8:$G$45,MATCH(D99,'Capital values'!$C$8:$C$45,0),) -> 7041800 | K99: 2606.442882 | L99: 2605.024652 | M99: 2846.308912 | N99: 2814.396551 | O99: 2998.78512 | P99: 3100.359816 | Q99: 3154.482783 | R99: 3242.511376 | S99: 3370.844886 | T99: 3484.510903 | U99: 3635.735613 | W99: 2354.442882 | X99: =INDEX(Gen!$G$10:$P$18,MATCH($B99,Gen!$A$10:$A$18,0),MATCH(X$87,Gen!$G$7:$P$7,0)) -> 2353.024652 | Y99: =INDEX(Gen!$G$10:$P$18,MATCH($B99,Gen!$A$10:$A$18,0),MATCH(Y$87,Gen!$G$7:$P$7,0)) -> 2594.308912 | Z99: =INDEX(Gen!$G$10:$P$18,MATCH($B99,Gen!$A$10:$A$18,0),MATCH(Z$87,Gen!$G$7:$P$7,0)) -> 2562.396551 | AA99: =INDEX(Gen!$G$10:$P$18,MATCH($B99,Gen!$A$10:$A$18,0),MATCH(AA$87,Gen!$G$7:$P$7,0)) -> 2746.78512 | AB99: =INDEX(Gen!$G$10:$P$18,MATCH($B99,Gen!$A$10:$A$18,0),MATCH(AB$87,Gen!$G$7:$P$7,0)) -> 2848.359816 | AC99: =INDEX(Gen!$G$10:$P$18,MATCH($B99,Gen!$A$10:$A$18,0),MATCH(AC$87,Gen!$G$7:$P$7,0)) -> 2902.482783 | AD99: =INDEX(Gen!$G$10:$P$18,MATCH($B99,Gen!$A$10:$A$18,0),MATCH(AD$87,Gen!$G$7:$P$7,0)) -> 2990.511376 | AE99: =INDEX(Gen!$G$10:$P$18,MATCH($B99,Gen!$A$10:$A$18,0),MATCH(AE$87,Gen!$G$7:$P$7,0)) -> 3118.844886 | AF99: =INDEX(Gen!$G$10:$P$18,MATCH($B99,Gen!$A$10:$A$18,0),MATCH(AF$87,Gen!$G$7:$P$7,0)) -> 3232.510903 | AG99: =INDEX(Gen!$G$10:$P$18,MATCH($B99,Gen!$A$10:$A$18,0),MATCH(AG$87,Gen!$G$7:$P$7,0)) -> 3383.735613 | AI99: 0 | AJ99: =INDEX('Not used'!$G$10:$P$18,MATCH($B99,'Not used'!$A$10:$A$18,0),MATCH(AJ$87,'Not used'!$G$7:$P$7,0)) -> 0 | AK99: =INDEX('Not used'!$G$10:$P$18,MATCH($B99,'Not used'!$A$10:$A$18,0),MATCH(AK$87,'Not used'!$G$7:$P$7,0)) -> 0 | AL99: =INDEX('Not used'!$G$10:$P$18,MATCH($B99,'Not used'!$A$10:$A$18,0),MATCH(AL$87,'Not used'!$G$7:$P$7,0)) -> 0 | AM99: =INDEX('Not used'!$G$10:$P$18,MATCH($B99,'Not used'!$A$10:$A$18,0),MATCH(AM$87,'Not used'!$G$7:$P$7,0)) -> 0 | AN99: =INDEX('Not used'!$G$10:$P$18,MATCH($B99,'Not used'!$A$10:$A$18,0),MATCH(AN$87,'Not used'!$G$7:$P$7,0)) -> 0 | AO99: =INDEX('Not used'!$G$10:$P$18,MATCH($B99,'Not used'!$A$10:$A$18,0),MATCH(AO$87,'Not used'!$G$7:$P$7,0)) -> 0 | AP99: =INDEX('Not used'!$G$10:$P$18,MATCH($B99,'Not used'!$A$10:$A$18,0),MATCH(AP$87,'Not used'!$G$7:$P$7,0)) -> 0 | AQ99: =INDEX('Not used'!$G$10:$P$18,MATCH($B99,'Not used'!$A$10:$A$18,0),MATCH(AQ$87,'Not used'!$G$7:$P$7,0)) -> 0 | AR99: =INDEX('Not used'!$G$10:$P$18,MATCH($B99,'Not used'!$A$10:$A$18,0),MATCH(AR$87,'Not used'!$G$7:$P$7,0)) -> 0 | AS99: =INDEX('Not used'!$G$10:$P$18,MATCH($B99,'Not used'!$A$10:$A$18,0),MATCH(AS$87,'Not used'!$G$7:$P$7,0)) -> 0 | BG99: 0 | BH99: =INDEX('River management'!$F$10:$O$18,MATCH($B99,'River management'!$A$10:$A$18,0),MATCH(BH$87,'River management'!$F$7:$O$7,0)) -> 0 | BI99: =INDEX('River management'!$F$10:$O$18,MATCH($B99,'River management'!$A$10:$A$18,0),MATCH(BI$87,'River management'!$F$7:$O$7,0)) -> 0 | BJ99: =INDEX('River management'!$F$10:$O$18,MATCH($B99,'River management'!$A$10:$A$18,0),MATCH(BJ$87,'River management'!$F$7:$O$7,0)) -> 0 | BK99: =INDEX('River management'!$F$10:$O$18,MATCH($B99,'River management'!$A$10:$A$18,0),MATCH(BK$87,'River management'!$F$7:$O$7,0)) -> 0 | BL99: =INDEX('River management'!$F$10:$O$18,MATCH($B99,'River management'!$A$10:$A$18,0),MATCH(BL$87,'River management'!$F$7:$O$7,0)) -> 0 | BM99: =INDEX('River management'!$F$10:$O$18,MATCH($B99,'River management'!$A$10:$A$18,0),MATCH(BM$87,'River management'!$F$7:$O$7,0)) -> 0 | BN99: =INDEX('River management'!$F$10:$O$18,MATCH($B99,'River management'!$A$10:$A$18,0),MATCH(BN$87,'River management'!$F$7:$O$7,0)) -> 0 | BO99: =INDEX('River management'!$F$10:$O$18,MATCH($B99,'River management'!$A$10:$A$18,0),MATCH(BO$87,'River management'!$F$7:$O$7,0)) -> 0 | BP99: =INDEX('River management'!$F$10:$O$18,MATCH($B99,'River management'!$A$10:$A$18,0),MATCH(BP$87,'River management'!$F$7:$O$7,0)) -> 0 | BQ99: =INDEX('River management'!$F$10:$O$18,MATCH($B99,'River management'!$A$10:$A$18,0),MATCH(BQ$87,'River management'!$F$7:$O$7,0)) -> 0 | BS99: 0 | BT99: 0 | BU99: 0 | BV99: 0 | BW99: 0 | BX99: 0 | BY99: 0 | BZ99: 0 | CA99: 0 | CB99: 0 | CC99: 0 | CE99: 0 | CF99: 0 | CG99: 0 | CH99: 0 | CI99: 0 | CJ99: 0 | CK99: 0 | CL99: 0 | CM99: 0 | CN99: 0 | CO99: 0 | CQ99: 252 | CR99: 252 | CS99: 252 | CT99: 252 | CU99: 252 | CV99: 252 | CW99: 252 | CX99: 252 | CY99: 252 | CZ99: 252 | DA99: 252
B100: Region wide | D100: Region wide | F100: =B100 -> Region wide | I100: =SUM(I91:I99) -> 141502827378 | K100: =SUM(K91:K99) -> 118764835.5 | L100: =SUM(L91:L99) -> 126759823.5 | M100: =SUM(M91:M99) -> 134271262.8 | N100: =SUM(N91:N99) -> 142664314.2 | O100: =SUM(O91:O99) -> 154102484.4 | P100: =SUM(P91:P99) -> 163583810.2 | Q100: 169056454.7 | R100: 174986304.3 | S100: 179629998.5 | T100: 187727807.8 | U100: 191970544.6 | W100: =SUM(W91:W99) -> 42481670.52 | X100: 47283314.08 | Y100: 52131847.83 | Z100: 51490578.67 | AA100: 55195810.83 | AB100: 57236923.43 | AC100: 58324507.98 | AD100: 60093415.74 | AE100: 62672238.56 | AF100: 64956322.57 | AG100: 67995137.08 | AI100: =SUM(AI91:AI99) -> 0 | AJ100: 0 | AK100: 0 | AL100: 0 | AM100: 0 | AN100: 0 | AO100: 0 | AP100: 0 | AQ100: 0 | AR100: 0 | AS100: 0 | AU100: =SUM(AU91:AU99) -> 0 | AV100: 0 | AW100: 0 | AX100: 0 | AY100: 0 | AZ100: 0 | BA100: 0 | BB100: 0 | BC100: 0 | BD100: 0 | BE100: 0 | BG100: =SUM(BG91:BG99) -> 5826660.315 | BH100: 6458970.807 | BI100: 6924767.886 | BJ100: 7430238.436 | BK100: 7927930.935 | BL100: 8139864.079 | BM100: 8678549.627 | BN100: 9232178.278 | BO100: 9676185.46 | BP100: 10225835.85 | BQ100: 11308656.48 | BS100: =SUM(BS91:BS99) -> 64656396.13 | BT100: =SUM(BT91:BT99) -> 68109677.79 | BU100: 70192874.67 | BV100: 78511420.22 | BW100: 85537166.69 | BX100: 92653204.22 | BY100: 96392518.54 | BZ100: =SUM(BZ91:BZ99) -> 99885368.53 | CA100: =SUM(CA91:CA99) -> 101388559.2 | CB100: =SUM(CB91:CB99) -> 106534371.1 | CC100: =SUM(CC91:CC99) -> 106533992.5 | CE100: =SUM(CE91:CE99) -> 978091.35 | CF100: 0 | CG100: 0 | CH100: 0 | CI100: 0 | CJ100: 0 | CK100: 0 | CL100: 0 | CM100: 0 | CN100: 0 | CO100: 0 | CQ100: =SUM(CQ91:CQ99) -> 4822017.219 | CR100: 4907860.821 | CS100: 5021772.408 | CT100: 5232076.873 | CU100: 5441575.924 | CV100: 5553818.525 | CW100: 5660878.516 | CX100: 5775341.708 | CY100: 5893015.298 | CZ100: 6011278.23 | DA100: 6132758.59
B103: By Category
B104: Wellington City | C104: Regional CBD | D104: Wellington CityRegional CBD | F104: =B104&" - "&C104 -> Wellington City - Regional CBD | I104: =INDEX('Capital values'!$G$8:$G$45,MATCH(D104,'Capital values'!$C$8:$C$45,0),) -> 1.056440861e+10 | K104: =SUMIF($W$87:$DA$87,K$87,$W104:$DA104) -> 29269027.98 | L104: 30274739.72 | M104: 31387126.27 | N104: 34477875.06 | O104: 37388377.95 | P104: =SUMIF($W$87:$DA$87,P$87,$W104:$DA104) -> 40151886.99 | Q104: =SUMIF($W$87:$DA$87,Q$87,$W104:$DA104) -> 41566611.06 | R104: 43051697.77 | S104: 43855913.4 | T104: 45998333.31 | U104: 46277314.99 | W104: =INDEX('Comparison - Category'!$I$22:$P$47,MATCH('Vs Status Quo'!$D104,'Comparison - Category'!$C$22:$C$47,0),MATCH('Vs Status Quo'!W$85,'Comparison - Category'!$I$7:$P$7,0)) -> 3242974.475 | X104: =$I104/INDEX($I$91:$I$99,MATCH($B104,$B$91:$B$99,0),)*INDEX(X$91:X$99,MATCH($B104,$B$91:$B$99,0),) -> 3530107.91 | Y104: 3892092.844 | Z104: 3844216.561 | AA104: 4120844.154 | AB104: 4273230.843 | AC104: 4354428.426 | AD104: 4486492.674 | AE104: 4679024.078 | AF104: 4849550.683 | AG104: 5076424.441 | AI104: =INDEX('Comparison - Category'!$I$22:$P$47,MATCH('Vs Status Quo'!$D104,'Comparison - Category'!$C$22:$C$47,0),MATCH('Vs Status Quo'!AI$85,'Comparison - Category'!$I$7:$P$7,0)) -> 0 | AJ104: =$I104/INDEX($I$91:$I$99,MATCH($B104,$B$91:$B$99,0),)*INDEX(AJ$91:AJ$99,MATCH($B104,$B$91:$B$99,0),) -> 0 | AK104: 0 | AL104: 0 | AM104: 0 | AN104: 0 | AO104: 0 | AP104: 0 | AQ104: 0 | AR104: 0 | AS104: 0 | BG104: =INDEX('Comparison - Category'!$I$22:$P$47,MATCH('Vs Status Quo'!$D104,'Comparison - Category'!$C$22:$C$47,0),MATCH('Vs Status Quo'!BG$85,'Comparison - Category'!$I$7:$P$7,0)) -> 6620.073537 | BH104: =$I104/INDEX($I$91:$I$99,MATCH($B104,$B$91:$B$99,0),)*INDEX(BH$91:BH$99,MATCH($B104,$B$91:$B$99,0),) -> 6536.873322 | BI104: 6512.382957 | BJ104: 6706.861767 | BK104: 6833.459975 | BL104: 6885.727301 | BM104: 7096.511853 | BN104: 7153.476245 | BO104: 7375.119546 | BP104: 7519.877551 | BQ104: 7923.675309 | BS104: =INDEX('Comparison - Category'!$I$22:$P$47,MATCH('Vs Status Quo'!$D104,'Comparison - Category'!$C$22:$C$47,0),MATCH('Vs Status Quo'!BS$85,'Comparison - Category'!$I$7:$P$7,0)) -> 25019166.07 | BT104: =INDEX(Tran!$X$23:$AG$48,MATCH($D104,Tran!$C$23:$C$48,0),MATCH(BT$87,Tran!$X$7:$AG$7,0)) -> 25844164.27 | BU104: =INDEX(Tran!$X$23:$AG$48,MATCH($D104,Tran!$C$23:$C$48,0),MATCH(BU$87,Tran!$X$7:$AG$7,0)) -> 26545975.07 | BV104: =INDEX(Tran!$X$23:$AG$48,MATCH($D104,Tran!$C$23:$C$48,0),MATCH(BV$87,Tran!$X$7:$AG$7,0)) -> 29594651.73 | BW104: =INDEX(Tran!$X$23:$AG$48,MATCH($D104,Tran!$C$23:$C$48,0),MATCH(BW$87,Tran!$X$7:$AG$7,0)) -> 32138990.22 | BX104: =INDEX(Tran!$X$23:$AG$48,MATCH($D104,Tran!$C$23:$C$48,0),MATCH(BX$87,Tran!$X$7:$AG$7,0)) -> 34702157.3 | BY104: =INDEX(Tran!$X$23:$AG$48,MATCH($D104,Tran!$C$23:$C$48,0),MATCH(BY$87,Tran!$X$7:$AG$7,0)) -> 35989781.83 | BZ104: =INDEX(Tran!$X$23:$AG$48,MATCH($D104,Tran!$C$23:$C$48,0),MATCH(BZ$87,Tran!$X$7:$AG$7,0)) -> 37293896.62 | CA104: =INDEX(Tran!$X$23:$AG$48,MATCH($D104,Tran!$C$23:$C$48,0),MATCH(CA$87,Tran!$X$7:$AG$7,0)) -> 37855138.35 | CB104: =INDEX(Tran!$X$23:$AG$48,MATCH($D104,Tran!$C$23:$C$48,0),MATCH(CB$87,Tran!$X$7:$AG$7,0)) -> 39776414.52 | CC104: =INDEX(Tran!$X$23:$AG$48,MATCH($D104,Tran!$C$23:$C$48,0),MATCH(CC$87,Tran!$X$7:$AG$7,0)) -> 39776273.14 | CE104: =INDEX('Comparison - Category'!$I$22:$P$47,MATCH('Vs Status Quo'!$D104,'Comparison - Category'!$C$22:$C$47,0),MATCH('Vs Status Quo'!CE$85,'Comparison - Category'!$I$7:$P$7,0)) -> 135230.613 | CF104: =INDEX(Stad!$F$23:$F$48,MATCH($D104,Stad!$C$23:$C$48,0),0) -> 0 | CG104: 0 | CH104: 0 | CI104: 0 | CJ104: 0 | CK104: 0 | CL104: 0 | CM104: 0 | CN104: 0 | CO104: 0 | CQ104: =INDEX('Comparison - Category'!$I$22:$P$47,MATCH('Vs Status Quo'!$D104,'Comparison - Category'!$C$22:$C$47,0),MATCH('Vs Status Quo'!CQ$85,'Comparison - Category'!$I$7:$P$7,0)) -> 865036.7413 | CR104: =INDEX(WRS!$M$23:$V$48,MATCH($D104,WRS!$C$23:$C$48,0),MATCH(CR$87,WRS!$M$7:$V$7,0)) -> 893930.665 | CS104: =INDEX(WRS!$M$23:$V$48,MATCH($D104,WRS!$C$23:$C$48,0),MATCH(CS$87,WRS!$M$7:$V$7,0)) -> 942545.9635 | CT104: =INDEX(WRS!$M$23:$V$48,MATCH($D104,WRS!$C$23:$C$48,0),MATCH(CT$87,WRS!$M$7:$V$7,0)) -> 1032299.909 | CU104: =INDEX(WRS!$M$23:$V$48,MATCH($D104,WRS!$C$23:$C$48,0),MATCH(CU$87,WRS!$M$7:$V$7,0)) -> 1121710.118 | CV104: =INDEX(WRS!$M$23:$V$48,MATCH($D104,WRS!$C$23:$C$48,0),MATCH(CV$87,WRS!$M$7:$V$7,0)) -> 1169613.126 | CW104: =INDEX(WRS!$M$23:$V$48,MATCH($D104,WRS!$C$23:$C$48,0),MATCH(CW$87,WRS!$M$7:$V$7,0)) -> 1215304.293 | CX104: =INDEX(WRS!$M$23:$V$48,MATCH($D104,WRS!$C$23:$C$48,0),MATCH(CX$87,WRS!$M$7:$V$7,0)) -> 1264155.006 | CY104: =INDEX(WRS!$M$23:$V$48,MATCH($D104,WRS!$C$23:$C$48,0),MATCH(CY$87,WRS!$M$7:$V$7,0)) -> 1314375.856 | CZ104: =INDEX(WRS!$M$23:$V$48,MATCH($D104,WRS!$C$23:$C$48,0),MATCH(CZ$87,WRS!$M$7:$V$7,0)) -> 1364848.226 | DA104: =INDEX(WRS!$M$23:$V$48,MATCH($D104,WRS!$C$23:$C$48,0),MATCH(DA$87,WRS!$M$7:$V$7,0)) -> 1416693.732
B105: Wellington City | C105: Business | D105: Wellington CityBusiness | F105: =B105&" - "&C105 -> Wellington City - Business | I105: =INDEX('Capital values'!$G$8:$G$45,MATCH(D105,'Capital values'!$C$8:$C$45,0),) -> 5168709944 | K105: 3259619.316 | L105: 3628870.505 | M105: 4094265.497 | N105: 4560575.856 | O105: 5191899.853 | P105: 5782295.874 | Q105: 6250152.168 | R105: 6466303.368 | S105: 6640098.306 | T105: 6936293.937 | U105: 7072842.99 | W105: =INDEX('Comparison - Category'!$I$22:$P$47,MATCH('Vs Status Quo'!$D105,'Comparison - Category'!$C$22:$C$47,0),MATCH('Vs Status Quo'!W$85,'Comparison - Category'!$I$7:$P$7,0)) -> 1577166.697 | X105: =$I105/INDEX($I$91:$I$99,MATCH($B105,$B$91:$B$99,0),)*INDEX(X$91:X$99,MATCH($B105,$B$91:$B$99,0),) -> 1727129.699 | Y105: =$I105/INDEX($I$91:$I$99,MATCH($B105,$B$91:$B$99,0),)*INDEX(Y$91:Y$99,MATCH($B105,$B$91:$B$99,0),) -> 1904233.331 | Z105: 1880809.528 | AA105: 2016151.49 | AB105: 2090707.732 | AC105: 2130434.211 | AD105: 2195047.557 | AE105: 2289244.877 | AF105: 2372676.197 | AG105: 2483675.752 | AI105: =INDEX('Comparison - Category'!$I$22:$P$47,MATCH('Vs Status Quo'!$D105,'Comparison - Category'!$C$22:$C$47,0),MATCH('Vs Status Quo'!AI$85,'Comparison - Category'!$I$7:$P$7,0)) -> 0 | AJ105: =$I105/INDEX($I$91:$I$99,MATCH($B105,$B$91:$B$99,0),)*INDEX(AJ$91:AJ$99,MATCH($B105,$B$91:$B$99,0),) -> 0 | AK105: =$I105/INDEX($I$91:$I$99,MATCH($B105,$B$91:$B$99,0),)*INDEX(AK$91:AK$99,MATCH($B105,$B$91:$B$99,0),) -> 0 | AL105: 0 | AM105: 0 | AN105: 0 | AO105: 0 | AP105: 0 | AQ105: 0 | AR105: 0 | AS105: 0 | BG105: =INDEX('Comparison - Category'!$I$22:$P$47,MATCH('Vs Status Quo'!$D105,'Comparison - Category'!$C$22:$C$47,0),MATCH('Vs Status Quo'!BG$85,'Comparison - Category'!$I$7:$P$7,0)) -> 3219.562655 | BH105: 3198.210464 | BI105: 3186.228383 | BJ105: 3281.378485 | BK105: 3343.317534 | BL105: 3368.889685 | BM105: 3472.017484 | BN105: 3499.887706 | BO105: 3608.328224 | BP105: 3679.152078 | BQ105: 3876.712923 | BS105: =INDEX('Comparison - Category'!$I$22:$P$47,MATCH('Vs Status Quo'!$D105,'Comparison - Category'!$C$22:$C$47,0),MATCH('Vs Status Quo'!BS$85,'Comparison - Category'!$I$7:$P$7,0)) -> 1192769.666 | BT105: =INDEX(Tran!$X$23:$AG$48,MATCH($D105,Tran!$C$23:$C$48,0),MATCH(BT$87,Tran!$X$7:$AG$7,0)) -> 1461180.837 | BU105: =INDEX(Tran!$X$23:$AG$48,MATCH($D105,Tran!$C$23:$C$48,0),MATCH(BU$87,Tran!$X$7:$AG$7,0)) -> 1725698.809 | BV105: =INDEX(Tran!$X$23:$AG$48,MATCH($D105,Tran!$C$23:$C$48,0),MATCH(BV$87,Tran!$X$7:$AG$7,0)) -> 2171425.082 | BW105: =INDEX(Tran!$X$23:$AG$48,MATCH($D105,Tran!$C$23:$C$48,0),MATCH(BW$87,Tran!$X$7:$AG$7,0)) -> 2623600.615 | BX105: =INDEX(Tran!$X$23:$AG$48,MATCH($D105,Tran!$C$23:$C$48,0),MATCH(BX$87,Tran!$X$7:$AG$7,0)) -> 3115977.945 | BY105: =INDEX(Tran!$X$23:$AG$48,MATCH($D105,Tran!$C$23:$C$48,0),MATCH(BY$87,Tran!$X$7:$AG$7,0)) -> 3521649.913 | BZ105: =INDEX(Tran!$X$23:$AG$48,MATCH($D105,Tran!$C$23:$C$48,0),MATCH(BZ$87,Tran!$X$7:$AG$7,0)) -> 3649259.348 | CA105: =INDEX(Tran!$X$23:$AG$48,MATCH($D105,Tran!$C$23:$C$48,0),MATCH(CA$87,Tran!$X$7:$AG$7,0)) -> 3704177.627 | CB105: =INDEX(Tran!$X$23:$AG$48,MATCH($D105,Tran!$C$23:$C$48,0),MATCH(CB$87,Tran!$X$7:$AG$7,0)) -> 3892177.157 | CC105: =INDEX(Tran!$X$23:$AG$48,MATCH($D105,Tran!$C$23:$C$48,0),MATCH(CC$87,Tran!$X$7:$AG$7,0)) -> 3892163.323 | CE105: =INDEX('Comparison - Category'!$I$22:$P$47,MATCH('Vs Status Quo'!$D105,'Comparison - Category'!$C$22:$C$47,0),MATCH('Vs Status Quo'!CE$85,'Comparison - Category'!$I$7:$P$7,0)) -> 65767.1594 | CF105: =INDEX(Stad!$F$23:$F$48,MATCH($D105,Stad!$C$23:$C$48,0),0) -> 0 | CG105: 0 | CH105: 0 | CI105: 0 | CJ105: 0 | CK105: 0 | CL105: 0 | CM105: 0 | CN105: 0 | CO105: 0 | CQ105: =INDEX('Comparison - Category'!$I$22:$P$47,MATCH('Vs Status Quo'!$D105,'Comparison - Category'!$C$22:$C$47,0),MATCH('Vs Status Quo'!CQ$85,'Comparison - Category'!$I$7:$P$7,0)) -> 420696.2313 | CR105: =INDEX(WRS!$M$23:$V$48,MATCH($D105,WRS!$C$23:$C$48,0),MATCH(CR$87,WRS!$M$7:$V$7,0)) -> 437361.7578 | CS105: =INDEX(WRS!$M$23:$V$48,MATCH($D105,WRS!$C$23:$C$48,0),MATCH(CS$87,WRS!$M$7:$V$7,0)) -> 461147.1286 | CT105: =INDEX(WRS!$M$23:$V$48,MATCH($D105,WRS!$C$23:$C$48,0),MATCH(CT$87,WRS!$M$7:$V$7,0)) -> 505059.8668 | CU105: =INDEX(WRS!$M$23:$V$48,MATCH($D105,WRS!$C$23:$C$48,0),MATCH(CU$87,WRS!$M$7:$V$7,0)) -> 548804.43 | CV105: =INDEX(WRS!$M$23:$V$48,MATCH($D105,WRS!$C$23:$C$48,0),MATCH(CV$87,WRS!$M$7:$V$7,0)) -> 572241.3075 | CW105: =INDEX(WRS!$M$23:$V$48,MATCH($D105,WRS!$C$23:$C$48,0),MATCH(CW$87,WRS!$M$7:$V$7,0)) -> 594596.0271 | CX105: =INDEX(WRS!$M$23:$V$48,MATCH($D105,WRS!$C$23:$C$48,0),MATCH(CX$87,WRS!$M$7:$V$7,0)) -> 618496.576 | CY105: =INDEX(WRS!$M$23:$V$48,MATCH($D105,WRS!$C$23:$C$48,0),MATCH(CY$87,WRS!$M$7:$V$7,0)) -> 643067.474 | CZ105: =INDEX(WRS!$M$23:$V$48,MATCH($D105,WRS!$C$23:$C$48,0),MATCH(CZ$87,WRS!$M$7:$V$7,0)) -> 667761.4299 | DA105: =INDEX(WRS!$M$23:$V$48,MATCH($D105,WRS!$C$23:$C$48,0),MATCH(DA$87,WRS!$M$7:$V$7,0)) -> 693127.2025
B106: Wellington City | C106: Residential | D106: Wellington CityResidential | F106: Wellington City - Residential | I106: =INDEX('Capital values'!$G$8:$G$45,MATCH(D106,'Capital values'!$C$8:$C$45,0),) -> 5.245136169e+10 | K106: 29731934.56 | L106: 32124731.35 | M106: 35293317.62 | N106: 37876551.96 | O106: 41961803.21 | P106: 45614324.93 | Q106: 48179487.54 | R106: 49760431.4 | S106: 51115507.07 | T106: 53325585.07 | U106: 54453897.91 | W106: =INDEX('Comparison - Category'!$I$22:$P$47,MATCH('Vs Status Quo'!$D106,'Comparison - Category'!$C$22:$C$47,0),MATCH('Vs Status Quo'!W$85,'Comparison - Category'!$I$7:$P$7,0)) -> 16130406.59 | X106: 17526676 | Y106: 19323899.44 | Z106: 19086197.89 | AA106: 20459629.61 | AB106: 21216216.16 | AC106: 21619355.03 | AD106: 22275042.43 | AE106: 23230943.96 | AF106: 24077593.59 | AG106: 25204001.89 | AI106: =INDEX('Comparison - Category'!$I$22:$P$47,MATCH('Vs Status Quo'!$D106,'Comparison - Category'!$C$22:$C$47,0),MATCH('Vs Status Quo'!AI$85,'Comparison - Category'!$I$7:$P$7,0)) -> 0 | AJ106: 0 | AK106: 0 | AL106: 0 | AM106: 0 | AN106: 0 | AO106: 0 | AP106: 0 | AQ106: 0 | AR106: 0 | AS106: 0 | BG106: =INDEX('Comparison - Category'!$I$22:$P$47,MATCH('Vs Status Quo'!$D106,'Comparison - Category'!$C$22:$C$47,0),MATCH('Vs Status Quo'!BG$85,'Comparison - Category'!$I$7:$P$7,0)) -> 32927.94274 | BH106: 32455.00243 | BI106: 32333.40991 | BJ106: 33298.98014 | BK106: 33927.52913 | BL106: 34187.03182 | BM106: 35233.55862 | BN106: 35516.38183 | BO106: 36616.82137 | BP106: 37335.53216 | BQ106: 39340.3526 | BS106: =INDEX('Comparison - Category'!$I$22:$P$47,MATCH('Vs Status Quo'!$D106,'Comparison - Category'!$C$22:$C$47,0),MATCH('Vs Status Quo'!BS$85,'Comparison - Category'!$I$7:$P$7,0)) -> 12199002 | BT106: =INDEX(Tran!$X$23:$AG$48,MATCH($D106,Tran!$C$23:$C$48,0),MATCH(BT$87,Tran!$X$7:$AG$7,0)) -> 13567288.34 | BU106: =INDEX(Tran!$X$23:$AG$48,MATCH($D106,Tran!$C$23:$C$48,0),MATCH(BU$87,Tran!$X$7:$AG$7,0)) -> 14938772.78 | BV106: =INDEX(Tran!$X$23:$AG$48,MATCH($D106,Tran!$C$23:$C$48,0),MATCH(BV$87,Tran!$X$7:$AG$7,0)) -> 17758743.09 | BW106: =INDEX(Tran!$X$23:$AG$48,MATCH($D106,Tran!$C$23:$C$48,0),MATCH(BW$87,Tran!$X$7:$AG$7,0)) -> 20469934.06 | BX106: =INDEX(Tran!$X$23:$AG$48,MATCH($D106,Tran!$C$23:$C$48,0),MATCH(BX$87,Tran!$X$7:$AG$7,0)) -> 23365609.74 | BY106: =INDEX(Tran!$X$23:$AG$48,MATCH($D106,Tran!$C$23:$C$48,0),MATCH(BY$87,Tran!$X$7:$AG$7,0)) -> 25526586.95 | BZ106: =INDEX(Tran!$X$23:$AG$48,MATCH($D106,Tran!$C$23:$C$48,0),MATCH(BZ$87,Tran!$X$7:$AG$7,0)) -> 26451560.59 | CA106: =INDEX(Tran!$X$23:$AG$48,MATCH($D106,Tran!$C$23:$C$48,0),MATCH(CA$87,Tran!$X$7:$AG$7,0)) -> 26849634.3 | CB106: =INDEX(Tran!$X$23:$AG$48,MATCH($D106,Tran!$C$23:$C$48,0),MATCH(CB$87,Tran!$X$7:$AG$7,0)) -> 28212343.95 | CC106: =INDEX(Tran!$X$23:$AG$48,MATCH($D106,Tran!$C$23:$C$48,0),MATCH(CC$87,Tran!$X$7:$AG$7,0)) -> 28212243.67 | CE106: =INDEX('Comparison - Category'!$I$22:$P$47,MATCH('Vs Status Quo'!$D106,'Comparison - Category'!$C$22:$C$47,0),MATCH('Vs Status Quo'!CE$85,'Comparison - Category'!$I$7:$P$7,0)) -> 377152.0246 | CF106: =INDEX(Stad!$F$23:$F$48,MATCH($D106,Stad!$C$23:$C$48,0),0) -> 0 | CG106: 0 | CH106: 0 | CI106: 0 | CJ106: 0 | CK106: 0 | CL106: 0 | CM106: 0 | CN106: 0 | CO106: 0 | CQ106: =INDEX('Comparison - Category'!$I$22:$P$47,MATCH('Vs Status Quo'!$D106,'Comparison - Category'!$C$22:$C$47,0),MATCH('Vs Status Quo'!CQ$85,'Comparison - Category'!$I$7:$P$7,0)) -> 992446 | CR106: =INDEX(WRS!$M$23:$V$48,MATCH($D106,WRS!$C$23:$C$48,0),MATCH(CR$87,WRS!$M$7:$V$7,0)) -> 998312 | CS106: =INDEX(WRS!$M$23:$V$48,MATCH($D106,WRS!$C$23:$C$48,0),MATCH(CS$87,WRS!$M$7:$V$7,0)) -> 998312 | CT106: =INDEX(WRS!$M$23:$V$48,MATCH($D106,WRS!$C$23:$C$48,0),MATCH(CT$87,WRS!$M$7:$V$7,0)) -> 998312 | CU106: =INDEX(WRS!$M$23:$V$48,MATCH($D106,WRS!$C$23:$C$48,0),MATCH(CU$87,WRS!$M$7:$V$7,0)) -> 998312 | CV106: =INDEX(WRS!$M$23:$V$48,MATCH($D106,WRS!$C$23:$C$48,0),MATCH(CV$87,WRS!$M$7:$V$7,0)) -> 998312 | CW106: =INDEX(WRS!$M$23:$V$48,MATCH($D106,WRS!$C$23:$C$48,0),MATCH(CW$87,WRS!$M$7:$V$7,0)) -> 998312 | CX106: =INDEX(WRS!$M$23:$V$48,MATCH($D106,WRS!$C$23:$C$48,0),MATCH(CX$87,WRS!$M$7:$V$7,0)) -> 998312 | CY106: =INDEX(WRS!$M$23:$V$48,MATCH($D106,WRS!$C$23:$C$48,0),MATCH(CY$87,WRS!$M$7:$V$7,0)) -> 998312 | CZ106: =INDEX(WRS!$M$23:$V$48,MATCH($D106,WRS!$C$23:$C$48,0),MATCH(CZ$87,WRS!$M$7:$V$7,0)) -> 998312 | DA106: =INDEX(WRS!$M$23:$V$48,MATCH($D106,WRS!$C$23:$C$48,0),MATCH(DA$87,WRS!$M$7:$V$7,0)) -> 998312
B107: Wellington City | C107: Rural | D107: Wellington CityRural | F107: Wellington City - Rural | I107: =INDEX('Capital values'!$G$8:$G$45,MATCH(D107,'Capital values'!$C$8:$C$45,0),) -> 790597175.7 | K107: 310397.2201 | L107: 338735.0041 | M107: 370793.6969 | N107: 377703.4081 | O107: 408426.5399 | P107: 430503.0187 | Q107: 444456.9997 | R107: 457829.9336 | S107: 473754.8211 | T107: 491662.185 | U107: 508670.3308 | W107: =INDEX('Comparison - Category'!$I$22:$P$47,MATCH('Vs Status Quo'!$D107,'Comparison - Category'!$C$22:$C$47,0),MATCH('Vs Status Quo'!W$85,'Comparison - Category'!$I$7:$P$7,0)) -> 238980.6433 | X107: 264178.8526 | Y107: 291268.326 | Z107: 287685.4606 | AA107: 308387.1394 | AB107: 319791.1366 | AC107: 325867.632 | AD107: 335750.7807 | AE107: 350159.0443 | AF107: 362920.5587 | AG107: 379898.8637 | AI107: =INDEX('Comparison - Category'!$I$22:$P$47,MATCH('Vs Status Quo'!$D107,'Comparison - Category'!$C$22:$C$47,0),MATCH('Vs Status Quo'!AI$85,'Comparison - Category'!$I$7:$P$7,0)) -> 0 | AJ107: 0 | AK107: 0 | AL107: 0 | AM107: 0 | AN107: 0 | AO107: 0 | AP107: 0 | AQ107: 0 | AR107: 0 | AS107: 0 | BG107: =INDEX('Comparison - Category'!$I$22:$P$47,MATCH('Vs Status Quo'!$D107,'Comparison - Category'!$C$22:$C$47,0),MATCH('Vs Status Quo'!BG$85,'Comparison - Category'!$I$7:$P$7,0)) -> 487.8451695 | BH107: 489.1928909 | BI107: 487.360132 | BJ107: 501.9141316 | BK107: 511.3882242 | BL107: 515.2996974 | BM107: 531.073952 | BN107: 535.3369343 | BO107: 551.9238134 | BP107: 562.756911 | BQ107: 592.9754853 | BS107: =INDEX('Comparison - Category'!$I$22:$P$47,MATCH('Vs Status Quo'!$D107,'Comparison - Category'!$C$22:$C$47,0),MATCH('Vs Status Quo'!BS$85,'Comparison - Category'!$I$7:$P$7,0)) -> 46420.26679 | BT107: =INDEX(Tran!$X$23:$AG$48,MATCH($D107,Tran!$C$23:$C$48,0),MATCH(BT$87,Tran!$X$7:$AG$7,0)) -> 52198.95869 | BU107: =INDEX(Tran!$X$23:$AG$48,MATCH($D107,Tran!$C$23:$C$48,0),MATCH(BU$87,Tran!$X$7:$AG$7,0)) -> 57170.01074 | BV107: =INDEX(Tran!$X$23:$AG$48,MATCH($D107,Tran!$C$23:$C$48,0),MATCH(BV$87,Tran!$X$7:$AG$7,0)) -> 67648.03337 | BW107: =INDEX(Tran!$X$23:$AG$48,MATCH($D107,Tran!$C$23:$C$48,0),MATCH(BW$87,Tran!$X$7:$AG$7,0)) -> 77660.01231 | BX107: =INDEX(Tran!$X$23:$AG$48,MATCH($D107,Tran!$C$23:$C$48,0),MATCH(BX$87,Tran!$X$7:$AG$7,0)) -> 88328.58233 | BY107: =INDEX(Tran!$X$23:$AG$48,MATCH($D107,Tran!$C$23:$C$48,0),MATCH(BY$87,Tran!$X$7:$AG$7,0)) -> 96190.29371 | BZ107: =INDEX(Tran!$X$23:$AG$48,MATCH($D107,Tran!$C$23:$C$48,0),MATCH(BZ$87,Tran!$X$7:$AG$7,0)) -> 99675.81594 | CA107: =INDEX(Tran!$X$23:$AG$48,MATCH($D107,Tran!$C$23:$C$48,0),MATCH(CA$87,Tran!$X$7:$AG$7,0)) -> 101175.853 | CB107: =INDEX(Tran!$X$23:$AG$48,MATCH($D107,Tran!$C$23:$C$48,0),MATCH(CB$87,Tran!$X$7:$AG$7,0)) -> 106310.8694 | CC107: =INDEX(Tran!$X$23:$AG$48,MATCH($D107,Tran!$C$23:$C$48,0),MATCH(CC$87,Tran!$X$7:$AG$7,0)) -> 106310.4915 | CE107: =INDEX('Comparison - Category'!$I$22:$P$47,MATCH('Vs Status Quo'!$D107,'Comparison - Category'!$C$22:$C$47,0),MATCH('Vs Status Quo'!CE$85,'Comparison - Category'!$I$7:$P$7,0)) -> 2836.464915 | CF107: =INDEX(Stad!$F$23:$F$48,MATCH($D107,Stad!$C$23:$C$48,0),0) -> 0 | CG107: 0 | CH107: 0 | CI107: 0 | CJ107: 0 | CK107: 0 | CL107: 0 | CM107: 0 | CN107: 0 | CO107: 0 | CQ107: =INDEX('Comparison - Category'!$I$22:$P$47,MATCH('Vs Status Quo'!$D107,'Comparison - Category'!$C$22:$C$47,0),MATCH('Vs Status Quo'!CQ$85,'Comparison - Category'!$I$7:$P$7,0)) -> 21672 | CR107: =INDEX(WRS!$M$23:$V$48,MATCH($D107,WRS!$C$23:$C$48,0),MATCH(CR$87,WRS!$M$7:$V$7,0)) -> 21868 | CS107: =INDEX(WRS!$M$23:$V$48,MATCH($D107,WRS!$C$23:$C$48,0),MATCH(CS$87,WRS!$M$7:$V$7,0)) -> 21868 | CT107: =INDEX(WRS!$M$23:$V$48,MATCH($D107,WRS!$C$23:$C$48,0),MATCH(CT$87,WRS!$M$7:$V$7,0)) -> 21868 | CU107: =INDEX(WRS!$M$23:$V$48,MATCH($D107,WRS!$C$23:$C$48,0),MATCH(CU$87,WRS!$M$7:$V$7,0)) -> 21868 | CV107: =INDEX(WRS!$M$23:$V$48,MATCH($D107,WRS!$C$23:$C$48,0),MATCH(CV$87,WRS!$M$7:$V$7,0)) -> 21868 | CW107: =INDEX(WRS!$M$23:$V$48,MATCH($D107,WRS!$C$23:$C$48,0),MATCH(CW$87,WRS!$M$7:$V$7,0)) -> 21868 | CX107: =INDEX(WRS!$M$23:$V$48,MATCH($D107,WRS!$C$23:$C$48,0),MATCH(CX$87,WRS!$M$7:$V$7,0)) -> 21868 | CY107: =INDEX(WRS!$M$23:$V$48,MATCH($D107,WRS!$C$23:$C$48,0),MATCH(CY$87,WRS!$M$7:$V$7,0)) -> 21868 | CZ107: =INDEX(WRS!$M$23:$V$48,MATCH($D107,WRS!$C$23:$C$48,0),MATCH(CZ$87,WRS!$M$7:$V$7,0)) -> 21868 | DA107: =INDEX(WRS!$M$23:$V$48,MATCH($D107,WRS!$C$23:$C$48,0),MATCH(DA$87,WRS!$M$7:$V$7,0)) -> 21868
B108: Hutt City | C108: Business | D108: Hutt CityBusiness | F108: Hutt City - Business | I108: =INDEX('Capital values'!$G$8:$G$45,MATCH(D108,'Capital values'!$C$8:$C$45,0),) -> 4269787494 | K108: 4434151.958 | L108: 4740354.764 | M108: 5005538.678 | N108: 5323781.943 | O108: 5705378.226 | P108: 6015952.574 | Q108: 6228228.79 | R108: 6481472.061 | S108: 6692996.206 | T108: 7014893.705 | U108: 7291926.155 | W108: =INDEX('Comparison - Category'!$I$22:$P$47,MATCH('Vs Status Quo'!$D108,'Comparison - Category'!$C$22:$C$47,0),MATCH('Vs Status Quo'!W$85,'Comparison - Category'!$I$7:$P$7,0)) -> 1287591.074 | X108: 1426753.846 | Y108: 1573056.285 | Z108: 1553706.261 | AA108: 1665510.062 | AB108: 1727099.764 | AC108: 1759917.165 | AD108: 1813293.202 | AE108: 1891108.082 | AF108: 1960029.343 | AG108: 2051724.275 | AI108: =INDEX('Comparison - Category'!$I$22:$P$47,MATCH('Vs Status Quo'!$D108,'Comparison - Category'!$C$22:$C$47,0),MATCH('Vs Status Quo'!AI$85,'Comparison - Category'!$I$7:$P$7,0)) -> 0 | AJ108: 0 | AK108: 0 | AL108: 0 | AM108: 0 | AN108: 0 | AO108: 0 | AP108: 0 | AQ108: 0 | AR108: 0 | AS108: 0 | BG108: =INDEX('Comparison - Category'!$I$22:$P$47,MATCH('Vs Status Quo'!$D108,'Comparison - Category'!$C$22:$C$47,0),MATCH('Vs Status Quo'!BG$85,'Comparison - Category'!$I$7:$P$7,0)) -> 660987.1265 | BH108: 771270.4846 | BI108: 830641.3431 | BJ108: 898220.1685 | BK108: 943710.4415 | BL108: 986950.5958 | BM108: 1067947.583 | BN108: 1142654.875 | BO108: 1210699.42 | BP108: 1287973.016 | BQ108: 1452367.709 | BS108: =INDEX('Comparison - Category'!$I$22:$P$47,MATCH('Vs Status Quo'!$D108,'Comparison - Category'!$C$22:$C$47,0),MATCH('Vs Status Quo'!BS$85,'Comparison - Category'!$I$7:$P$7,0)) -> 2092334.59 | BT108: =INDEX(Tran!$X$23:$AG$48,MATCH($D108,Tran!$C$23:$C$48,0),MATCH(BT$87,Tran!$X$7:$AG$7,0)) -> 2181032.976 | BU108: =INDEX(Tran!$X$23:$AG$48,MATCH($D108,Tran!$C$23:$C$48,0),MATCH(BU$87,Tran!$X$7:$AG$7,0)) -> 2220894.883 | BV108: =INDEX(Tran!$X$23:$AG$48,MATCH($D108,Tran!$C$23:$C$48,0),MATCH(BV$87,Tran!$X$7:$AG$7,0)) -> 2454633.745 | BW108: =INDEX(Tran!$X$23:$AG$48,MATCH($D108,Tran!$C$23:$C$48,0),MATCH(BW$87,Tran!$X$7:$AG$7,0)) -> 2642799.28 | BX108: =INDEX(Tran!$X$23:$AG$48,MATCH($D108,Tran!$C$23:$C$48,0),MATCH(BX$87,Tran!$X$7:$AG$7,0)) -> 2829182.946 | BY108: =INDEX(Tran!$X$23:$AG$48,MATCH($D108,Tran!$C$23:$C$48,0),MATCH(BY$87,Tran!$X$7:$AG$7,0)) -> 2909177.903 | BZ108: =INDEX(Tran!$X$23:$AG$48,MATCH($D108,Tran!$C$23:$C$48,0),MATCH(BZ$87,Tran!$X$7:$AG$7,0)) -> 3014593.989 | CA108: =INDEX(Tran!$X$23:$AG$48,MATCH($D108,Tran!$C$23:$C$48,0),MATCH(CA$87,Tran!$X$7:$AG$7,0)) -> 3059961.089 | CB108: =INDEX(Tran!$X$23:$AG$48,MATCH($D108,Tran!$C$23:$C$48,0),MATCH(CB$87,Tran!$X$7:$AG$7,0)) -> 3215264.453 | CC108: =INDEX(Tran!$X$23:$AG$48,MATCH($D108,Tran!$C$23:$C$48,0),MATCH(CC$87,Tran!$X$7:$AG$7,0)) -> 3215253.025 | CE108: =INDEX('Comparison - Category'!$I$22:$P$47,MATCH('Vs Status Quo'!$D108,'Comparison - Category'!$C$22:$C$47,0),MATCH('Vs Status Quo'!CE$85,'Comparison - Category'!$I$7:$P$7,0)) -> 49784.84971 | CF108: =INDEX(Stad!$F$23:$F$48,MATCH($D108,Stad!$C$23:$C$48,0),0) -> 0 | CG108: 0 | CH108: 0 | CI108: 0 | CJ108: 0 | CK108: 0 | CL108: 0 | CM108: 0 | CN108: 0 | CO108: 0 | CQ108: =INDEX('Comparison - Category'!$I$22:$P$47,MATCH('Vs Status Quo'!$D108,'Comparison - Category'!$C$22:$C$47,0),MATCH('Vs Status Quo'!CQ$85,'Comparison - Category'!$I$7:$P$7,0)) -> 343454.3181 | CR108: =INDEX(WRS!$M$23:$V$48,MATCH($D108,WRS!$C$23:$C$48,0),MATCH(CR$87,WRS!$M$7:$V$7,0)) -> 361297.458 | CS108: =INDEX(WRS!$M$23:$V$48,MATCH($D108,WRS!$C$23:$C$48,0),MATCH(CS$87,WRS!$M$7:$V$7,0)) -> 380946.1673 | CT108: =INDEX(WRS!$M$23:$V$48,MATCH($D108,WRS!$C$23:$C$48,0),MATCH(CT$87,WRS!$M$7:$V$7,0)) -> 417221.7684 | CU108: =INDEX(WRS!$M$23:$V$48,MATCH($D108,WRS!$C$23:$C$48,0),MATCH(CU$87,WRS!$M$7:$V$7,0)) -> 453358.4429 | CV108: =INDEX(WRS!$M$23:$V$48,MATCH($D108,WRS!$C$23:$C$48,0),MATCH(CV$87,WRS!$M$7:$V$7,0)) -> 472719.2675 | CW108: =INDEX(WRS!$M$23:$V$48,MATCH($D108,WRS!$C$23:$C$48,0),MATCH(CW$87,WRS!$M$7:$V$7,0)) -> 491186.1389 | CX108: =INDEX(WRS!$M$23:$V$48,MATCH($D108,WRS!$C$23:$C$48,0),MATCH(CX$87,WRS!$M$7:$V$7,0)) -> 510929.995 | CY108: =INDEX(WRS!$M$23:$V$48,MATCH($D108,WRS!$C$23:$C$48,0),MATCH(CY$87,WRS!$M$7:$V$7,0)) -> 531227.6154 | CZ108: =INDEX(WRS!$M$23:$V$48,MATCH($D108,WRS!$C$23:$C$48,0),MATCH(CZ$87,WRS!$M$7:$V$7,0)) -> 551626.8921 | DA108: =INDEX(WRS!$M$23:$V$48,MATCH($D108,WRS!$C$23:$C$48,0),MATCH(DA$87,WRS!$M$7:$V$7,0)) -> 572581.1456
B109: Hutt City | C109: Residential | D109: Hutt CityResidential | F109: Hutt City - Residential | I109: =INDEX('Capital values'!$G$8:$G$45,MATCH(D109,'Capital values'!$C$8:$C$45,0),) -> 1.949725075e+10 | K109: 18796224.39 | L109: 20035984.91 | M109: 20669181.55 | N109: 21323624.32 | O109: 22203228.92 | P109: 22752056.85 | Q109: 22910070.14 | R109: 23838772.39 | S109: 24652786.58 | T109: 25826907.49 | U109: 26996259.48 | W109: =INDEX('Comparison - Category'!$I$22:$P$47,MATCH('Vs Status Quo'!$D109,'Comparison - Category'!$C$22:$C$47,0),MATCH('Vs Status Quo'!W$85,'Comparison - Category'!$I$7:$P$7,0)) -> 5784011.148 | X109: 6515026.224 | Y109: 7183091.167 | Z109: 7094732.61 | AA109: 7605265.452 | AB109: 7886504.242 | AC109: 8036359.26 | AD109: 8280091.763 | AE109: 8635420.035 | AF109: 8950137.129 | AG109: 9368846.279 | AI109: =INDEX('Comparison - Category'!$I$22:$P$47,MATCH('Vs Status Quo'!$D109,'Comparison - Category'!$C$22:$C$47,0),MATCH('Vs Status Quo'!AI$85,'Comparison - Category'!$I$7:$P$7,0)) -> 0 | AJ109: 0 | AK109: 0 | AL109: 0 | AM109: 0 | AN109: 0 | AO109: 0 | AP109: 0 | AQ109: 0 | AR109: 0 | AS109: 0 | BG109: =INDEX('Comparison - Category'!$I$22:$P$47,MATCH('Vs Status Quo'!$D109,'Comparison - Category'!$C$22:$C$47,0),MATCH('Vs Status Quo'!BG$85,'Comparison - Category'!$I$7:$P$7,0)) -> 2969232.224 | BH109: 3521874.112 | BI109: 3792980.933 | BJ109: 4101568.024 | BK109: 4309291.538 | BL109: 4506740.271 | BM109: 4876599.092 | BN109: 5217737.101 | BO109: 5528450.823 | BP109: 5881307.418 | BQ109: 6631987.529 | BS109: =INDEX('Comparison - Category'!$I$22:$P$47,MATCH('Vs Status Quo'!$D109,'Comparison - Category'!$C$22:$C$47,0),MATCH('Vs Status Quo'!BS$85,'Comparison - Category'!$I$7:$P$7,0)) -> 9399014.049 | BT109: =INDEX(Tran!$X$23:$AG$48,MATCH($D109,Tran!$C$23:$C$48,0),MATCH(BT$87,Tran!$X$7:$AG$7,0)) -> 9490730.569 | BU109: =INDEX(Tran!$X$23:$AG$48,MATCH($D109,Tran!$C$23:$C$48,0),MATCH(BU$87,Tran!$X$7:$AG$7,0)) -> 9184755.446 | BV109: =INDEX(Tran!$X$23:$AG$48,MATCH($D109,Tran!$C$23:$C$48,0),MATCH(BV$87,Tran!$X$7:$AG$7,0)) -> 9618969.682 | BW109: =INDEX(Tran!$X$23:$AG$48,MATCH($D109,Tran!$C$23:$C$48,0),MATCH(BW$87,Tran!$X$7:$AG$7,0)) -> 9780317.926 | BX109: =INDEX(Tran!$X$23:$AG$48,MATCH($D109,Tran!$C$23:$C$48,0),MATCH(BX$87,Tran!$X$7:$AG$7,0)) -> 9850458.341 | BY109: =INDEX(Tran!$X$23:$AG$48,MATCH($D109,Tran!$C$23:$C$48,0),MATCH(BY$87,Tran!$X$7:$AG$7,0)) -> 9488757.786 | BZ109: =INDEX(Tran!$X$23:$AG$48,MATCH($D109,Tran!$C$23:$C$48,0),MATCH(BZ$87,Tran!$X$7:$AG$7,0)) -> 9832589.527 | CA109: =INDEX(Tran!$X$23:$AG$48,MATCH($D109,Tran!$C$23:$C$48,0),MATCH(CA$87,Tran!$X$7:$AG$7,0)) -> 9980561.718 | CB109: =INDEX(Tran!$X$23:$AG$48,MATCH($D109,Tran!$C$23:$C$48,0),MATCH(CB$87,Tran!$X$7:$AG$7,0)) -> 10487108.95 | CC109: =INDEX(Tran!$X$23:$AG$48,MATCH($D109,Tran!$C$23:$C$48,0),MATCH(CC$87,Tran!$X$7:$AG$7,0)) -> 10487071.67 | CE109: =INDEX('Comparison - Category'!$I$22:$P$47,MATCH('Vs Status Quo'!$D109,'Comparison - Category'!$C$22:$C$47,0),MATCH('Vs Status Quo'!CE$85,'Comparison - Category'!$I$7:$P$7,0)) -> 138888.9717 | CF109: =INDEX(Stad!$F$23:$F$48,MATCH($D109,Stad!$C$23:$C$48,0),0) -> 0 | CG109: 0 | CH109: 0 | CI109: 0 | CJ109: 0 | CK109: 0 | CL109: 0 | CM109: 0 | CN109: 0 | CO109: 0 | CQ109: =INDEX('Comparison - Category'!$I$22:$P$47,MATCH('Vs Status Quo'!$D109,'Comparison - Category'!$C$22:$C$47,0),MATCH('Vs Status Quo'!CQ$85,'Comparison - Category'!$I$7:$P$7,0)) -> 505078 | CR109: =INDEX(WRS!$M$23:$V$48,MATCH($D109,WRS!$C$23:$C$48,0),MATCH(CR$87,WRS!$M$7:$V$7,0)) -> 508354 | CS109: =INDEX(WRS!$M$23:$V$48,MATCH($D109,WRS!$C$23:$C$48,0),MATCH(CS$87,WRS!$M$7:$V$7,0)) -> 508354 | CT109: =INDEX(WRS!$M$23:$V$48,MATCH($D109,WRS!$C$23:$C$48,0),MATCH(CT$87,WRS!$M$7:$V$7,0)) -> 508354 | CU109: =INDEX(WRS!$M$23:$V$48,MATCH($D109,WRS!$C$23:$C$48,0),MATCH(CU$87,WRS!$M$7:$V$7,0)) -> 508354 | CV109: =INDEX(WRS!$M$23:$V$48,MATCH($D109,WRS!$C$23:$C$48,0),MATCH(CV$87,WRS!$M$7:$V$7,0)) -> 508354 | CW109: =INDEX(WRS!$M$23:$V$48,MATCH($D109,WRS!$C$23:$C$48,0),MATCH(CW$87,WRS!$M$7:$V$7,0)) -> 508354 | CX109: =INDEX(WRS!$M$23:$V$48,MATCH($D109,WRS!$C$23:$C$48,0),MATCH(CX$87,WRS!$M$7:$V$7,0)) -> 508354 | CY109: =INDEX(WRS!$M$23:$V$48,MATCH($D109,WRS!$C$23:$C$48,0),MATCH(CY$87,WRS!$M$7:$V$7,0)) -> 508354 | CZ109: =INDEX(WRS!$M$23:$V$48,MATCH($D109,WRS!$C$23:$C$48,0),MATCH(CZ$87,WRS!$M$7:$V$7,0)) -> 508354 | DA109: =INDEX(WRS!$M$23:$V$48,MATCH($D109,WRS!$C$23:$C$48,0),MATCH(DA$87,WRS!$M$7:$V$7,0)) -> 508354
B110: Hutt City | C110: Rural | D110: Hutt CityRural | F110: Hutt City - Rural | I110: =INDEX('Capital values'!$G$8:$G$45,MATCH(D110,'Capital values'!$C$8:$C$45,0),) -> 351078824.8 | K110: 223854.9537 | L110: 237619.7913 | M110: 253020.573 | N110: 258840.6329 | O110: 272362.2029 | P110: 281133.3024 | Q110: 288673.2518 | R110: 300752.5786 | S110: 313411.836 | T110: 327712.8516 | U110: 348769.3862 | W110: =INDEX('Comparison - Category'!$I$22:$P$47,MATCH('Vs Status Quo'!$D110,'Comparison - Category'!$C$22:$C$47,0),MATCH('Vs Status Quo'!W$85,'Comparison - Category'!$I$7:$P$7,0)) -> 107853.8309 | X110: 117313.3474 | Y110: 129342.9129 | Z110: 127751.8774 | AA110: 136944.8283 | AB110: 142008.9774 | AC110: 144707.3539 | AD110: 149096.1429 | AE110: 155494.3902 | AF110: 161161.3691 | AG110: 168700.8893 | AI110: =INDEX('Comparison - Category'!$I$22:$P$47,MATCH('Vs Status Quo'!$D110,'Comparison - Category'!$C$22:$C$47,0),MATCH('Vs Status Quo'!AI$85,'Comparison - Category'!$I$7:$P$7,0)) -> 0 | AJ110: 0 | AK110: 0 | AL110: 0 | AM110: 0 | AN110: 0 | AO110: 0 | AP110: 0 | AQ110: 0 | AR110: 0 | AS110: 0 | BG110: =INDEX('Comparison - Category'!$I$22:$P$47,MATCH('Vs Status Quo'!$D110,'Comparison - Category'!$C$22:$C$47,0),MATCH('Vs Status Quo'!BG$85,'Comparison - Category'!$I$7:$P$7,0)) -> 55366.95247 | BH110: 63416.91143 | BI110: 68298.61837 | BJ110: 73855.21682 | BK110: 77595.60709 | BL110: 81150.9837 | BM110: 87810.87652 | BN110: 93953.60569 | BO110: 99548.4975 | BP110: 105902.2384 | BQ110: 119419.4206 | BS110: =INDEX('Comparison - Category'!$I$22:$P$47,MATCH('Vs Status Quo'!$D110,'Comparison - Category'!$C$22:$C$47,0),MATCH('Vs Status Quo'!BS$85,'Comparison - Category'!$I$7:$P$7,0)) -> 44664.56015 | BT110: =INDEX(Tran!$X$23:$AG$48,MATCH($D110,Tran!$C$23:$C$48,0),MATCH(BT$87,Tran!$X$7:$AG$7,0)) -> 43449.53251 | BU110: =INDEX(Tran!$X$23:$AG$48,MATCH($D110,Tran!$C$23:$C$48,0),MATCH(BU$87,Tran!$X$7:$AG$7,0)) -> 41939.04177 | BV110: =INDEX(Tran!$X$23:$AG$48,MATCH($D110,Tran!$C$23:$C$48,0),MATCH(BV$87,Tran!$X$7:$AG$7,0)) -> 43793.53868 | BW110: =INDEX(Tran!$X$23:$AG$48,MATCH($D110,Tran!$C$23:$C$48,0),MATCH(BW$87,Tran!$X$7:$AG$7,0)) -> 44381.76749 | BX110: =INDEX(Tran!$X$23:$AG$48,MATCH($D110,Tran!$C$23:$C$48,0),MATCH(BX$87,Tran!$X$7:$AG$7,0)) -> 44533.34136 | BY110: =INDEX(Tran!$X$23:$AG$48,MATCH($D110,Tran!$C$23:$C$48,0),MATCH(BY$87,Tran!$X$7:$AG$7,0)) -> 42715.02139 | BZ110: =INDEX(Tran!$X$23:$AG$48,MATCH($D110,Tran!$C$23:$C$48,0),MATCH(BZ$87,Tran!$X$7:$AG$7,0)) -> 44262.82992 | CA110: =INDEX(Tran!$X$23:$AG$48,MATCH($D110,Tran!$C$23:$C$48,0),MATCH(CA$87,Tran!$X$7:$AG$7,0)) -> 44928.94823 | CB110: =INDEX(Tran!$X$23:$AG$48,MATCH($D110,Tran!$C$23:$C$48,0),MATCH(CB$87,Tran!$X$7:$AG$7,0)) -> 47209.24415 | CC110: =INDEX(Tran!$X$23:$AG$48,MATCH($D110,Tran!$C$23:$C$48,0),MATCH(CC$87,Tran!$X$7:$AG$7,0)) -> 47209.07635 | CE110: =INDEX('Comparison - Category'!$I$22:$P$47,MATCH('Vs Status Quo'!$D110,'Comparison - Category'!$C$22:$C$47,0),MATCH('Vs Status Quo'!CE$85,'Comparison - Category'!$I$7:$P$7,0)) -> 2249.610105 | CF110: =INDEX(Stad!$F$23:$F$48,MATCH($D110,Stad!$C$23:$C$48,0),0) -> 0 | CG110: 0 | CH110: 0 | CI110: 0 | CJ110: 0 | CK110: 0 | CL110: 0 | CM110: 0 | CN110: 0 | CO110: 0 | CQ110: =INDEX('Comparison - Category'!$I$22:$P$47,MATCH('Vs Status Quo'!$D110,'Comparison - Category'!$C$22:$C$47,0),MATCH('Vs Status Quo'!CQ$85,'Comparison - Category'!$I$7:$P$7,0)) -> 13720 | CR110: =INDEX(WRS!$M$23:$V$48,MATCH($D110,WRS!$C$23:$C$48,0),MATCH(CR$87,WRS!$M$7:$V$7,0)) -> 13440 | CS110: =INDEX(WRS!$M$23:$V$48,MATCH($D110,WRS!$C$23:$C$48,0),MATCH(CS$87,WRS!$M$7:$V$7,0)) -> 13440 | CT110: =INDEX(WRS!$M$23:$V$48,MATCH($D110,WRS!$C$23:$C$48,0),MATCH(CT$87,WRS!$M$7:$V$7,0)) -> 13440 | CU110: =INDEX(WRS!$M$23:$V$48,MATCH($D110,WRS!$C$23:$C$48,0),MATCH(CU$87,WRS!$M$7:$V$7,0)) -> 13440 | CV110: =INDEX(WRS!$M$23:$V$48,MATCH($D110,WRS!$C$23:$C$48,0),MATCH(CV$87,WRS!$M$7:$V$7,0)) -> 13440 | CW110: =INDEX(WRS!$M$23:$V$48,MATCH($D110,WRS!$C$23:$C$48,0),MATCH(CW$87,WRS!$M$7:$V$7,0)) -> 13440 | CX110: =INDEX(WRS!$M$23:$V$48,MATCH($D110,WRS!$C$23:$C$48,0),MATCH(CX$87,WRS!$M$7:$V$7,0)) -> 13440 | CY110: =INDEX(WRS!$M$23:$V$48,MATCH($D110,WRS!$C$23:$C$48,0),MATCH(CY$87,WRS!$M$7:$V$7,0)) -> 13440 | CZ110: =INDEX(WRS!$M$23:$V$48,MATCH($D110,WRS!$C$23:$C$48,0),MATCH(CZ$87,WRS!$M$7:$V$7,0)) -> 13440 | DA110: =INDEX(WRS!$M$23:$V$48,MATCH($D110,WRS!$C$23:$C$48,0),MATCH(DA$87,WRS!$M$7:$V$7,0)) -> 13440
B111: Upper Hutt City | C111: Business | D111: Upper Hutt CityBusiness | F111: Upper Hutt City - Business | I111: =INDEX('Capital values'!$G$8:$G$45,MATCH(D111,'Capital values'!$C$8:$C$45,0),) -> 1316173851 | K111: 1335297.061 | L111: 1388968.524 | M111: 1459405.129 | N111: 1538000.704 | O111: 1644932.415 | P111: 1697875.281 | Q111: 1721873.459 | R111: 1777656.623 | S111: 1823973.842 | T111: 1900865.183 | U111: 1939305.573 | W111: =INDEX('Comparison - Category'!$I$22:$P$47,MATCH('Vs Status Quo'!$D111,'Comparison - Category'!$C$22:$C$47,0),MATCH('Vs Status Quo'!W$85,'Comparison - Category'!$I$7:$P$7,0)) -> 397110.704 | X111: 439800.8347 | Y111: 484898.9677 | Z111: 478934.2692 | AA111: 513398.1013 | AB111: 532383.2981 | AC111: 542499.3528 | AD111: 558952.6647 | AE111: 582939.3172 | AF111: 604184.4874 | AG111: 632449.705 | AI111: =INDEX('Comparison - Category'!$I$22:$P$47,MATCH('Vs Status Quo'!$D111,'Comparison - Category'!$C$22:$C$47,0),MATCH('Vs Status Quo'!AI$85,'Comparison - Category'!$I$7:$P$7,0)) -> 0 | AJ111: 0 | AK111: 0 | AL111: 0 | AM111: 0 | AN111: 0 | AO111: 0 | AP111: 0 | AQ111: 0 | AR111: 0 | AS111: 0 | BG111: =INDEX('Comparison - Category'!$I$22:$P$47,MATCH('Vs Status Quo'!$D111,'Comparison - Category'!$C$22:$C$47,0),MATCH('Vs Status Quo'!BG$85,'Comparison - Category'!$I$7:$P$7,0)) -> 99060.16162 | BH111: 95717.83576 | BI111: 115509.5047 | BJ111: 126469.5365 | BK111: 143074.3274 | BL111: 129395.9775 | BM111: 131202.4485 | BN111: 131951.4014 | BO111: 134040.6352 | BP111: 135525.9784 | BQ111: 139245.4676 | BS111: =INDEX('Comparison - Category'!$I$22:$P$47,MATCH('Vs Status Quo'!$D111,'Comparison - Category'!$C$22:$C$47,0),MATCH('Vs Status Quo'!BS$85,'Comparison - Category'!$I$7:$P$7,0)) -> 725473.2634 | BT111: =INDEX(Tran!$X$23:$AG$48,MATCH($D111,Tran!$C$23:$C$48,0),MATCH(BT$87,Tran!$X$7:$AG$7,0)) -> 742078.9093 | BU111: =INDEX(Tran!$X$23:$AG$48,MATCH($D111,Tran!$C$23:$C$48,0),MATCH(BU$87,Tran!$X$7:$AG$7,0)) -> 741568.943 | BV111: =INDEX(Tran!$X$23:$AG$48,MATCH($D111,Tran!$C$23:$C$48,0),MATCH(BV$87,Tran!$X$7:$AG$7,0)) -> 803987.1293 | BW111: =INDEX(Tran!$X$23:$AG$48,MATCH($D111,Tran!$C$23:$C$48,0),MATCH(BW$87,Tran!$X$7:$AG$7,0)) -> 848710.9873 | BX111: =INDEX(Tran!$X$23:$AG$48,MATCH($D111,Tran!$C$23:$C$48,0),MATCH(BX$87,Tran!$X$7:$AG$7,0)) -> 890378.979 | BY111: =INDEX(Tran!$X$23:$AG$48,MATCH($D111,Tran!$C$23:$C$48,0),MATCH(BY$87,Tran!$X$7:$AG$7,0)) -> 896762.1665 | BZ111: =INDEX(Tran!$X$23:$AG$48,MATCH($D111,Tran!$C$23:$C$48,0),MATCH(BZ$87,Tran!$X$7:$AG$7,0)) -> 929256.9677 | CA111: =INDEX(Tran!$X$23:$AG$48,MATCH($D111,Tran!$C$23:$C$48,0),MATCH(CA$87,Tran!$X$7:$AG$7,0)) -> 943241.5024 | CB111: =INDEX(Tran!$X$23:$AG$48,MATCH($D111,Tran!$C$23:$C$48,0),MATCH(CB$87,Tran!$X$7:$AG$7,0)) -> 991114.1956 | CC111: =INDEX(Tran!$X$23:$AG$48,MATCH($D111,Tran!$C$23:$C$48,0),MATCH(CC$87,Tran!$X$7:$AG$7,0)) -> 991110.6727 | CE111: =INDEX('Comparison - Category'!$I$22:$P$47,MATCH('Vs Status Quo'!$D111,'Comparison - Category'!$C$22:$C$47,0),MATCH('Vs Status Quo'!CE$85,'Comparison - Category'!$I$7:$P$7,0)) -> 7726.921665 | CF111: =INDEX(Stad!$F$23:$F$48,MATCH($D111,Stad!$C$23:$C$48,0),0) -> 0 | CG111: 0 | CH111: 0 | CI111: 0 | CJ111: 0 | CK111: 0 | CL111: 0 | CM111: 0 | CN111: 0 | CO111: 0 | CQ111: =INDEX('Comparison - Category'!$I$22:$P$47,MATCH('Vs Status Quo'!$D111,'Comparison - Category'!$C$22:$C$47,0),MATCH('Vs Status Quo'!CQ$85,'Comparison - Category'!$I$7:$P$7,0)) -> 105926.0108 | CR111: =INDEX(WRS!$M$23:$V$48,MATCH($D111,WRS!$C$23:$C$48,0),MATCH(CR$87,WRS!$M$7:$V$7,0)) -> 111370.9446 | CS111: =INDEX(WRS!$M$23:$V$48,MATCH($D111,WRS!$C$23:$C$48,0),MATCH(CS$87,WRS!$M$7:$V$7,0)) -> 117427.7138 | CT111: =INDEX(WRS!$M$23:$V$48,MATCH($D111,WRS!$C$23:$C$48,0),MATCH(CT$87,WRS!$M$7:$V$7,0)) -> 128609.7686 | CU111: =INDEX(WRS!$M$23:$V$48,MATCH($D111,WRS!$C$23:$C$48,0),MATCH(CU$87,WRS!$M$7:$V$7,0)) -> 139748.9989 | CV111: =INDEX(WRS!$M$23:$V$48,MATCH($D111,WRS!$C$23:$C$48,0),MATCH(CV$87,WRS!$M$7:$V$7,0)) -> 145717.0268 | CW111: =INDEX(WRS!$M$23:$V$48,MATCH($D111,WRS!$C$23:$C$48,0),MATCH(CW$87,WRS!$M$7:$V$7,0)) -> 151409.4912 | CX111: =INDEX(WRS!$M$23:$V$48,MATCH($D111,WRS!$C$23:$C$48,0),MATCH(CX$87,WRS!$M$7:$V$7,0)) -> 157495.5897 | CY111: =INDEX(WRS!$M$23:$V$48,MATCH($D111,WRS!$C$23:$C$48,0),MATCH(CY$87,WRS!$M$7:$V$7,0)) -> 163752.3875 | CZ111: =INDEX(WRS!$M$23:$V$48,MATCH($D111,WRS!$C$23:$C$48,0),MATCH(CZ$87,WRS!$M$7:$V$7,0)) -> 170040.5212 | DA111: =INDEX(WRS!$M$23:$V$48,MATCH($D111,WRS!$C$23:$C$48,0),MATCH(DA$87,WRS!$M$7:$V$7,0)) -> 176499.728
B112: Upper Hutt City | C112: Residential | D112: Upper Hutt CityResidential | F112: Upper Hutt City - Residential | I112: =INDEX('Capital values'!$G$8:$G$45,MATCH(D112,'Capital values'!$C$8:$C$45,0),) -> 6898637335 | K112: 6551667.376 | L112: 6737565.935 | M112: 6902342.203 | N112: 7031673.331 | O112: 7286835.967 | P112: 7256731.415 | Q112: 7095453.712 | R112: 7307274.898 | S112: 7496306.347 | T112: 7794676.475 | U112: 7962308.99 | W112: =INDEX('Comparison - Category'!$I$22:$P$47,MATCH('Vs Status Quo'!$D112,'Comparison - Category'!$C$22:$C$47,0),MATCH('Vs Status Quo'!W$85,'Comparison - Category'!$I$7:$P$7,0)) -> 2049718.983 | X112: 2305186.701 | Y112: 2541565.554 | Z112: 2510301.985 | AA112: 2690941.859 | AB112: 2790451.5 | AC112: 2843474.125 | AD112: 2929713.06 | AE112: 3055437.498 | AF112: 3166792.638 | AG112: 3314942.888 | AI112: =INDEX('Comparison - Category'!$I$22:$P$47,MATCH('Vs Status Quo'!$D112,'Comparison - Category'!$C$22:$C$47,0),MATCH('Vs Status Quo'!AI$85,'Comparison - Category'!$I$7:$P$7,0)) -> 0 | AJ112: 0 | AK112: 0 | AL112: 0 | AM112: 0 | AN112: 0 | AO112: 0 | AP112: 0 | AQ112: 0 | AR112: 0 | AS112: 0 | BG112: =INDEX('Comparison - Category'!$I$22:$P$47,MATCH('Vs Status Quo'!$D112,'Comparison - Category'!$C$22:$C$47,0),MATCH('Vs Status Quo'!BG$85,'Comparison - Category'!$I$7:$P$7,0)) -> 511307.0278 | BH112: 501698.6433 | BI112: 605435.354 | BJ112: 662881.6289 | BK112: 749914.5312 | BL112: 678220.3738 | BM112: 687688.871 | BN112: 691614.4574 | BO112: 702565.0368 | BP112: 710350.3644 | BQ112: 729845.8183 | BS112: =INDEX('Comparison - Category'!$I$22:$P$47,MATCH('Vs Status Quo'!$D112,'Comparison - Category'!$C$22:$C$47,0),MATCH('Vs Status Quo'!BS$85,'Comparison - Category'!$I$7:$P$7,0)) -> 3744588.864 | BT112: =INDEX(Tran!$X$23:$AG$48,MATCH($D112,Tran!$C$23:$C$48,0),MATCH(BT$87,Tran!$X$7:$AG$7,0)) -> 3723760.59 | BU112: =INDEX(Tran!$X$23:$AG$48,MATCH($D112,Tran!$C$23:$C$48,0),MATCH(BU$87,Tran!$X$7:$AG$7,0)) -> 3548421.295 | BV112: =INDEX(Tran!$X$23:$AG$48,MATCH($D112,Tran!$C$23:$C$48,0),MATCH(BV$87,Tran!$X$7:$AG$7,0)) -> 3651569.717 | BW112: =INDEX(Tran!$X$23:$AG$48,MATCH($D112,Tran!$C$23:$C$48,0),MATCH(BW$87,Tran!$X$7:$AG$7,0)) -> 3639059.577 | BX112: =INDEX(Tran!$X$23:$AG$48,MATCH($D112,Tran!$C$23:$C$48,0),MATCH(BX$87,Tran!$X$7:$AG$7,0)) -> 3581139.542 | BY112: =INDEX(Tran!$X$23:$AG$48,MATCH($D112,Tran!$C$23:$C$48,0),MATCH(BY$87,Tran!$X$7:$AG$7,0)) -> 3357370.716 | BZ112: =INDEX(Tran!$X$23:$AG$48,MATCH($D112,Tran!$C$23:$C$48,0),MATCH(BZ$87,Tran!$X$7:$AG$7,0)) -> 3479027.38 | CA112: =INDEX(Tran!$X$23:$AG$48,MATCH($D112,Tran!$C$23:$C$48,0),MATCH(CA$87,Tran!$X$7:$AG$7,0)) -> 3531383.812 | CB112: =INDEX(Tran!$X$23:$AG$48,MATCH($D112,Tran!$C$23:$C$48,0),MATCH(CB$87,Tran!$X$7:$AG$7,0)) -> 3710613.472 | CC112: =INDEX(Tran!$X$23:$AG$48,MATCH($D112,Tran!$C$23:$C$48,0),MATCH(CC$87,Tran!$X$7:$AG$7,0)) -> 3710600.283 | CE112: =INDEX('Comparison - Category'!$I$22:$P$47,MATCH('Vs Status Quo'!$D112,'Comparison - Category'!$C$22:$C$47,0),MATCH('Vs Status Quo'!CE$85,'Comparison - Category'!$I$7:$P$7,0)) -> 41764.50065 | CF112: =INDEX(Stad!$F$23:$F$48,MATCH($D112,Stad!$C$23:$C$48,0),0) -> 0 | CG112: 0 | CH112: 0 | CI112: 0 | CJ112: 0 | CK112: 0 | CL112: 0 | CM112: 0 | CN112: 0 | CO112: 0 | CQ112: =INDEX('Comparison - Category'!$I$22:$P$47,MATCH('Vs Status Quo'!$D112,'Comparison - Category'!$C$22:$C$47,0),MATCH('Vs Status Quo'!CQ$85,'Comparison - Category'!$I$7:$P$7,0)) -> 204288 | CR112: =INDEX(WRS!$M$23:$V$48,MATCH($D112,WRS!$C$23:$C$48,0),MATCH(CR$87,WRS!$M$7:$V$7,0)) -> 206920 | CS112: =INDEX(WRS!$M$23:$V$48,MATCH($D112,WRS!$C$23:$C$48,0),MATCH(CS$87,WRS!$M$7:$V$7,0)) -> 206920 | CT112: =INDEX(WRS!$M$23:$V$48,MATCH($D112,WRS!$C$23:$C$48,0),MATCH(CT$87,WRS!$M$7:$V$7,0)) -> 206920 | CU112: =INDEX(WRS!$M$23:$V$48,MATCH($D112,WRS!$C$23:$C$48,0),MATCH(CU$87,WRS!$M$7:$V$7,0)) -> 206920 | CV112: =INDEX(WRS!$M$23:$V$48,MATCH($D112,WRS!$C$23:$C$48,0),MATCH(CV$87,WRS!$M$7:$V$7,0)) -> 206920 | CW112: =INDEX(WRS!$M$23:$V$48,MATCH($D112,WRS!$C$23:$C$48,0),MATCH(CW$87,WRS!$M$7:$V$7,0)) -> 206920 | CX112: =INDEX(WRS!$M$23:$V$48,MATCH($D112,WRS!$C$23:$C$48,0),MATCH(CX$87,WRS!$M$7:$V$7,0)) -> 206920 | CY112: =INDEX(WRS!$M$23:$V$48,MATCH($D112,WRS!$C$23:$C$48,0),MATCH(CY$87,WRS!$M$7:$V$7,0)) -> 206920 | CZ112: =INDEX(WRS!$M$23:$V$48,MATCH($D112,WRS!$C$23:$C$48,0),MATCH(CZ$87,WRS!$M$7:$V$7,0)) -> 206920 | DA112: =INDEX(WRS!$M$23:$V$48,MATCH($D112,WRS!$C$23:$C$48,0),MATCH(DA$87,WRS!$M$7:$V$7,0)) -> 206920
B113: Upper Hutt City | C113: Rural | D113: Upper Hutt CityRural | F113: Upper Hutt City - Rural | I113: =INDEX('Capital values'!$G$8:$G$45,MATCH(D113,'Capital values'!$C$8:$C$45,0),) -> 957667946.9 | K113: 500247.2654 | L113: 553934.1542 | M113: 594654.0902 | N113: 601560.1449 | O113: 637859.1579 | P113: 639205.0135 | Q113: 639529.0353 | R113: 656267.7532 | S113: 677057.9897 | T113: 699817.2138 | U113: 723089.3111 | W113: =INDEX('Comparison - Category'!$I$22:$P$47,MATCH('Vs Status Quo'!$D113,'Comparison - Category'!$C$22:$C$47,0),MATCH('Vs Status Quo'!W$85,'Comparison - Category'!$I$7:$P$7,0)) -> 271307.4035 | X113: 320005.7212 | Y113: 352819.803 | Z113: 348479.7984 | AA113: 373556.2025 | AB113: 387370.118 | AC113: 394730.7121 | AD113: 406702.3899 | AE113: 424155.4402 | AF113: 439613.7465 | AG113: 460179.9451 | AI113: =INDEX('Comparison - Category'!$I$22:$P$47,MATCH('Vs Status Quo'!$D113,'Comparison - Category'!$C$22:$C$47,0),MATCH('Vs Status Quo'!AI$85,'Comparison - Category'!$I$7:$P$7,0)) -> 0 | AJ113: 0 | AK113: 0 | AL113: 0 | AM113: 0 | AN113: 0 | AO113: 0 | AP113: 0 | AQ113: 0 | AR113: 0 | AS113: 0 | BG113: =INDEX('Comparison - Category'!$I$22:$P$47,MATCH('Vs Status Quo'!$D113,'Comparison - Category'!$C$22:$C$47,0),MATCH('Vs Status Quo'!BG$85,'Comparison - Category'!$I$7:$P$7,0)) -> 67678.24431 | BH113: 69645.74109 | BI113: 84046.45791 | BJ113: 92021.1424 | BK113: 104103.0387 | BL113: 94150.46499 | BM113: 95464.88056 | BN113: 96009.82996 | BO113: 97529.98798 | BP113: 98610.74616 | BQ113: 101317.1026 | BS113: =INDEX('Comparison - Category'!$I$22:$P$47,MATCH('Vs Status Quo'!$D113,'Comparison - Category'!$C$22:$C$47,0),MATCH('Vs Status Quo'!BS$85,'Comparison - Category'!$I$7:$P$7,0)) -> 126321.4349 | BT113: =INDEX(Tran!$X$23:$AG$48,MATCH($D113,Tran!$C$23:$C$48,0),MATCH(BT$87,Tran!$X$7:$AG$7,0)) -> 131466.692 | BU113: =INDEX(Tran!$X$23:$AG$48,MATCH($D113,Tran!$C$23:$C$48,0),MATCH(BU$87,Tran!$X$7:$AG$7,0)) -> 124971.8292 | BV113: =INDEX(Tran!$X$23:$AG$48,MATCH($D113,Tran!$C$23:$C$48,0),MATCH(BV$87,Tran!$X$7:$AG$7,0)) -> 128243.2041 | BW113: =INDEX(Tran!$X$23:$AG$48,MATCH($D113,Tran!$C$23:$C$48,0),MATCH(BW$87,Tran!$X$7:$AG$7,0)) -> 127383.9167 | BX113: =INDEX(Tran!$X$23:$AG$48,MATCH($D113,Tran!$C$23:$C$48,0),MATCH(BX$87,Tran!$X$7:$AG$7,0)) -> 124868.4304 | BY113: =INDEX(Tran!$X$23:$AG$48,MATCH($D113,Tran!$C$23:$C$48,0),MATCH(BY$87,Tran!$X$7:$AG$7,0)) -> 116517.4427 | BZ113: =INDEX(Tran!$X$23:$AG$48,MATCH($D113,Tran!$C$23:$C$48,0),MATCH(BZ$87,Tran!$X$7:$AG$7,0)) -> 120739.5333 | CA113: =INDEX(Tran!$X$23:$AG$48,MATCH($D113,Tran!$C$23:$C$48,0),MATCH(CA$87,Tran!$X$7:$AG$7,0)) -> 122556.5616 | CB113: =INDEX(Tran!$X$23:$AG$48,MATCH($D113,Tran!$C$23:$C$48,0),MATCH(CB$87,Tran!$X$7:$AG$7,0)) -> 128776.7212 | CC113: =INDEX(Tran!$X$23:$AG$48,MATCH($D113,Tran!$C$23:$C$48,0),MATCH(CC$87,Tran!$X$7:$AG$7,0)) -> 128776.2634 | CE113: =INDEX('Comparison - Category'!$I$22:$P$47,MATCH('Vs Status Quo'!$D113,'Comparison - Category'!$C$22:$C$47,0),MATCH('Vs Status Quo'!CE$85,'Comparison - Category'!$I$7:$P$7,0)) -> 1956.1827 | CF113: =INDEX(Stad!$F$23:$F$48,MATCH($D113,Stad!$C$23:$C$48,0),0) -> 0 | CG113: 0 | CH113: 0 | CI113: 0 | CJ113: 0 | CK113: 0 | CL113: 0 | CM113: 0 | CN113: 0 | CO113: 0 | CQ113: =INDEX('Comparison - Category'!$I$22:$P$47,MATCH('Vs Status Quo'!$D113,'Comparison - Category'!$C$22:$C$47,0),MATCH('Vs Status Quo'!CQ$85,'Comparison - Category'!$I$7:$P$7,0)) -> 32984 | CR113: =INDEX(WRS!$M$23:$V$48,MATCH($D113,WRS!$C$23:$C$48,0),MATCH(CR$87,WRS!$M$7:$V$7,0)) -> 32816 | CS113: =INDEX(WRS!$M$23:$V$48,MATCH($D113,WRS!$C$23:$C$48,0),MATCH(CS$87,WRS!$M$7:$V$7,0)) -> 32816 | CT113: =INDEX(WRS!$M$23:$V$48,MATCH($D113,WRS!$C$23:$C$48,0),MATCH(CT$87,WRS!$M$7:$V$7,0)) -> 32816 | CU113: =INDEX(WRS!$M$23:$V$48,MATCH($D113,WRS!$C$23:$C$48,0),MATCH(CU$87,WRS!$M$7:$V$7,0)) -> 32816 | CV113: =INDEX(WRS!$M$23:$V$48,MATCH($D113,WRS!$C$23:$C$48,0),MATCH(CV$87,WRS!$M$7:$V$7,0)) -> 32816 | CW113: =INDEX(WRS!$M$23:$V$48,MATCH($D113,WRS!$C$23:$C$48,0),MATCH(CW$87,WRS!$M$7:$V$7,0)) -> 32816 | CX113: =INDEX(WRS!$M$23:$V$48,MATCH($D113,WRS!$C$23:$C$48,0),MATCH(CX$87,WRS!$M$7:$V$7,0)) -> 32816 | CY113: =INDEX(WRS!$M$23:$V$48,MATCH($D113,WRS!$C$23:$C$48,0),MATCH(CY$87,WRS!$M$7:$V$7,0)) -> 32816 | CZ113: =INDEX(WRS!$M$23:$V$48,MATCH($D113,WRS!$C$23:$C$48,0),MATCH(CZ$87,WRS!$M$7:$V$7,0)) -> 32816 | DA113: =INDEX(WRS!$M$23:$V$48,MATCH($D113,WRS!$C$23:$C$48,0),MATCH(DA$87,WRS!$M$7:$V$7,0)) -> 32816
B114: Porirua City | C114: Business | D114: Porirua CityBusiness | F114: Porirua City - Business | I114: =INDEX('Capital values'!$G$8:$G$45,MATCH(D114,'Capital values'!$C$8:$C$45,0),) -> 1223370753 | K114: 1172136.691 | L114: 1224410.375 | M114: 1268478.721 | N114: 1328359.159 | O114: 1410654.587 | P114: 1468001.299 | Q114: 1483825.998 | R114: 1535001.531 | S114: 1576224.528 | T114: 1646383.167 | U114: 1678870.817 | W114: =INDEX('Comparison - Category'!$I$22:$P$47,MATCH('Vs Status Quo'!$D114,'Comparison - Category'!$C$22:$C$47,0),MATCH('Vs Status Quo'!W$85,'Comparison - Category'!$I$7:$P$7,0)) -> 367044.7712 | X114: 408790.5848 | Y114: 450708.8595 | Z114: 445164.7304 | AA114: 477198.5261 | AB114: 494845.0812 | AC114: 504247.8554 | AD114: 519541.0483 | AE114: 541836.4078 | AF114: 561583.5862 | AG114: 587855.8301 | AI114: =INDEX('Comparison - Category'!$I$22:$P$47,MATCH('Vs Status Quo'!$D114,'Comparison - Category'!$C$22:$C$47,0),MATCH('Vs Status Quo'!AI$85,'Comparison - Category'!$I$7:$P$7,0)) -> 0 | AJ114: 0 | AK114: 0 | AL114: 0 | AM114: 0 | AN114: 0 | AO114: 0 | AP114: 0 | AQ114: 0 | AR114: 0 | AS114: 0 | BG114: =INDEX('Comparison - Category'!$I$22:$P$47,MATCH('Vs Status Quo'!$D114,'Comparison - Category'!$C$22:$C$47,0),MATCH('Vs Status Quo'!BG$85,'Comparison - Category'!$I$7:$P$7,0)) -> 3085.195012 | BH114: 3595.032139 | BI114: 4028.901574 | BJ114: 3631.614234 | BK114: 5537.872046 | BL114: 5203.315735 | BM114: 5312.813106 | BN114: 5334.583924 | BO114: 5448.100244 | BP114: 5517.600823 | BQ114: 5732.511235 | BS114: =INDEX('Comparison - Category'!$I$22:$P$47,MATCH('Vs Status Quo'!$D114,'Comparison - Category'!$C$22:$C$47,0),MATCH('Vs Status Quo'!BS$85,'Comparison - Category'!$I$7:$P$7,0)) -> 691972.2212 | BT114: =INDEX(Tran!$X$23:$AG$48,MATCH($D114,Tran!$C$23:$C$48,0),MATCH(BT$87,Tran!$X$7:$AG$7,0)) -> 708506.5518 | BU114: =INDEX(Tran!$X$23:$AG$48,MATCH($D114,Tran!$C$23:$C$48,0),MATCH(BU$87,Tran!$X$7:$AG$7,0)) -> 704593.0456 | BV114: =INDEX(Tran!$X$23:$AG$48,MATCH($D114,Tran!$C$23:$C$48,0),MATCH(BV$87,Tran!$X$7:$AG$7,0)) -> 760021.2897 | BW114: =INDEX(Tran!$X$23:$AG$48,MATCH($D114,Tran!$C$23:$C$48,0),MATCH(BW$87,Tran!$X$7:$AG$7,0)) -> 798022.8582 | BX114: =INDEX(Tran!$X$23:$AG$48,MATCH($D114,Tran!$C$23:$C$48,0),MATCH(BX$87,Tran!$X$7:$AG$7,0)) -> 832510.3472 | BY114: =INDEX(Tran!$X$23:$AG$48,MATCH($D114,Tran!$C$23:$C$48,0),MATCH(BY$87,Tran!$X$7:$AG$7,0)) -> 833531.6843 | BZ114: =INDEX(Tran!$X$23:$AG$48,MATCH($D114,Tran!$C$23:$C$48,0),MATCH(BZ$87,Tran!$X$7:$AG$7,0)) -> 863735.2849 | CA114: =INDEX(Tran!$X$23:$AG$48,MATCH($D114,Tran!$C$23:$C$48,0),MATCH(CA$87,Tran!$X$7:$AG$7,0)) -> 876733.7735 | CB114: =INDEX(Tran!$X$23:$AG$48,MATCH($D114,Tran!$C$23:$C$48,0),MATCH(CB$87,Tran!$X$7:$AG$7,0)) -> 921230.9747 | CC114: =INDEX(Tran!$X$23:$AG$48,MATCH($D114,Tran!$C$23:$C$48,0),MATCH(CC$87,Tran!$X$7:$AG$7,0)) -> 921227.7003 | CE114: =INDEX('Comparison - Category'!$I$22:$P$47,MATCH('Vs Status Quo'!$D114,'Comparison - Category'!$C$22:$C$47,0),MATCH('Vs Status Quo'!CE$85,'Comparison - Category'!$I$7:$P$7,0)) -> 12128.33274 | CF114: =INDEX(Stad!$F$23:$F$48,MATCH($D114,Stad!$C$23:$C$48,0),0) -> 0 | CG114: 0 | CH114: 0 | CI114: 0 | CJ114: 0 | CK114: 0 | CL114: 0 | CM114: 0 | CN114: 0 | CO114: 0 | CQ114: =INDEX('Comparison - Category'!$I$22:$P$47,MATCH('Vs Status Quo'!$D114,'Comparison - Category'!$C$22:$C$47,0),MATCH('Vs Status Quo'!CQ$85,'Comparison - Category'!$I$7:$P$7,0)) -> 97906.17079 | CR114: =INDEX(WRS!$M$23:$V$48,MATCH($D114,WRS!$C$23:$C$48,0),MATCH(CR$87,WRS!$M$7:$V$7,0)) -> 103518.2064 | CS114: =INDEX(WRS!$M$23:$V$48,MATCH($D114,WRS!$C$23:$C$48,0),MATCH(CS$87,WRS!$M$7:$V$7,0)) -> 109147.9143 | CT114: =INDEX(WRS!$M$23:$V$48,MATCH($D114,WRS!$C$23:$C$48,0),MATCH(CT$87,WRS!$M$7:$V$7,0)) -> 119541.5251 | CU114: =INDEX(WRS!$M$23:$V$48,MATCH($D114,WRS!$C$23:$C$48,0),MATCH(CU$87,WRS!$M$7:$V$7,0)) -> 129895.331 | CV114: =INDEX(WRS!$M$23:$V$48,MATCH($D114,WRS!$C$23:$C$48,0),MATCH(CV$87,WRS!$M$7:$V$7,0)) -> 135442.5547 | CW114: =INDEX(WRS!$M$23:$V$48,MATCH($D114,WRS!$C$23:$C$48,0),MATCH(CW$87,WRS!$M$7:$V$7,0)) -> 140733.6448 | CX114: =INDEX(WRS!$M$23:$V$48,MATCH($D114,WRS!$C$23:$C$48,0),MATCH(CX$87,WRS!$M$7:$V$7,0)) -> 146390.6139 | CY114: =INDEX(WRS!$M$23:$V$48,MATCH($D114,WRS!$C$23:$C$48,0),MATCH(CY$87,WRS!$M$7:$V$7,0)) -> 152206.2465 | CZ114: =INDEX(WRS!$M$23:$V$48,MATCH($D114,WRS!$C$23:$C$48,0),MATCH(CZ$87,WRS!$M$7:$V$7,0)) -> 158051.0054 | DA114: =INDEX(WRS!$M$23:$V$48,MATCH($D114,WRS!$C$23:$C$48,0),MATCH(DA$87,WRS!$M$7:$V$7,0)) -> 164054.7751
B115: Porirua City | C115: Residential | D115: Porirua CityResidential | F115: Porirua City - Residential | I115: =INDEX('Capital values'!$G$8:$G$45,MATCH(D115,'Capital values'!$C$8:$C$45,0),) -> 9510430887 | K115: 8396353.339 | L115: 8726770.589 | M115: 8787553.83 | N115: 8863439.861 | O115: 9082298.073 | P115: 9104051.462 | Q115: 8831328.822 | R115: 9118102.02 | S115: 9364485.989 | T115: 9765625.203 | U115: 9971517.003 | W115: =INDEX('Comparison - Category'!$I$22:$P$47,MATCH('Vs Status Quo'!$D115,'Comparison - Category'!$C$22:$C$47,0),MATCH('Vs Status Quo'!W$85,'Comparison - Category'!$I$7:$P$7,0)) -> 2799273.067 | X115: 3177920.18 | Y115: =$I115/INDEX($I$91:$I$99,MATCH($B115,$B$91:$B$99,0),)*INDEX(Y$91:Y$99,MATCH($B115,$B$91:$B$99,0),) -> 3503791.02 | Z115: 3460691.202 | AA115: 3709720.533 | AB115: 3846904.083 | AC115: 3920000.84 | AD115: 4038889.454 | AE115: 4212212.607 | AF115: 4365726.31 | AG115: 4569965.589 | AI115: =INDEX('Comparison - Category'!$I$22:$P$47,MATCH('Vs Status Quo'!$D115,'Comparison - Category'!$C$22:$C$47,0),MATCH('Vs Status Quo'!AI$85,'Comparison - Category'!$I$7:$P$7,0)) -> 0 | AJ115: 0 | AK115: =$I115/INDEX($I$91:$I$99,MATCH($B115,$B$91:$B$99,0),)*INDEX(AK$91:AK$99,MATCH($B115,$B$91:$B$99,0),) -> 0 | AL115: 0 | AM115: 0 | AN115: 0 | AO115: 0 | AP115: 0 | AQ115: 0 | AR115: 0 | AS115: 0 | BG115: =INDEX('Comparison - Category'!$I$22:$P$47,MATCH('Vs Status Quo'!$D115,'Comparison - Category'!$C$22:$C$47,0),MATCH('Vs Status Quo'!BG$85,'Comparison - Category'!$I$7:$P$7,0)) -> 23529.2912 | BH115: 27947.62308 | BI115: 31320.50515 | BJ115: 28232.01069 | BK115: 43051.1758 | BL115: 40450.34963 | BM115: 41301.57741 | BN115: 41470.8228 | BO115: 42353.29373 | BP115: 42893.58819 | BQ115: 44564.29237 | BS115: =INDEX('Comparison - Category'!$I$22:$P$47,MATCH('Vs Status Quo'!$D115,'Comparison - Category'!$C$22:$C$47,0),MATCH('Vs Status Quo'!BS$85,'Comparison - Category'!$I$7:$P$7,0)) -> 5277337.682 | BT115: =INDEX(Tran!$X$23:$AG$48,MATCH($D115,Tran!$C$23:$C$48,0),MATCH(BT$87,Tran!$X$7:$AG$7,0)) -> 5279332.786 | BU115: =INDEX(Tran!$X$23:$AG$48,MATCH($D115,Tran!$C$23:$C$48,0),MATCH(BU$87,Tran!$X$7:$AG$7,0)) -> 5010872.306 | BV115: =INDEX(Tran!$X$23:$AG$48,MATCH($D115,Tran!$C$23:$C$48,0),MATCH(BV$87,Tran!$X$7:$AG$7,0)) -> 5132946.648 | BW115: =INDEX(Tran!$X$23:$AG$48,MATCH($D115,Tran!$C$23:$C$48,0),MATCH(BW$87,Tran!$X$7:$AG$7,0)) -> 5087956.365 | BX115: =INDEX(Tran!$X$23:$AG$48,MATCH($D115,Tran!$C$23:$C$48,0),MATCH(BX$87,Tran!$X$7:$AG$7,0)) -> 4975127.03 | BY115: =INDEX(Tran!$X$23:$AG$48,MATCH($D115,Tran!$C$23:$C$48,0),MATCH(BY$87,Tran!$X$7:$AG$7,0)) -> 4628456.405 | BZ115: =INDEX(Tran!$X$23:$AG$48,MATCH($D115,Tran!$C$23:$C$48,0),MATCH(BZ$87,Tran!$X$7:$AG$7,0)) -> 4796171.743 | CA115: =INDEX(Tran!$X$23:$AG$48,MATCH($D115,Tran!$C$23:$C$48,0),MATCH(CA$87,Tran!$X$7:$AG$7,0)) -> 4868350.088 | CB115: =INDEX(Tran!$X$23:$AG$48,MATCH($D115,Tran!$C$23:$C$48,0),MATCH(CB$87,Tran!$X$7:$AG$7,0)) -> 5115435.304 | CC115: =INDEX(Tran!$X$23:$AG$48,MATCH($D115,Tran!$C$23:$C$48,0),MATCH(CC$87,Tran!$X$7:$AG$7,0)) -> 5115417.122 | CE115: =INDEX('Comparison - Category'!$I$22:$P$47,MATCH('Vs Status Quo'!$D115,'Comparison - Category'!$C$22:$C$47,0),MATCH('Vs Status Quo'!CE$85,'Comparison - Category'!$I$7:$P$7,0)) -> 56729.2983 | CF115: =INDEX(Stad!$F$23:$F$48,MATCH($D115,Stad!$C$23:$C$48,0),0) -> 0 | CG115: 0 | CH115: 0 | CI115: 0 | CJ115: 0 | CK115: 0 | CL115: 0 | CM115: 0 | CN115: 0 | CO115: 0 | CQ115: =INDEX('Comparison - Category'!$I$22:$P$47,MATCH('Vs Status Quo'!$D115,'Comparison - Category'!$C$22:$C$47,0),MATCH('Vs Status Quo'!CQ$85,'Comparison - Category'!$I$7:$P$7,0)) -> 239484 | CR115: =INDEX(WRS!$M$23:$V$48,MATCH($D115,WRS!$C$23:$C$48,0),MATCH(CR$87,WRS!$M$7:$V$7,0)) -> 241570 | CS115: =INDEX(WRS!$M$23:$V$48,MATCH($D115,WRS!$C$23:$C$48,0),MATCH(CS$87,WRS!$M$7:$V$7,0)) -> 241570 | CT115: =INDEX(WRS!$M$23:$V$48,MATCH($D115,WRS!$C$23:$C$48,0),MATCH(CT$87,WRS!$M$7:$V$7,0)) -> 241570 | CU115: =INDEX(WRS!$M$23:$V$48,MATCH($D115,WRS!$C$23:$C$48,0),MATCH(CU$87,WRS!$M$7:$V$7,0)) -> 241570 | CV115: =INDEX(WRS!$M$23:$V$48,MATCH($D115,WRS!$C$23:$C$48,0),MATCH(CV$87,WRS!$M$7:$V$7,0)) -> 241570 | CW115: =INDEX(WRS!$M$23:$V$48,MATCH($D115,WRS!$C$23:$C$48,0),MATCH(CW$87,WRS!$M$7:$V$7,0)) -> 241570 | CX115: =INDEX(WRS!$M$23:$V$48,MATCH($D115,WRS!$C$23:$C$48,0),MATCH(CX$87,WRS!$M$7:$V$7,0)) -> 241570 | CY115: =INDEX(WRS!$M$23:$V$48,MATCH($D115,WRS!$C$23:$C$48,0),MATCH(CY$87,WRS!$M$7:$V$7,0)) -> 241570 | CZ115: =INDEX(WRS!$M$23:$V$48,MATCH($D115,WRS!$C$23:$C$48,0),MATCH(CZ$87,WRS!$M$7:$V$7,0)) -> 241570 | DA115: =INDEX(WRS!$M$23:$V$48,MATCH($D115,WRS!$C$23:$C$48,0),MATCH(DA$87,WRS!$M$7:$V$7,0)) -> 241570
B116: Porirua City | C116: Rural | D116: Porirua CityRural | F116: Porirua City - Rural | I116: =INDEX('Capital values'!$G$8:$G$45,MATCH(D116,'Capital values'!$C$8:$C$45,0),) -> 696008163.2 | K116: 318398.6332 | L116: 350303.1152 | M116: 369183.6744 | N116: 367808.8648 | O116: 385980.7622 | P116: 393391.9974 | Q116: 392028.4664 | R116: 403810.0623 | S116: 417879.6368 | T116: 433674.5229 | U116: 448743.4369 | W116: =INDEX('Comparison - Category'!$I$22:$P$47,MATCH('Vs Status Quo'!$D116,'Comparison - Category'!$C$22:$C$47,0),MATCH('Vs Status Quo'!W$85,'Comparison - Category'!$I$7:$P$7,0)) -> 201438.7679 | X116: 232571.8376 | Y116: 256420.2591 | Z116: 253266.0566 | AA116: 271490.935 | AB116: 281530.5297 | AC116: 286880.018 | AD116: 295580.7222 | AE116: 308265.1453 | AF116: 319499.8404 | AG116: 334446.8188 | AI116: =INDEX('Comparison - Category'!$I$22:$P$47,MATCH('Vs Status Quo'!$D116,'Comparison - Category'!$C$22:$C$47,0),MATCH('Vs Status Quo'!AI$85,'Comparison - Category'!$I$7:$P$7,0)) -> 0 | AJ116: 0 | AK116: 0 | AL116: 0 | AM116: 0 | AN116: 0 | AO116: 0 | AP116: 0 | AQ116: 0 | AR116: 0 | AS116: 0 | BG116: =INDEX('Comparison - Category'!$I$22:$P$47,MATCH('Vs Status Quo'!$D116,'Comparison - Category'!$C$22:$C$47,0),MATCH('Vs Status Quo'!BG$85,'Comparison - Category'!$I$7:$P$7,0)) -> 1693.193667 | BH116: 2045.309412 | BI116: 2292.149275 | BJ116: 2066.121939 | BK116: 3150.642715 | BL116: 2960.304731 | BM116: 3022.600698 | BN116: 3034.986695 | BO116: 3099.569149 | BP116: 3139.109877 | BQ116: 3261.378127 | BS116: =INDEX('Comparison - Category'!$I$22:$P$47,MATCH('Vs Status Quo'!$D116,'Comparison - Category'!$C$22:$C$47,0),MATCH('Vs Status Quo'!BS$85,'Comparison - Category'!$I$7:$P$7,0)) -> 96761.34373 | BT116: =INDEX(Tran!$X$23:$AG$48,MATCH($D116,Tran!$C$23:$C$48,0),MATCH(BT$87,Tran!$X$7:$AG$7,0)) -> 98241.96818 | BU116: =INDEX(Tran!$X$23:$AG$48,MATCH($D116,Tran!$C$23:$C$48,0),MATCH(BU$87,Tran!$X$7:$AG$7,0)) -> 93027.26608 | BV116: =INDEX(Tran!$X$23:$AG$48,MATCH($D116,Tran!$C$23:$C$48,0),MATCH(BV$87,Tran!$X$7:$AG$7,0)) -> 95032.68625 | BW116: =INDEX(Tran!$X$23:$AG$48,MATCH($D116,Tran!$C$23:$C$48,0),MATCH(BW$87,Tran!$X$7:$AG$7,0)) -> 93895.1844 | BX116: =INDEX(Tran!$X$23:$AG$48,MATCH($D116,Tran!$C$23:$C$48,0),MATCH(BX$87,Tran!$X$7:$AG$7,0)) -> 91457.16303 | BY116: =INDEX(Tran!$X$23:$AG$48,MATCH($D116,Tran!$C$23:$C$48,0),MATCH(BY$87,Tran!$X$7:$AG$7,0)) -> 84681.84773 | BZ116: =INDEX(Tran!$X$23:$AG$48,MATCH($D116,Tran!$C$23:$C$48,0),MATCH(BZ$87,Tran!$X$7:$AG$7,0)) -> 87750.35341 | CA116: =INDEX(Tran!$X$23:$AG$48,MATCH($D116,Tran!$C$23:$C$48,0),MATCH(CA$87,Tran!$X$7:$AG$7,0)) -> 89070.92232 | CB116: =INDEX(Tran!$X$23:$AG$48,MATCH($D116,Tran!$C$23:$C$48,0),MATCH(CB$87,Tran!$X$7:$AG$7,0)) -> 93591.57257 | CC116: =INDEX(Tran!$X$23:$AG$48,MATCH($D116,Tran!$C$23:$C$48,0),MATCH(CC$87,Tran!$X$7:$AG$7,0)) -> 93591.23991 | CE116: =INDEX('Comparison - Category'!$I$22:$P$47,MATCH('Vs Status Quo'!$D116,'Comparison - Category'!$C$22:$C$47,0),MATCH('Vs Status Quo'!CE$85,'Comparison - Category'!$I$7:$P$7,0)) -> 1369.32789 | CF116: =INDEX(Stad!$F$23:$F$48,MATCH($D116,Stad!$C$23:$C$48,0),0) -> 0 | CG116: 0 | CH116: 0 | CI116: 0 | CJ116: 0 | CK116: 0 | CL116: 0 | CM116: 0 | CN116: 0 | CO116: 0 | CQ116: =INDEX('Comparison - Category'!$I$22:$P$47,MATCH('Vs Status Quo'!$D116,'Comparison - Category'!$C$22:$C$47,0),MATCH('Vs Status Quo'!CQ$85,'Comparison - Category'!$I$7:$P$7,0)) -> 17136 | CR116: =INDEX(WRS!$M$23:$V$48,MATCH($D116,WRS!$C$23:$C$48,0),MATCH(CR$87,WRS!$M$7:$V$7,0)) -> 17444 | CS116: =INDEX(WRS!$M$23:$V$48,MATCH($D116,WRS!$C$23:$C$48,0),MATCH(CS$87,WRS!$M$7:$V$7,0)) -> 17444 | CT116: =INDEX(WRS!$M$23:$V$48,MATCH($D116,WRS!$C$23:$C$48,0),MATCH(CT$87,WRS!$M$7:$V$7,0)) -> 17444 | CU116: =INDEX(WRS!$M$23:$V$48,MATCH($D116,WRS!$C$23:$C$48,0),MATCH(CU$87,WRS!$M$7:$V$7,0)) -> 17444 | CV116: =INDEX(WRS!$M$23:$V$48,MATCH($D116,WRS!$C$23:$C$48,0),MATCH(CV$87,WRS!$M$7:$V$7,0)) -> 17444 | CW116: =INDEX(WRS!$M$23:$V$48,MATCH($D116,WRS!$C$23:$C$48,0),MATCH(CW$87,WRS!$M$7:$V$7,0)) -> 17444 | CX116: =INDEX(WRS!$M$23:$V$48,MATCH($D116,WRS!$C$23:$C$48,0),MATCH(CX$87,WRS!$M$7:$V$7,0)) -> 17444 | CY116: =INDEX(WRS!$M$23:$V$48,MATCH($D116,WRS!$C$23:$C$48,0),MATCH(CY$87,WRS!$M$7:$V$7,0)) -> 17444 | CZ116: =INDEX(WRS!$M$23:$V$48,MATCH($D116,WRS!$C$23:$C$48,0),MATCH(CZ$87,WRS!$M$7:$V$7,0)) -> 17444 | DA116: =INDEX(WRS!$M$23:$V$48,MATCH($D116,WRS!$C$23:$C$48,0),MATCH(DA$87,WRS!$M$7:$V$7,0)) -> 17444
B117: Kapiti Coast District | C117: Business | D117: Kapiti Coast DistrictBusiness | F117: Kapiti Coast District - Business | I117: =INDEX('Capital values'!$G$8:$G$45,MATCH(D117,'Capital values'!$C$8:$C$45,0),) -> 1469983984 | K117: 1201099.306 | L117: 1183841.062 | M117: 1311545.56 | N117: 1446468.016 | O117: 1633000.913 | P117: 1803157.811 | Q117: 1937800.336 | R117: 2011822.115 | S117: 2065433.491 | T117: 2159737.268 | U117: 2210845.201 | W117: =INDEX('Comparison - Category'!$I$22:$P$47,MATCH('Vs Status Quo'!$D117,'Comparison - Category'!$C$22:$C$47,0),MATCH('Vs Status Quo'!W$85,'Comparison - Category'!$I$7:$P$7,0)) -> 500467.7276 | X117: 491196.6475 | Y117: 541565.0189 | Z117: 534903.2764 | AA117: 573394.6058 | AB117: 594598.4423 | AC117: 605896.675 | AD117: 624272.7466 | AE117: 651062.5169 | AF117: 674790.4309 | AG117: 706358.7659 | AI117: =INDEX('Comparison - Category'!$I$22:$P$47,MATCH('Vs Status Quo'!$D117,'Comparison - Category'!$C$22:$C$47,0),MATCH('Vs Status Quo'!AI$85,'Comparison - Category'!$I$7:$P$7,0)) -> 0 | AJ117: 0 | AK117: 0 | AL117: 0 | AM117: 0 | AN117: 0 | AO117: 0 | AP117: 0 | AQ117: 0 | AR117: 0 | AS117: 0 | BG117: =INDEX('Comparison - Category'!$I$22:$P$47,MATCH('Vs Status Quo'!$D117,'Comparison - Category'!$C$22:$C$47,0),MATCH('Vs Status Quo'!BG$85,'Comparison - Category'!$I$7:$P$7,0)) -> 158161.1737 | BH117: 133728.9652 | BI117: 132550.8404 | BJ117: 137500.3025 | BK117: 148112.1217 | BL117: 154659.0333 | BM117: 161241.025 | BN117: 173797.2091 | BO117: 178012.0481 | BP117: 188097.7659 | BQ117: 200427.2584 | BS117: =INDEX('Comparison - Category'!$I$22:$P$47,MATCH('Vs Status Quo'!$D117,'Comparison - Category'!$C$22:$C$47,0),MATCH('Vs Status Quo'!BS$85,'Comparison - Category'!$I$7:$P$7,0)) -> 403085.5328 | BT117: =INDEX(Tran!$X$23:$AG$48,MATCH($D117,Tran!$C$23:$C$48,0),MATCH(BT$87,Tran!$X$7:$AG$7,0)) -> 434529.5224 | BU117: =INDEX(Tran!$X$23:$AG$48,MATCH($D117,Tran!$C$23:$C$48,0),MATCH(BU$87,Tran!$X$7:$AG$7,0)) -> 506279.2003 | BV117: =INDEX(Tran!$X$23:$AG$48,MATCH($D117,Tran!$C$23:$C$48,0),MATCH(BV$87,Tran!$X$7:$AG$7,0)) -> 630425.1302 | BW117: =INDEX(Tran!$X$23:$AG$48,MATCH($D117,Tran!$C$23:$C$48,0),MATCH(BW$87,Tran!$X$7:$AG$7,0)) -> 755413.8998 | BX117: =INDEX(Tran!$X$23:$AG$48,MATCH($D117,Tran!$C$23:$C$48,0),MATCH(BX$87,Tran!$X$7:$AG$7,0)) -> 891154.5895 | BY117: =INDEX(Tran!$X$23:$AG$48,MATCH($D117,Tran!$C$23:$C$48,0),MATCH(BY$87,Tran!$X$7:$AG$7,0)) -> 1001559.195 | BZ117: =INDEX(Tran!$X$23:$AG$48,MATCH($D117,Tran!$C$23:$C$48,0),MATCH(BZ$87,Tran!$X$7:$AG$7,0)) -> 1037851.389 | CA117: =INDEX(Tran!$X$23:$AG$48,MATCH($D117,Tran!$C$23:$C$48,0),MATCH(CA$87,Tran!$X$7:$AG$7,0)) -> 1053470.178 | CB117: =INDEX(Tran!$X$23:$AG$48,MATCH($D117,Tran!$C$23:$C$48,0),MATCH(CB$87,Tran!$X$7:$AG$7,0)) -> 1106937.349 | CC117: =INDEX(Tran!$X$23:$AG$48,MATCH($D117,Tran!$C$23:$C$48,0),MATCH(CC$87,Tran!$X$7:$AG$7,0)) -> 1106933.415 | CE117: =INDEX('Comparison - Category'!$I$22:$P$47,MATCH('Vs Status Quo'!$D117,'Comparison - Category'!$C$22:$C$47,0),MATCH('Vs Status Quo'!CE$85,'Comparison - Category'!$I$7:$P$7,0)) -> 5889.225561 | CF117: =INDEX(Stad!$F$23:$F$48,MATCH($D117,Stad!$C$23:$C$48,0),0) -> 0 | CG117: 0 | CH117: 0 | CI117: 0 | CJ117: 0 | CK117: 0 | CL117: 0 | CM117: 0 | CN117: 0 | CO117: 0 | CQ117: =INDEX('Comparison - Category'!$I$22:$P$47,MATCH('Vs Status Quo'!$D117,'Comparison - Category'!$C$22:$C$47,0),MATCH('Vs Status Quo'!CQ$85,'Comparison - Category'!$I$7:$P$7,0)) -> 133495.6459 | CR117: =INDEX(WRS!$M$23:$V$48,MATCH($D117,WRS!$C$23:$C$48,0),MATCH(CR$87,WRS!$M$7:$V$7,0)) -> 124385.9273 | CS117: =INDEX(WRS!$M$23:$V$48,MATCH($D117,WRS!$C$23:$C$48,0),MATCH(CS$87,WRS!$M$7:$V$7,0)) -> 131150.5 | CT117: =INDEX(WRS!$M$23:$V$48,MATCH($D117,WRS!$C$23:$C$48,0),MATCH(CT$87,WRS!$M$7:$V$7,0)) -> 143639.3072 | CU117: =INDEX(WRS!$M$23:$V$48,MATCH($D117,WRS!$C$23:$C$48,0),MATCH(CU$87,WRS!$M$7:$V$7,0)) -> 156080.2853 | CV117: =INDEX(WRS!$M$23:$V$48,MATCH($D117,WRS!$C$23:$C$48,0),MATCH(CV$87,WRS!$M$7:$V$7,0)) -> 162745.7463 | CW117: =INDEX(WRS!$M$23:$V$48,MATCH($D117,WRS!$C$23:$C$48,0),MATCH(CW$87,WRS!$M$7:$V$7,0)) -> 169103.441 | CX117: =INDEX(WRS!$M$23:$V$48,MATCH($D117,WRS!$C$23:$C$48,0),MATCH(CX$87,WRS!$M$7:$V$7,0)) -> 175900.7704 | CY117: =INDEX(WRS!$M$23:$V$48,MATCH($D117,WRS!$C$23:$C$48,0),MATCH(CY$87,WRS!$M$7:$V$7,0)) -> 182888.7474 | CZ117: =INDEX(WRS!$M$23:$V$48,MATCH($D117,WRS!$C$23:$C$48,0),MATCH(CZ$87,WRS!$M$7:$V$7,0)) -> 189911.7223 | DA117: =INDEX(WRS!$M$23:$V$48,MATCH($D117,WRS!$C$23:$C$48,0),MATCH(DA$87,WRS!$M$7:$V$7,0)) -> 197125.7621
B118: Kapiti Coast District | C118: Residential | D118: Kapiti Coast DistrictResidential | F118: Kapiti Coast District - Residential | I118: =INDEX('Capital values'!$G$8:$G$45,MATCH(D118,'Capital values'!$C$8:$C$45,0),) -> 1.125458678e+10 | K118: 7036324.299 | L118: 8099538.188 | M118: 8709444.948 | N118: 9236806.48 | O118: 10117734.87 | P118: 10863703.86 | Q118: 11375070.87 | R118: 11800688.94 | S118: 12119317.61 | T118: 12656340.73 | U118: 12992413.66 | W118: =INDEX('Comparison - Category'!$I$22:$P$47,MATCH('Vs Status Quo'!$D118,'Comparison - Category'!$C$22:$C$47,0),MATCH('Vs Status Quo'!W$85,'Comparison - Category'!$I$7:$P$7,0)) -> 3165054.832 | X118: 3760731.652 | Y118: 4146365.246 | Z118: 4095361.181 | AA118: 4390060.995 | AB118: 4552403.184 | AC118: 4638905.446 | AD118: 4779597.518 | AE118: 4984707.096 | AF118: 5166374.291 | AG118: 5408069.827 | AI118: =INDEX('Comparison - Category'!$I$22:$P$47,MATCH('Vs Status Quo'!$D118,'Comparison - Category'!$C$22:$C$47,0),MATCH('Vs Status Quo'!AI$85,'Comparison - Category'!$I$7:$P$7,0)) -> 0 | AJ118: 0 | AK118: 0 | AL118: 0 | AM118: 0 | AN118: 0 | AO118: 0 | AP118: 0 | AQ118: 0 | AR118: 0 | AS118: 0 | BG118: =INDEX('Comparison - Category'!$I$22:$P$47,MATCH('Vs Status Quo'!$D118,'Comparison - Category'!$C$22:$C$47,0),MATCH('Vs Status Quo'!BG$85,'Comparison - Category'!$I$7:$P$7,0)) -> 1000241.892 | BH118: 1023864.382 | BI118: 1014844.347 | BJ118: 1052738.74 | BK118: 1133985.639 | BL118: 1184110.528 | BM118: 1234504 | BN118: 1330637.472 | BO118: 1362907.396 | BP118: 1440126.323 | BQ118: 1534524.184 | BS118: =INDEX('Comparison - Category'!$I$22:$P$47,MATCH('Vs Status Quo'!$D118,'Comparison - Category'!$C$22:$C$47,0),MATCH('Vs Status Quo'!BS$85,'Comparison - Category'!$I$7:$P$7,0)) -> 2549190.972 | BT118: =INDEX(Tran!$X$23:$AG$48,MATCH($D118,Tran!$C$23:$C$48,0),MATCH(BT$87,Tran!$X$7:$AG$7,0)) -> 3023406.154 | BU118: =INDEX(Tran!$X$23:$AG$48,MATCH($D118,Tran!$C$23:$C$48,0),MATCH(BU$87,Tran!$X$7:$AG$7,0)) -> 3256699.355 | BV118: =INDEX(Tran!$X$23:$AG$48,MATCH($D118,Tran!$C$23:$C$48,0),MATCH(BV$87,Tran!$X$7:$AG$7,0)) -> 3797170.559 | BW118: =INDEX(Tran!$X$23:$AG$48,MATCH($D118,Tran!$C$23:$C$48,0),MATCH(BW$87,Tran!$X$7:$AG$7,0)) -> 4302152.239 | BX118: =INDEX(Tran!$X$23:$AG$48,MATCH($D118,Tran!$C$23:$C$48,0),MATCH(BX$87,Tran!$X$7:$AG$7,0)) -> 4835654.145 | BY118: =INDEX(Tran!$X$23:$AG$48,MATCH($D118,Tran!$C$23:$C$48,0),MATCH(BY$87,Tran!$X$7:$AG$7,0)) -> 5210125.427 | BZ118: =INDEX(Tran!$X$23:$AG$48,MATCH($D118,Tran!$C$23:$C$48,0),MATCH(BZ$87,Tran!$X$7:$AG$7,0)) -> 5398917.948 | CA118: =INDEX(Tran!$X$23:$AG$48,MATCH($D118,Tran!$C$23:$C$48,0),MATCH(CA$87,Tran!$X$7:$AG$7,0)) -> 5480167.116 | CB118: =INDEX(Tran!$X$23:$AG$48,MATCH($D118,Tran!$C$23:$C$48,0),MATCH(CB$87,Tran!$X$7:$AG$7,0)) -> 5758304.113 | CC118: =INDEX(Tran!$X$23:$AG$48,MATCH($D118,Tran!$C$23:$C$48,0),MATCH(CC$87,Tran!$X$7:$AG$7,0)) -> 5758283.645 | CE118: =INDEX('Comparison - Category'!$I$22:$P$47,MATCH('Vs Status Quo'!$D118,'Comparison - Category'!$C$22:$C$47,0),MATCH('Vs Status Quo'!CE$85,'Comparison - Category'!$I$7:$P$7,0)) -> 37244.60297 | CF118: =INDEX(Stad!$F$23:$F$48,MATCH($D118,Stad!$C$23:$C$48,0),0) -> 0 | CG118: 0 | CH118: 0 | CI118: 0 | CJ118: 0 | CK118: 0 | CL118: 0 | CM118: 0 | CN118: 0 | CO118: 0 | CQ118: =INDEX('Comparison - Category'!$I$22:$P$47,MATCH('Vs Status Quo'!$D118,'Comparison - Category'!$C$22:$C$47,0),MATCH('Vs Status Quo'!CQ$85,'Comparison - Category'!$I$7:$P$7,0)) -> 284592 | CR118: =INDEX(WRS!$M$23:$V$48,MATCH($D118,WRS!$C$23:$C$48,0),MATCH(CR$87,WRS!$M$7:$V$7,0)) -> 291536 | CS118: =INDEX(WRS!$M$23:$V$48,MATCH($D118,WRS!$C$23:$C$48,0),MATCH(CS$87,WRS!$M$7:$V$7,0)) -> 291536 | CT118: =INDEX(WRS!$M$23:$V$48,MATCH($D118,WRS!$C$23:$C$48,0),MATCH(CT$87,WRS!$M$7:$V$7,0)) -> 291536 | CU118: =INDEX(WRS!$M$23:$V$48,MATCH($D118,WRS!$C$23:$C$48,0),MATCH(CU$87,WRS!$M$7:$V$7,0)) -> 291536 | CV118: =INDEX(WRS!$M$23:$V$48,MATCH($D118,WRS!$C$23:$C$48,0),MATCH(CV$87,WRS!$M$7:$V$7,0)) -> 291536 | CW118: =INDEX(WRS!$M$23:$V$48,MATCH($D118,WRS!$C$23:$C$48,0),MATCH(CW$87,WRS!$M$7:$V$7,0)) -> 291536 | CX118: =INDEX(WRS!$M$23:$V$48,MATCH($D118,WRS!$C$23:$C$48,0),MATCH(CX$87,WRS!$M$7:$V$7,0)) -> 291536 | CY118: =INDEX(WRS!$M$23:$V$48,MATCH($D118,WRS!$C$23:$C$48,0),MATCH(CY$87,WRS!$M$7:$V$7,0)) -> 291536 | CZ118: =INDEX(WRS!$M$23:$V$48,MATCH($D118,WRS!$C$23:$C$48,0),MATCH(CZ$87,WRS!$M$7:$V$7,0)) -> 291536 | DA118: =INDEX(WRS!$M$23:$V$48,MATCH($D118,WRS!$C$23:$C$48,0),MATCH(DA$87,WRS!$M$7:$V$7,0)) -> 291536
B119: Kapiti Coast District | C119: Rural | D119: Kapiti Coast DistrictRural | F119: Kapiti Coast District - Rural | I119: =INDEX('Capital values'!$G$8:$G$45,MATCH(D119,'Capital values'!$C$8:$C$45,0),) -> 1954220912 | K119: 1089643.943 | L119: 1036669.267 | M119: 1113021.716 | N119: 1135644.595 | O119: 1224291.575 | P119: 1285914.906 | Q119: 1327219.433 | R119: 1376956.898 | S119: 1421882.771 | T119: 1479528.051 | U119: 1537885.612 | W119: =INDEX('Comparison - Category'!$I$22:$P$47,MATCH('Vs Status Quo'!$D119,'Comparison - Category'!$C$22:$C$47,0),MATCH('Vs Status Quo'!W$85,'Comparison - Category'!$I$7:$P$7,0)) -> 663939.8393 | X119: 653004.911 | Y119: 719965.4532 | Z119: 711109.223 | AA119: 762280.2301 | AB119: 790468.9595 | AC119: 805489.0161 | AD119: 829918.4682 | AE119: 865533.2299 | AF119: 897077.5095 | AG119: 939044.9738 | AI119: =INDEX('Comparison - Category'!$I$22:$P$47,MATCH('Vs Status Quo'!$D119,'Comparison - Category'!$C$22:$C$47,0),MATCH('Vs Status Quo'!AI$85,'Comparison - Category'!$I$7:$P$7,0)) -> 0 | AJ119: 0 | AK119: 0 | AL119: 0 | AM119: 0 | AN119: 0 | AO119: 0 | AP119: 0 | AQ119: 0 | AR119: 0 | AS119: 0 | BG119: =INDEX('Comparison - Category'!$I$22:$P$47,MATCH('Vs Status Quo'!$D119,'Comparison - Category'!$C$22:$C$47,0),MATCH('Vs Status Quo'!BG$85,'Comparison - Category'!$I$7:$P$7,0)) -> 209822.7287 | BH119: 177781.4882 | BI119: 176215.2698 | BJ119: 182795.1662 | BK119: 196902.6933 | BL119: 205606.2653 | BM119: 214356.4735 | BN119: 231048.8714 | BO119: 236652.1478 | BP119: 250060.2671 | BQ119: 266451.2975 | BS119: =INDEX('Comparison - Category'!$I$22:$P$47,MATCH('Vs Status Quo'!$D119,'Comparison - Category'!$C$22:$C$47,0),MATCH('Vs Status Quo'!BS$85,'Comparison - Category'!$I$7:$P$7,0)) -> 138343.5821 | BT119: =INDEX(Tran!$X$23:$AG$48,MATCH($D119,Tran!$C$23:$C$48,0),MATCH(BT$87,Tran!$X$7:$AG$7,0)) -> 136274.8681 | BU119: =INDEX(Tran!$X$23:$AG$48,MATCH($D119,Tran!$C$23:$C$48,0),MATCH(BU$87,Tran!$X$7:$AG$7,0)) -> 147232.9928 | BV119: =INDEX(Tran!$X$23:$AG$48,MATCH($D119,Tran!$C$23:$C$48,0),MATCH(BV$87,Tran!$X$7:$AG$7,0)) -> 172132.2057 | BW119: =INDEX(Tran!$X$23:$AG$48,MATCH($D119,Tran!$C$23:$C$48,0),MATCH(BW$87,Tran!$X$7:$AG$7,0)) -> 195500.6517 | BX119: =INDEX(Tran!$X$23:$AG$48,MATCH($D119,Tran!$C$23:$C$48,0),MATCH(BX$87,Tran!$X$7:$AG$7,0)) -> 220231.681 | BY119: =INDEX(Tran!$X$23:$AG$48,MATCH($D119,Tran!$C$23:$C$48,0),MATCH(BY$87,Tran!$X$7:$AG$7,0)) -> 237765.9437 | BZ119: =INDEX(Tran!$X$23:$AG$48,MATCH($D119,Tran!$C$23:$C$48,0),MATCH(BZ$87,Tran!$X$7:$AG$7,0)) -> 246381.5581 | CA119: =INDEX(Tran!$X$23:$AG$48,MATCH($D119,Tran!$C$23:$C$48,0),MATCH(CA$87,Tran!$X$7:$AG$7,0)) -> 250089.393 | CB119: =INDEX(Tran!$X$23:$AG$48,MATCH($D119,Tran!$C$23:$C$48,0),MATCH(CB$87,Tran!$X$7:$AG$7,0)) -> 262782.2747 | CC119: =INDEX(Tran!$X$23:$AG$48,MATCH($D119,Tran!$C$23:$C$48,0),MATCH(CC$87,Tran!$X$7:$AG$7,0)) -> 262781.3407 | CE119: =INDEX('Comparison - Category'!$I$22:$P$47,MATCH('Vs Status Quo'!$D119,'Comparison - Category'!$C$22:$C$47,0),MATCH('Vs Status Quo'!CE$85,'Comparison - Category'!$I$7:$P$7,0)) -> 4205.792805 | CF119: =INDEX(Stad!$F$23:$F$48,MATCH($D119,Stad!$C$23:$C$48,0),0) -> 0 | CG119: 0 | CH119: 0 | CI119: 0 | CJ119: 0 | CK119: 0 | CL119: 0 | CM119: 0 | CN119: 0 | CO119: 0 | CQ119: =INDEX('Comparison - Category'!$I$22:$P$47,MATCH('Vs Status Quo'!$D119,'Comparison - Category'!$C$22:$C$47,0),MATCH('Vs Status Quo'!CQ$85,'Comparison - Category'!$I$7:$P$7,0)) -> 73332 | CR119: =INDEX(WRS!$M$23:$V$48,MATCH($D119,WRS!$C$23:$C$48,0),MATCH(CR$87,WRS!$M$7:$V$7,0)) -> 69608 | CS119: =INDEX(WRS!$M$23:$V$48,MATCH($D119,WRS!$C$23:$C$48,0),MATCH(CS$87,WRS!$M$7:$V$7,0)) -> 69608 | CT119: =INDEX(WRS!$M$23:$V$48,MATCH($D119,WRS!$C$23:$C$48,0),MATCH(CT$87,WRS!$M$7:$V$7,0)) -> 69608 | CU119: =INDEX(WRS!$M$23:$V$48,MATCH($D119,WRS!$C$23:$C$48,0),MATCH(CU$87,WRS!$M$7:$V$7,0)) -> 69608 | CV119: =INDEX(WRS!$M$23:$V$48,MATCH($D119,WRS!$C$23:$C$48,0),MATCH(CV$87,WRS!$M$7:$V$7,0)) -> 69608 | CW119: =INDEX(WRS!$M$23:$V$48,MATCH($D119,WRS!$C$23:$C$48,0),MATCH(CW$87,WRS!$M$7:$V$7,0)) -> 69608 | CX119: =INDEX(WRS!$M$23:$V$48,MATCH($D119,WRS!$C$23:$C$48,0),MATCH(CX$87,WRS!$M$7:$V$7,0)) -> 69608 | CY119: =INDEX(WRS!$M$23:$V$48,MATCH($D119,WRS!$C$23:$C$48,0),MATCH(CY$87,WRS!$M$7:$V$7,0)) -> 69608 | CZ119: =INDEX(WRS!$M$23:$V$48,MATCH($D119,WRS!$C$23:$C$48,0),MATCH(CZ$87,WRS!$M$7:$V$7,0)) -> 69608 | DA119: =INDEX(WRS!$M$23:$V$48,MATCH($D119,WRS!$C$23:$C$48,0),MATCH(DA$87,WRS!$M$7:$V$7,0)) -> 69608
B120: Masterton District | C120: Business | D120: Masterton DistrictBusiness | F120: Masterton District - Business | I120: =INDEX('Capital values'!$G$8:$G$45,MATCH(D120,'Capital values'!$C$8:$C$45,0),) -> 436714769.9 | K120: =SUMIF($W$87:$DA$87,K$87,$W120:$DA120) -> 212061.4888 | L120: 241787.5136 | M120: 280095.62 | N120: 312769.3149 | O120: 360762.6213 | P120: 405382.3269 | Q120: 442779.9892 | R120: 457960.1214 | S120: 471309.4863 | T120: 491791.2534 | U120: 503312.2011 | W120: =INDEX('Comparison - Category'!$I$22:$P$47,MATCH('Vs Status Quo'!$D120,'Comparison - Category'!$C$22:$C$47,0),MATCH('Vs Status Quo'!W$85,'Comparison - Category'!$I$7:$P$7,0)) -> 135173.0315 | X120: 145928.6858 | Y120: 160892.5302 | Z120: 158913.4057 | AA120: 170348.7222 | AB120: 176648.13 | AC120: 180004.7006 | AD120: 185464.0131 | AE120: 193422.9354 | AF120: 200472.2167 | AG120: 209850.7938 | AI120: =INDEX('Comparison - Category'!$I$22:$P$47,MATCH('Vs Status Quo'!$D120,'Comparison - Category'!$C$22:$C$47,0),MATCH('Vs Status Quo'!AI$85,'Comparison - Category'!$I$7:$P$7,0)) -> 0 | AJ120: 0 | AK120: 0 | AL120: 0 | AM120: 0 | AN120: 0 | AO120: 0 | AP120: 0 | AQ120: 0 | AR120: 0 | AS120: 0 | BG120: =INDEX('Comparison - Category'!$I$22:$P$47,MATCH('Vs Status Quo'!$D120,'Comparison - Category'!$C$22:$C$47,0),MATCH('Vs Status Quo'!BG$85,'Comparison - Category'!$I$7:$P$7,0)) -> 0 | BH120: 0 | BI120: 0 | BJ120: 0 | BK120: 0 | BL120: 0 | BM120: 0 | BN120: 0 | BO120: 0 | BP120: 0 | BQ120: 0 | BS120: =INDEX('Comparison - Category'!$I$22:$P$47,MATCH('Vs Status Quo'!$D120,'Comparison - Category'!$C$22:$C$47,0),MATCH('Vs Status Quo'!BS$85,'Comparison - Category'!$I$7:$P$7,0)) -> 38506.17602 | BT120: =INDEX(Tran!$X$23:$AG$48,MATCH($D120,Tran!$C$23:$C$48,0),MATCH(BT$87,Tran!$X$7:$AG$7,0)) -> 58905.24725 | BU120: =INDEX(Tran!$X$23:$AG$48,MATCH($D120,Tran!$C$23:$C$48,0),MATCH(BU$87,Tran!$X$7:$AG$7,0)) -> 80239.83504 | BV120: =INDEX(Tran!$X$23:$AG$48,MATCH($D120,Tran!$C$23:$C$48,0),MATCH(BV$87,Tran!$X$7:$AG$7,0)) -> 111182.3783 | BW120: =INDEX(Tran!$X$23:$AG$48,MATCH($D120,Tran!$C$23:$C$48,0),MATCH(BW$87,Tran!$X$7:$AG$7,0)) -> 144044.3015 | BX120: =INDEX(Tran!$X$23:$AG$48,MATCH($D120,Tran!$C$23:$C$48,0),MATCH(BX$87,Tran!$X$7:$AG$7,0)) -> 180384.3701 | BY120: =INDEX(Tran!$X$23:$AG$48,MATCH($D120,Tran!$C$23:$C$48,0),MATCH(BY$87,Tran!$X$7:$AG$7,0)) -> 212536.6661 | BZ120: =INDEX(Tran!$X$23:$AG$48,MATCH($D120,Tran!$C$23:$C$48,0),MATCH(BZ$87,Tran!$X$7:$AG$7,0)) -> 220238.0801 | CA120: =INDEX(Tran!$X$23:$AG$48,MATCH($D120,Tran!$C$23:$C$48,0),MATCH(CA$87,Tran!$X$7:$AG$7,0)) -> 223552.4777 | CB120: =INDEX(Tran!$X$23:$AG$48,MATCH($D120,Tran!$C$23:$C$48,0),MATCH(CB$87,Tran!$X$7:$AG$7,0)) -> 234898.5213 | CC120: =INDEX(Tran!$X$23:$AG$48,MATCH($D120,Tran!$C$23:$C$48,0),MATCH(CC$87,Tran!$X$7:$AG$7,0)) -> 234897.6863 | CE120: =INDEX('Comparison - Category'!$I$22:$P$47,MATCH('Vs Status Quo'!$D120,'Comparison - Category'!$C$22:$C$47,0),MATCH('Vs Status Quo'!CE$85,'Comparison - Category'!$I$7:$P$7,0)) -> 2325.988066 | CF120: =INDEX(Stad!$F$23:$F$48,MATCH($D120,Stad!$C$23:$C$48,0),0) -> 0 | CG120: 0 | CH120: 0 | CI120: 0 | CJ120: 0 | CK120: 0 | CL120: 0 | CM120: 0 | CN120: 0 | CO120: 0 | CQ120: =INDEX('Comparison - Category'!$I$22:$P$47,MATCH('Vs Status Quo'!$D120,'Comparison - Category'!$C$22:$C$47,0),MATCH('Vs Status Quo'!CQ$85,'Comparison - Category'!$I$7:$P$7,0)) -> 36056.29325 | CR120: =INDEX(WRS!$M$23:$V$48,MATCH($D120,WRS!$C$23:$C$48,0),MATCH(CR$87,WRS!$M$7:$V$7,0)) -> 36953.58058 | CS120: =INDEX(WRS!$M$23:$V$48,MATCH($D120,WRS!$C$23:$C$48,0),MATCH(CS$87,WRS!$M$7:$V$7,0)) -> 38963.25473 | CT120: =INDEX(WRS!$M$23:$V$48,MATCH($D120,WRS!$C$23:$C$48,0),MATCH(CT$87,WRS!$M$7:$V$7,0)) -> 42673.53091 | CU120: =INDEX(WRS!$M$23:$V$48,MATCH($D120,WRS!$C$23:$C$48,0),MATCH(CU$87,WRS!$M$7:$V$7,0)) -> 46369.59764 | CV120: =INDEX(WRS!$M$23:$V$48,MATCH($D120,WRS!$C$23:$C$48,0),MATCH(CV$87,WRS!$M$7:$V$7,0)) -> 48349.82687 | CW120: =INDEX(WRS!$M$23:$V$48,MATCH($D120,WRS!$C$23:$C$48,0),MATCH(CW$87,WRS!$M$7:$V$7,0)) -> 50238.6224 | CX120: =INDEX(WRS!$M$23:$V$48,MATCH($D120,WRS!$C$23:$C$48,0),MATCH(CX$87,WRS!$M$7:$V$7,0)) -> 52258.02818 | CY120: =INDEX(WRS!$M$23:$V$48,MATCH($D120,WRS!$C$23:$C$48,0),MATCH(CY$87,WRS!$M$7:$V$7,0)) -> 54334.07311 | CZ120: =INDEX(WRS!$M$23:$V$48,MATCH($D120,WRS!$C$23:$C$48,0),MATCH(CZ$87,WRS!$M$7:$V$7,0)) -> 56420.51545 | DA120: =INDEX(WRS!$M$23:$V$48,MATCH($D120,WRS!$C$23:$C$48,0),MATCH(DA$87,WRS!$M$7:$V$7,0)) -> 58563.72094
B121: Masterton District | C121: Residential | D121: Masterton DistrictResidential | F121: Masterton District - Residential | I121: =INDEX('Capital values'!$G$8:$G$45,MATCH(D121,'Capital values'!$C$8:$C$45,0),) -> 2624397353 | K121: 1021509.39 | L121: 1262647.842 | M121: 1398672.225 | N121: 1466201.049 | O121: 1614980.371 | P121: 1739820.423 | Q121: 1830889.538 | R121: 1886837.246 | S121: 1944624.444 | T121: 2021077.957 | U121: 2077435.147 | W121: =INDEX('Comparison - Category'!$I$22:$P$47,MATCH('Vs Status Quo'!$D121,'Comparison - Category'!$C$22:$C$47,0),MATCH('Vs Status Quo'!W$85,'Comparison - Category'!$I$7:$P$7,0)) -> 700390.2068 | X121: 876945.0521 | Y121: 966868.9029 | Z121: 954975.5356 | AA121: 1023695.021 | AB121: 1061550.734 | AC121: 1081721.738 | AD121: 1114528.975 | AE121: 1162357.389 | AF121: 1204719.398 | AG121: 1261079.097 | AI121: =INDEX('Comparison - Category'!$I$22:$P$47,MATCH('Vs Status Quo'!$D121,'Comparison - Category'!$C$22:$C$47,0),MATCH('Vs Status Quo'!AI$85,'Comparison - Category'!$I$7:$P$7,0)) -> 0 | AJ121: 0 | AK121: 0 | AL121: 0 | AM121: 0 | AN121: 0 | AO121: 0 | AP121: 0 | AQ121: 0 | AR121: 0 | AS121: 0 | BG121: =INDEX('Comparison - Category'!$I$22:$P$47,MATCH('Vs Status Quo'!$D121,'Comparison - Category'!$C$22:$C$47,0),MATCH('Vs Status Quo'!BG$85,'Comparison - Category'!$I$7:$P$7,0)) -> 0 | BH121: 0 | BI121: 0 | BJ121: 0 | BK121: 0 | BL121: 0 | BM121: 0 | BN121: 0 | BO121: 0 | BP121: 0 | BQ121: 0 | BS121: =INDEX('Comparison - Category'!$I$22:$P$47,MATCH('Vs Status Quo'!$D121,'Comparison - Category'!$C$22:$C$47,0),MATCH('Vs Status Quo'!BS$85,'Comparison - Category'!$I$7:$P$7,0)) -> 199517.2283 | BT121: =INDEX(Tran!$X$23:$AG$48,MATCH($D121,Tran!$C$23:$C$48,0),MATCH(BT$87,Tran!$X$7:$AG$7,0)) -> 275144.7903 | BU121: =INDEX(Tran!$X$23:$AG$48,MATCH($D121,Tran!$C$23:$C$48,0),MATCH(BU$87,Tran!$X$7:$AG$7,0)) -> 321245.322 | BV121: =INDEX(Tran!$X$23:$AG$48,MATCH($D121,Tran!$C$23:$C$48,0),MATCH(BV$87,Tran!$X$7:$AG$7,0)) -> 400667.5131 | BW121: =INDEX(Tran!$X$23:$AG$48,MATCH($D121,Tran!$C$23:$C$48,0),MATCH(BW$87,Tran!$X$7:$AG$7,0)) -> 480727.35 | BX121: =INDEX(Tran!$X$23:$AG$48,MATCH($D121,Tran!$C$23:$C$48,0),MATCH(BX$87,Tran!$X$7:$AG$7,0)) -> 567711.6881 | BY121: =INDEX(Tran!$X$23:$AG$48,MATCH($D121,Tran!$C$23:$C$48,0),MATCH(BY$87,Tran!$X$7:$AG$7,0)) -> 638609.8002 | BZ121: =INDEX(Tran!$X$23:$AG$48,MATCH($D121,Tran!$C$23:$C$48,0),MATCH(BZ$87,Tran!$X$7:$AG$7,0)) -> 661750.2707 | CA121: =INDEX(Tran!$X$23:$AG$48,MATCH($D121,Tran!$C$23:$C$48,0),MATCH(CA$87,Tran!$X$7:$AG$7,0)) -> 671709.0549 | CB121: =INDEX(Tran!$X$23:$AG$48,MATCH($D121,Tran!$C$23:$C$48,0),MATCH(CB$87,Tran!$X$7:$AG$7,0)) -> 705800.559 | CC121: =INDEX(Tran!$X$23:$AG$48,MATCH($D121,Tran!$C$23:$C$48,0),MATCH(CC$87,Tran!$X$7:$AG$7,0)) -> 705798.0502 | CE121: =INDEX('Comparison - Category'!$I$22:$P$47,MATCH('Vs Status Quo'!$D121,'Comparison - Category'!$C$22:$C$47,0),MATCH('Vs Status Quo'!CE$85,'Comparison - Category'!$I$7:$P$7,0)) -> 12051.95478 | CF121: =INDEX(Stad!$F$23:$F$48,MATCH($D121,Stad!$C$23:$C$48,0),0) -> 0 | CG121: 0 | CH121: 0 | CI121: 0 | CJ121: 0 | CK121: 0 | CL121: 0 | CM121: 0 | CN121: 0 | CO121: 0 | CQ121: =INDEX('Comparison - Category'!$I$22:$P$47,MATCH('Vs Status Quo'!$D121,'Comparison - Category'!$C$22:$C$47,0),MATCH('Vs Status Quo'!CQ$85,'Comparison - Category'!$I$7:$P$7,0)) -> 109550 | CR121: =INDEX(WRS!$M$23:$V$48,MATCH($D121,WRS!$C$23:$C$48,0),MATCH(CR$87,WRS!$M$7:$V$7,0)) -> 110558 | CS121: =INDEX(WRS!$M$23:$V$48,MATCH($D121,WRS!$C$23:$C$48,0),MATCH(CS$87,WRS!$M$7:$V$7,0)) -> 110558 | CT121: =INDEX(WRS!$M$23:$V$48,MATCH($D121,WRS!$C$23:$C$48,0),MATCH(CT$87,WRS!$M$7:$V$7,0)) -> 110558 | CU121: =INDEX(WRS!$M$23:$V$48,MATCH($D121,WRS!$C$23:$C$48,0),MATCH(CU$87,WRS!$M$7:$V$7,0)) -> 110558 | CV121: =INDEX(WRS!$M$23:$V$48,MATCH($D121,WRS!$C$23:$C$48,0),MATCH(CV$87,WRS!$M$7:$V$7,0)) -> 110558 | CW121: =INDEX(WRS!$M$23:$V$48,MATCH($D121,WRS!$C$23:$C$48,0),MATCH(CW$87,WRS!$M$7:$V$7,0)) -> 110558 | CX121: =INDEX(WRS!$M$23:$V$48,MATCH($D121,WRS!$C$23:$C$48,0),MATCH(CX$87,WRS!$M$7:$V$7,0)) -> 110558 | CY121: =INDEX(WRS!$M$23:$V$48,MATCH($D121,WRS!$C$23:$C$48,0),MATCH(CY$87,WRS!$M$7:$V$7,0)) -> 110558 | CZ121: =INDEX(WRS!$M$23:$V$48,MATCH($D121,WRS!$C$23:$C$48,0),MATCH(CZ$87,WRS!$M$7:$V$7,0)) -> 110558 | DA121: =INDEX(WRS!$M$23:$V$48,MATCH($D121,WRS!$C$23:$C$48,0),MATCH(DA$87,WRS!$M$7:$V$7,0)) -> 110558
B122: Masterton District | C122: Rural | D122: Masterton DistrictRural | F122: Masterton District - Rural | I122: =INDEX('Capital values'!$G$8:$G$45,MATCH(D122,'Capital values'!$C$8:$C$45,0),) -> 2830619856 | K122: 1009655.032 | L122: 1145574.067 | M122: 1275686.913 | N122: 1311908.698 | O122: 1437775.48 | P122: 1535705.674 | Q122: 1607493.901 | R122: 1655358.511 | S122: 1712315.901 | T122: 1776391.864 | U122: 1837178.899 | W122: =INDEX('Comparison - Category'!$I$22:$P$47,MATCH('Vs Status Quo'!$D122,'Comparison - Category'!$C$22:$C$47,0),MATCH('Vs Status Quo'!W$85,'Comparison - Category'!$I$7:$P$7,0)) -> 839789.9866 | X122: 945854.5118 | Y122: 1042844.488 | Z122: 1030016.552 | AA122: 1104135.946 | AB122: 1144966.323 | AC122: 1166722.344 | AD122: 1202107.541 | AE122: 1253694.263 | AF122: 1299385.036 | AG122: 1360173.423 | AI122: =INDEX('Comparison - Category'!$I$22:$P$47,MATCH('Vs Status Quo'!$D122,'Comparison - Category'!$C$22:$C$47,0),MATCH('Vs Status Quo'!AI$85,'Comparison - Category'!$I$7:$P$7,0)) -> 0 | AJ122: 0 | AK122: 0 | AL122: 0 | AM122: 0 | AN122: 0 | AO122: 0 | AP122: 0 | AQ122: 0 | AR122: 0 | AS122: 0 | BG122: =INDEX('Comparison - Category'!$I$22:$P$47,MATCH('Vs Status Quo'!$D122,'Comparison - Category'!$C$22:$C$47,0),MATCH('Vs Status Quo'!BG$85,'Comparison - Category'!$I$7:$P$7,0)) -> 0 | BH122: 0 | BI122: 0 | BJ122: 0 | BK122: 0 | BL122: 0 | BM122: 0 | BN122: 0 | BO122: 0 | BP122: 0 | BQ122: 0 | BS122: =INDEX('Comparison - Category'!$I$22:$P$47,MATCH('Vs Status Quo'!$D122,'Comparison - Category'!$C$22:$C$47,0),MATCH('Vs Status Quo'!BS$85,'Comparison - Category'!$I$7:$P$7,0)) -> 68725.1617 | BT122: =INDEX(Tran!$X$23:$AG$48,MATCH($D122,Tran!$C$23:$C$48,0),MATCH(BT$87,Tran!$X$7:$AG$7,0)) -> 103343.5554 | BU122: =INDEX(Tran!$X$23:$AG$48,MATCH($D122,Tran!$C$23:$C$48,0),MATCH(BU$87,Tran!$X$7:$AG$7,0)) -> 136466.4248 | BV122: =INDEX(Tran!$X$23:$AG$48,MATCH($D122,Tran!$C$23:$C$48,0),MATCH(BV$87,Tran!$X$7:$AG$7,0)) -> 185516.1455 | BW122: =INDEX(Tran!$X$23:$AG$48,MATCH($D122,Tran!$C$23:$C$48,0),MATCH(BW$87,Tran!$X$7:$AG$7,0)) -> 237263.5342 | BX122: =INDEX(Tran!$X$23:$AG$48,MATCH($D122,Tran!$C$23:$C$48,0),MATCH(BX$87,Tran!$X$7:$AG$7,0)) -> 294363.3509 | BY122: =INDEX(Tran!$X$23:$AG$48,MATCH($D122,Tran!$C$23:$C$48,0),MATCH(BY$87,Tran!$X$7:$AG$7,0)) -> 344395.5578 | BZ122: =INDEX(Tran!$X$23:$AG$48,MATCH($D122,Tran!$C$23:$C$48,0),MATCH(BZ$87,Tran!$X$7:$AG$7,0)) -> 356874.9705 | CA122: =INDEX(Tran!$X$23:$AG$48,MATCH($D122,Tran!$C$23:$C$48,0),MATCH(CA$87,Tran!$X$7:$AG$7,0)) -> 362245.6382 | CB122: =INDEX(Tran!$X$23:$AG$48,MATCH($D122,Tran!$C$23:$C$48,0),MATCH(CB$87,Tran!$X$7:$AG$7,0)) -> 380630.8283 | CC122: =INDEX(Tran!$X$23:$AG$48,MATCH($D122,Tran!$C$23:$C$48,0),MATCH(CC$87,Tran!$X$7:$AG$7,0)) -> 380629.4754 | CE122: =INDEX('Comparison - Category'!$I$22:$P$47,MATCH('Vs Status Quo'!$D122,'Comparison - Category'!$C$22:$C$47,0),MATCH('Vs Status Quo'!CE$85,'Comparison - Category'!$I$7:$P$7,0)) -> 5183.884155 | CF122: =INDEX(Stad!$F$23:$F$48,MATCH($D122,Stad!$C$23:$C$48,0),0) -> 0 | CG122: 0 | CH122: 0 | CI122: 0 | CJ122: 0 | CK122: 0 | CL122: 0 | CM122: 0 | CN122: 0 | CO122: 0 | CQ122: =INDEX('Comparison - Category'!$I$22:$P$47,MATCH('Vs Status Quo'!$D122,'Comparison - Category'!$C$22:$C$47,0),MATCH('Vs Status Quo'!CQ$85,'Comparison - Category'!$I$7:$P$7,0)) -> 95956 | CR122: =INDEX(WRS!$M$23:$V$48,MATCH($D122,WRS!$C$23:$C$48,0),MATCH(CR$87,WRS!$M$7:$V$7,0)) -> 96376 | CS122: =INDEX(WRS!$M$23:$V$48,MATCH($D122,WRS!$C$23:$C$48,0),MATCH(CS$87,WRS!$M$7:$V$7,0)) -> 96376 | CT122: =INDEX(WRS!$M$23:$V$48,MATCH($D122,WRS!$C$23:$C$48,0),MATCH(CT$87,WRS!$M$7:$V$7,0)) -> 96376 | CU122: =INDEX(WRS!$M$23:$V$48,MATCH($D122,WRS!$C$23:$C$48,0),MATCH(CU$87,WRS!$M$7:$V$7,0)) -> 96376 | CV122: =INDEX(WRS!$M$23:$V$48,MATCH($D122,WRS!$C$23:$C$48,0),MATCH(CV$87,WRS!$M$7:$V$7,0)) -> 96376 | CW122: =INDEX(WRS!$M$23:$V$48,MATCH($D122,WRS!$C$23:$C$48,0),MATCH(CW$87,WRS!$M$7:$V$7,0)) -> 96376 | CX122: =INDEX(WRS!$M$23:$V$48,MATCH($D122,WRS!$C$23:$C$48,0),MATCH(CX$87,WRS!$M$7:$V$7,0)) -> 96376 | CY122: =INDEX(WRS!$M$23:$V$48,MATCH($D122,WRS!$C$23:$C$48,0),MATCH(CY$87,WRS!$M$7:$V$7,0)) -> 96376 | CZ122: =INDEX(WRS!$M$23:$V$48,MATCH($D122,WRS!$C$23:$C$48,0),MATCH(CZ$87,WRS!$M$7:$V$7,0)) -> 96376 | DA122: =INDEX(WRS!$M$23:$V$48,MATCH($D122,WRS!$C$23:$C$48,0),MATCH(DA$87,WRS!$M$7:$V$7,0)) -> 96376
B123: Carterton District | C123: Business | D123: Carterton DistrictBusiness | F123: Carterton District - Business | I123: =INDEX('Capital values'!$G$8:$G$45,MATCH(D123,'Capital values'!$C$8:$C$45,0),) -> 97761867.84 | K123: 60017.04134 | L123: 60786.02354 | M123: 68310.13299 | N123: 74836.5733 | O123: 84490.0612 | P123: 93179.98062 | Q123: 100047.1102 | R123: 103461.9913 | S123: 106468.2862 | T123: 111071.5635 | U123: 113670.222 | W123: =INDEX('Comparison - Category'!$I$22:$P$47,MATCH('Vs Status Quo'!$D123,'Comparison - Category'!$C$22:$C$47,0),MATCH('Vs Status Quo'!W$85,'Comparison - Category'!$I$7:$P$7,0)) -> 32918.2178 | X123: 32667.22784 | Y123: 36016.99636 | Z123: 35573.95453 | AA123: 38133.83566 | AB123: 39544.00521 | AC123: 40295.39866 | AD123: 41517.50659 | AE123: 43299.17088 | AF123: 44877.20521 | AG123: 46976.66985 | AI123: =INDEX('Comparison - Category'!$I$22:$P$47,MATCH('Vs Status Quo'!$D123,'Comparison - Category'!$C$22:$C$47,0),MATCH('Vs Status Quo'!AI$85,'Comparison - Category'!$I$7:$P$7,0)) -> 0 | AJ123: 0 | AK123: 0 | AL123: 0 | AM123: 0 | AN123: 0 | AO123: 0 | AP123: 0 | AQ123: 0 | AR123: 0 | AS123: 0 | BG123: =INDEX('Comparison - Category'!$I$22:$P$47,MATCH('Vs Status Quo'!$D123,'Comparison - Category'!$C$22:$C$47,0),MATCH('Vs Status Quo'!BG$85,'Comparison - Category'!$I$7:$P$7,0)) -> 988.1624401 | BH123: 853.3667985 | BI123: 867.0206673 | BJ123: 880.892998 | BK123: 895.868179 | BL123: 911.097938 | BM123: 927.4977009 | BN123: 944.1926595 | BO123: 962.13232 | BP123: 980.4128341 | BQ123: 1000.021091 | BS123: =INDEX('Comparison - Category'!$I$22:$P$47,MATCH('Vs Status Quo'!$D123,'Comparison - Category'!$C$22:$C$47,0),MATCH('Vs Status Quo'!BS$85,'Comparison - Category'!$I$7:$P$7,0)) -> 16823.53517 | BT123: =INDEX(Tran!$X$23:$AG$48,MATCH($D123,Tran!$C$23:$C$48,0),MATCH(BT$87,Tran!$X$7:$AG$7,0)) -> 18993.09348 | BU123: =INDEX(Tran!$X$23:$AG$48,MATCH($D123,Tran!$C$23:$C$48,0),MATCH(BU$87,Tran!$X$7:$AG$7,0)) -> 22703.89995 | BV123: =INDEX(Tran!$X$23:$AG$48,MATCH($D123,Tran!$C$23:$C$48,0),MATCH(BV$87,Tran!$X$7:$AG$7,0)) -> 28828.93668 | BW123: =INDEX(Tran!$X$23:$AG$48,MATCH($D123,Tran!$C$23:$C$48,0),MATCH(BW$87,Tran!$X$7:$AG$7,0)) -> 35080.17609 | BX123: =INDEX(Tran!$X$23:$AG$48,MATCH($D123,Tran!$C$23:$C$48,0),MATCH(BX$87,Tran!$X$7:$AG$7,0)) -> 41901.40707 | BY123: =INDEX(Tran!$X$23:$AG$48,MATCH($D123,Tran!$C$23:$C$48,0),MATCH(BY$87,Tran!$X$7:$AG$7,0)) -> 47577.92246 | BZ123: =INDEX(Tran!$X$23:$AG$48,MATCH($D123,Tran!$C$23:$C$48,0),MATCH(BZ$87,Tran!$X$7:$AG$7,0)) -> 49301.94159 | CA123: =INDEX(Tran!$X$23:$AG$48,MATCH($D123,Tran!$C$23:$C$48,0),MATCH(CA$87,Tran!$X$7:$AG$7,0)) -> 50043.89429 | CB123: =INDEX(Tran!$X$23:$AG$48,MATCH($D123,Tran!$C$23:$C$48,0),MATCH(CB$87,Tran!$X$7:$AG$7,0)) -> 52583.79101 | CC123: =INDEX(Tran!$X$23:$AG$48,MATCH($D123,Tran!$C$23:$C$48,0),MATCH(CC$87,Tran!$X$7:$AG$7,0)) -> 52583.6041 | CE123: =INDEX('Comparison - Category'!$I$22:$P$47,MATCH('Vs Status Quo'!$D123,'Comparison - Category'!$C$22:$C$47,0),MATCH('Vs Status Quo'!CE$85,'Comparison - Category'!$I$7:$P$7,0)) -> 506.4623492 | CF123: =INDEX(Stad!$F$23:$F$48,MATCH($D123,Stad!$C$23:$C$48,0),0) -> 0 | CG123: 0 | CH123: 0 | CI123: 0 | CJ123: 0 | CK123: 0 | CL123: 0 | CM123: 0 | CN123: 0 | CO123: 0 | CQ123: =INDEX('Comparison - Category'!$I$22:$P$47,MATCH('Vs Status Quo'!$D123,'Comparison - Category'!$C$22:$C$47,0),MATCH('Vs Status Quo'!CQ$85,'Comparison - Category'!$I$7:$P$7,0)) -> 8780.663578 | CR123: =INDEX(WRS!$M$23:$V$48,MATCH($D123,WRS!$C$23:$C$48,0),MATCH(CR$87,WRS!$M$7:$V$7,0)) -> 8272.335423 | CS123: =INDEX(WRS!$M$23:$V$48,MATCH($D123,WRS!$C$23:$C$48,0),MATCH(CS$87,WRS!$M$7:$V$7,0)) -> 8722.216014 | CT123: =INDEX(WRS!$M$23:$V$48,MATCH($D123,WRS!$C$23:$C$48,0),MATCH(CT$87,WRS!$M$7:$V$7,0)) -> 9552.789088 | CU123: =INDEX(WRS!$M$23:$V$48,MATCH($D123,WRS!$C$23:$C$48,0),MATCH(CU$87,WRS!$M$7:$V$7,0)) -> 10380.18127 | CV123: =INDEX(WRS!$M$23:$V$48,MATCH($D123,WRS!$C$23:$C$48,0),MATCH(CV$87,WRS!$M$7:$V$7,0)) -> 10823.4704 | CW123: =INDEX(WRS!$M$23:$V$48,MATCH($D123,WRS!$C$23:$C$48,0),MATCH(CW$87,WRS!$M$7:$V$7,0)) -> 11246.29141 | CX123: =INDEX(WRS!$M$23:$V$48,MATCH($D123,WRS!$C$23:$C$48,0),MATCH(CX$87,WRS!$M$7:$V$7,0)) -> 11698.35049 | CY123: =INDEX(WRS!$M$23:$V$48,MATCH($D123,WRS!$C$23:$C$48,0),MATCH(CY$87,WRS!$M$7:$V$7,0)) -> 12163.08868 | CZ123: =INDEX(WRS!$M$23:$V$48,MATCH($D123,WRS!$C$23:$C$48,0),MATCH(CZ$87,WRS!$M$7:$V$7,0)) -> 12630.1544 | DA123: =INDEX(WRS!$M$23:$V$48,MATCH($D123,WRS!$C$23:$C$48,0),MATCH(DA$87,WRS!$M$7:$V$7,0)) -> 13109.92698
B124: Carterton District | C124: Residential | D124: Carterton DistrictResidential | F124: Carterton District - Residential | I124: =INDEX('Capital values'!$G$8:$G$45,MATCH(D124,'Capital values'!$C$8:$C$45,0),) -> 853599855.7 | K124: 365744.0669 | L124: 465845.5893 | M124: 500907.6551 | N124: 515993.0757 | O124: 554865.6238 | P124: 584132.4886 | Q124: 600615.7855 | R124: 618958.8598 | S124: 637911.1065 | T124: 662937.6522 | U124: 681439.3501 | W124: =INDEX('Comparison - Category'!$I$22:$P$47,MATCH('Vs Status Quo'!$D124,'Comparison - Category'!$C$22:$C$47,0),MATCH('Vs Status Quo'!W$85,'Comparison - Category'!$I$7:$P$7,0)) -> 215014.1194 | X124: 285231.2624 | Y124: 314479.4957 | Z124: 310611.1117 | AA124: 332962.5071 | AB124: 345275.2887 | AC124: 351836.0199 | AD124: 362506.7566 | AE124: 378063.2146 | AF124: 391841.6939 | AG124: 410172.9999 | AI124: =INDEX('Comparison - Category'!$I$22:$P$47,MATCH('Vs Status Quo'!$D124,'Comparison - Category'!$C$22:$C$47,0),MATCH('Vs Status Quo'!AI$85,'Comparison - Category'!$I$7:$P$7,0)) -> 0 | AJ124: 0 | AK124: 0 | AL124: 0 | AM124: 0 | AN124: 0 | AO124: 0 | AP124: 0 | AQ124: 0 | AR124: 0 | AS124: 0 | BG124: =INDEX('Comparison - Category'!$I$22:$P$47,MATCH('Vs Status Quo'!$D124,'Comparison - Category'!$C$22:$C$47,0),MATCH('Vs Status Quo'!BG$85,'Comparison - Category'!$I$7:$P$7,0)) -> 6454.446537 | BH124: 7451.1033 | BI124: 7570.320953 | BJ124: 7691.446088 | BK124: 7822.200672 | BL124: 7955.178083 | BM124: 8098.371289 | BN124: 8244.141972 | BO124: 8400.78067 | BP124: 8560.395502 | BQ124: 8731.603412 | BS124: =INDEX('Comparison - Category'!$I$22:$P$47,MATCH('Vs Status Quo'!$D124,'Comparison - Category'!$C$22:$C$47,0),MATCH('Vs Status Quo'!BS$85,'Comparison - Category'!$I$7:$P$7,0)) -> 109887.4071 | BT124: =INDEX(Tran!$X$23:$AG$48,MATCH($D124,Tran!$C$23:$C$48,0),MATCH(BT$87,Tran!$X$7:$AG$7,0)) -> 140193.2236 | BU124: =INDEX(Tran!$X$23:$AG$48,MATCH($D124,Tran!$C$23:$C$48,0),MATCH(BU$87,Tran!$X$7:$AG$7,0)) -> 145887.8385 | BV124: =INDEX(Tran!$X$23:$AG$48,MATCH($D124,Tran!$C$23:$C$48,0),MATCH(BV$87,Tran!$X$7:$AG$7,0)) -> 164720.5179 | BW124: =INDEX(Tran!$X$23:$AG$48,MATCH($D124,Tran!$C$23:$C$48,0),MATCH(BW$87,Tran!$X$7:$AG$7,0)) -> 181110.9161 | BX124: =INDEX(Tran!$X$23:$AG$48,MATCH($D124,Tran!$C$23:$C$48,0),MATCH(BX$87,Tran!$X$7:$AG$7,0)) -> 197932.0218 | BY124: =INDEX(Tran!$X$23:$AG$48,MATCH($D124,Tran!$C$23:$C$48,0),MATCH(BY$87,Tran!$X$7:$AG$7,0)) -> 207711.3943 | BZ124: =INDEX(Tran!$X$23:$AG$48,MATCH($D124,Tran!$C$23:$C$48,0),MATCH(BZ$87,Tran!$X$7:$AG$7,0)) -> 215237.9612 | CA124: =INDEX(Tran!$X$23:$AG$48,MATCH($D124,Tran!$C$23:$C$48,0),MATCH(CA$87,Tran!$X$7:$AG$7,0)) -> 218477.1112 | CB124: =INDEX(Tran!$X$23:$AG$48,MATCH($D124,Tran!$C$23:$C$48,0),MATCH(CB$87,Tran!$X$7:$AG$7,0)) -> 229565.5628 | CC124: =INDEX(Tran!$X$23:$AG$48,MATCH($D124,Tran!$C$23:$C$48,0),MATCH(CC$87,Tran!$X$7:$AG$7,0)) -> 229564.7468 | CE124: =INDEX('Comparison - Category'!$I$22:$P$47,MATCH('Vs Status Quo'!$D124,'Comparison - Category'!$C$22:$C$47,0),MATCH('Vs Status Quo'!CE$85,'Comparison - Category'!$I$7:$P$7,0)) -> 3308.093916 | CF124: =INDEX(Stad!$F$23:$F$48,MATCH($D124,Stad!$C$23:$C$48,0),0) -> 0 | CG124: 0 | CH124: 0 | CI124: 0 | CJ124: 0 | CK124: 0 | CL124: 0 | CM124: 0 | CN124: 0 | CO124: 0 | CQ124: =INDEX('Comparison - Category'!$I$22:$P$47,MATCH('Vs Status Quo'!$D124,'Comparison - Category'!$C$22:$C$47,0),MATCH('Vs Status Quo'!CQ$85,'Comparison - Category'!$I$7:$P$7,0)) -> 31080 | CR124: =INDEX(WRS!$M$23:$V$48,MATCH($D124,WRS!$C$23:$C$48,0),MATCH(CR$87,WRS!$M$7:$V$7,0)) -> 32970 | CS124: =INDEX(WRS!$M$23:$V$48,MATCH($D124,WRS!$C$23:$C$48,0),MATCH(CS$87,WRS!$M$7:$V$7,0)) -> 32970 | CT124: =INDEX(WRS!$M$23:$V$48,MATCH($D124,WRS!$C$23:$C$48,0),MATCH(CT$87,WRS!$M$7:$V$7,0)) -> 32970 | CU124: =INDEX(WRS!$M$23:$V$48,MATCH($D124,WRS!$C$23:$C$48,0),MATCH(CU$87,WRS!$M$7:$V$7,0)) -> 32970 | CV124: =INDEX(WRS!$M$23:$V$48,MATCH($D124,WRS!$C$23:$C$48,0),MATCH(CV$87,WRS!$M$7:$V$7,0)) -> 32970 | CW124: =INDEX(WRS!$M$23:$V$48,MATCH($D124,WRS!$C$23:$C$48,0),MATCH(CW$87,WRS!$M$7:$V$7,0)) -> 32970 | CX124: =INDEX(WRS!$M$23:$V$48,MATCH($D124,WRS!$C$23:$C$48,0),MATCH(CX$87,WRS!$M$7:$V$7,0)) -> 32970 | CY124: =INDEX(WRS!$M$23:$V$48,MATCH($D124,WRS!$C$23:$C$48,0),MATCH(CY$87,WRS!$M$7:$V$7,0)) -> 32970 | CZ124: =INDEX(WRS!$M$23:$V$48,MATCH($D124,WRS!$C$23:$C$48,0),MATCH(CZ$87,WRS!$M$7:$V$7,0)) -> 32970 | DA124: =INDEX(WRS!$M$23:$V$48,MATCH($D124,WRS!$C$23:$C$48,0),MATCH(DA$87,WRS!$M$7:$V$7,0)) -> 32970
B125: Carterton District | C125: Rural | D125: Carterton DistrictRural | F125: Carterton District - Rural | I125: =INDEX('Capital values'!$G$8:$G$45,MATCH(D125,'Capital values'!$C$8:$C$45,0),) -> 1764287726 | K125: 668191.9574 | L125: 743864.1791 | M125: 820523.4207 | N125: 839824.1791 | O125: 913684.6056 | P125: 969219.5332 | Q125: 1007570.054 | R125: 1037704.719 | S125: 1073529.257 | T125: 1113796.857 | U125: 1152038.474 | W125: =INDEX('Comparison - Category'!$I$22:$P$47,MATCH('Vs Status Quo'!$D125,'Comparison - Category'!$C$22:$C$47,0),MATCH('Vs Status Quo'!W$85,'Comparison - Category'!$I$7:$P$7,0)) -> 526240.8319 | X125: 589538.5432 | Y125: 649991.1061 | Z125: 641995.6241 | AA125: 688193.2567 | AB125: 713642.2881 | AC125: 727202.5265 | AD125: 749257.6495 | AE125: 781410.9678 | AF125: 809889.4191 | AG125: 847778.0129 | AI125: =INDEX('Comparison - Category'!$I$22:$P$47,MATCH('Vs Status Quo'!$D125,'Comparison - Category'!$C$22:$C$47,0),MATCH('Vs Status Quo'!AI$85,'Comparison - Category'!$I$7:$P$7,0)) -> 0 | AJ125: 0 | AK125: 0 | AL125: 0 | AM125: 0 | AN125: 0 | AO125: 0 | AP125: 0 | AQ125: 0 | AR125: 0 | AS125: 0 | BG125: =INDEX('Comparison - Category'!$I$22:$P$47,MATCH('Vs Status Quo'!$D125,'Comparison - Category'!$C$22:$C$47,0),MATCH('Vs Status Quo'!BG$85,'Comparison - Category'!$I$7:$P$7,0)) -> 15797.07102 | BH125: 15400.5299 | BI125: 15646.93838 | BJ125: 15897.28939 | BK125: 16167.54331 | BL125: 16442.39155 | BM125: 16738.3546 | BN125: 17039.64498 | BO125: 17363.39823 | BP125: 17693.3028 | BQ125: 18047.16886 | BS125: =INDEX('Comparison - Category'!$I$22:$P$47,MATCH('Vs Status Quo'!$D125,'Comparison - Category'!$C$22:$C$47,0),MATCH('Vs Status Quo'!BS$85,'Comparison - Category'!$I$7:$P$7,0)) -> 72077.97134 | BT125: =INDEX(Tran!$X$23:$AG$48,MATCH($D125,Tran!$C$23:$C$48,0),MATCH(BT$87,Tran!$X$7:$AG$7,0)) -> 89953.10601 | BU125: =INDEX(Tran!$X$23:$AG$48,MATCH($D125,Tran!$C$23:$C$48,0),MATCH(BU$87,Tran!$X$7:$AG$7,0)) -> 105913.3762 | BV125: =INDEX(Tran!$X$23:$AG$48,MATCH($D125,Tran!$C$23:$C$48,0),MATCH(BV$87,Tran!$X$7:$AG$7,0)) -> 132959.2656 | BW125: =INDEX(Tran!$X$23:$AG$48,MATCH($D125,Tran!$C$23:$C$48,0),MATCH(BW$87,Tran!$X$7:$AG$7,0)) -> 160351.8056 | BX125: =INDEX(Tran!$X$23:$AG$48,MATCH($D125,Tran!$C$23:$C$48,0),MATCH(BX$87,Tran!$X$7:$AG$7,0)) -> 190162.8536 | BY125: =INDEX(Tran!$X$23:$AG$48,MATCH($D125,Tran!$C$23:$C$48,0),MATCH(BY$87,Tran!$X$7:$AG$7,0)) -> 214657.1729 | BZ125: =INDEX(Tran!$X$23:$AG$48,MATCH($D125,Tran!$C$23:$C$48,0),MATCH(BZ$87,Tran!$X$7:$AG$7,0)) -> 222435.4249 | CA125: =INDEX(Tran!$X$23:$AG$48,MATCH($D125,Tran!$C$23:$C$48,0),MATCH(CA$87,Tran!$X$7:$AG$7,0)) -> 225782.8907 | CB125: =INDEX(Tran!$X$23:$AG$48,MATCH($D125,Tran!$C$23:$C$48,0),MATCH(CB$87,Tran!$X$7:$AG$7,0)) -> 237242.1352 | CC125: =INDEX(Tran!$X$23:$AG$48,MATCH($D125,Tran!$C$23:$C$48,0),MATCH(CC$87,Tran!$X$7:$AG$7,0)) -> 237241.292 | CE125: =INDEX('Comparison - Category'!$I$22:$P$47,MATCH('Vs Status Quo'!$D125,'Comparison - Category'!$C$22:$C$47,0),MATCH('Vs Status Quo'!CE$85,'Comparison - Category'!$I$7:$P$7,0)) -> 3032.083185 | CF125: =INDEX(Stad!$F$23:$F$48,MATCH($D125,Stad!$C$23:$C$48,0),0) -> 0 | CG125: 0 | CH125: 0 | CI125: 0 | CJ125: 0 | CK125: 0 | CL125: 0 | CM125: 0 | CN125: 0 | CO125: 0 | CQ125: =INDEX('Comparison - Category'!$I$22:$P$47,MATCH('Vs Status Quo'!$D125,'Comparison - Category'!$C$22:$C$47,0),MATCH('Vs Status Quo'!CQ$85,'Comparison - Category'!$I$7:$P$7,0)) -> 51044 | CR125: =INDEX(WRS!$M$23:$V$48,MATCH($D125,WRS!$C$23:$C$48,0),MATCH(CR$87,WRS!$M$7:$V$7,0)) -> 48972 | CS125: =INDEX(WRS!$M$23:$V$48,MATCH($D125,WRS!$C$23:$C$48,0),MATCH(CS$87,WRS!$M$7:$V$7,0)) -> 48972 | CT125: =INDEX(WRS!$M$23:$V$48,MATCH($D125,WRS!$C$23:$C$48,0),MATCH(CT$87,WRS!$M$7:$V$7,0)) -> 48972 | CU125: =INDEX(WRS!$M$23:$V$48,MATCH($D125,WRS!$C$23:$C$48,0),MATCH(CU$87,WRS!$M$7:$V$7,0)) -> 48972 | CV125: =INDEX(WRS!$M$23:$V$48,MATCH($D125,WRS!$C$23:$C$48,0),MATCH(CV$87,WRS!$M$7:$V$7,0)) -> 48972 | CW125: =INDEX(WRS!$M$23:$V$48,MATCH($D125,WRS!$C$23:$C$48,0),MATCH(CW$87,WRS!$M$7:$V$7,0)) -> 48972 | CX125: =INDEX(WRS!$M$23:$V$48,MATCH($D125,WRS!$C$23:$C$48,0),MATCH(CX$87,WRS!$M$7:$V$7,0)) -> 48972 | CY125: =INDEX(WRS!$M$23:$V$48,MATCH($D125,WRS!$C$23:$C$48,0),MATCH(CY$87,WRS!$M$7:$V$7,0)) -> 48972 | CZ125: =INDEX(WRS!$M$23:$V$48,MATCH($D125,WRS!$C$23:$C$48,0),MATCH(CZ$87,WRS!$M$7:$V$7,0)) -> 48972 | DA125: =INDEX(WRS!$M$23:$V$48,MATCH($D125,WRS!$C$23:$C$48,0),MATCH(DA$87,WRS!$M$7:$V$7,0)) -> 48972
B126: South Wairarapa District | C126: Business | D126: South Wairarapa DistrictBusiness | F126: South Wairarapa District - Business | I126: =INDEX('Capital values'!$G$8:$G$45,MATCH(D126,'Capital values'!$C$8:$C$45,0),) -> 206789471.4 | K126: 128735.6363 | L126: 135689.3085 | M126: 149939.9874 | N126: 162484.4373 | O126: 181174.9583 | P126: 197506.3851 | Q126: 209661.4225 | R126: 216849.3899 | S126: 223170.4679 | T126: 232868.8204 | U126: 238324.1218 | W126: =INDEX('Comparison - Category'!$I$22:$P$47,MATCH('Vs Status Quo'!$D126,'Comparison - Category'!$C$22:$C$47,0),MATCH('Vs Status Quo'!W$85,'Comparison - Category'!$I$7:$P$7,0)) -> 65648.30088 | X126: 69098.91277 | Y126: 76184.4654 | Z126: 75247.32716 | AA126: 80662.08116 | AB126: 83644.92328 | AC126: 85234.29813 | AD126: 87819.34543 | AE126: 91587.98678 | AF126: 94925.9026 | AG126: 99366.76684 | AI126: =INDEX('Comparison - Category'!$I$22:$P$47,MATCH('Vs Status Quo'!$D126,'Comparison - Category'!$C$22:$C$47,0),MATCH('Vs Status Quo'!AI$85,'Comparison - Category'!$I$7:$P$7,0)) -> 0 | AJ126: 0 | AK126: 0 | AL126: 0 | AM126: 0 | AN126: 0 | AO126: 0 | AP126: 0 | AQ126: 0 | AR126: 0 | AS126: 0 | BG126: =INDEX('Comparison - Category'!$I$22:$P$47,MATCH('Vs Status Quo'!$D126,'Comparison - Category'!$C$22:$C$47,0),MATCH('Vs Status Quo'!BG$85,'Comparison - Category'!$I$7:$P$7,0)) -> 0 | BH126: 0 | BI126: 0 | BJ126: 0 | BK126: 0 | BL126: 0 | BM126: 0 | BN126: 0 | BO126: 0 | BP126: 0 | BQ126: 0 | BS126: =INDEX('Comparison - Category'!$I$22:$P$47,MATCH('Vs Status Quo'!$D126,'Comparison - Category'!$C$22:$C$47,0),MATCH('Vs Status Quo'!BS$85,'Comparison - Category'!$I$7:$P$7,0)) -> 44332.49902 | BT126: =INDEX(Tran!$X$23:$AG$48,MATCH($D126,Tran!$C$23:$C$48,0),MATCH(BT$87,Tran!$X$7:$AG$7,0)) -> 49092.44984 | BU126: =INDEX(Tran!$X$23:$AG$48,MATCH($D126,Tran!$C$23:$C$48,0),MATCH(BU$87,Tran!$X$7:$AG$7,0)) -> 55305.97228 | BV126: =INDEX(Tran!$X$23:$AG$48,MATCH($D126,Tran!$C$23:$C$48,0),MATCH(BV$87,Tran!$X$7:$AG$7,0)) -> 67030.70192 | BW126: =INDEX(Tran!$X$23:$AG$48,MATCH($D126,Tran!$C$23:$C$48,0),MATCH(BW$87,Tran!$X$7:$AG$7,0)) -> 78556.33884 | BX126: =INDEX(Tran!$X$23:$AG$48,MATCH($D126,Tran!$C$23:$C$48,0),MATCH(BX$87,Tran!$X$7:$AG$7,0)) -> 90967.26214 | BY126: =INDEX(Tran!$X$23:$AG$48,MATCH($D126,Tran!$C$23:$C$48,0),MATCH(BY$87,Tran!$X$7:$AG$7,0)) -> 100638.5583 | BZ126: =INDEX(Tran!$X$23:$AG$48,MATCH($D126,Tran!$C$23:$C$48,0),MATCH(BZ$87,Tran!$X$7:$AG$7,0)) -> 104285.2665 | CA126: =INDEX(Tran!$X$23:$AG$48,MATCH($D126,Tran!$C$23:$C$48,0),MATCH(CA$87,Tran!$X$7:$AG$7,0)) -> 105854.6719 | CB126: =INDEX(Tran!$X$23:$AG$48,MATCH($D126,Tran!$C$23:$C$48,0),MATCH(CB$87,Tran!$X$7:$AG$7,0)) -> 111227.1542 | CC126: =INDEX(Tran!$X$23:$AG$48,MATCH($D126,Tran!$C$23:$C$48,0),MATCH(CC$87,Tran!$X$7:$AG$7,0)) -> 111226.7588 | CE126: =INDEX('Comparison - Category'!$I$22:$P$47,MATCH('Vs Status Quo'!$D126,'Comparison - Category'!$C$22:$C$47,0),MATCH('Vs Status Quo'!CE$85,'Comparison - Category'!$I$7:$P$7,0)) -> 1243.692615 | CF126: =INDEX(Stad!$F$23:$F$48,MATCH($D126,Stad!$C$23:$C$48,0),0) -> 0 | CG126: 0 | CH126: 0 | CI126: 0 | CJ126: 0 | CK126: 0 | CL126: 0 | CM126: 0 | CN126: 0 | CO126: 0 | CQ126: =INDEX('Comparison - Category'!$I$22:$P$47,MATCH('Vs Status Quo'!$D126,'Comparison - Category'!$C$22:$C$47,0),MATCH('Vs Status Quo'!CQ$85,'Comparison - Category'!$I$7:$P$7,0)) -> 17511.14377 | CR126: =INDEX(WRS!$M$23:$V$48,MATCH($D126,WRS!$C$23:$C$48,0),MATCH(CR$87,WRS!$M$7:$V$7,0)) -> 17497.94585 | CS126: =INDEX(WRS!$M$23:$V$48,MATCH($D126,WRS!$C$23:$C$48,0),MATCH(CS$87,WRS!$M$7:$V$7,0)) -> 18449.5497 | CT126: =INDEX(WRS!$M$23:$V$48,MATCH($D126,WRS!$C$23:$C$48,0),MATCH(CT$87,WRS!$M$7:$V$7,0)) -> 20206.40818 | CU126: =INDEX(WRS!$M$23:$V$48,MATCH($D126,WRS!$C$23:$C$48,0),MATCH(CU$87,WRS!$M$7:$V$7,0)) -> 21956.53833 | CV126: =INDEX(WRS!$M$23:$V$48,MATCH($D126,WRS!$C$23:$C$48,0),MATCH(CV$87,WRS!$M$7:$V$7,0)) -> 22894.19967 | CW126: =INDEX(WRS!$M$23:$V$48,MATCH($D126,WRS!$C$23:$C$48,0),MATCH(CW$87,WRS!$M$7:$V$7,0)) -> 23788.5661 | CX126: =INDEX(WRS!$M$23:$V$48,MATCH($D126,WRS!$C$23:$C$48,0),MATCH(CX$87,WRS!$M$7:$V$7,0)) -> 24744.77798 | CY126: =INDEX(WRS!$M$23:$V$48,MATCH($D126,WRS!$C$23:$C$48,0),MATCH(CY$87,WRS!$M$7:$V$7,0)) -> 25727.80916 | CZ126: =INDEX(WRS!$M$23:$V$48,MATCH($D126,WRS!$C$23:$C$48,0),MATCH(CZ$87,WRS!$M$7:$V$7,0)) -> 26715.76363 | DA126: =INDEX(WRS!$M$23:$V$48,MATCH($D126,WRS!$C$23:$C$48,0),MATCH(DA$87,WRS!$M$7:$V$7,0)) -> 27730.5961
B127: South Wairarapa District | C127: Residential | D127: South Wairarapa DistrictResidential | F127: South Wairarapa District - Residential | I127: =INDEX('Capital values'!$G$8:$G$45,MATCH(D127,'Capital values'!$C$8:$C$45,0),) -> 1320775847 | K127: 561578.6284 | L127: 759456.6857 | M127: 803076.4109 | N127: 818367.1176 | O127: 867472.1376 | P127: 899664.5469 | Q127: 910028.2321 | R127: 938184.9368 | S127: 967267.3985 | T127: 1005744.024 | U127: 1034106.808 | W127: =INDEX('Comparison - Category'!$I$22:$P$47,MATCH('Vs Status Quo'!$D127,'Comparison - Category'!$C$22:$C$47,0),MATCH('Vs Status Quo'!W$85,'Comparison - Category'!$I$7:$P$7,0)) -> 306077.1946 | X127: 441338.5963 | Y127: 486594.4148 | Z127: 480608.8608 | AA127: 515193.1955 | AB127: 534244.7739 | AC127: 544396.1994 | AD127: 560907.0402 | AE127: 584977.562 | AF127: 606297.0158 | AG127: 634661.0626 | AI127: =INDEX('Comparison - Category'!$I$22:$P$47,MATCH('Vs Status Quo'!$D127,'Comparison - Category'!$C$22:$C$47,0),MATCH('Vs Status Quo'!AI$85,'Comparison - Category'!$I$7:$P$7,0)) -> 0 | AJ127: 0 | AK127: 0 | AL127: 0 | AM127: 0 | AN127: 0 | AO127: 0 | AP127: 0 | AQ127: 0 | AR127: 0 | AS127: 0 | BG127: =INDEX('Comparison - Category'!$I$22:$P$47,MATCH('Vs Status Quo'!$D127,'Comparison - Category'!$C$22:$C$47,0),MATCH('Vs Status Quo'!BG$85,'Comparison - Category'!$I$7:$P$7,0)) -> 0 | BH127: 0 | BI127: 0 | BJ127: 0 | BK127: 0 | BL127: 0 | BM127: 0 | BN127: 0 | BO127: 0 | BP127: 0 | BQ127: 0 | BS127: =INDEX('Comparison - Category'!$I$22:$P$47,MATCH('Vs Status Quo'!$D127,'Comparison - Category'!$C$22:$C$47,0),MATCH('Vs Status Quo'!BS$85,'Comparison - Category'!$I$7:$P$7,0)) -> 206694.8687 | BT127: =INDEX(Tran!$X$23:$AG$48,MATCH($D127,Tran!$C$23:$C$48,0),MATCH(BT$87,Tran!$X$7:$AG$7,0)) -> 273878.0894 | BU127: =INDEX(Tran!$X$23:$AG$48,MATCH($D127,Tran!$C$23:$C$48,0),MATCH(BU$87,Tran!$X$7:$AG$7,0)) -> 272241.9961 | BV127: =INDEX(Tran!$X$23:$AG$48,MATCH($D127,Tran!$C$23:$C$48,0),MATCH(BV$87,Tran!$X$7:$AG$7,0)) -> 293518.2568 | BW127: =INDEX(Tran!$X$23:$AG$48,MATCH($D127,Tran!$C$23:$C$48,0),MATCH(BW$87,Tran!$X$7:$AG$7,0)) -> 308038.9421 | BX127: =INDEX(Tran!$X$23:$AG$48,MATCH($D127,Tran!$C$23:$C$48,0),MATCH(BX$87,Tran!$X$7:$AG$7,0)) -> 321179.773 | BY127: =INDEX(Tran!$X$23:$AG$48,MATCH($D127,Tran!$C$23:$C$48,0),MATCH(BY$87,Tran!$X$7:$AG$7,0)) -> 321392.0327 | BZ127: =INDEX(Tran!$X$23:$AG$48,MATCH($D127,Tran!$C$23:$C$48,0),MATCH(BZ$87,Tran!$X$7:$AG$7,0)) -> 333037.8966 | CA127: =INDEX(Tran!$X$23:$AG$48,MATCH($D127,Tran!$C$23:$C$48,0),MATCH(CA$87,Tran!$X$7:$AG$7,0)) -> 338049.8365 | CB127: =INDEX(Tran!$X$23:$AG$48,MATCH($D127,Tran!$C$23:$C$48,0),MATCH(CB$87,Tran!$X$7:$AG$7,0)) -> 355207.0078 | CC127: =INDEX(Tran!$X$23:$AG$48,MATCH($D127,Tran!$C$23:$C$48,0),MATCH(CC$87,Tran!$X$7:$AG$7,0)) -> 355205.7453 | CE127: =INDEX('Comparison - Category'!$I$22:$P$47,MATCH('Vs Status Quo'!$D127,'Comparison - Category'!$C$22:$C$47,0),MATCH('Vs Status Quo'!CE$85,'Comparison - Category'!$I$7:$P$7,0)) -> 5798.565105 | CF127: =INDEX(Stad!$F$23:$F$48,MATCH($D127,Stad!$C$23:$C$48,0),0) -> 0 | CG127: 0 | CH127: 0 | CI127: 0 | CJ127: 0 | CK127: 0 | CL127: 0 | CM127: 0 | CN127: 0 | CO127: 0 | CQ127: =INDEX('Comparison - Category'!$I$22:$P$47,MATCH('Vs Status Quo'!$D127,'Comparison - Category'!$C$22:$C$47,0),MATCH('Vs Status Quo'!CQ$85,'Comparison - Category'!$I$7:$P$7,0)) -> 43008 | CR127: =INDEX(WRS!$M$23:$V$48,MATCH($D127,WRS!$C$23:$C$48,0),MATCH(CR$87,WRS!$M$7:$V$7,0)) -> 44240 | CS127: =INDEX(WRS!$M$23:$V$48,MATCH($D127,WRS!$C$23:$C$48,0),MATCH(CS$87,WRS!$M$7:$V$7,0)) -> 44240 | CT127: =INDEX(WRS!$M$23:$V$48,MATCH($D127,WRS!$C$23:$C$48,0),MATCH(CT$87,WRS!$M$7:$V$7,0)) -> 44240 | CU127: =INDEX(WRS!$M$23:$V$48,MATCH($D127,WRS!$C$23:$C$48,0),MATCH(CU$87,WRS!$M$7:$V$7,0)) -> 44240 | CV127: =INDEX(WRS!$M$23:$V$48,MATCH($D127,WRS!$C$23:$C$48,0),MATCH(CV$87,WRS!$M$7:$V$7,0)) -> 44240 | CW127: =INDEX(WRS!$M$23:$V$48,MATCH($D127,WRS!$C$23:$C$48,0),MATCH(CW$87,WRS!$M$7:$V$7,0)) -> 44240 | CX127: =INDEX(WRS!$M$23:$V$48,MATCH($D127,WRS!$C$23:$C$48,0),MATCH(CX$87,WRS!$M$7:$V$7,0)) -> 44240 | CY127: =INDEX(WRS!$M$23:$V$48,MATCH($D127,WRS!$C$23:$C$48,0),MATCH(CY$87,WRS!$M$7:$V$7,0)) -> 44240 | CZ127: =INDEX(WRS!$M$23:$V$48,MATCH($D127,WRS!$C$23:$C$48,0),MATCH(CZ$87,WRS!$M$7:$V$7,0)) -> 44240 | DA127: =INDEX(WRS!$M$23:$V$48,MATCH($D127,WRS!$C$23:$C$48,0),MATCH(DA$87,WRS!$M$7:$V$7,0)) -> 44240
B128: South Wairarapa District | C128: Rural | D128: South Wairarapa DistrictRural | F128: South Wairarapa District - Rural | I128: =INDEX('Capital values'!$G$8:$G$45,MATCH(D128,'Capital values'!$C$8:$C$45,0),) -> 2986563732 | K128: 1108357.56 | L128: 1258530.028 | M128: 1382330.373 | N128: 1410401.026 | O128: 1529214.517 | P128: 1615911.939 | Q128: 1672404.071 | R128: 1722905.627 | S128: 1783000.901 | T128: 1850606.923 | U128: 1914742.823 | W128: =INDEX('Comparison - Category'!$I$22:$P$47,MATCH('Vs Status Quo'!$D128,'Comparison - Category'!$C$22:$C$47,0),MATCH('Vs Status Quo'!W$85,'Comparison - Category'!$I$7:$P$7,0)) -> 873723.6326 | X128: 997963.3172 | Y128: 1100296.644 | Z128: 1086761.994 | AA128: 1164964.756 | AB128: 1208044.552 | AC128: 1230999.15 | AD128: 1268333.781 | AE128: 1322762.507 | AF128: 1370970.466 | AG128: 1435107.794 | AI128: =INDEX('Comparison - Category'!$I$22:$P$47,MATCH('Vs Status Quo'!$D128,'Comparison - Category'!$C$22:$C$47,0),MATCH('Vs Status Quo'!AI$85,'Comparison - Category'!$I$7:$P$7,0)) -> 0 | AJ128: 0 | AK128: 0 | AL128: 0 | AM128: 0 | AN128: 0 | AO128: 0 | AP128: 0 | AQ128: 0 | AR128: 0 | AS128: 0 | BG128: =INDEX('Comparison - Category'!$I$22:$P$47,MATCH('Vs Status Quo'!$D128,'Comparison - Category'!$C$22:$C$47,0),MATCH('Vs Status Quo'!BG$85,'Comparison - Category'!$I$7:$P$7,0)) -> 0 | BH128: 0 | BI128: 0 | BJ128: 0 | BK128: 0 | BL128: 0 | BM128: 0 | BN128: 0 | BO128: 0 | BP128: 0 | BQ128: 0 | BS128: =INDEX('Comparison - Category'!$I$22:$P$47,MATCH('Vs Status Quo'!$D128,'Comparison - Category'!$C$22:$C$47,0),MATCH('Vs Status Quo'!BS$85,'Comparison - Category'!$I$7:$P$7,0)) -> 153385.1807 | BT128: =INDEX(Tran!$X$23:$AG$48,MATCH($D128,Tran!$C$23:$C$48,0),MATCH(BT$87,Tran!$X$7:$AG$7,0)) -> 182530.7111 | BU128: =INDEX(Tran!$X$23:$AG$48,MATCH($D128,Tran!$C$23:$C$48,0),MATCH(BU$87,Tran!$X$7:$AG$7,0)) -> 203997.7293 | BV128: =INDEX(Tran!$X$23:$AG$48,MATCH($D128,Tran!$C$23:$C$48,0),MATCH(BV$87,Tran!$X$7:$AG$7,0)) -> 245603.0319 | BW128: =INDEX(Tran!$X$23:$AG$48,MATCH($D128,Tran!$C$23:$C$48,0),MATCH(BW$87,Tran!$X$7:$AG$7,0)) -> 286213.7606 | BX128: =INDEX(Tran!$X$23:$AG$48,MATCH($D128,Tran!$C$23:$C$48,0),MATCH(BX$87,Tran!$X$7:$AG$7,0)) -> 329831.3877 | BY128: =INDEX(Tran!$X$23:$AG$48,MATCH($D128,Tran!$C$23:$C$48,0),MATCH(BY$87,Tran!$X$7:$AG$7,0)) -> 363368.9209 | BZ128: =INDEX(Tran!$X$23:$AG$48,MATCH($D128,Tran!$C$23:$C$48,0),MATCH(BZ$87,Tran!$X$7:$AG$7,0)) -> 376535.8466 | CA128: =INDEX(Tran!$X$23:$AG$48,MATCH($D128,Tran!$C$23:$C$48,0),MATCH(CA$87,Tran!$X$7:$AG$7,0)) -> 382202.394 | CB128: =INDEX(Tran!$X$23:$AG$48,MATCH($D128,Tran!$C$23:$C$48,0),MATCH(CB$87,Tran!$X$7:$AG$7,0)) -> 401600.4568 | CC128: =INDEX(Tran!$X$23:$AG$48,MATCH($D128,Tran!$C$23:$C$48,0),MATCH(CC$87,Tran!$X$7:$AG$7,0)) -> 401599.0294 | CE128: =INDEX('Comparison - Category'!$I$22:$P$47,MATCH('Vs Status Quo'!$D128,'Comparison - Category'!$C$22:$C$47,0),MATCH('Vs Status Quo'!CE$85,'Comparison - Category'!$I$7:$P$7,0)) -> 3716.74713 | CF128: =INDEX(Stad!$F$23:$F$48,MATCH($D128,Stad!$C$23:$C$48,0),0) -> 0 | CG128: 0 | CH128: 0 | CI128: 0 | CJ128: 0 | CK128: 0 | CL128: 0 | CM128: 0 | CN128: 0 | CO128: 0 | CQ128: =INDEX('Comparison - Category'!$I$22:$P$47,MATCH('Vs Status Quo'!$D128,'Comparison - Category'!$C$22:$C$47,0),MATCH('Vs Status Quo'!CQ$85,'Comparison - Category'!$I$7:$P$7,0)) -> 77532 | CR128: =INDEX(WRS!$M$23:$V$48,MATCH($D128,WRS!$C$23:$C$48,0),MATCH(CR$87,WRS!$M$7:$V$7,0)) -> 78036 | CS128: =INDEX(WRS!$M$23:$V$48,MATCH($D128,WRS!$C$23:$C$48,0),MATCH(CS$87,WRS!$M$7:$V$7,0)) -> 78036 | CT128: =INDEX(WRS!$M$23:$V$48,MATCH($D128,WRS!$C$23:$C$48,0),MATCH(CT$87,WRS!$M$7:$V$7,0)) -> 78036 | CU128: =INDEX(WRS!$M$23:$V$48,MATCH($D128,WRS!$C$23:$C$48,0),MATCH(CU$87,WRS!$M$7:$V$7,0)) -> 78036 | CV128: =INDEX(WRS!$M$23:$V$48,MATCH($D128,WRS!$C$23:$C$48,0),MATCH(CV$87,WRS!$M$7:$V$7,0)) -> 78036 | CW128: =INDEX(WRS!$M$23:$V$48,MATCH($D128,WRS!$C$23:$C$48,0),MATCH(CW$87,WRS!$M$7:$V$7,0)) -> 78036 | CX128: =INDEX(WRS!$M$23:$V$48,MATCH($D128,WRS!$C$23:$C$48,0),MATCH(CX$87,WRS!$M$7:$V$7,0)) -> 78036 | CY128: =INDEX(WRS!$M$23:$V$48,MATCH($D128,WRS!$C$23:$C$48,0),MATCH(CY$87,WRS!$M$7:$V$7,0)) -> 78036 | CZ128: =INDEX(WRS!$M$23:$V$48,MATCH($D128,WRS!$C$23:$C$48,0),MATCH(CZ$87,WRS!$M$7:$V$7,0)) -> 78036 | DA128: =INDEX(WRS!$M$23:$V$48,MATCH($D128,WRS!$C$23:$C$48,0),MATCH(DA$87,WRS!$M$7:$V$7,0)) -> 78036
B129: Tararua District | C129: Rural | D129: Tararua DistrictRural | F129: Tararua District - Rural | I129: =INDEX('Capital values'!$G$8:$G$45,MATCH(D129,'Capital values'!$C$8:$C$45,0),) -> 7041800 | K129: 2606.442882 | L129: 2605.024652 | M129: 2846.308912 | N129: 2814.396551 | O129: 2998.78512 | P129: 3100.359816 | Q129: 3154.482783 | R129: 3242.511376 | S129: 3370.844886 | T129: 3484.510903 | U129: 3635.735613 | W129: =INDEX('Comparison - Category'!$I$22:$P$47,MATCH('Vs Status Quo'!$D129,'Comparison - Category'!$C$22:$C$47,0),MATCH('Vs Status Quo'!W$85,'Comparison - Category'!$I$7:$P$7,0)) -> 2354.442882 | X129: 2353.024652 | Y129: 2594.308912 | Z129: 2562.396551 | AA129: 2746.78512 | AB129: 2848.359816 | AC129: 2902.482783 | AD129: 2990.511376 | AE129: 3118.844886 | AF129: 3232.510903 | AG129: 3383.735613 | AI129: =INDEX('Comparison - Category'!$I$22:$P$47,MATCH('Vs Status Quo'!$D129,'Comparison - Category'!$C$22:$C$47,0),MATCH('Vs Status Quo'!AI$85,'Comparison - Category'!$I$7:$P$7,0)) -> 0 | AJ129: 0 | AK129: 0 | AL129: 0 | AM129: 0 | AN129: 0 | AO129: 0 | AP129: 0 | AQ129: 0 | AR129: 0 | AS129: 0 | BG129: =INDEX('Comparison - Category'!$I$22:$P$47,MATCH('Vs Status Quo'!$D129,'Comparison - Category'!$C$22:$C$47,0),MATCH('Vs Status Quo'!BG$85,'Comparison - Category'!$I$7:$P$7,0)) -> 0 | BH129: 0 | BI129: 0 | BJ129: 0 | BK129: 0 | BL129: 0 | BM129: =$I129/INDEX($I$91:$I$99,MATCH($B129,$B$91:$B$99,0),)*INDEX(BM$91:BM$99,MATCH($B129,$B$91:$B$99,0),) -> 0 | BN129: 0 | BO129: 0 | BP129: 0 | BQ129: 0 | BS129: =INDEX('Comparison - Category'!$I$22:$P$47,MATCH('Vs Status Quo'!$D129,'Comparison - Category'!$C$22:$C$47,0),MATCH('Vs Status Quo'!BS$85,'Comparison - Category'!$I$7:$P$7,0)) -> 0 | BT129: =INDEX(Tran!$X$23:$AG$48,MATCH($D129,Tran!$C$23:$C$48,0),MATCH(BT$87,Tran!$X$7:$AG$7,0)) -> 0 | BU129: =INDEX(Tran!$X$23:$AG$48,MATCH($D129,Tran!$C$23:$C$48,0),MATCH(BU$87,Tran!$X$7:$AG$7,0)) -> 0 | BV129: =INDEX(Tran!$X$23:$AG$48,MATCH($D129,Tran!$C$23:$C$48,0),MATCH(BV$87,Tran!$X$7:$AG$7,0)) -> 0 | BW129: =INDEX(Tran!$X$23:$AG$48,MATCH($D129,Tran!$C$23:$C$48,0),MATCH(BW$87,Tran!$X$7:$AG$7,0)) -> 0 | BX129: =INDEX(Tran!$X$23:$AG$48,MATCH($D129,Tran!$C$23:$C$48,0),MATCH(BX$87,Tran!$X$7:$AG$7,0)) -> 0 | BY129: =INDEX(Tran!$X$23:$AG$48,MATCH($D129,Tran!$C$23:$C$48,0),MATCH(BY$87,Tran!$X$7:$AG$7,0)) -> 0 | BZ129: =INDEX(Tran!$X$23:$AG$48,MATCH($D129,Tran!$C$23:$C$48,0),MATCH(BZ$87,Tran!$X$7:$AG$7,0)) -> 0 | CA129: =INDEX(Tran!$X$23:$AG$48,MATCH($D129,Tran!$C$23:$C$48,0),MATCH(CA$87,Tran!$X$7:$AG$7,0)) -> 0 | CB129: =INDEX(Tran!$X$23:$AG$48,MATCH($D129,Tran!$C$23:$C$48,0),MATCH(CB$87,Tran!$X$7:$AG$7,0)) -> 0 | CC129: =INDEX(Tran!$X$23:$AG$48,MATCH($D129,Tran!$C$23:$C$48,0),MATCH(CC$87,Tran!$X$7:$AG$7,0)) -> 0 | CE129: =INDEX('Comparison - Category'!$I$22:$P$47,MATCH('Vs Status Quo'!$D129,'Comparison - Category'!$C$22:$C$47,0),MATCH('Vs Status Quo'!CE$85,'Comparison - Category'!$I$7:$P$7,0)) -> 0 | CF129: =INDEX(Stad!$F$23:$F$48,MATCH($D129,Stad!$C$23:$C$48,0),0) -> 0 | CG129: 0 | CH129: 0 | CI129: 0 | CJ129: 0 | CK129: 0 | CL129: 0 | CM129: 0 | CN129: 0 | CO129: 0 | CQ129: =INDEX('Comparison - Category'!$I$22:$P$47,MATCH('Vs Status Quo'!$D129,'Comparison - Category'!$C$22:$C$47,0),MATCH('Vs Status Quo'!CQ$85,'Comparison - Category'!$I$7:$P$7,0)) -> 252 | CR129: =INDEX(WRS!$M$23:$V$48,MATCH($D129,WRS!$C$23:$C$48,0),MATCH(CR$87,WRS!$M$7:$V$7,0)) -> 252 | CS129: =INDEX(WRS!$M$23:$V$48,MATCH($D129,WRS!$C$23:$C$48,0),MATCH(CS$87,WRS!$M$7:$V$7,0)) -> 252 | CT129: =INDEX(WRS!$M$23:$V$48,MATCH($D129,WRS!$C$23:$C$48,0),MATCH(CT$87,WRS!$M$7:$V$7,0)) -> 252 | CU129: =INDEX(WRS!$M$23:$V$48,MATCH($D129,WRS!$C$23:$C$48,0),MATCH(CU$87,WRS!$M$7:$V$7,0)) -> 252 | CV129: =INDEX(WRS!$M$23:$V$48,MATCH($D129,WRS!$C$23:$C$48,0),MATCH(CV$87,WRS!$M$7:$V$7,0)) -> 252 | CW129: =INDEX(WRS!$M$23:$V$48,MATCH($D129,WRS!$C$23:$C$48,0),MATCH(CW$87,WRS!$M$7:$V$7,0)) -> 252 | CX129: =INDEX(WRS!$M$23:$V$48,MATCH($D129,WRS!$C$23:$C$48,0),MATCH(CX$87,WRS!$M$7:$V$7,0)) -> 252 | CY129: =INDEX(WRS!$M$23:$V$48,MATCH($D129,WRS!$C$23:$C$48,0),MATCH(CY$87,WRS!$M$7:$V$7,0)) -> 252 | CZ129: =INDEX(WRS!$M$23:$V$48,MATCH($D129,WRS!$C$23:$C$48,0),MATCH(CZ$87,WRS!$M$7:$V$7,0)) -> 252 | DA129: =INDEX(WRS!$M$23:$V$48,MATCH($D129,WRS!$C$23:$C$48,0),MATCH(DA$87,WRS!$M$7:$V$7,0)) -> 252
B130: Region wide | D130: =B130&C130 -> Region wide | F130: =B130 -> Region wide | I130: =SUM(I104:I129) -> 141502827378 | K130: =SUM(K104:K129) -> 118764835.5 | L130: =SUM(L104:L129) -> 126759823.5 | M130: =SUM(M104:M129) -> 134271262.8 | N130: =SUM(N104:N129) -> 142664314.2 | O130: =SUM(O104:O129) -> 154102484.4 | P130: 163583810.2 | Q130: 169056454.7 | R130: 174986304.3 | S130: 179629998.5 | T130: 187727807.8 | U130: 191970544.6 | W130: =SUM(W104:W129) -> 42481670.52 | X130: 47283314.08 | Y130: 52131847.83 | Z130: 51490578.67 | AA130: 55195810.83 | AB130: 57236923.43 | AC130: 58324507.98 | AD130: 60093415.74 | AE130: 62672238.56 | AF130: 64956322.57 | AG130: 67995137.08 | AI130: =SUM(AI104:AI129) -> 0 | AJ130: 0 | AK130: 0 | AL130: 0 | AM130: 0 | AN130: 0 | AO130: 0 | AP130: 0 | AQ130: 0 | AR130: 0 | AS130: 0 | AV130: =SUM(AV104:AV129) -> 0 | AW130: 0 | AX130: 0 | AY130: 0 | AZ130: 0 | BA130: 0 | BB130: 0 | BC130: 0 | BD130: 0 | BE130: 0 | BG130: =SUM(BG104:BG129) -> 5826660.315 | BH130: 6458970.807 | BI130: 6924767.886 | BJ130: 7430238.436 | BK130: 7927930.935 | BL130: 8139864.079 | BM130: 8678549.627 | BN130: 9232178.278 | BO130: 9676185.46 | BP130: 10225835.85 | BQ130: 11308656.48 | BS130: =SUM(BS104:BS129) -> 64656396.13 | BT130: =SUM(BT104:BT129) -> 68109677.79 | BU130: =SUM(BU104:BU129) -> 70192874.67 | BV130: 78511420.22 | BW130: 85537166.69 | BX130: 92653204.22 | BY130: 96392518.54 | BZ130: 99885368.53 | CA130: 101388559.2 | CB130: 106534371.1 | CC130: 106533992.5 | CE130: =SUM(CE104:CE129) -> 978091.35 | CF130: 0 | CG130: 0 | CH130: 0 | CI130: 0 | CJ130: 0 | CK130: 0 | CL130: =SUM(CL104:CL129) -> 0 | CM130: =SUM(CM104:CM129) -> 0 | CN130: =SUM(CN104:CN129) -> 0 | CO130: =SUM(CO104:CO129) -> 0 | CR130: =SUM(CR104:CR129) -> 4907860.821 | CS130: 5021772.408 | CT130: 5232076.873 | CU130: 5441575.924 | CV130: 5553818.525 | CW130: 5660878.516 | CX130: 5775341.708 | CY130: 5893015.298 | CZ130: 6011278.23 | DA130: 6132758.59
B132: Kapiti split
B133: Kapiti Coast District | C133: Residential - Otaki rating area | D133: =B133&C133 -> Kapiti Coast DistrictResidential - Otaki rating area | H133: =INDEX(capital_values,MATCH($D133,capital_values_rows,0),MATCH(H$87,capital_values_header,0)) -> 901915286.4 | I133: =INDEX('Capital values'!$G$8:$G$48,MATCH(D133,'Capital values'!$C$8:$C$48,0),) -> 1097915275 | K133: =SUMIF($W$87:$DA$87,K$87,$W133:$DA133) -> 686196.1438 | L133: =SUMIF($W$87:$DA$87,L$87,$W133:$DA133) -> 775396.1974 | M133: 803895.4327 | N133: 815124.0052 | O133: 856730.0588 | P133: 879893.5691 | Q133: 883599.0012 | R133: 916382.7752 | S133: 943706.0376 | T133: 983223.2397 | U133: 1016009.007 | W133: =$H133/$H$135*W$118 -> 301557.56 | X133: =$I133/INDEX($I$91:$I$99,MATCH($B133,$B$91:$B$99,0),)*INDEX(X$91:X$99,MATCH($B133,$B$91:$B$99,0),) -> 366869.5087 | Y133: 404489.1052 | Z133: 399513.5212 | AA133: 428262.2823 | AB133: 444099.2004 | AC133: 452537.7293 | AD133: 466262.6201 | AE133: 486271.6122 | AF133: 503993.7368 | AG133: 527571.7877 | AI133: =$H133/$H$135*AI$118 -> 0 | AJ133: =$I133/INDEX($I$91:$I$99,MATCH($B133,$B$91:$B$99,0),)*INDEX(AJ$91:AJ$99,MATCH($B133,$B$91:$B$99,0),) -> 0 | AK133: 0 | AL133: 0 | AM133: 0 | AN133: 0 | AO133: 0 | AP133: 0 | AQ133: 0 | AR133: 0 | AS133: 0 | BG133: =$H133/$H$135*BG$118 -> 95300.24611 | BH133: =$I133/INDEX($I$91:$I$99,MATCH($B133,$B$91:$B$99,0),)*INDEX(BH$91:BH$99,MATCH($B133,$B$91:$B$99,0),) -> 99880.73004 | BI133: 99000.80131 | BJ133: 102697.5015 | BK133: 110623.3554 | BL133: 115513.1735 | BM133: 120429.1925 | BN133: 129807.2718 | BO133: 132955.2898 | BP133: 140488.2043 | BQ133: 149696.9701 | BS133: =$H133/$H$135*BS$118 -> 242879.7763 | BT133: =INDEX(Tran!$X$23:$AG$55,MATCH($D133,Tran!$C$23:$C$55,0),MATCH(BT$87,Tran!$X$7:$AG$7,0)) -> 265175.9586 | BU133: =INDEX(Tran!$X$23:$AG$55,MATCH($D133,Tran!$C$23:$C$55,0),MATCH(BU$87,Tran!$X$7:$AG$7,0)) -> 256935.5262 | BV133: =INDEX(Tran!$X$23:$AG$55,MATCH($D133,Tran!$C$23:$C$55,0),MATCH(BV$87,Tran!$X$7:$AG$7,0)) -> 269442.9826 | BW133: =INDEX(Tran!$X$23:$AG$55,MATCH($D133,Tran!$C$23:$C$55,0),MATCH(BW$87,Tran!$X$7:$AG$7,0)) -> 274374.4211 | BX133: =INDEX(Tran!$X$23:$AG$55,MATCH($D133,Tran!$C$23:$C$55,0),MATCH(BX$87,Tran!$X$7:$AG$7,0)) -> 276811.1952 | BY133: =INDEX(Tran!$X$23:$AG$55,MATCH($D133,Tran!$C$23:$C$55,0),MATCH(BY$87,Tran!$X$7:$AG$7,0)) -> 267162.0795 | BZ133: =INDEX(Tran!$X$23:$AG$55,MATCH($D133,Tran!$C$23:$C$55,0),MATCH(BZ$87,Tran!$X$7:$AG$7,0)) -> 276842.8833 | CA133: =INDEX(Tran!$X$23:$AG$55,MATCH($D133,Tran!$C$23:$C$55,0),MATCH(CA$87,Tran!$X$7:$AG$7,0)) -> 281009.1355 | CB133: =INDEX(Tran!$X$23:$AG$55,MATCH($D133,Tran!$C$23:$C$55,0),MATCH(CB$87,Tran!$X$7:$AG$7,0)) -> 295271.2986 | CC133: =INDEX(Tran!$X$23:$AG$55,MATCH($D133,Tran!$C$23:$C$55,0),MATCH(CC$87,Tran!$X$7:$AG$7,0)) -> 295270.2491 | CE133: =$H133/$H$135*CE$118 -> 3548.56146 | CF133: =CF$118*$I133/$I$135 -> 0 | CG133: 0 | CH133: 0 | CI133: 0 | CJ133: 0 | CK133: 0 | CL133: 0 | CM133: 0 | CN133: 0 | CO133: 0 | CQ133: =3065*14 -> 42910 | CR133: =$H227*14 -> 43470 | CS133: =$H227*14 -> 43470 | CT133: 43470 | CU133: 43470 | CV133: 43470 | CW133: 43470 | CX133: 43470 | CY133: 43470 | CZ133: 43470 | DA133: 43470
B134: Kapiti Coast District | C134: Residential - ex-Otaki rating area | D134: =B134&C134 -> Kapiti Coast DistrictResidential - ex-Otaki rating area | H134: =H135-H133 -> 8564308459 | I134: =I135-I133 -> 1.015667151e+10 | K134: 6350128.155 | L134: 7324141.991 | M134: 7905549.516 | N134: 8421682.474 | O134: 9261004.814 | P134: 9983810.288 | Q134: 10491471.87 | R134: 10884306.16 | S134: 11175611.57 | T134: 11673117.49 | U134: 11976404.65 | W134: =$H134/$H$135*W$118 -> 2863497.272 | X134: 3393862.143 | Y134: 3741876.141 | Z134: 3695847.659 | AA134: 3961798.712 | AB134: 4108303.984 | AC134: 4186367.717 | AD134: 4313334.898 | AE134: 4498435.484 | AF134: 4662380.555 | AG134: 4880498.039 | AI134: =$H134/$H$135*AI$118 -> 0 | AJ134: 0 | AK134: 0 | AL134: 0 | AM134: 0 | AN134: 0 | AO134: 0 | AP134: 0 | AQ134: 0 | AR134: 0 | AS134: 0 | BG134: =$H134/$H$135*BG$118 -> 904941.6462 | BH134: 923983.6521 | BI134: 915843.5458 | BJ134: 950041.2387 | BK134: 1023362.283 | BL134: 1068597.355 | BM134: 1114074.807 | BN134: 1200830.2 | BO134: 1229952.106 | BP134: 1299638.119 | BQ134: 1384827.214 | BS134: =$H134/$H$135*BS$118 -> 2306311.196 | BT134: =INDEX(Tran!$X$23:$AG$55,MATCH($D134,Tran!$C$23:$C$55,0),MATCH(BT$87,Tran!$X$7:$AG$7,0)) -> 2758230.196 | BU134: =INDEX(Tran!$X$23:$AG$55,MATCH($D134,Tran!$C$23:$C$55,0),MATCH(BU$87,Tran!$X$7:$AG$7,0)) -> 2999763.829 | BV134: =INDEX(Tran!$X$23:$AG$55,MATCH($D134,Tran!$C$23:$C$55,0),MATCH(BV$87,Tran!$X$7:$AG$7,0)) -> 3527727.576 | BW134: =INDEX(Tran!$X$23:$AG$55,MATCH($D134,Tran!$C$23:$C$55,0),MATCH(BW$87,Tran!$X$7:$AG$7,0)) -> 4027777.818 | BX134: =INDEX(Tran!$X$23:$AG$55,MATCH($D134,Tran!$C$23:$C$55,0),MATCH(BX$87,Tran!$X$7:$AG$7,0)) -> 4558842.95 | BY134: =INDEX(Tran!$X$23:$AG$55,MATCH($D134,Tran!$C$23:$C$55,0),MATCH(BY$87,Tran!$X$7:$AG$7,0)) -> 4942963.348 | BZ134: =INDEX(Tran!$X$23:$AG$55,MATCH($D134,Tran!$C$23:$C$55,0),MATCH(BZ$87,Tran!$X$7:$AG$7,0)) -> 5122075.064 | CA134: =INDEX(Tran!$X$23:$AG$55,MATCH($D134,Tran!$C$23:$C$55,0),MATCH(CA$87,Tran!$X$7:$AG$7,0)) -> 5199157.98 | CB134: =INDEX(Tran!$X$23:$AG$55,MATCH($D134,Tran!$C$23:$C$55,0),MATCH(CB$87,Tran!$X$7:$AG$7,0)) -> 5463032.814 | CC134: =INDEX(Tran!$X$23:$AG$55,MATCH($D134,Tran!$C$23:$C$55,0),MATCH(CC$87,Tran!$X$7:$AG$7,0)) -> 5463013.396 | CE134: =$H134/$H$135*CE$118 -> 33696.04151 | CF134: 0 | CG134: 0 | CH134: 0 | CI134: 0 | CJ134: 0 | CK134: 0 | CL134: 0 | CM134: 0 | CN134: 0 | CO134: 0 | CQ134: =CQ$118-CQ133 -> 241682 | CR134: =CR$118-CR133 -> 248066 | CS134: =CS$118-CS133 -> 248066 | CT134: 248066 | CU134: 248066 | CV134: 248066 | CW134: 248066 | CX134: 248066 | CY134: 248066 | CZ134: 248066 | DA134: 248066
B135: Kapiti Coast District | C135: Residential | D135: =B135&C135 -> Kapiti Coast DistrictResidential | H135: =INDEX(capital_values,MATCH($D135,capital_values_rows,0),MATCH(H$87,capital_values_header,0)) -> 9466223746 | I135: =INDEX('Capital values'!$G$8:$G$45,MATCH(D135,'Capital values'!$C$8:$C$45,0),) -> 1.125458678e+10 | K135: 7036324.299 | L135: 8099538.188 | M135: 8709444.948 | N135: 9236806.48 | O135: 10117734.87 | P135: 10863703.86 | Q135: 11375070.87 | R135: 11800688.94 | S135: 12119317.61 | T135: 12656340.73 | U135: 12992413.66 | W135: =INDEX('Comparison - Category'!$I$22:$P$47,MATCH('Vs Status Quo'!$D135,'Comparison - Category'!$C$22:$C$47,0),MATCH('Vs Status Quo'!W$85,'Comparison - Category'!$I$7:$P$7,0)) -> 3165054.832 | X135: 3760731.652 | Y135: 4146365.246 | Z135: 4095361.181 | AA135: 4390060.995 | AB135: 4552403.184 | AC135: 4638905.446 | AD135: 4779597.518 | AE135: 4984707.096 | AF135: 5166374.291 | AG135: 5408069.827 | AI135: =INDEX('Comparison - Category'!$I$22:$P$47,MATCH('Vs Status Quo'!$D135,'Comparison - Category'!$C$22:$C$47,0),MATCH('Vs Status Quo'!AI$85,'Comparison - Category'!$I$7:$P$7,0)) -> 0 | AJ135: 0 | AK135: 0 | AL135: 0 | AM135: 0 | AN135: 0 | AO135: 0 | AP135: 0 | AQ135: 0 | AR135: 0 | AS135: 0 | BG135: =INDEX('Comparison - Category'!$I$22:$P$47,MATCH('Vs Status Quo'!$D135,'Comparison - Category'!$C$22:$C$47,0),MATCH('Vs Status Quo'!BG$85,'Comparison - Category'!$I$7:$P$7,0)) -> 1000241.892 | BH135: =SUM(BH133:BH134) -> 1023864.382 | BI135: =SUM(BI133:BI134) -> 1014844.347 | BJ135: 1052738.74 | BK135: 1133985.639 | BL135: 1184110.528 | BM135: 1234504 | BN135: 1330637.472 | BO135: 1362907.396 | BP135: 1440126.323 | BQ135: 1534524.184 | BS135: =INDEX('Comparison - Category'!$I$22:$P$47,MATCH('Vs Status Quo'!$D135,'Comparison - Category'!$C$22:$C$47,0),MATCH('Vs Status Quo'!BS$85,'Comparison - Category'!$I$7:$P$7,0)) -> 2549190.972 | BT135: =INDEX(Tran!$X$23:$AG$48,MATCH($D135,Tran!$C$23:$C$48,0),MATCH(BT$87,Tran!$X$7:$AG$7,0)) -> 3023406.154 | BU135: =INDEX(Tran!$X$23:$AG$48,MATCH($D135,Tran!$C$23:$C$48,0),MATCH(BU$87,Tran!$X$7:$AG$7,0)) -> 3256699.355 | BV135: =INDEX(Tran!$X$23:$AG$48,MATCH($D135,Tran!$C$23:$C$48,0),MATCH(BV$87,Tran!$X$7:$AG$7,0)) -> 3797170.559 | BW135: =INDEX(Tran!$X$23:$AG$48,MATCH($D135,Tran!$C$23:$C$48,0),MATCH(BW$87,Tran!$X$7:$AG$7,0)) -> 4302152.239 | BX135: =INDEX(Tran!$X$23:$AG$48,MATCH($D135,Tran!$C$23:$C$48,0),MATCH(BX$87,Tran!$X$7:$AG$7,0)) -> 4835654.145 | BY135: =INDEX(Tran!$X$23:$AG$48,MATCH($D135,Tran!$C$23:$C$48,0),MATCH(BY$87,Tran!$X$7:$AG$7,0)) -> 5210125.427 | BZ135: =INDEX(Tran!$X$23:$AG$48,MATCH($D135,Tran!$C$23:$C$48,0),MATCH(BZ$87,Tran!$X$7:$AG$7,0)) -> 5398917.948 | CA135: =INDEX(Tran!$X$23:$AG$48,MATCH($D135,Tran!$C$23:$C$48,0),MATCH(CA$87,Tran!$X$7:$AG$7,0)) -> 5480167.116 | CB135: =INDEX(Tran!$X$23:$AG$48,MATCH($D135,Tran!$C$23:$C$48,0),MATCH(CB$87,Tran!$X$7:$AG$7,0)) -> 5758304.113 | CC135: =INDEX(Tran!$X$23:$AG$48,MATCH($D135,Tran!$C$23:$C$48,0),MATCH(CC$87,Tran!$X$7:$AG$7,0)) -> 5758283.645 | CE135: =INDEX('Comparison - Category'!$I$22:$P$47,MATCH('Vs Status Quo'!$D135,'Comparison - Category'!$C$22:$C$47,0),MATCH('Vs Status Quo'!CE$85,'Comparison - Category'!$I$7:$P$7,0)) -> 37244.60297 | CF135: =INDEX(Stad!$F$23:$F$48,MATCH($D135,Stad!$C$23:$C$48,0),0) -> 0 | CG135: 0 | CH135: 0 | CI135: 0 | CJ135: 0 | CK135: 0 | CL135: 0 | CM135: 0 | CN135: 0 | CO135: 0 | CQ135: =INDEX('Comparison - Category'!$I$22:$P$47,MATCH('Vs Status Quo'!$D135,'Comparison - Category'!$C$22:$C$47,0),MATCH('Vs Status Quo'!CQ$85,'Comparison - Category'!$I$7:$P$7,0)) -> 284592 | CR135: =INDEX(WRS!$M$23:$V$48,MATCH($D135,WRS!$C$23:$C$48,0),MATCH(CR$87,WRS!$M$7:$V$7,0)) -> 291536 | CS135: =INDEX(WRS!$M$23:$V$48,MATCH($D135,WRS!$C$23:$C$48,0),MATCH(CS$87,WRS!$M$7:$V$7,0)) -> 291536 | CT135: =INDEX(WRS!$M$23:$V$48,MATCH($D135,WRS!$C$23:$C$48,0),MATCH(CT$87,WRS!$M$7:$V$7,0)) -> 291536 | CU135: =INDEX(WRS!$M$23:$V$48,MATCH($D135,WRS!$C$23:$C$48,0),MATCH(CU$87,WRS!$M$7:$V$7,0)) -> 291536 | CV135: =INDEX(WRS!$M$23:$V$48,MATCH($D135,WRS!$C$23:$C$48,0),MATCH(CV$87,WRS!$M$7:$V$7,0)) -> 291536 | CW135: =INDEX(WRS!$M$23:$V$48,MATCH($D135,WRS!$C$23:$C$48,0),MATCH(CW$87,WRS!$M$7:$V$7,0)) -> 291536 | CX135: =INDEX(WRS!$M$23:$V$48,MATCH($D135,WRS!$C$23:$C$48,0),MATCH(CX$87,WRS!$M$7:$V$7,0)) -> 291536 | CY135: =INDEX(WRS!$M$23:$V$48,MATCH($D135,WRS!$C$23:$C$48,0),MATCH(CY$87,WRS!$M$7:$V$7,0)) -> 291536 | CZ135: =INDEX(WRS!$M$23:$V$48,MATCH($D135,WRS!$C$23:$C$48,0),MATCH(CZ$87,WRS!$M$7:$V$7,0)) -> 291536 | DA135: =INDEX(WRS!$M$23:$V$48,MATCH($D135,WRS!$C$23:$C$48,0),MATCH(DA$87,WRS!$M$7:$V$7,0)) -> 291536
BH136: =BH135-BH118 -> 0 | BI136: =BI135-BI118 -> 0 | BJ136: 0 | BK136: 0 | BL136: 0 | BM136: 0 | BN136: 0 | BO136: 0 | BP136: 0 | BQ136: 0
B137: Reconciling value | K137: 118762503.2 | L137: 126759823.5 | M137: 134271262.8 | N137: 142664314.2 | O137: 154102484.4 | P137: 163583810.2 | Q137: 169056454.7 | R137: 174986304.3 | S137: 179629998.5 | T137: 187727807.8 | U137: 191970544.6
B138: Check | K138: =MROUND(ABS(K130-K137),5000) -> 0 | L138: 0 | M138: 0 | N138: 0 | O138: 0 | P138: 0 | Q138: 0 | R138: 0 | S138: 0 | T138: 0 | U138: 0
B140: By TA - annual % change
B141: Wellington City | C141: District wide | D141: =B141&C141 -> Wellington CityDistrict wide | F141: =B141&" - "&C141 -> Wellington City - District wide | I141: =INDEX('Capital values'!$G$8:$G$45,MATCH(D141,'Capital values'!$C$8:$C$45,0),) -> 68975077410 | L141: =L91/K91-1 -> 0.06066866078 | M141: 0.0719999547 | N141: 0.08640325726 | O141: 0.09907534144 | P141: 0.08273644818 | Q141: 0.04850777265 | R141: 0.03417182214 | S141: 0.02355222733 | T141: 0.04571277263 | U141: 0.014621305
B142: Hutt City | C142: District wide | D142: =B142&C142 -> Hutt CityDistrict wide | F142: =B142&" - "&C142 -> Hutt City - District wide | I142: =INDEX('Capital values'!$G$8:$G$45,MATCH(D142,'Capital values'!$C$8:$C$45,0),) -> 24118117072 | L142: =L92/K92-1 -> 0.06650092838 | M142: 0.03653085539 | N142: 0.03773973609 | O142: 0.04737644972 | P142: 0.03080708031 | Q142: 0.01300656106 | R142: 0.04057586499 | S142: 0.03390476107 | T142: 0.04770555446 | U142: 0.04424065321
B143: Upper Hutt City | C143: District wide | D143: Upper Hutt CityDistrict wide | F143: Upper Hutt City - District wide | I143: =INDEX('Capital values'!$G$8:$G$45,MATCH(D143,'Capital values'!$C$8:$C$45,0),) -> 9172479133 | L143: =L93/K93-1 -> 0.0349647679 | M143: 0.03178777792 | N143: 0.02398650388 | O143: 0.04343944913 | P143: 0.002527179882 | Q143: -0.01427540041 | R143: 0.0300673989 | S143: 0.02629439117 | T143: 0.03981266669 | U143: 0.02206224963
B144: Porirua City | C144: District wide | D144: Porirua CityDistrict wide | F144: Porirua City - District wide | I144: =INDEX('Capital values'!$G$8:$G$45,MATCH(D144,'Capital values'!$C$8:$C$45,0),) -> 11429809803 | L144: =L94/K94-1 -> 0.04193386111 | M144: 0.01201109911 | N144: 0.01289101893 | O144: 0.03024028361 | P144: 0.007952189105 | Q144: -0.02355230257 | R144: 0.03266314942 | S144: 0.02728397371 | T144: 0.04288320406 | U144: 0.02139584235
B145: Kapiti Coast District | C145: District wide | D145: Kapiti Coast DistrictDistrict wide | F145: Kapiti Coast District - District wide | I145: =INDEX('Capital values'!$G$8:$G$45,MATCH(D145,'Capital values'!$C$8:$C$45,0),) -> 14678791680 | L145: =L95/K95-1 -> 0.10646229 | M145: 0.0788720813 | N145: 0.06151482983 | O145: 0.09781844349 | P145: 0.07535623524 | Q145: 0.0492600211 | R145: 0.03752554008 | S145: 0.02746415608 | T145: 0.04414611014 | U145: 0.02734101576
B146: Masterton District | C146: District wide | D146: Masterton DistrictDistrict wide | F146: Masterton District - District wide | I146: =INDEX('Capital values'!$G$8:$G$45,MATCH(D146,'Capital values'!$C$8:$C$45,0),) -> 5891731979 | L146: =L96/K96-1 -> 0.1813386293 | M146: 0.1148846235 | N146: 0.04617579709 | O146: 0.104384353 | P146: 0.07833265096 | Q146: 0.05440369123 | R146: 0.03065896406 | S146: 0.03202224034 | T146: 0.03900230115 | U146: 0.02999704848
B147: Carterton District | C147: District wide | D147: Carterton DistrictDistrict wide | F147: Carterton District - District wide | I147: =INDEX('Capital values'!$G$8:$G$45,MATCH(D147,'Capital values'!$C$8:$C$45,0),) -> 2715649450 | L147: =L97/K97-1 -> 0.1613805306 | M147: 0.09385738834 | N147: 0.02943902008 | O147: 0.08554582532 | P147: 0.06019915411 | Q147: 0.03747327543 | R147: 0.03037795332 | S147: 0.03282895256 | T147: 0.03844935969 | U147: 0.0314343586
B148: South Wairarapa District | C148: District wide | D148: South Wairarapa DistrictDistrict wide | F148: South Wairarapa District - District wide | I148: =INDEX('Capital values'!$G$8:$G$45,MATCH(D148,'Capital values'!$C$8:$C$45,0),) -> 4514129051 | L148: =L98/K98-1 -> 0.1973701886 | M148: 0.08435379648 | N148: 0.02393897555 | O148: 0.07803819379 | P148: 0.05245481674 | Q148: 0.02912216767 | R148: 0.03074618433 | S148: 0.03318304587 | T148: 0.03893841726 | U148: 0.03170832545
B149: Tararua District | C149: District wide | D149: Tararua DistrictDistrict wide | F149: Tararua District - District wide | I149: =INDEX('Capital values'!$G$8:$G$45,MATCH(D149,'Capital values'!$C$8:$C$45,0),) -> 7041800 | L149: =L99/K99-1 -> -0.0005441246145 | M149: 0.09262263969 | N149: -0.01121184 | O149: 0.06551620058 | P149: 0.03387194871 | Q149: 0.01745699547 | R149: 0.02790587187 | S149: 0.03957843016 | T149: 0.03372033451 | U149: 0.04339912089
B150: Region wide | D150: Region wide | F150: =B150 -> Region wide | I150: =SUM(I141:I149) -> 141502827378 | L150: =L100/K100-1 -> 0.06731780445 | M150: 0.05925725581 | N150: 0.0625081736 | O150: 0.08017541208 | P150: 0.06152610652 | Q150: 0.03345468239 | R150: 0.03507615019 | S150: 0.02653747261 | T150: 0.04508049515 | U150: 0.02260047075
B152: Rates by TA - status quo
B153: By TA - $
B154: Wellington City | C154: District wide | D154: =B154&C154 -> Wellington CityDistrict wide | F154: =B154&" - "&C154 -> Wellington City - District wide | I154: =INDEX('Capital values'!$G$8:$G$45,MATCH(D154,'Capital values'!$C$8:$C$45,0),) -> 68975077410 | K154: 62570979.07 | L154: 65099893.05 | M154: 69814721.23 | N154: 73592677.74 | O154: 79706636.09 | P154: 83738928.04 | Q154: 86795353.4 | R154: 90006617.58 | S154: 92486024.88 | T154: 96861451.02 | U154: 98364678.33
B155: Hutt City | C155: District wide | D155: =B155&C155 -> Hutt CityDistrict wide | F155: =B155&" - "&C155 -> Hutt City - District wide | I155: =INDEX('Capital values'!$G$8:$G$45,MATCH(D155,'Capital values'!$C$8:$C$45,0),) -> 24118117072 | K155: 23454231.3 | L155: 25636399.47 | M155: 27499185.21 | N155: 28989094.52 | O155: 31171583.08 | P155: 32446681.91 | Q155: 33910212.71 | R155: 35392715.9 | S155: 36673124.53 | T155: 38816648.04 | U155: 40280707.95
B156: Upper Hutt City | C156: District wide | D156: Upper Hutt CityDistrict wide | F156: Upper Hutt City - District wide | I156: =INDEX('Capital values'!$G$8:$G$45,MATCH(D156,'Capital values'!$C$8:$C$45,0),) -> 9172479133 | K156: 8387211.703 | L156: 9046496.435 | M156: 9752267.48 | N156: 10289601.94 | O156: 11174173.33 | P156: 11584320.61 | Q156: 11978964.5 | R156: 12387850.3 | S156: 12718716.28 | T156: 13280818.94 | U156: 13501726.89
B157: Porirua City | C157: District wide | D157: Porirua CityDistrict wide | F157: Porirua City - District wide | I157: =INDEX('Capital values'!$G$8:$G$45,MATCH(D157,'Capital values'!$C$8:$C$45,0),) -> 11429809803 | K157: 9886888.663 | L157: 10773692.7 | M157: 11551752.44 | N157: 12160829.01 | O157: 13178522.2 | P157: 13836198.9 | Q157: 14336696.18 | R157: 14861838.51 | S157: 15266640.24 | T157: 15984559.99 | U157: 16228512.16
B158: Kapiti Coast District | C158: District wide | D158: Kapiti Coast DistrictDistrict wide | F158: Kapiti Coast District - District wide | I158: =INDEX('Capital values'!$G$8:$G$45,MATCH(D158,'Capital values'!$C$8:$C$45,0),) -> 14678791680 | K158: 9327067.548 | L158: 10157479.81 | M158: 10781041.65 | N158: 11110695.89 | O158: 11952931.4 | P158: 12470636.71 | Q158: 12873432.03 | R158: 13384703.71 | S158: 13805063.48 | T158: 14443828.6 | U158: 14864640.39
B159: Masterton District | C159: District wide | D159: Masterton DistrictDistrict wide | F159: Masterton District - District wide | I159: =INDEX('Capital values'!$G$8:$G$45,MATCH(D159,'Capital values'!$C$8:$C$45,0),) -> 5891731979 | K159: 2243225.911 | L159: 2608480.809 | M159: 2791848.575 | N159: 2802725.763 | O159: 2988526.577 | P159: 3091023.949 | Q159: 3165515.602 | R159: 3262749.233 | S159: 3386240.395 | T159: 3525757.523 | U159: 3642098.737
B160: Carterton District | C160: District wide | D160: Carterton DistrictDistrict wide | F160: Carterton District - District wide | I160: =INDEX('Capital values'!$G$8:$G$45,MATCH(D160,'Capital values'!$C$8:$C$45,0),) -> 2715649450 | K160: 1093953.066 | L160: 1245471.725 | M160: 1334067.272 | N160: 1344624.375 | O160: 1436335.847 | P160: 1488143.203 | Q160: 1525892.057 | R160: 1573885.297 | S160: 1632078.985 | T160: 1700754.836 | U160: 1754013.574
B161: South Wairarapa District | C161: District wide | D161: South Wairarapa DistrictDistrict wide | F161: South Wairarapa District - District wide | I161: =INDEX('Capital values'!$G$8:$G$45,MATCH(D161,'Capital values'!$C$8:$C$45,0),) -> 4514129051 | K161: 1798671.825 | L161: 2170657.015 | M161: 2326304.322 | N161: 2355794.355 | O161: 2521114.813 | P161: 2616460.022 | Q161: 2686339.755 | R161: 2772898.442 | S161: 2873061.489 | T161: 2996159.616 | U161: 3085241.548
B162: Tararua District | C162: District wide | D162: Tararua DistrictDistrict wide | F162: Tararua District - District wide | I162: =INDEX('Capital values'!$G$8:$G$45,MATCH(D162,'Capital values'!$C$8:$C$45,0),) -> 7041800 | K162: 2606.442882 | L162: 2645.559518 | M162: 2831.873722 | N162: 2797.521124 | O162: 2968.769826 | P162: 3055.264632 | Q162: 3116.136379 | R162: 3205.391131 | S162: 3338.437718 | T162: 3470.122677 | U162: 3605.256517
B163: Region wide | D163: Region wide | F163: =B163 -> Region wide | I163: =SUM(I154:I162) -> 141502827378 | K163: 118764835.5 | L163: 126741216.6 | M163: 135854020.1 | N163: 142648841.1 | O163: 154132792.1 | P163: 161275448.6 | Q163: 167275522.4 | R163: 173646464.4 | S163: 178844288.7 | T163: 187613448.7 | U163: 191725224.8
B165: Difference in total rates - between agreed option and status quo
B166: By TA - $
B167: Wellington City | C167: District wide | D167: =B167&C167 -> Wellington CityDistrict wide | F167: =B167&" - "&C167 -> Wellington City - District wide | I167: =INDEX('Capital values'!$G$8:$G$45,MATCH(D167,'Capital values'!$C$8:$C$45,0),) -> 68975077410 | K167: =K91-K154 -> 0 | L167: 1267183.52 | M167: 1330781.846 | N167: 3700028.544 | O167: 5243871.458 | P167: 8240082.774 | Q167: 9645354.363 | R167: 9729644.893 | S167: 9599248.723 | T167: 9890423.481 | U167: 9948047.885
B168: Hutt City | C168: District wide | D168: =B168&C168 -> Hutt CityDistrict wide | F168: =B168&" - "&C168 -> Hutt City - District wide | I168: =INDEX('Capital values'!$G$8:$G$45,MATCH(D168,'Capital values'!$C$8:$C$45,0),) -> 24118117072 | K168: =K92-K155 -> 0 | L168: -622440.0129 | M168: -1571444.41 | N168: -2082847.63 | O168: -2990613.739 | P168: -3397539.179 | Q168: -4483240.535 | R168: -4771718.874 | S168: -5013929.911 | T168: -5647133.988 | U168: -5643752.929
B169: Upper Hutt City | C169: District wide | D169: Upper Hutt CityDistrict wide | F169: Upper Hutt City - District wide | I169: =INDEX('Capital values'!$G$8:$G$45,MATCH(D169,'Capital values'!$C$8:$C$45,0),) -> 9172479133 | K169: =K93-K156 -> 0 | L169: -366027.8213 | M169: -795866.0577 | N169: -1118367.76 | O169: -1604545.788 | P169: -1990508.902 | Q169: -2522108.29 | R169: -2646651.027 | S169: -2721378.106 | T169: -2885460.068 | U169: -2877023.014
B170: Porirua City | C170: District wide | D170: Porirua CityDistrict wide | F170: Porirua City - District wide | I170: =INDEX('Capital values'!$G$8:$G$45,MATCH(D170,'Capital values'!$C$8:$C$45,0),) -> 11429809803 | K170: =K94-K157 -> 0 | L170: -472208.6181 | M170: -1126536.214 | N170: -1601221.126 | O170: -2299588.779 | P170: -2870754.144 | Q170: -3629512.894 | R170: -3804924.893 | S170: -3908050.087 | T170: -4138877.098 | U170: -4129380.902
B171: Kapiti Coast District | C171: District wide | D171: Kapiti Coast DistrictDistrict wide | F171: Kapiti Coast District - District wide | I171: =INDEX('Capital values'!$G$8:$G$45,MATCH(D171,'Capital values'!$C$8:$C$45,0),) -> 14678791680 | K171: =K95-K158 -> 0 | L171: 162568.7077 | M171: 352970.5748 | N171: 708223.1966 | O171: 1022095.96 | P171: 1482139.869 | Q171: 1766658.608 | R171: 1804764.241 | S171: 1801570.392 | T171: 1851777.444 | U171: 1876504.084
B172: Masterton District | C172: District wide | D172: Masterton DistrictDistrict wide | F172: Masterton District - District wide | I172: =INDEX('Capital values'!$G$8:$G$45,MATCH(D172,'Capital values'!$C$8:$C$45,0),) -> 5891731979 | K172: =K96-K159 -> 0 | L172: 41528.6137 | M172: 162606.1826 | N172: 288153.2983 | O172: 424991.8953 | P172: 589884.4741 | Q172: 715647.8263 | R172: 737406.6455 | S172: 742009.4367 | T172: 763503.5523 | U172: 775827.5107
B173: Carterton District | C173: District wide | D173: Carterton DistrictDistrict wide | F173: Carterton District - District wide | I173: =INDEX('Capital values'!$G$8:$G$45,MATCH(D173,'Capital values'!$C$8:$C$45,0),) -> 2715649450 | K173: =K97-K160 -> 0 | L173: 25024.06703 | M173: 55673.93661 | N173: 86029.45337 | O173: 116704.4435 | P173: 158388.7997 | Q173: 182340.8925 | R173: 186240.2738 | S173: 185829.6645 | T173: 187051.2368 | U173: 193134.4717
B174: South Wairarapa District | C174: District wide | D174: South Wairarapa DistrictDistrict wide | F174: South Wairarapa District - District wide | I174: =INDEX('Capital values'!$G$8:$G$45,MATCH(D174,'Capital values'!$C$8:$C$45,0),) -> 4514129051 | K174: =K98-K161 -> 0 | L174: -16980.99303 | M174: 9042.449467 | N174: 35458.22519 | O174: 56746.80037 | P174: 96622.84956 | Q174: 105753.9707 | R174: 105041.5124 | S174: 100377.279 | T174: 93060.15088 | U174: 101932.2046
B175: Tararua District | C175: District wide | D175: Tararua DistrictDistrict wide | F175: Tararua District - District wide | I175: =INDEX('Capital values'!$G$8:$G$45,MATCH(D175,'Capital values'!$C$8:$C$45,0),) -> 7041800 | K175: =K99-K162 -> 0 | L175: -40.53486663 | M175: 14.43518911 | N175: 16.87542696 | O175: 30.01529463 | P175: 45.0951837 | Q175: 38.34640418 | R175: 37.12024474 | S175: 32.40716799 | T175: 14.38822586 | U175: 30.47909607
B176: Region wide | D176: Region wide | F176: =B176 -> Region wide | I176: =SUM(I167:I175) -> 141502827378 | K176: =K100-K163 -> 0 | L176: 18606.92803 | M176: -1582757.258 | N176: 15473.077 | O176: -30307.7335 | P176: 2308361.636 | Q176: 1780932.288 | R176: 1339839.892 | S176: 785709.7992 | T176: 114359.0999 | U176: 245319.7908
B179: District-wide rates | W179: General rate | AI179: Flood protection – regional rate | AU179: Flood protection – catchment rate | BG179: River management rate | BS179: Public transport rate | CE179: Stadium purposes rate | CQ179: Regional strategy rate
B181: TA full name | C181: Category group | D181: Concatenated row | H181: ECV 2017/18 | I181: 2018/19 ECV | K181: 2017/18 | L181: 2018/19 | M181: 2019/20 | N181: 2020/21 | O181: 2021/22 | P181: 2022/23 | Q181: 2023/24 | R181: 2024/25 | S181: 2025/26 | T181: 2026/27 | U181: 2027/28 | W181: 2017/18 | X181: 2018/19 | Y181: 2019/20 | Z181: 2020/21 | AA181: 2021/22 | AB181: 2022/23 | AC181: 2023/24 | AD181: 2024/25 | AE181: 2025/26 | AF181: 2026/27 | AG181: 2027/28 | AI181: 2017/18 | AJ181: 2018/19 | AK181: 2019/20 | AL181: 2020/21 | AM181: 2021/22 | AN181: 2022/23 | AO181: 2023/24 | AP181: 2024/25 | AQ181: 2025/26 | AR181: 2026/27 | AS181: 2027/28 | AU181: 2017/18 | AV181: 2018/19 | AW181: 2019/20 | AX181: 2020/21 | AY181: 2021/22 | AZ181: 2022/23 | BA181: 2023/24 | BB181: 2024/25 | BC181: 2025/26 | BD181: 2026/27 | BE181: 2027/28 | BG181: 2017/18 | BH181: 2018/19 | BI181: 2019/20 | BJ181: 2020/21 | BK181: 2021/22 | BL181: 2022/23 | BM181: 2023/24 | BN181: 2024/25 | BO181: 2025/26 | BP181: 2026/27 | BQ181: 2027/28 | BS181: 2017/18 | BT181: 2018/19 | BU181: 2019/20 | BV181: 2020/21 | BW181: 2021/22 | BX181: 2022/23 | BY181: 2023/24 | BZ181: 2024/25 | CA181: 2025/26 | CB181: 2026/27 | CC181: 2027/28 | CE181: 2017/18 | CF181: 2018/19 | CG181: 2019/20 | CH181: 2020/21 | CI181: 2021/22 | CJ181: 2022/23 | CK181: 2023/24 | CL181: 2024/25 | CM181: 2025/26 | CN181: 2026/27 | CO181: 2027/28 | CQ181: 2017/18 | CR181: 2018/19 | CS181: 2019/20 | CT181: 2020/21 | CU181: 2021/22 | CV181: 2022/23 | CW181: 2023/24 | CX181: 2024/25 | CY181: 2025/26 | CZ181: 2026/27 | DA181: 2027/28
B183: Rates per average CV - agreed option
B184: By TA - $
B185: Wellington City | C185: District wide | D185: =B185&C185 -> Wellington CityDistrict wide | F185: =INDEX('Capital values'!$E$8:$E$45,MATCH(D185,'Capital values'!$C$8:$C$45,0),) -> 51992837451 | G185: =INDEX('Capital values'!$E$57:$E$93,MATCH(D185,'Capital values'!$C$57:$C$93,0),) -> 77369 | H185: =G185-INDEX('Capital values'!$E$104:$E$141,MATCH(D185,'Capital values'!$C$104:$C$141,0),) -> 77369 | I185: =F185/G185 -> 672011.2377 | K185: =INDEX('Comparison - Category'!$Y$10:$Y$48,MATCH(D185,'Comparison - Category'!$C$10:$C$484,0),) -> 812.9162811 | L185: =INDEX(L$91:L$130,MATCH($D185,$D$91:$D$130,0),)/$F185*$I185 -> 857.7993327 | M185: 919.5608458 | N185: 999.0138981 | O185: 1097.991541 | P185: 1188.835461 | Q185: 1246.503222 | R185: 1289.098508 | S185: 1319.459649 | T185: 1379.775808 | U185: 1399.949931
B186: Hutt City | C186: District wide | D186: =B186&C186 -> Hutt CityDistrict wide | F186: =INDEX('Capital values'!$E$8:$E$45,MATCH(D186,'Capital values'!$C$8:$C$45,0),) -> 21402530500 | G186: =INDEX('Capital values'!$E$57:$E$93,MATCH(D186,'Capital values'!$C$57:$C$93,0),) -> 39287 | H186: =G186-INDEX('Capital values'!$E$104:$E$141,MATCH(D186,'Capital values'!$C$104:$C$141,0),) -> 39162 | I186: =F186/G186 -> 544773.8565 | K186: =INDEX('Comparison - Category'!$Y$10:$Y$48,MATCH(D186,'Comparison - Category'!$C$10:$C$484,0),) -> 600.6359012 | L186: 636.6981307 | M186: 659.957258 | N186: 684.8638708 | O186: 717.3102895 | P186: 739.4085252 | Q186: 749.0256874 | R186: 779.4180525 | S186: 805.8440354 | T186: 844.2872719 | U186: 881.6390923
B187: Upper Hutt City | C187: District wide | D187: Upper Hutt CityDistrict wide | F187: =INDEX('Capital values'!$E$8:$E$45,MATCH(D187,'Capital values'!$C$8:$C$45,0),) -> 8186377260 | G187: =INDEX('Capital values'!$E$57:$E$93,MATCH(D187,'Capital values'!$C$57:$C$93,0),) -> 16792 | H187: =G187-INDEX('Capital values'!$E$104:$E$141,MATCH(D187,'Capital values'!$C$104:$C$141,0),) -> 16668 | I187: 487516.5114 | K187: =INDEX('Comparison - Category'!$Y$10:$Y$48,MATCH(D187,'Comparison - Category'!$C$10:$C$484,0),) -> 506.1684794 | L187: 516.9407226 | M187: 533.3731195 | N187: 546.1668759 | O187: 569.8920641 | P187: 571.3322838 | Q187: 563.1762867 | R187: 580.1095328 | S187: 595.3631598 | T187: 619.0661548 | U187: 632.7241468
B188: Porirua City | C188: District wide | D188: Porirua CityDistrict wide | F188: =INDEX('Capital values'!$E$8:$E$45,MATCH(D188,'Capital values'!$C$8:$C$45,0),) -> 10277129250 | G188: =INDEX('Capital values'!$E$57:$E$93,MATCH(D188,'Capital values'!$C$57:$C$93,0),) -> 18675 | H188: =G188-INDEX('Capital values'!$E$104:$E$141,MATCH(D188,'Capital values'!$C$104:$C$141,0),) -> 18675 | I188: 550314.8193 | K188: =INDEX('Comparison - Category'!$Y$10:$Y$48,MATCH(D188,'Comparison - Category'!$C$10:$C$484,0),) -> 534.0222893 | L188: 551.6189601 | M188: 558.2445101 | N188: 565.4408506 | O188: 582.5399423 | P188: 587.1724101 | Q188: 573.3431478 | R188: 592.0703407 | S188: 608.2243723 | T188: 634.3069822 | U188: 647.8785144
B189: Kapiti Coast District | C189: District wide | D189: Kapiti Coast DistrictDistrict wide | F189: =INDEX('Capital values'!$E$8:$E$45,MATCH(D189,'Capital values'!$C$8:$C$45,0),) -> 14770315600 | G189: =INDEX('Capital values'!$E$57:$E$93,MATCH(D189,'Capital values'!$C$57:$C$93,0),) -> 25013 | H189: =G189-INDEX('Capital values'!$E$104:$E$141,MATCH(D189,'Capital values'!$C$104:$C$141,0),) -> 24644 | I189: 590505.5611 | K189: =INDEX('Comparison - Category'!$Y$10:$Y$48,MATCH(D189,'Comparison - Category'!$C$10:$C$484,0),) -> 376.683799 | L189: 412.5873953 | M189: 445.1290219 | N189: 472.5110579 | O189: 518.7313541 | P189: 557.8209961 | Q189: 585.2992701 | R189: 607.2629413 | S189: 623.9409055 | T189: 651.4854694 | U189: 669.2977439
B190: Masterton District | C190: District wide | D190: Masterton DistrictDistrict wide | F190: =INDEX('Capital values'!$E$8:$E$45,MATCH(D190,'Capital values'!$C$8:$C$45,0),) -> 5846514500 | G190: =INDEX('Capital values'!$E$57:$E$93,MATCH(D190,'Capital values'!$C$57:$C$93,0),) -> 12342 | H190: =G190-INDEX('Capital values'!$E$104:$E$141,MATCH(D190,'Capital values'!$C$104:$C$141,0),) -> 11889 | I190: 473708.8397 | K190: =INDEX('Comparison - Category'!$Y$10:$Y$48,MATCH(D190,'Comparison - Category'!$C$10:$C$484,0),) -> 182.4354189 | L190: 214.7147483 | M190: 239.3821713 | N190: 250.4358339 | O190: 276.5774163 | P190: 298.2424585 | Q190: 314.4679492 | R190: 324.1092107 | S190: 334.4879138 | T190: 347.5337121 | U190: 357.9586977
B191: Carterton District | C191: District wide | D191: Carterton DistrictDistrict wide | F191: =INDEX('Capital values'!$E$8:$E$45,MATCH(D191,'Capital values'!$C$8:$C$45,0),) -> 2684833200 | G191: =INDEX('Capital values'!$E$57:$E$93,MATCH(D191,'Capital values'!$C$57:$C$93,0),) -> 4662 | H191: =G191-INDEX('Capital values'!$E$104:$E$141,MATCH(D191,'Capital values'!$C$104:$C$141,0),) -> 4331 | I191: 575897.2973 | K191: =INDEX('Comparison - Category'!$Y$10:$Y$48,MATCH(D191,'Comparison - Category'!$C$10:$C$484,0),) -> 239.8493895 | L191: 272.5216199 | M191: 298.0997874 | N191: 306.875553 | O191: 333.1274755 | P191: 353.1814677 | Q191: 366.4163341 | R191: 377.5473124 | S191: 389.9417952 | T191: 404.9348076 | U191: 417.6636735
B192: South Wairarapa District | C192: District wide | D192: South Wairarapa DistrictDistrict wide | F192: =INDEX('Capital values'!$E$8:$E$45,MATCH(D192,'Capital values'!$C$8:$C$45,0),) -> 4507670300 | G192: =INDEX('Capital values'!$E$57:$E$93,MATCH(D192,'Capital values'!$C$57:$C$93,0),) -> 6657 | H192: =G192-INDEX('Capital values'!$E$104:$E$141,MATCH(D192,'Capital values'!$C$104:$C$141,0),) -> 6251 | I192: 677132.387 | K192: =INDEX('Comparison - Category'!$Y$10:$Y$48,MATCH(D192,'Comparison - Category'!$C$10:$C$484,0),) -> 272.6086428 | L192: 323.5205081 | M192: 350.8106912 | N192: 359.2087398 | O192: 387.240741 | P192: 407.5533831 | Q192: 419.4222211 | R192: 432.317854 | S192: 446.6634772 | T192: 464.055846 | U192: 478.7702798
B193: Tararua District | C193: District wide | D193: Tararua DistrictDistrict wide | F193: =INDEX('Capital values'!$E$8:$E$45,MATCH(D193,'Capital values'!$C$8:$C$45,0),) -> 10760500 | G193: =INDEX('Capital values'!$E$57:$E$93,MATCH(D193,'Capital values'!$C$57:$C$93,0),) -> 10 | H193: =G193-INDEX('Capital values'!$E$104:$E$141,MATCH(D193,'Capital values'!$C$104:$C$141,0),) -> 9 | I193: 1076050 | K193: =INDEX('Comparison - Category'!$Y$10:$Y$48,MATCH(D193,'Comparison - Category'!$C$10:$C$484,0),) -> 217.2035735 | L193: 260.5024652 | M193: 284.6308912 | N193: 281.4396551 | O193: 299.878512 | P193: 310.0359816 | Q193: 315.4482783 | R193: 324.2511376 | S193: 337.0844886 | T193: 348.4510903 | U193: 363.5735613
B194: Region wide | D194: Region wide | F194: =INDEX('Capital values'!$E$8:$E$45,MATCH(D194,'Capital values'!$C$8:$C$45,0),) -> 119678968561 | G194: =INDEX('Capital values'!$E$57:$E$93,MATCH(D194,'Capital values'!$C$57:$C$93,0),) -> 200807 | H194: =G194-INDEX('Capital values'!$E$104:$E$141,MATCH(D194,'Capital values'!$C$104:$C$141,0),) -> 198998 | I194: 595990.0231 | K194: =INDEX('Comparison - Category'!$Y$10:$Y$48,MATCH(D194,'Comparison - Category'!$C$10:$C$484,0),) -> 595.8141971 | L194: 631.2520156 | M194: 668.6582778 | N194: 710.4548855 | O194: 767.4158987 | P194: 814.6320111 | Q194: 841.8852663 | R194: 871.4153603 | S194: 894.5405216 | T194: 934.8668512 | U194: 955.9952821
B197: By Category - $
B198: Wellington City | C198: Regional CBD | D198: Wellington CityRegional CBD | F198: =INDEX('Capital values'!$E$8:$E$45,MATCH(D198,'Capital values'!$C$8:$C$45,0),) -> 7963363000 | G198: =INDEX('Capital values'!$E$57:$E$93,MATCH(D198,'Capital values'!$C$57:$C$93,0),) -> 3381 | H198: =G198-INDEX('Capital values'!$E$104:$E$141,MATCH(D198,'Capital values'!$C$104:$C$141,0),) -> 3381 | I198: =F198/G198 -> 2355327.714 | K198: =INDEX('Comparison - Category'!$Y$10:$Y$48,MATCH(D198,'Comparison - Category'!$C$10:$C$484,0),) -> 8606.006461 | L198: =(INDEX(L$91:L$130,MATCH($D198,$D$91:$D$130,0),)-INDEX(CR$91:CR$130,MATCH($D198,$D$91:$D$130,0),))/$F198*$I198+INDEX(CR$91:CR$130,MATCH($D198,$D$91:$D$130,0),)/$H198 -> 8954.374362 | M198: =(INDEX(M$91:M$130,MATCH($D198,$D$91:$D$130,0),)-INDEX(CS$91:CS$130,MATCH($D198,$D$91:$D$130,0),))/$F198*$I198+INDEX(CS$91:CS$130,MATCH($D198,$D$91:$D$130,0),)/$H198 -> 9283.385467 | N198: =(INDEX(N$91:N$130,MATCH($D198,$D$91:$D$130,0),)-INDEX(CT$91:CT$130,MATCH($D198,$D$91:$D$130,0),))/$F198*$I198+INDEX(CT$91:CT$130,MATCH($D198,$D$91:$D$130,0),)/$H198 -> 10197.53773 | O198: =(INDEX(O$91:O$130,MATCH($D198,$D$91:$D$130,0),)-INDEX(CU$91:CU$130,MATCH($D198,$D$91:$D$130,0),))/$F198*$I198+INDEX(CU$91:CU$130,MATCH($D198,$D$91:$D$130,0),)/$H198 -> 11058.37857 | P198: =(INDEX(P$91:P$130,MATCH($D198,$D$91:$D$130,0),)-INDEX(CV$91:CV$130,MATCH($D198,$D$91:$D$130,0),))/$F198*$I198+INDEX(CV$91:CV$130,MATCH($D198,$D$91:$D$130,0),)/$H198 -> 11875.74297 | Q198: =(INDEX(Q$91:Q$130,MATCH($D198,$D$91:$D$130,0),)-INDEX(CW$91:CW$130,MATCH($D198,$D$91:$D$130,0),))/$F198*$I198+INDEX(CW$91:CW$130,MATCH($D198,$D$91:$D$130,0),)/$H198 -> 12294.17659 | R198: =(INDEX(R$91:R$130,MATCH($D198,$D$91:$D$130,0),)-INDEX(CX$91:CX$130,MATCH($D198,$D$91:$D$130,0),))/$F198*$I198+INDEX(CX$91:CX$130,MATCH($D198,$D$91:$D$130,0),)/$H198 -> 12733.42141 | S198: =(INDEX(S$91:S$130,MATCH($D198,$D$91:$D$130,0),)-INDEX(CY$91:CY$130,MATCH($D198,$D$91:$D$130,0),))/$F198*$I198+INDEX(CY$91:CY$130,MATCH($D198,$D$91:$D$130,0),)/$H198 -> 12971.28465 | T198: =(INDEX(T$91:T$130,MATCH($D198,$D$91:$D$130,0),)-INDEX(CZ$91:CZ$130,MATCH($D198,$D$91:$D$130,0),))/$F198*$I198+INDEX(CZ$91:CZ$130,MATCH($D198,$D$91:$D$130,0),)/$H198 -> 13604.94922 | U198: =(INDEX(U$91:U$130,MATCH($D198,$D$91:$D$130,0),)-INDEX(DA$91:DA$130,MATCH($D198,$D$91:$D$130,0),))/$F198*$I198+INDEX(DA$91:DA$130,MATCH($D198,$D$91:$D$130,0),)/$H198 -> 13687.46376
B199: Wellington City | C199: Business | D199: Wellington CityBusiness | F199: =INDEX('Capital values'!$E$8:$E$45,MATCH(D199,'Capital values'!$C$8:$C$45,0),) -> 3896130400 | G199: =INDEX('Capital values'!$E$57:$E$93,MATCH(D199,'Capital values'!$C$57:$C$93,0),) -> 1899 | H199: =G199-INDEX('Capital values'!$E$104:$E$141,MATCH(D199,'Capital values'!$C$104:$C$141,0),) -> 1899 | I199: 2051674.776 | K199: =INDEX('Comparison - Category'!$Y$10:$Y$48,MATCH(D199,'Comparison - Category'!$C$10:$C$484,0),) -> 1709.291723 | L199: =(INDEX(L$91:L$130,MATCH($D199,$D$91:$D$130,0),)-INDEX(CR$91:CR$130,MATCH($D199,$D$91:$D$130,0),))/$F199*$I199+INDEX(CR$91:CR$130,MATCH($D199,$D$91:$D$130,0),)/$H199 -> 1910.937601 | M199: 2156.01132 | N199: 2401.567065 | O199: 2734.017827 | P199: 3044.916205 | Q199: 3291.286028 | R199: 3405.109725 | S199: 3496.628913 | T199: 3652.603442 | U199: 3724.50921
B200: Wellington City | C200: Residential | D200: Wellington CityResidential | F200: =INDEX('Capital values'!$E$8:$E$45,MATCH(D200,'Capital values'!$C$8:$C$45,0),) -> 39537398501 | G200: =INDEX('Capital values'!$E$57:$E$93,MATCH(D200,'Capital values'!$C$57:$C$93,0),) -> 71308 | H200: =G200-INDEX('Capital values'!$E$104:$E$141,MATCH(D200,'Capital values'!$C$104:$C$141,0),) -> 71308 | I200: 554459.5067 | K200: =INDEX('Comparison - Category'!$Y$10:$Y$48,MATCH(D200,'Comparison - Category'!$C$10:$C$484,0),) -> 419.4153473 | L200: 450.5066941 | M200: 494.9419086 | N200: 531.1683396 | O200: 588.4585629 | P200: 639.6803294 | Q200: 675.6533283 | R200: 697.8239665 | S200: 716.8271032 | T200: 747.820512 | U200: 763.6436012
B201: Wellington City | C201: Rural | D201: Wellington CityRural | F201: =INDEX('Capital values'!$E$8:$E$45,MATCH(D201,'Capital values'!$C$8:$C$45,0),) -> 595945550 | G201: =INDEX('Capital values'!$E$57:$E$93,MATCH(D201,'Capital values'!$C$57:$C$93,0),) -> 781 | H201: =G201-INDEX('Capital values'!$E$104:$E$141,MATCH(D201,'Capital values'!$C$104:$C$141,0),) -> 781 | I201: 763054.4814 | K201: =INDEX('Comparison - Category'!$Y$10:$Y$48,MATCH(D201,'Comparison - Category'!$C$10:$C$484,0),) -> 401.0300002 | L201: 433.7195956 | M201: 474.7678578 | N201: 483.6151192 | O201: 522.9533162 | P201: 551.2202544 | Q201: 569.0870674 | R201: 586.2099021 | S201: 606.6002831 | T201: 629.5290461 | U201: 651.3064414
B202: Hutt City | C202: Business | D202: Hutt CityBusiness | F202: =INDEX('Capital values'!$E$8:$E$45,MATCH(D202,'Capital values'!$C$8:$C$45,0),) -> 3789029500 | G202: =INDEX('Capital values'!$E$57:$E$93,MATCH(D202,'Capital values'!$C$57:$C$93,0),) -> 2371 | H202: =G202-INDEX('Capital values'!$E$104:$E$141,MATCH(D202,'Capital values'!$C$104:$C$141,0),) -> 2371 | I202: 1598072.332 | K202: =INDEX('Comparison - Category'!$Y$10:$Y$48,MATCH(D202,'Comparison - Category'!$C$10:$C$484,0),) -> 1881.269392 | L202: 1999.3061 | M202: 2111.150855 | N202: 2245.37408 | O202: 2406.317261 | P202: 2537.30602 | Q202: 2626.836267 | R202: 2733.644901 | S202: 2822.857953 | T202: 2958.622398 | U202: 3075.464426
B203: Hutt City | C203: Residential | D203: Hutt CityResidential | F203: =INDEX('Capital values'!$E$8:$E$45,MATCH(D203,'Capital values'!$C$8:$C$45,0),) -> 17301952000 | G203: =INDEX('Capital values'!$E$57:$E$93,MATCH(D203,'Capital values'!$C$57:$C$93,0),) -> 36436 | H203: =G203-INDEX('Capital values'!$E$104:$E$141,MATCH(D203,'Capital values'!$C$104:$C$141,0),) -> 36311 | I203: 474858.7112 | K203: =INDEX('Comparison - Category'!$Y$10:$Y$48,MATCH(D203,'Comparison - Category'!$C$10:$C$484,0),) -> 519.2523726 | L203: 549.9433227 | M203: 567.3216474 | N203: 585.2830803 | O203: 609.4241661 | P203: 624.4869594 | Q203: 628.8236946 | R203: 654.3122843 | S203: 676.6532159 | T203: 708.877415 | U203: 740.9707289
B204: Hutt City | C204: Rural | D204: Hutt CityRural | F204: =INDEX('Capital values'!$E$8:$E$45,MATCH(D204,'Capital values'!$C$8:$C$45,0),) -> 311549000 | G204: =INDEX('Capital values'!$E$57:$E$93,MATCH(D204,'Capital values'!$C$57:$C$93,0),) -> 480 | H204: =G204-INDEX('Capital values'!$E$104:$E$141,MATCH(D204,'Capital values'!$C$104:$C$141,0),) -> 480 | I204: 649060.4167 | K204: =INDEX('Comparison - Category'!$Y$10:$Y$48,MATCH(D204,'Comparison - Category'!$C$10:$C$484,0),) -> 456.8468442 | L204: 495.0412319 | M204: 527.1261938 | N204: 539.2513184 | O204: 567.421256 | P204: 585.69438 | Q204: 601.4026079 | R204: 626.567872 | S204: 652.9413249 | T204: 682.7351076 | U204: 726.602888
B205: Upper Hutt City | C205: Business | D205: Upper Hutt CityBusiness | F205: =INDEX('Capital values'!$E$8:$E$45,MATCH(D205,'Capital values'!$C$8:$C$45,0),) -> 1174676500 | G205: =INDEX('Capital values'!$E$57:$E$93,MATCH(D205,'Capital values'!$C$57:$C$93,0),) -> 716 | H205: =G205-INDEX('Capital values'!$E$104:$E$141,MATCH(D205,'Capital values'!$C$104:$C$141,0),) -> 716 | I205: 1640609.637 | K205: =INDEX('Comparison - Category'!$Y$10:$Y$48,MATCH(D205,'Comparison - Category'!$C$10:$C$484,0),) -> 1849.441913 | L205: 1939.900174 | M205: 2038.27532 | N205: 2148.045675 | O205: 2297.391641 | P205: 2371.334192 | Q205: 2404.8512 | R205: 2482.760647 | S205: 2547.4495 | T205: 2654.839641 | U205: 2708.527337
B206: Upper Hutt City | C206: Residential | D206: Upper Hutt CityResidential | F206: =INDEX('Capital values'!$E$8:$E$45,MATCH(D206,'Capital values'!$C$8:$C$45,0),) -> 6156988420 | G206: =INDEX('Capital values'!$E$57:$E$93,MATCH(D206,'Capital values'!$C$57:$C$93,0),) -> 14823 | H206: =G206-INDEX('Capital values'!$E$104:$E$141,MATCH(D206,'Capital values'!$C$104:$C$141,0),) -> 14780 | I206: 415367.228 | K206: =INDEX('Comparison - Category'!$Y$10:$Y$48,MATCH(D206,'Comparison - Category'!$C$10:$C$484,0),) -> 448.6329345 | L206: 454.5751828 | M206: 465.6914392 | N206: 474.4164697 | O206: 491.630437 | P206: 489.5995018 | Q206: 478.7192682 | R206: 493.009303 | S206: 505.76188 | T206: 525.8907424 | U206: 537.199689
B207: Upper Hutt City | C207: Rural | D207: Upper Hutt CityRural | F207: =INDEX('Capital values'!$E$8:$E$45,MATCH(D207,'Capital values'!$C$8:$C$45,0),) -> 854712340 | G207: =INDEX('Capital values'!$E$57:$E$93,MATCH(D207,'Capital values'!$C$57:$C$93,0),) -> 1253 | H207: =G207-INDEX('Capital values'!$E$104:$E$141,MATCH(D207,'Capital values'!$C$104:$C$141,0),) -> 1172 | I207: 682132.7534 | K207: =INDEX('Comparison - Category'!$Y$10:$Y$48,MATCH(D207,'Comparison - Category'!$C$10:$C$484,0),) -> 403.6135574 | L207: 443.8963721 | M207: 476.3943258 | N207: 481.9059417 | O207: 510.8756248 | P207: 511.9497314 | Q207: 512.2083282 | R207: 525.5672412 | S207: 542.1596087 | T207: 560.3233949 | U207: 578.8964973
B208: Porirua City | C208: Business | D208: Porirua CityBusiness | F208: =INDEX('Capital values'!$E$8:$E$45,MATCH(D208,'Capital values'!$C$8:$C$45,0),) -> 1099995500 | G208: =INDEX('Capital values'!$E$57:$E$93,MATCH(D208,'Capital values'!$C$57:$C$93,0),) -> 797 | H208: =G208-INDEX('Capital values'!$E$104:$E$141,MATCH(D208,'Capital values'!$C$104:$C$141,0),) -> 797 | I208: 1380170.013 | K208: =INDEX('Comparison - Category'!$Y$10:$Y$48,MATCH(D208,'Comparison - Category'!$C$10:$C$484,0),) -> 1472.533531 | L208: 1536.273996 | M208: 1591.566777 | N208: 1666.699071 | O208: 1769.955568 | P208: 1841.908782 | Q208: 1861.764113 | R208: 1925.974318 | S208: 1977.697024 | T208: 2065.725429 | U208: 2106.48785
B209: Porirua City | C209: Residential | D209: Porirua CityResidential | F209: =INDEX('Capital values'!$E$8:$E$45,MATCH(D209,'Capital values'!$C$8:$C$45,0),) -> 8551317050 | G209: =INDEX('Capital values'!$E$57:$E$93,MATCH(D209,'Capital values'!$C$57:$C$93,0),) -> 17255 | H209: =G209-INDEX('Capital values'!$E$104:$E$141,MATCH(D209,'Capital values'!$C$104:$C$141,0),) -> 17255 | I209: 495584.8768 | K209: =INDEX('Comparison - Category'!$Y$10:$Y$48,MATCH(D209,'Comparison - Category'!$C$10:$C$484,0),) -> 490.8425897 | L209: 505.7531492 | M209: 509.2757943 | N209: 513.6737097 | O209: 526.3574659 | P209: 527.6181665 | Q209: 511.8127396 | R209: 528.4324555 | S209: 542.7114453 | T209: 565.959154 | U209: 577.8914519
B210: Porirua City | C210: Rural | D210: Porirua CityRural | F210: =INDEX('Capital values'!$E$8:$E$45,MATCH(D210,'Capital values'!$C$8:$C$45,0),) -> 625816700 | G210: =INDEX('Capital values'!$E$57:$E$93,MATCH(D210,'Capital values'!$C$57:$C$93,0),) -> 623 | H210: =G210-INDEX('Capital values'!$E$104:$E$141,MATCH(D210,'Capital values'!$C$104:$C$141,0),) -> 623 | I210: 1004521.188 | K210: =INDEX('Comparison - Category'!$Y$10:$Y$48,MATCH(D210,'Comparison - Category'!$C$10:$C$484,0),) -> 520.2592046 | L210: 562.284294 | M210: 592.5901676 | N210: 590.3834105 | O210: 619.5517852 | P210: 631.4478289 | Q210: 629.2591757 | R210: 648.1702445 | S210: 670.7538311 | T210: 696.1067783 | U210: 720.2944412
B211: Kapiti Coast District | C211: Business | D211: Kapiti Coast DistrictBusiness | F211: =INDEX('Capital values'!$E$8:$E$45,MATCH(D211,'Capital values'!$C$8:$C$45,0),) -> 1479149500 | G211: =INDEX('Capital values'!$E$57:$E$93,MATCH(D211,'Capital values'!$C$57:$C$93,0),) -> 1334 | H211: =G211-INDEX('Capital values'!$E$104:$E$141,MATCH(D211,'Capital values'!$C$104:$C$141,0),) -> 1334 | I211: 1108807.721 | K211: =INDEX('Comparison - Category'!$Y$10:$Y$48,MATCH(D211,'Comparison - Category'!$C$10:$C$484,0),) -> 864.7223223 | L211: 887.4370782 | M211: 983.1675859 | N211: 1084.308858 | O211: 1224.138615 | P211: 1351.692512 | Q211: 1452.62394 | R211: 1508.11253 | S211: 1548.300968 | T211: 1618.993455 | U211: 1657.305248
B212: Kapiti Coast District | C212: Residential | D212: Kapiti Coast DistrictResidential | F212: =INDEX('Capital values'!$E$8:$E$45,MATCH(D212,'Capital values'!$C$8:$C$45,0),) -> 11324760400 | G212: =INDEX('Capital values'!$E$57:$E$93,MATCH(D212,'Capital values'!$C$57:$C$93,0),) -> 21036 | H212: =G212-INDEX('Capital values'!$E$104:$E$141,MATCH(D212,'Capital values'!$C$104:$C$141,0),) -> 20824 | I212: 538351.4166 | K212: =INDEX('Comparison - Category'!$Y$10:$Y$48,MATCH(D212,'Comparison - Category'!$C$10:$C$484,0),) -> 342.0246951 | L212: 385.1733309 | M212: 414.1668068 | N212: 439.2362845 | O212: 481.1134661 | P212: 516.5750075 | Q212: 540.884145 | R212: 561.116987 | S212: 576.2638148 | T212: 601.7925807 | U212: 617.7686659
B213: Kapiti Coast District | C213: Rural | D213: Kapiti Coast DistrictRural | F213: =INDEX('Capital values'!$E$8:$E$45,MATCH(D213,'Capital values'!$C$8:$C$45,0),) -> 1966405700 | G213: =INDEX('Capital values'!$E$57:$E$93,MATCH(D213,'Capital values'!$C$57:$C$93,0),) -> 2643 | H213: =G213-INDEX('Capital values'!$E$104:$E$141,MATCH(D213,'Capital values'!$C$104:$C$141,0),) -> 2486 | I213: 744005.1835 | K213: =INDEX('Comparison - Category'!$Y$10:$Y$48,MATCH(D213,'Comparison - Category'!$C$10:$C$484,0),) -> 392.4001229 | L213: 393.895296 | M213: 422.7838501 | N213: 431.3433957 | O213: 464.8836833 | P213: 488.199359 | Q213: 503.8272543 | R213: 522.6458183 | S213: 539.6438785 | T213: 561.4544273 | U213: 583.5344729
B214: Masterton District | C214: Business | D214: Masterton DistrictBusiness | F214: =INDEX('Capital values'!$E$8:$E$45,MATCH(D214,'Capital values'!$C$8:$C$45,0),) -> 433363100 | G214: =INDEX('Capital values'!$E$57:$E$93,MATCH(D214,'Capital values'!$C$57:$C$93,0),) -> 550 | H214: =G214-INDEX('Capital values'!$E$104:$E$141,MATCH(D214,'Capital values'!$C$104:$C$141,0),) -> 550 | I214: 787932.9091 | K214: =INDEX('Comparison - Category'!$Y$10:$Y$48,MATCH(D214,'Comparison - Category'!$C$10:$C$484,0),) -> 388.3910052 | L214: 439.6136611 | M214: 509.2647637 | N214: 568.6714817 | O214: 655.9320388 | P214: 737.0587762 | Q214: 805.0545257 | R214: 832.6547662 | S214: 856.9263386 | T214: 894.1659152 | U214: 915.1130928
B215: Masterton District | C215: Residential | D215: Masterton DistrictResidential | F215: =INDEX('Capital values'!$E$8:$E$45,MATCH(D215,'Capital values'!$C$8:$C$45,0),) -> 2604255800 | G215: =INDEX('Capital values'!$E$57:$E$93,MATCH(D215,'Capital values'!$C$57:$C$93,0),) -> 7912 | H215: =G215-INDEX('Capital values'!$E$104:$E$141,MATCH(D215,'Capital values'!$C$104:$C$141,0),) -> 7897 | I215: 329152.6542 | K215: =INDEX('Comparison - Category'!$Y$10:$Y$48,MATCH(D215,'Comparison - Category'!$C$10:$C$484,0),) -> 130.2916845 | L215: 159.612973 | M215: 176.8051346 | N215: 185.3401224 | O215: 204.1443846 | P215: 219.9229553 | Q215: 231.4332076 | R215: 238.5044548 | S215: 245.8081957 | T215: 255.4711776 | U215: 262.5941794
B216: Masterton District | C216: Rural | D216: Masterton DistrictRural | F216: =INDEX('Capital values'!$E$8:$E$45,MATCH(D216,'Capital values'!$C$8:$C$45,0),) -> 2808895600 | G216: =INDEX('Capital values'!$E$57:$E$93,MATCH(D216,'Capital values'!$C$57:$C$93,0),) -> 3880 | H216: =G216-INDEX('Capital values'!$E$104:$E$141,MATCH(D216,'Capital values'!$C$104:$C$141,0),) -> 3442 | I216: 723942.1649 | K216: =INDEX('Comparison - Category'!$Y$10:$Y$48,MATCH(D216,'Comparison - Category'!$C$10:$C$484,0),) -> 261.8022089 | L216: 298.411873 | M216: 331.9461116 | N216: 341.2816231 | O216: 373.7215154 | P216: 398.9612561 | Q216: 417.4633766 | R216: 429.7996163 | S216: 444.479356 | T216: 460.9937795 | U216: 476.6605409
B217: Carterton District | C217: Business | D217: Carterton DistrictBusiness | F217: =INDEX('Capital values'!$E$8:$E$45,MATCH(D217,'Capital values'!$C$8:$C$45,0),) -> 96652500 | G217: =INDEX('Capital values'!$E$57:$E$93,MATCH(D217,'Capital values'!$C$57:$C$93,0),) -> 227 | H217: =G217-INDEX('Capital values'!$E$104:$E$141,MATCH(D217,'Capital values'!$C$104:$C$141,0),) -> 227 | I217: 425781.9383 | K217: =INDEX('Comparison - Category'!$Y$10:$Y$48,MATCH(D217,'Comparison - Category'!$C$10:$C$484,0),) -> 266.742406 | L217: 267.7798394 | M217: 300.925696 | N217: 329.6765343 | O217: 372.2029128 | P217: 410.4844961 | Q217: 440.7361684 | R217: 455.7796975 | S217: 469.0232871 | T217: 489.3020417 | U217: 500.7498768
B218: Carterton District | C218: Residential | D218: Carterton DistrictResidential | F218: =INDEX('Capital values'!$E$8:$E$45,MATCH(D218,'Capital values'!$C$8:$C$45,0),) -> 843913500 | G218: =INDEX('Capital values'!$E$57:$E$93,MATCH(D218,'Capital values'!$C$57:$C$93,0),) -> 2392 | H218: =G218-INDEX('Capital values'!$E$104:$E$141,MATCH(D218,'Capital values'!$C$104:$C$141,0),) -> 2355 | I218: 352806.6472 | K218: =INDEX('Comparison - Category'!$Y$10:$Y$48,MATCH(D218,'Comparison - Category'!$C$10:$C$484,0),) -> 159.5694071 | L218: 194.9680557 | M218: 209.62611 | N218: 215.932724 | O218: 232.1837892 | P218: 244.4191006 | Q218: 251.310111 | R218: 258.9786203 | S218: 266.9018004 | T218: 277.3644031 | U218: 285.0992266
B219: Carterton District | C219: Rural | D219: Carterton DistrictRural | F219: =INDEX('Capital values'!$E$8:$E$45,MATCH(D219,'Capital values'!$C$8:$C$45,0),) -> 1744267200 | G219: =INDEX('Capital values'!$E$57:$E$93,MATCH(D219,'Capital values'!$C$57:$C$93,0),) -> 2043 | H219: =G219-INDEX('Capital values'!$E$104:$E$141,MATCH(D219,'Capital values'!$C$104:$C$141,0),) -> 1749 | I219: 853777.3862 | K219: =INDEX('Comparison - Category'!$Y$10:$Y$48,MATCH(D219,'Comparison - Category'!$C$10:$C$484,0),) -> 330.9690513 | L219: =(INDEX(L$91:L$130,MATCH($D219,$D$91:$D$130,0),)-INDEX(CR$91:CR$130,MATCH($D219,$D$91:$D$130,0),))/$F219*$I219+INDEX(CR$91:CR$130,MATCH($D219,$D$91:$D$130,0),)/$H219 -> 368.1332252 | M219: 405.6561041 | N219: 415.1033672 | O219: 451.2562925 | P219: 478.4393212 | Q219: 497.2109907 | R219: 511.961194 | S219: 529.4964546 | T219: 549.2064891 | U219: 567.9248525
B220: South Wairarapa District | C220: Business | D220: South Wairarapa DistrictBusiness | F220: =INDEX('Capital values'!$E$8:$E$45,MATCH(D220,'Capital values'!$C$8:$C$45,0),) -> 206493600 | G220: =INDEX('Capital values'!$E$57:$E$93,MATCH(D220,'Capital values'!$C$57:$C$93,0),) -> 304 | H220: =G220-INDEX('Capital values'!$E$104:$E$141,MATCH(D220,'Capital values'!$C$104:$C$141,0),) -> 304 | I220: 679255.2632 | K220: =INDEX('Comparison - Category'!$Y$10:$Y$48,MATCH(D220,'Comparison - Category'!$C$10:$C$484,0),) -> 412.6142189 | L220: 446.3464094 | M220: 493.2236427 | N220: 534.4882805 | O220: 595.9702576 | P220: 649.6920562 | Q220: 689.675732 | R220: 713.3203616 | S220: 734.1133811 | T220: 766.0158566 | U220: 783.9609269
B221: South Wairarapa District | C221: Residential | D221: South Wairarapa DistrictResidential | F221: =INDEX('Capital values'!$E$8:$E$45,MATCH(D221,'Capital values'!$C$8:$C$45,0),) -> 1318886100 | G221: =INDEX('Capital values'!$E$57:$E$93,MATCH(D221,'Capital values'!$C$57:$C$93,0),) -> 3229 | H221: =G221-INDEX('Capital values'!$E$104:$E$141,MATCH(D221,'Capital values'!$C$104:$C$141,0),) -> 3160 | I221: 408450.3252 | K221: =INDEX('Comparison - Category'!$Y$10:$Y$48,MATCH(D221,'Comparison - Category'!$C$10:$C$484,0),) -> 178.7825321 | L221: 235.4978897 | M221: 249.0066308 | N221: 253.7420618 | O221: 268.9495626 | P221: 278.9193394 | Q221: 282.1289043 | R221: 290.8488501 | S221: 299.8554966 | T221: 311.7714536 | U221: 320.5552208
B222: South Wairarapa District | C222: Rural | D222: South Wairarapa DistrictRural | F222: =INDEX('Capital values'!$E$8:$E$45,MATCH(D222,'Capital values'!$C$8:$C$45,0),) -> 2982290600 | G222: =INDEX('Capital values'!$E$57:$E$93,MATCH(D222,'Capital values'!$C$57:$C$93,0),) -> 3124 | H222: =G222-INDEX('Capital values'!$E$104:$E$141,MATCH(D222,'Capital values'!$C$104:$C$141,0),) -> 2787 | I222: 954638.4763 | K222: =INDEX('Comparison - Category'!$Y$10:$Y$48,MATCH(D222,'Comparison - Category'!$C$10:$C$484,0),) -> 356.3929788 | L222: 405.8790103 | M222: 445.5078019 | N222: 454.4932861 | O222: 492.5257737 | P222: 520.2778295 | Q222: 538.3610983 | R222: 554.5267693 | S222: 573.7634127 | T222: 595.4042647 | U222: 615.9343224
B223: Tararua District | C223: Rural | D223: Tararua DistrictRural | F223: =INDEX('Capital values'!$E$8:$E$45,MATCH(D223,'Capital values'!$C$8:$C$45,0),) -> 10760500 | G223: =INDEX('Capital values'!$E$57:$E$93,MATCH(D223,'Capital values'!$C$57:$C$93,0),) -> 10 | H223: =G223-INDEX('Capital values'!$E$104:$E$141,MATCH(D223,'Capital values'!$C$104:$C$141,0),) -> 9 | I223: 1076050 | K223: =INDEX('Comparison - Category'!$Y$10:$Y$48,MATCH(D223,'Comparison - Category'!$C$10:$C$484,0),) -> 224.2035735 | L223: 263.3024652 | M223: 287.4308912 | N223: 284.2396551 | O223: 302.678512 | P223: 312.8359816 | Q223: 318.2482783 | R223: 327.0511376 | S223: 339.8844886 | T223: 351.2510903 | U223: 366.3735613
B224: Region wide | D224: =B224&C224 -> Region wide | F224: =INDEX('Capital values'!$E$8:$E$45,MATCH(D224,'Capital values'!$C$8:$C$45,0),) -> 119678968561 | G224: =INDEX('Capital values'!$E$57:$E$93,MATCH(D224,'Capital values'!$C$57:$C$93,0),) -> 200807 | H224: =G224-INDEX('Capital values'!$E$104:$E$141,MATCH(D224,'Capital values'!$C$104:$C$141,0),) -> 198998 | I224: 595990.0231 | K224: =INDEX('Comparison - Category'!$Y$10:$Y$48,MATCH(D224,'Comparison - Category'!$C$10:$C$484,0),) -> 595.8141971 | L224: =INDEX(L$91:L$130,MATCH($D224,$D$91:$D$130,0),)/$F224*$I224 -> 631.2520156 | M224: 668.6582778 | N224: 710.4548855 | O224: 767.4158987 | P224: 814.6320111 | Q224: 841.8852663 | R224: 871.4153603 | S224: 894.5405216 | T224: 934.8668512 | U224: 955.9952821
B226: Kapiti split $
B227: Kapiti Coast District | C227: Residential - Otaki rating area | D227: =B227&C227 -> Kapiti Coast DistrictResidential - Otaki rating area | F227: =INDEX('Capital values'!$E$8:$E$47,MATCH(D227,'Capital values'!$C$8:$C$47,0),) -> 1104760900 | G227: =INDEX('Capital values'!$E$57:$E$96,MATCH(D227,'Capital values'!$C$57:$C$96,0),) -> 3151 | H227: =G227-46 -> 3105 | I227: =F227/G227 -> 350606.4424 | K227: =(K133-CQ133)/'Capital values'!D$96+14 -> 223.8812867 | L227: =(INDEX(L$91:L$135,MATCH($D227,$D$91:$D$135,0),)-INDEX(CR$91:CR$135,MATCH($D227,$D$91:$D$135,0),))/$F227*$I227+INDEX(CR$91:CR$135,MATCH($D227,$D$91:$D$135,0),)/$H227 -> 246.2837821 | M227: =(INDEX(M$91:M$135,MATCH($D227,$D$91:$D$135,0),)-INDEX(CS$91:CS$135,MATCH($D227,$D$91:$D$135,0),))/$F227*$I227+INDEX(CS$91:CS$135,MATCH($D227,$D$91:$D$135,0),)/$H227 -> 255.3282871 | N227: =(INDEX(N$91:N$135,MATCH($D227,$D$91:$D$135,0),)-INDEX(CT$91:CT$135,MATCH($D227,$D$91:$D$135,0),))/$F227*$I227+INDEX(CT$91:CT$135,MATCH($D227,$D$91:$D$135,0),)/$H227 -> 258.891782 | O227: =(INDEX(O$91:O$135,MATCH($D227,$D$91:$D$135,0),)-INDEX(CU$91:CU$135,MATCH($D227,$D$91:$D$135,0),))/$F227*$I227+INDEX(CU$91:CU$135,MATCH($D227,$D$91:$D$135,0),)/$H227 -> 272.0958613 | P227: =(INDEX(P$91:P$135,MATCH($D227,$D$91:$D$135,0),)-INDEX(CV$91:CV$135,MATCH($D227,$D$91:$D$135,0),))/$F227*$I227+INDEX(CV$91:CV$135,MATCH($D227,$D$91:$D$135,0),)/$H227 -> 279.4470229 | Q227: =(INDEX(Q$91:Q$135,MATCH($D227,$D$91:$D$135,0),)-INDEX(CW$91:CW$135,MATCH($D227,$D$91:$D$135,0),))/$F227*$I227+INDEX(CW$91:CW$135,MATCH($D227,$D$91:$D$135,0),)/$H227 -> 280.6229772 | R227: =(INDEX(R$91:R$135,MATCH($D227,$D$91:$D$135,0),)-INDEX(CX$91:CX$135,MATCH($D227,$D$91:$D$135,0),))/$F227*$I227+INDEX(CX$91:CX$135,MATCH($D227,$D$91:$D$135,0),)/$H227 -> 291.0272216 | S227: =(INDEX(S$91:S$135,MATCH($D227,$D$91:$D$135,0),)-INDEX(CY$91:CY$135,MATCH($D227,$D$91:$D$135,0),))/$F227*$I227+INDEX(CY$91:CY$135,MATCH($D227,$D$91:$D$135,0),)/$H227 -> 299.6985203 | T227: =(INDEX(T$91:T$135,MATCH($D227,$D$91:$D$135,0),)-INDEX(CZ$91:CZ$135,MATCH($D227,$D$91:$D$135,0),))/$F227*$I227+INDEX(CZ$91:CZ$135,MATCH($D227,$D$91:$D$135,0),)/$H227 -> 312.2396825 | U227: =(INDEX(U$91:U$135,MATCH($D227,$D$91:$D$135,0),)-INDEX(DA$91:DA$135,MATCH($D227,$D$91:$D$135,0),))/$F227*$I227+INDEX(DA$91:DA$135,MATCH($D227,$D$91:$D$135,0),)/$H227 -> 322.6445594
B228: Kapiti Coast District | C228: Residential - ex-Otaki rating area | D228: =B228&C228 -> Kapiti Coast DistrictResidential - ex-Otaki rating area | F228: =F229-F227 -> 10219999500 | G228: =G229-G227 -> 17885 | H228: =G228-166 -> 17719 | I228: 571428.5435 | K228: =(K134-CQ134)/('Capital values'!D$82-'Capital values'!D$96)+14 -> 362.6954079 | L228: =(INDEX(L$91:L$135,MATCH($D228,$D$91:$D$135,0),)-INDEX(CR$91:CR$135,MATCH($D228,$D$91:$D$135,0),))/$F228*$I228+INDEX(CR$91:CR$135,MATCH($D228,$D$91:$D$135,0),)/$H228 -> 409.6430523 | M228: 442.1511611 | N228: 471.0095876 | O228: 517.9384296 | P228: 558.3524902 | Q228: 586.7372587 | R228: 608.7017144 | S228: 624.9894085 | T228: 652.8063454 | U228: 669.7639725
B229: Kapiti Coast District | C229: Residential | D229: =B229&C229 -> Kapiti Coast DistrictResidential | F229: =INDEX('Capital values'!$E$8:$E$45,MATCH(D229,'Capital values'!$C$8:$C$45,0),) -> 11324760400 | G229: =INDEX('Capital values'!$E$57:$E$93,MATCH(D229,'Capital values'!$C$57:$C$93,0),) -> 21036 | H229: =G229-INDEX('Capital values'!$E$104:$E$141,MATCH(D229,'Capital values'!$C$104:$C$141,0),) -> 20824 | I229: =F229/G229 -> 538351.4166 | K229: =INDEX('Comparison - Category'!$Y$10:$Y$48,MATCH(D229,'Comparison - Category'!$C$10:$C$484,0),) -> 342.0246951 | L229: 385.1733309 | M229: 414.1668068 | N229: 439.2362845 | O229: 481.1134661 | P229: 516.5750075 | Q229: 540.884145 | R229: 561.116987 | S229: 576.2638148 | T229: 601.7925807 | U229: 617.7686659
... 130 more rows

Sheet Vs Consulted version
B1: District-wide rates
B3: TA full name | C3: Category group | D3: 2017/18 | E3: 2018/19 | F3: 2019/20 | G3: 2020/21 | H3: 2021/22 | I3: 2022/23 | J3: 2023/24 | K3: 2024/25 | L3: 2025/26 | M3: 2026/27 | N3: 2027/28
B5: Rates by TA - agreed option
B6: By TA - $
B7: Wellington City | C7: District wide | D7: ='Vs Status Quo'!K91 -> 62570979.07 | E7: ='Vs Status Quo'!L91 -> 66367076.57 | F7: ='Vs Status Quo'!M91 -> 71145503.08 | G7: ='Vs Status Quo'!N91 -> 77292706.28 | H7: ='Vs Status Quo'!O91 -> 84950507.55 | I7: ='Vs Status Quo'!P91 -> 91979010.82 | J7: ='Vs Status Quo'!Q91 -> 96440707.76 | K7: ='Vs Status Quo'!R91 -> 99736262.47 | L7: ='Vs Status Quo'!S91 -> 102085273.6 | M7: ='Vs Status Quo'!T91 -> 106751874.5 | N7: ='Vs Status Quo'!U91 -> 108312726.2
B8: Hutt City | C8: District wide | D8: ='Vs Status Quo'!K92 -> 23454231.3 | E8: ='Vs Status Quo'!L92 -> 25013959.46 | F8: ='Vs Status Quo'!M92 -> 25927740.8 | G8: ='Vs Status Quo'!N92 -> 26906246.89 | H8: ='Vs Status Quo'!O92 -> 28180969.34 | I8: ='Vs Status Quo'!P92 -> 29049142.73 | J8: ='Vs Status Quo'!Q92 -> 29426972.18 | K8: ='Vs Status Quo'!R92 -> 30620997.03 | L8: ='Vs Status Quo'!S92 -> 31659194.62 | M8: ='Vs Status Quo'!T92 -> 33169514.05 | N8: ='Vs Status Quo'!U92 -> 34636955.02
B9: Upper Hutt City | C9: District wide | D9: ='Vs Status Quo'!K93 -> 8387211.703 | E9: ='Vs Status Quo'!L93 -> 8680468.613 | F9: ='Vs Status Quo'!M93 -> 8956401.422 | G9: ='Vs Status Quo'!N93 -> 9171234.179 | H9: ='Vs Status Quo'!O93 -> 9569627.54 | I9: ='Vs Status Quo'!P93 -> 9593811.71 | J9: ='Vs Status Quo'!Q93 -> 9456856.207 | K9: ='Vs Status Quo'!R93 -> 9741199.275 | L9: ='Vs Status Quo'!S93 -> 9997338.179 | M9: ='Vs Status Quo'!T93 -> 10395358.87 | N9: ='Vs Status Quo'!U93 -> 10624703.87
B10: Porirua City | C10: District wide | D10: ='Vs Status Quo'!K94 -> 9886888.663 | E10: ='Vs Status Quo'!L94 -> 10301484.08 | F10: ='Vs Status Quo'!M94 -> 10425216.23 | G10: ='Vs Status Quo'!N94 -> 10559607.89 | H10: ='Vs Status Quo'!O94 -> 10878933.42 | I10: ='Vs Status Quo'!P94 -> 10965444.76 | J10: ='Vs Status Quo'!Q94 -> 10707183.29 | K10: ='Vs Status Quo'!R94 -> 11056913.61 | L10: ='Vs Status Quo'!S94 -> 11358590.15 | M10: ='Vs Status Quo'!T94 -> 11845682.89 | N10: ='Vs Status Quo'!U94 -> 12099131.26
B11: Kapiti Coast District | C11: District wide | D11: ='Vs Status Quo'!K95 -> 9327067.548 | E11: ='Vs Status Quo'!L95 -> 10320048.52 | F11: ='Vs Status Quo'!M95 -> 11134012.22 | G11: ='Vs Status Quo'!N95 -> 11818919.09 | H11: ='Vs Status Quo'!O95 -> 12975027.36 | I11: ='Vs Status Quo'!P95 -> 13952776.57 | J11: ='Vs Status Quo'!Q95 -> 14640090.64 | K11: ='Vs Status Quo'!R95 -> 15189467.95 | L11: ='Vs Status Quo'!S95 -> 15606633.87 | M11: ='Vs Status Quo'!T95 -> 16295606.05 | N11: ='Vs Status Quo'!U95 -> 16741144.47
B12: Masterton District | C12: District wide | D12: ='Vs Status Quo'!K96 -> 2243225.911 | E12: ='Vs Status Quo'!L96 -> 2650009.423 | F12: ='Vs Status Quo'!M96 -> 2954454.758 | G12: ='Vs Status Quo'!N96 -> 3090879.061 | H12: ='Vs Status Quo'!O96 -> 3413518.472 | I12: ='Vs Status Quo'!P96 -> 3680908.423 | J12: ='Vs Status Quo'!Q96 -> 3881163.429 | K12: ='Vs Status Quo'!R96 -> 4000155.879 | L12: ='Vs Status Quo'!S96 -> 4128249.832 | M12: ='Vs Status Quo'!T96 -> 4289261.075 | N12: ='Vs Status Quo'!U96 -> 4417926.247
B13: Carterton District | C13: District wide | D13: ='Vs Status Quo'!K97 -> 1093953.066 | E13: ='Vs Status Quo'!L97 -> 1270495.792 | F13: ='Vs Status Quo'!M97 -> 1389741.209 | G13: ='Vs Status Quo'!N97 -> 1430653.828 | H13: ='Vs Status Quo'!O97 -> 1553040.291 | I13: ='Vs Status Quo'!P97 -> 1646532.002 | J13: ='Vs Status Quo'!Q97 -> 1708232.95 | K13: ='Vs Status Quo'!R97 -> 1760125.57 | L13: ='Vs Status Quo'!S97 -> 1817908.649 | M13: ='Vs Status Quo'!T97 -> 1887806.073 | N13: ='Vs Status Quo'!U97 -> 1947148.046
B14: South Wairarapa District | C14: District wide | D14: ='Vs Status Quo'!K98 -> 1798671.825 | E14: ='Vs Status Quo'!L98 -> 2153676.022 | F14: ='Vs Status Quo'!M98 -> 2335346.771 | G14: ='Vs Status Quo'!N98 -> 2391252.581 | H14: ='Vs Status Quo'!O98 -> 2577861.613 | I14: ='Vs Status Quo'!P98 -> 2713082.871 | J14: ='Vs Status Quo'!Q98 -> 2792093.726 | K14: ='Vs Status Quo'!R98 -> 2877939.954 | L14: ='Vs Status Quo'!S98 -> 2973438.768 | M14: ='Vs Status Quo'!T98 -> 3089219.767 | N14: ='Vs Status Quo'!U98 -> 3187173.753
B15: Tararua District | C15: District wide | D15: ='Vs Status Quo'!K99 -> 2606.442882 | E15: ='Vs Status Quo'!L99 -> 2605.024652 | F15: ='Vs Status Quo'!M99 -> 2846.308912 | G15: ='Vs Status Quo'!N99 -> 2814.396551 | H15: ='Vs Status Quo'!O99 -> 2998.78512 | I15: ='Vs Status Quo'!P99 -> 3100.359816 | J15: ='Vs Status Quo'!Q99 -> 3154.482783 | K15: ='Vs Status Quo'!R99 -> 3242.511376 | L15: ='Vs Status Quo'!S99 -> 3370.844886 | M15: ='Vs Status Quo'!T99 -> 3484.510903 | N15: ='Vs Status Quo'!U99 -> 3635.735613
B16: Region wide | D16: ='Vs Status Quo'!K100 -> 118764835.5 | E16: ='Vs Status Quo'!L100 -> 126759823.5 | F16: ='Vs Status Quo'!M100 -> 134271262.8 | G16: ='Vs Status Quo'!N100 -> 142664314.2 | H16: ='Vs Status Quo'!O100 -> 154102484.4 | I16: ='Vs Status Quo'!P100 -> 163583810.2 | J16: ='Vs Status Quo'!Q100 -> 169056454.7 | K16: ='Vs Status Quo'!R100 -> 174986304.3 | L16: ='Vs Status Quo'!S100 -> 179629998.5 | M16: ='Vs Status Quo'!T100 -> 187727807.8 | N16: ='Vs Status Quo'!U100 -> 191970544.6
B18: By TA - annual % change
B19: Wellington City | C19: District wide | E19: =E7/D7-1 -> 0.06066866078 | F19: 0.0719999547 | G19: 0.08640325726 | H19: 0.09907534144 | I19: 0.08273644818 | J19: 0.04850777265 | K19: 0.03417182214 | L19: 0.02355222733 | M19: 0.04571277263 | N19: 0.014621305
B20: Hutt City | C20: District wide | E20: =E8/D8-1 -> 0.06650092838 | F20: 0.03653085539 | G20: 0.03773973609 | H20: 0.04737644972 | I20: 0.03080708031 | J20: 0.01300656106 | K20: 0.04057586499 | L20: 0.03390476107 | M20: 0.04770555446 | N20: 0.04424065321
B21: Upper Hutt City | C21: District wide | E21: =E9/D9-1 -> 0.0349647679 | F21: 0.03178777792 | G21: 0.02398650388 | H21: 0.04343944913 | I21: 0.002527179882 | J21: -0.01427540041 | K21: 0.0300673989 | L21: 0.02629439117 | M21: 0.03981266669 | N21: 0.02206224963
B22: Porirua City | C22: District wide | E22: =E10/D10-1 -> 0.04193386111 | F22: 0.01201109911 | G22: 0.01289101893 | H22: 0.03024028361 | I22: 0.007952189105 | J22: -0.02355230257 | K22: 0.03266314942 | L22: 0.02728397371 | M22: 0.04288320406 | N22: 0.02139584235
B23: Kapiti Coast District | C23: District wide | E23: =E11/D11-1 -> 0.10646229 | F23: 0.0788720813 | G23: 0.06151482983 | H23: 0.09781844349 | I23: 0.07535623524 | J23: 0.0492600211 | K23: 0.03752554008 | L23: 0.02746415608 | M23: 0.04414611014 | N23: 0.02734101576
B24: Masterton District | C24: District wide | E24: =E12/D12-1 -> 0.1813386293 | F24: 0.1148846235 | G24: 0.04617579709 | H24: 0.104384353 | I24: 0.07833265096 | J24: 0.05440369123 | K24: 0.03065896406 | L24: 0.03202224034 | M24: 0.03900230115 | N24: 0.02999704848
B25: Carterton District | C25: District wide | E25: =E13/D13-1 -> 0.1613805306 | F25: 0.09385738834 | G25: 0.02943902008 | H25: 0.08554582532 | I25: 0.06019915411 | J25: 0.03747327543 | K25: 0.03037795332 | L25: 0.03282895256 | M25: 0.03844935969 | N25: 0.0314343586
B26: South Wairarapa District | C26: District wide | E26: =E14/D14-1 -> 0.1973701886 | F26: 0.08435379648 | G26: 0.02393897555 | H26: 0.07803819379 | I26: 0.05245481674 | J26: 0.02912216767 | K26: 0.03074618433 | L26: 0.03318304587 | M26: 0.03893841726 | N26: 0.03170832545
B27: Tararua District | C27: District wide | E27: =E15/D15-1 -> -0.0005441246145 | F27: 0.09262263969 | G27: -0.01121184 | H27: 0.06551620058 | I27: 0.03387194871 | J27: 0.01745699547 | K27: 0.02790587187 | L27: 0.03957843016 | M27: 0.03372033451 | N27: 0.04339912089
B28: Region wide | E28: =E16/D16-1 -> 0.06731780445 | F28: 0.05925725581 | G28: 0.0625081736 | H28: 0.08017541208 | I28: 0.06152610652 | J28: 0.03345468239 | K28: 0.03507615019 | L28: 0.02653747261 | M28: 0.04508049515 | N28: 0.02260047075
B30: Rates by TA - consulted version
B31: By TA - $
B32: Wellington City | C32: District wide | D32: 62570979.07 | E32: 66685381.68 | F32: 73112783.29 | G32: 78804859.56 | H32: 85409764.42 | I32: 89873140.41 | J32: 93174752.72 | K32: 96494617.87 | L32: 99054527.63 | M32: 103637844.5 | N32: 105068142.7
B33: Hutt City | C33: District wide | D33: 23454231.3 | E33: 24746875.3 | F33: 25797686.42 | G33: 26348852.35 | H33: 28267646.13 | I33: 29200450.65 | J33: 30607552.77 | K33: 32073990.26 | L33: 33370408.31 | M33: 35449897.2 | N33: 37203862.27
B34: Upper Hutt City | C34: District wide | D34: 8387211.703 | E34: 8401779.868 | F34: 8448184.623 | G34: 8237404.183 | H34: 8922825.435 | I34: 9136579.46 | J34: 9407448.34 | K34: 9691961.795 | L34: 9957660.67 | M34: 10342006.46 | N34: 10551278.54
B35: Porirua City | C35: District wide | D35: 9886888.663 | E35: 9624063.11 | F35: 9188975.686 | G35: 8422174.442 | H35: 9087962.411 | I35: 9501512.977 | J35: 9802988.824 | K35: 10122002.4 | L35: 10428947.55 | M35: 10880116.23 | N35: 11100876.46
B36: Kapiti Coast District | C36: District wide | D36: 9327067.548 | E36: 10644426.63 | F36: 11770890.25 | G36: 12654838.95 | H36: 13540368.12 | I36: 14148125.69 | J36: 14618309.51 | K36: 15216712.18 | L36: 15656146.93 | M36: 16365723.89 | N36: 16808292.16
B37: Masterton District | C37: District wide | D37: 2243225.911 | E37: 2948263.349 | F37: 3421089.553 | G37: 3782587.796 | H37: 4115633.694 | I37: 4351030.55 | J37: 4467280.532 | K37: 4643450.741 | L37: 4793687.072 | M37: 5051303.611 | N37: 5076586.672
B38: Carterton District | C38: District wide | D38: 1093953.066 | E38: 1377390.236 | F38: 1533118.485 | G38: 1652408.977 | H38: 1798547.869 | I38: 1901886.078 | J38: 1951413.872 | K38: 2028718.712 | L38: 2095803.394 | M38: 2209513.084 | N38: 2220488.716
B39: South Wairarapa District | C39: District wide | D39: 1798671.825 | E39: 2313381.96 | F39: 2578653.762 | G39: 2743224.012 | H39: 2987409.934 | I39: 3160014.614 | J39: 3243025.118 | K39: 3372200.728 | L39: 3484176.121 | M39: 3674014.542 | N39: 3692542.257
B40: Tararua District | C40: District wide | D40: 2606.442882 | E40: 2549.977134 | F40: 2637.973894 | G40: 2490.87025 | H40: 2634.10062 | I40: 2708.188089 | J40: 2750.652438 | K40: 2809.68893 | L40: 2930.9793 | M40: 3029.205654 | N40: 3155.019879
B41: Region wide | D41: 118764835.5 | E41: 126744112.1 | F41: 135854020 | G41: 142648841.1 | H41: 154132792.1 | I41: 161275448.6 | J41: 167275522.3 | K41: 173646464.4 | L41: 178844288.7 | M41: 187613448.7 | N41: 191725224.8
B43: Difference in total rates - between agreed option and consulted version
B44: By TA - $
B45: Wellington City | C45: District wide | D45: =D7-D32 -> 0 | E45: -318305.1065 | F45: -1967280.206 | G45: -1512153.276 | H45: -459256.8653 | I45: 2105870.41 | J45: 3265955.045 | K45: 3241644.605 | L45: 3030745.967 | M45: 3114030.012 | N45: 3244583.487
B46: Hutt City | C46: District wide | D46: =D8-D33 -> 0 | E46: 267084.1647 | F46: 130054.377 | G46: 557394.5382 | H46: -86676.78199 | I46: -151307.9192 | J46: -1180580.593 | K46: -1452993.23 | L46: -1711213.689 | M46: -2280383.153 | N46: -2566907.252
B47: Upper Hutt City | C47: District wide | D47: =D9-D34 -> 0 | E47: 278688.7455 | F47: 508216.7989 | G47: 933829.9966 | H47: 646802.1049 | I47: 457232.2505 | J47: 49407.86627 | K47: 49237.47966 | L47: 39677.50897 | M47: 53352.41589 | N47: 73425.33812
B48: Porirua City | C48: District wide | D48: =D10-D35 -> 0 | E48: 677420.9698 | F48: 1236240.54 | G48: 2137433.443 | H48: 1790971.011 | I48: 1463931.782 | J48: 904194.4615 | K48: 934911.2104 | L48: 929642.6016 | M48: 965566.6631 | N48: 998254.7996
B49: Kapiti Coast District | C49: District wide | D49: =D11-D36 -> 0 | E49: -324378.1157 | F49: -636878.0234 | G49: -835919.8541 | H49: -565340.7629 | I49: -195349.1131 | J49: 21781.12955 | K49: -27244.23279 | L49: -49513.06298 | M49: -70117.84083 | N49: -67147.68622
B50: Masterton District | C50: District wide | D50: =D12-D37 -> 0 | E50: -298253.9256 | F50: -466634.7951 | G50: -691708.7351 | H50: -702115.2212 | I50: -670122.1262 | J50: -586117.1039 | K50: -643294.862 | L50: -665437.24 | M50: -762042.5359 | N50: -658660.4243
B51: Carterton District | C51: District wide | D51: =D13-D38 -> 0 | E51: -106894.4443 | F51: -143377.2766 | G51: -221755.1488 | H51: -245507.5785 | I51: -255354.0755 | J51: -243180.922 | K51: -268593.1411 | L51: -277894.745 | M51: -321707.0113 | N51: -273340.6697
B52: South Wairarapa District | C52: District wide | D52: =D14-D39 -> 0 | E52: -159705.9377 | F52: -243306.9912 | G52: -351971.4315 | H52: -409548.3215 | I52: -446931.7429 | J52: -450931.3923 | K52: -494260.7741 | L52: -510737.3539 | M52: -584794.7754 | N52: -505368.5043
B53: Tararua District | C53: District wide | D53: =D15-D40 -> 0 | E53: 55.04751777 | F53: 208.3350171 | G53: 323.5263009 | H53: 364.6845001 | I53: 392.1717275 | J53: 403.830345 | K53: 432.8224461 | L53: 439.8655862 | M53: 455.3052485 | N53: 480.7157342
B54: Region wide | D54: =D16-D41 -> 0 | E54: 15711.39748 | F54: -1582757.242 | G54: 15473.05905 | H54: -30307.73053 | I54: 2308361.637 | J54: 1780932.321 | K54: 1339839.877 | L54: 785709.8527 | M54: 114359.0796 | N54: 245319.8038
B57: District-wide rates
B59: TA full name | C59: Category group | D59: 2017/18 | E59: 2018/19 | F59: 2019/20 | G59: 2020/21 | H59: 2021/22 | I59: 2022/23 | J59: 2023/24 | K59: 2024/25 | L59: 2025/26 | M59: 2026/27 | N59: 2027/28
B61: Rates per average CV - agreed option
B62: By Category - $
B63: Wellington City | C63: Regional CBD | D63: ='Vs Status Quo'!K198 -> 8606.006461 | E63: ='Vs Status Quo'!L198 -> 8954.374362 | F63: ='Vs Status Quo'!M198 -> 9283.385467 | G63: ='Vs Status Quo'!N198 -> 10197.53773 | H63: ='Vs Status Quo'!O198 -> 11058.37857 | I63: ='Vs Status Quo'!P198 -> 11875.74297 | J63: ='Vs Status Quo'!Q198 -> 12294.17659 | K63: ='Vs Status Quo'!R198 -> 12733.42141 | L63: ='Vs Status Quo'!S198 -> 12971.28465 | M63: ='Vs Status Quo'!T198 -> 13604.94922 | N63: ='Vs Status Quo'!U198 -> 13687.46376
B64: Wellington City | C64: Business | D64: ='Vs Status Quo'!K199 -> 1709.291723 | E64: ='Vs Status Quo'!L199 -> 1910.937601 | F64: ='Vs Status Quo'!M199 -> 2156.01132 | G64: ='Vs Status Quo'!N199 -> 2401.567065 | H64: ='Vs Status Quo'!O199 -> 2734.017827 | I64: ='Vs Status Quo'!P199 -> 3044.916205 | J64: ='Vs Status Quo'!Q199 -> 3291.286028 | K64: ='Vs Status Quo'!R199 -> 3405.109725 | L64: ='Vs Status Quo'!S199 -> 3496.628913 | M64: ='Vs Status Quo'!T199 -> 3652.603442 | N64: ='Vs Status Quo'!U199 -> 3724.50921
B65: Wellington City | C65: Residential | D65: ='Vs Status Quo'!K200 -> 419.4153473 | E65: ='Vs Status Quo'!L200 -> 450.5066941 | F65: ='Vs Status Quo'!M200 -> 494.9419086 | G65: ='Vs Status Quo'!N200 -> 531.1683396 | H65: ='Vs Status Quo'!O200 -> 588.4585629 | I65: ='Vs Status Quo'!P200 -> 639.6803294 | J65: ='Vs Status Quo'!Q200 -> 675.6533283 | K65: ='Vs Status Quo'!R200 -> 697.8239665 | L65: ='Vs Status Quo'!S200 -> 716.8271032 | M65: ='Vs Status Quo'!T200 -> 747.820512 | N65: ='Vs Status Quo'!U200 -> 763.6436012
B66: Wellington City | C66: Rural | D66: ='Vs Status Quo'!K201 -> 401.0300002 | E66: ='Vs Status Quo'!L201 -> 433.7195956 | F66: ='Vs Status Quo'!M201 -> 474.7678578 | G66: ='Vs Status Quo'!N201 -> 483.6151192 | H66: ='Vs Status Quo'!O201 -> 522.9533162 | I66: ='Vs Status Quo'!P201 -> 551.2202544 | J66: ='Vs Status Quo'!Q201 -> 569.0870674 | K66: ='Vs Status Quo'!R201 -> 586.2099021 | L66: ='Vs Status Quo'!S201 -> 606.6002831 | M66: ='Vs Status Quo'!T201 -> 629.5290461 | N66: ='Vs Status Quo'!U201 -> 651.3064414
B67: Hutt City | C67: Business | D67: ='Vs Status Quo'!K202 -> 1881.269392 | E67: ='Vs Status Quo'!L202 -> 1999.3061 | F67: ='Vs Status Quo'!M202 -> 2111.150855 | G67: ='Vs Status Quo'!N202 -> 2245.37408 | H67: ='Vs Status Quo'!O202 -> 2406.317261 | I67: ='Vs Status Quo'!P202 -> 2537.30602 | J67: ='Vs Status Quo'!Q202 -> 2626.836267 | K67: ='Vs Status Quo'!R202 -> 2733.644901 | L67: ='Vs Status Quo'!S202 -> 2822.857953 | M67: ='Vs Status Quo'!T202 -> 2958.622398 | N67: ='Vs Status Quo'!U202 -> 3075.464426
B68: Hutt City | C68: Residential | D68: ='Vs Status Quo'!K203 -> 519.2523726 | E68: ='Vs Status Quo'!L203 -> 549.9433227 | F68: ='Vs Status Quo'!M203 -> 567.3216474 | G68: ='Vs Status Quo'!N203 -> 585.2830803 | H68: ='Vs Status Quo'!O203 -> 609.4241661 | I68: ='Vs Status Quo'!P203 -> 624.4869594 | J68: ='Vs Status Quo'!Q203 -> 628.8236946 | K68: ='Vs Status Quo'!R203 -> 654.3122843 | L68: ='Vs Status Quo'!S203 -> 676.6532159 | M68: ='Vs Status Quo'!T203 -> 708.877415 | N68: ='Vs Status Quo'!U203 -> 740.9707289
B69: Hutt City | C69: Rural | D69: ='Vs Status Quo'!K204 -> 456.8468442 | E69: ='Vs Status Quo'!L204 -> 495.0412319 | F69: ='Vs Status Quo'!M204 -> 527.1261938 | G69: ='Vs Status Quo'!N204 -> 539.2513184 | H69: ='Vs Status Quo'!O204 -> 567.421256 | I69: ='Vs Status Quo'!P204 -> 585.69438 | J69: ='Vs Status Quo'!Q204 -> 601.4026079 | K69: ='Vs Status Quo'!R204 -> 626.567872 | L69: ='Vs Status Quo'!S204 -> 652.9413249 | M69: ='Vs Status Quo'!T204 -> 682.7351076 | N69: ='Vs Status Quo'!U204 -> 726.602888
B70: Upper Hutt City | C70: Business | D70: ='Vs Status Quo'!K205 -> 1849.441913 | E70: ='Vs Status Quo'!L205 -> 1939.900174 | F70: ='Vs Status Quo'!M205 -> 2038.27532 | G70: ='Vs Status Quo'!N205 -> 2148.045675 | H70: ='Vs Status Quo'!O205 -> 2297.391641 | I70: ='Vs Status Quo'!P205 -> 2371.334192 | J70: ='Vs Status Quo'!Q205 -> 2404.8512 | K70: ='Vs Status Quo'!R205 -> 2482.760647 | L70: ='Vs Status Quo'!S205 -> 2547.4495 | M70: ='Vs Status Quo'!T205 -> 2654.839641 | N70: ='Vs Status Quo'!U205 -> 2708.527337
B71: Upper Hutt City | C71: Residential | D71: ='Vs Status Quo'!K206 -> 448.6329345 | E71: ='Vs Status Quo'!L206 -> 454.5751828 | F71: ='Vs Status Quo'!M206 -> 465.6914392 | G71: ='Vs Status Quo'!N206 -> 474.4164697 | H71: ='Vs Status Quo'!O206 -> 491.630437 | I71: ='Vs Status Quo'!P206 -> 489.5995018 | J71: ='Vs Status Quo'!Q206 -> 478.7192682 | K71: ='Vs Status Quo'!R206 -> 493.009303 | L71: ='Vs Status Quo'!S206 -> 505.76188 | M71: ='Vs Status Quo'!T206 -> 525.8907424 | N71: ='Vs Status Quo'!U206 -> 537.199689
B72: Upper Hutt City | C72: Rural | D72: ='Vs Status Quo'!K207 -> 403.6135574 | E72: ='Vs Status Quo'!L207 -> 443.8963721 | F72: ='Vs Status Quo'!M207 -> 476.3943258 | G72: ='Vs Status Quo'!N207 -> 481.9059417 | H72: ='Vs Status Quo'!O207 -> 510.8756248 | I72: ='Vs Status Quo'!P207 -> 511.9497314 | J72: ='Vs Status Quo'!Q207 -> 512.2083282 | K72: ='Vs Status Quo'!R207 -> 525.5672412 | L72: ='Vs Status Quo'!S207 -> 542.1596087 | M72: ='Vs Status Quo'!T207 -> 560.3233949 | N72: ='Vs Status Quo'!U207 -> 578.8964973
B73: Porirua City | C73: Business | D73: ='Vs Status Quo'!K208 -> 1472.533531 | E73: ='Vs Status Quo'!L208 -> 1536.273996 | F73: ='Vs Status Quo'!M208 -> 1591.566777 | G73: ='Vs Status Quo'!N208 -> 1666.699071 | H73: ='Vs Status Quo'!O208 -> 1769.955568 | I73: ='Vs Status Quo'!P208 -> 1841.908782 | J73: ='Vs Status Quo'!Q208 -> 1861.764113 | K73: ='Vs Status Quo'!R208 -> 1925.974318 | L73: ='Vs Status Quo'!S208 -> 1977.697024 | M73: ='Vs Status Quo'!T208 -> 2065.725429 | N73: ='Vs Status Quo'!U208 -> 2106.48785
B74: Porirua City | C74: Residential | D74: ='Vs Status Quo'!K209 -> 490.8425897 | E74: ='Vs Status Quo'!L209 -> 505.7531492 | F74: ='Vs Status Quo'!M209 -> 509.2757943 | G74: ='Vs Status Quo'!N209 -> 513.6737097 | H74: ='Vs Status Quo'!O209 -> 526.3574659 | I74: ='Vs Status Quo'!P209 -> 527.6181665 | J74: ='Vs Status Quo'!Q209 -> 511.8127396 | K74: ='Vs Status Quo'!R209 -> 528.4324555 | L74: ='Vs Status Quo'!S209 -> 542.7114453 | M74: ='Vs Status Quo'!T209 -> 565.959154 | N74: ='Vs Status Quo'!U209 -> 577.8914519
B75: Porirua City | C75: Rural | D75: ='Vs Status Quo'!K210 -> 520.2592046 | E75: ='Vs Status Quo'!L210 -> 562.284294 | F75: ='Vs Status Quo'!M210 -> 592.5901676 | G75: ='Vs Status Quo'!N210 -> 590.3834105 | H75: ='Vs Status Quo'!O210 -> 619.5517852 | I75: ='Vs Status Quo'!P210 -> 631.4478289 | J75: ='Vs Status Quo'!Q210 -> 629.2591757 | K75: ='Vs Status Quo'!R210 -> 648.1702445 | L75: ='Vs Status Quo'!S210 -> 670.7538311 | M75: ='Vs Status Quo'!T210 -> 696.1067783 | N75: ='Vs Status Quo'!U210 -> 720.2944412
B76: Kapiti Coast District | C76: Business | D76: ='Vs Status Quo'!K211 -> 864.7223223 | E76: ='Vs Status Quo'!L211 -> 887.4370782 | F76: ='Vs Status Quo'!M211 -> 983.1675859 | G76: ='Vs Status Quo'!N211 -> 1084.308858 | H76: ='Vs Status Quo'!O211 -> 1224.138615 | I76: ='Vs Status Quo'!P211 -> 1351.692512 | J76: ='Vs Status Quo'!Q211 -> 1452.62394 | K76: ='Vs Status Quo'!R211 -> 1508.11253 | L76: ='Vs Status Quo'!S211 -> 1548.300968 | M76: ='Vs Status Quo'!T211 -> 1618.993455 | N76: ='Vs Status Quo'!U211 -> 1657.305248
B77: Kapiti Coast District | C77: Residential | D77: ='Vs Status Quo'!K212 -> 342.0246951 | E77: ='Vs Status Quo'!L212 -> 385.1733309 | F77: ='Vs Status Quo'!M212 -> 414.1668068 | G77: ='Vs Status Quo'!N212 -> 439.2362845 | H77: ='Vs Status Quo'!O212 -> 481.1134661 | I77: ='Vs Status Quo'!P212 -> 516.5750075 | J77: ='Vs Status Quo'!Q212 -> 540.884145 | K77: ='Vs Status Quo'!R212 -> 561.116987 | L77: ='Vs Status Quo'!S212 -> 576.2638148 | M77: ='Vs Status Quo'!T212 -> 601.7925807 | N77: ='Vs Status Quo'!U212 -> 617.7686659
B78: Kapiti Coast District | C78: Rural | D78: ='Vs Status Quo'!K213 -> 392.4001229 | E78: ='Vs Status Quo'!L213 -> 393.895296 | F78: ='Vs Status Quo'!M213 -> 422.7838501 | G78: ='Vs Status Quo'!N213 -> 431.3433957 | H78: ='Vs Status Quo'!O213 -> 464.8836833 | I78: ='Vs Status Quo'!P213 -> 488.199359 | J78: ='Vs Status Quo'!Q213 -> 503.8272543 | K78: ='Vs Status Quo'!R213 -> 522.6458183 | L78: ='Vs Status Quo'!S213 -> 539.6438785 | M78: ='Vs Status Quo'!T213 -> 561.4544273 | N78: ='Vs Status Quo'!U213 -> 583.5344729
B79: Masterton District | C79: Business | D79: ='Vs Status Quo'!K214 -> 388.3910052 | E79: ='Vs Status Quo'!L214 -> 439.6136611 | F79: ='Vs Status Quo'!M214 -> 509.2647637 | G79: ='Vs Status Quo'!N214 -> 568.6714817 | H79: ='Vs Status Quo'!O214 -> 655.9320388 | I79: ='Vs Status Quo'!P214 -> 737.0587762 | J79: ='Vs Status Quo'!Q214 -> 805.0545257 | K79: ='Vs Status Quo'!R214 -> 832.6547662 | L79: ='Vs Status Quo'!S214 -> 856.9263386 | M79: ='Vs Status Quo'!T214 -> 894.1659152 | N79: ='Vs Status Quo'!U214 -> 915.1130928
B80: Masterton District | C80: Residential | D80: ='Vs Status Quo'!K215 -> 130.2916845 | E80: ='Vs Status Quo'!L215 -> 159.612973 | F80: ='Vs Status Quo'!M215 -> 176.8051346 | G80: ='Vs Status Quo'!N215 -> 185.3401224 | H80: ='Vs Status Quo'!O215 -> 204.1443846 | I80: ='Vs Status Quo'!P215 -> 219.9229553 | J80: ='Vs Status Quo'!Q215 -> 231.4332076 | K80: ='Vs Status Quo'!R215 -> 238.5044548 | L80: ='Vs Status Quo'!S215 -> 245.8081957 | M80: ='Vs Status Quo'!T215 -> 255.4711776 | N80: ='Vs Status Quo'!U215 -> 262.5941794
B81: Masterton District | C81: Rural | D81: ='Vs Status Quo'!K216 -> 261.8022089 | E81: ='Vs Status Quo'!L216 -> 298.411873 | F81: ='Vs Status Quo'!M216 -> 331.9461116 | G81: ='Vs Status Quo'!N216 -> 341.2816231 | H81: ='Vs Status Quo'!O216 -> 373.7215154 | I81: ='Vs Status Quo'!P216 -> 398.9612561 | J81: ='Vs Status Quo'!Q216 -> 417.4633766 | K81: ='Vs Status Quo'!R216 -> 429.7996163 | L81: ='Vs Status Quo'!S216 -> 444.479356 | M81: ='Vs Status Quo'!T216 -> 460.9937795 | N81: ='Vs Status Quo'!U216 -> 476.6605409
B82: Carterton District | C82: Business | D82: ='Vs Status Quo'!K217 -> 266.742406 | E82: ='Vs Status Quo'!L217 -> 267.7798394 | F82: ='Vs Status Quo'!M217 -> 300.925696 | G82: ='Vs Status Quo'!N217 -> 329.6765343 | H82: ='Vs Status Quo'!O217 -> 372.2029128 | I82: ='Vs Status Quo'!P217 -> 410.4844961 | J82: ='Vs Status Quo'!Q217 -> 440.7361684 | K82: ='Vs Status Quo'!R217 -> 455.7796975 | L82: ='Vs Status Quo'!S217 -> 469.0232871 | M82: ='Vs Status Quo'!T217 -> 489.3020417 | N82: ='Vs Status Quo'!U217 -> 500.7498768
B83: Carterton District | C83: Residential | D83: ='Vs Status Quo'!K218 -> 159.5694071 | E83: ='Vs Status Quo'!L218 -> 194.9680557 | F83: ='Vs Status Quo'!M218 -> 209.62611 | G83: ='Vs Status Quo'!N218 -> 215.932724 | H83: ='Vs Status Quo'!O218 -> 232.1837892 | I83: ='Vs Status Quo'!P218 -> 244.4191006 | J83: ='Vs Status Quo'!Q218 -> 251.310111 | K83: ='Vs Status Quo'!R218 -> 258.9786203 | L83: ='Vs Status Quo'!S218 -> 266.9018004 | M83: ='Vs Status Quo'!T218 -> 277.3644031 | N83: ='Vs Status Quo'!U218 -> 285.0992266
B84: Carterton District | C84: Rural | D84: ='Vs Status Quo'!K219 -> 330.9690513 | E84: ='Vs Status Quo'!L219 -> 368.1332252 | F84: ='Vs Status Quo'!M219 -> 405.6561041 | G84: ='Vs Status Quo'!N219 -> 415.1033672 | H84: ='Vs Status Quo'!O219 -> 451.2562925 | I84: ='Vs Status Quo'!P219 -> 478.4393212 | J84: ='Vs Status Quo'!Q219 -> 497.2109907 | K84: ='Vs Status Quo'!R219 -> 511.961194 | L84: ='Vs Status Quo'!S219 -> 529.4964546 | M84: ='Vs Status Quo'!T219 -> 549.2064891 | N84: ='Vs Status Quo'!U219 -> 567.9248525
B85: South Wairarapa District | C85: Business | D85: ='Vs Status Quo'!K220 -> 412.6142189 | E85: ='Vs Status Quo'!L220 -> 446.3464094 | F85: ='Vs Status Quo'!M220 -> 493.2236427 | G85: ='Vs Status Quo'!N220 -> 534.4882805 | H85: ='Vs Status Quo'!O220 -> 595.9702576 | I85: ='Vs Status Quo'!P220 -> 649.6920562 | J85: ='Vs Status Quo'!Q220 -> 689.675732 | K85: ='Vs Status Quo'!R220 -> 713.3203616 | L85: ='Vs Status Quo'!S220 -> 734.1133811 | M85: ='Vs Status Quo'!T220 -> 766.0158566 | N85: ='Vs Status Quo'!U220 -> 783.9609269
B86: South Wairarapa District | C86: Residential | D86: ='Vs Status Quo'!K221 -> 178.7825321 | E86: ='Vs Status Quo'!L221 -> 235.4978897 | F86: ='Vs Status Quo'!M221 -> 249.0066308 | G86: ='Vs Status Quo'!N221 -> 253.7420618 | H86: ='Vs Status Quo'!O221 -> 268.9495626 | I86: ='Vs Status Quo'!P221 -> 278.9193394 | J86: ='Vs Status Quo'!Q221 -> 282.1289043 | K86: ='Vs Status Quo'!R221 -> 290.8488501 | L86: ='Vs Status Quo'!S221 -> 299.8554966 | M86: ='Vs Status Quo'!T221 -> 311.7714536 | N86: ='Vs Status Quo'!U221 -> 320.5552208
B87: South Wairarapa District | C87: Rural | D87: ='Vs Status Quo'!K222 -> 356.3929788 | E87: ='Vs Status Quo'!L222 -> 405.8790103 | F87: ='Vs Status Quo'!M222 -> 445.5078019 | G87: ='Vs Status Quo'!N222 -> 454.4932861 | H87: ='Vs Status Quo'!O222 -> 492.5257737 | I87: ='Vs Status Quo'!P222 -> 520.2778295 | J87: ='Vs Status Quo'!Q222 -> 538.3610983 | K87: ='Vs Status Quo'!R222 -> 554.5267693 | L87: ='Vs Status Quo'!S222 -> 573.7634127 | M87: ='Vs Status Quo'!T222 -> 595.4042647 | N87: ='Vs Status Quo'!U222 -> 615.9343224
B88: Tararua District | C88: Rural | D88: ='Vs Status Quo'!K223 -> 224.2035735 | E88: ='Vs Status Quo'!L223 -> 263.3024652 | F88: ='Vs Status Quo'!M223 -> 287.4308912 | G88: ='Vs Status Quo'!N223 -> 284.2396551 | H88: ='Vs Status Quo'!O223 -> 302.678512 | I88: ='Vs Status Quo'!P223 -> 312.8359816 | J88: ='Vs Status Quo'!Q223 -> 318.2482783 | K88: ='Vs Status Quo'!R223 -> 327.0511376 | L88: ='Vs Status Quo'!S223 -> 339.8844886 | M88: ='Vs Status Quo'!T223 -> 351.2510903 | N88: ='Vs Status Quo'!U223 -> 366.3735613
B89: Region wide | D89: ='Vs Status Quo'!K224 -> 595.8141971 | E89: ='Vs Status Quo'!L224 -> 631.2520156 | F89: ='Vs Status Quo'!M224 -> 668.6582778 | G89: ='Vs Status Quo'!N224 -> 710.4548855 | H89: ='Vs Status Quo'!O224 -> 767.4158987 | I89: ='Vs Status Quo'!P224 -> 814.6320111 | J89: ='Vs Status Quo'!Q224 -> 841.8852663 | K89: ='Vs Status Quo'!R224 -> 871.4153603 | L89: ='Vs Status Quo'!S224 -> 894.5405216 | M89: ='Vs Status Quo'!T224 -> 934.8668512 | N89: ='Vs Status Quo'!U224 -> 955.9952821
B91: Kapiti split $
B92: Kapiti Coast District | C92: Residential - Otaki rating area | D92: ='Vs Status Quo'!K227 -> 223.8812867 | E92: ='Vs Status Quo'!L227 -> 246.2837821 | F92: ='Vs Status Quo'!M227 -> 255.3282871 | G92: ='Vs Status Quo'!N227 -> 258.891782 | H92: ='Vs Status Quo'!O227 -> 272.0958613 | I92: ='Vs Status Quo'!P227 -> 279.4470229 | J92: ='Vs Status Quo'!Q227 -> 280.6229772 | K92: ='Vs Status Quo'!R227 -> 291.0272216 | L92: ='Vs Status Quo'!S227 -> 299.6985203 | M92: ='Vs Status Quo'!T227 -> 312.2396825 | N92: ='Vs Status Quo'!U227 -> 322.6445594
B93: Kapiti Coast District | C93: Residential - ex-Otaki rating area | D93: ='Vs Status Quo'!K228 -> 362.6954079 | E93: ='Vs Status Quo'!L228 -> 409.6430523 | F93: ='Vs Status Quo'!M228 -> 442.1511611 | G93: ='Vs Status Quo'!N228 -> 471.0095876 | H93: ='Vs Status Quo'!O228 -> 517.9384296 | I93: ='Vs Status Quo'!P228 -> 558.3524902 | J93: ='Vs Status Quo'!Q228 -> 586.7372587 | K93: ='Vs Status Quo'!R228 -> 608.7017144 | L93: ='Vs Status Quo'!S228 -> 624.9894085 | M93: ='Vs Status Quo'!T228 -> 652.8063454 | N93: ='Vs Status Quo'!U228 -> 669.7639725
B94: Kapiti Coast District | C94: Residential | D94: ='Vs Status Quo'!K229 -> 342.0246951 | E94: ='Vs Status Quo'!L229 -> 385.1733309 | F94: ='Vs Status Quo'!M229 -> 414.1668068 | G94: ='Vs Status Quo'!N229 -> 439.2362845 | H94: ='Vs Status Quo'!O229 -> 481.1134661 | I94: ='Vs Status Quo'!P229 -> 516.5750075 | J94: ='Vs Status Quo'!Q229 -> 540.884145 | K94: ='Vs Status Quo'!R229 -> 561.116987 | L94: ='Vs Status Quo'!S229 -> 576.2638148 | M94: ='Vs Status Quo'!T229 -> 601.7925807 | N94: ='Vs Status Quo'!U229 -> 617.7686659
B96: By Category - annual % change
B97: Wellington City | C97: Regional CBD | E97: =E63/D63-1 -> 0.04047962339 | F97: 0.03674305901 | G97: 0.09847186295 | H97: 0.08441653916 | I97: 0.07391358477 | J97: 0.03523431074 | K97: 0.0357278757 | L97: 0.01868023031 | M97: 0.04885133476 | N97: 0.006065038843
B98: Wellington City | C98: Business | E98: =E64/D64-1 -> 0.1179704292 | F98: 0.1282478918 | G98: 0.1138935321 | H98: 0.1384307634 | I98: 0.1137148322 | J98: 0.08091185655 | K98: 0.03458335008 | L98: 0.02687701587 | M98: 0.04460711523 | N98: 0.01968616878
B99: Wellington City | C99: Residential | E99: =E65/D65-1 -> 0.07413020769 | F99: 0.09863386062 | G99: 0.07319329872 | H99: 0.1078569995 | I99: 0.08704396487 | J99: 0.05623589981 | K99: 0.03281362973 | L99: 0.02723199203 | M99: 0.04323693781 | N99: 0.0211589397
B100: Wellington City | C100: Rural | E100: =E66/D66-1 -> 0.08151408971 | F100: 0.09464239706 | G100: 0.01863492086 | H100: 0.0813419503 | I100: 0.05405250774 | J100: 0.03241320128 | K100: 0.03008825132 | L100: 0.03478341275 | M100: 0.03779880032 | N100: 0.03459315414
B101: Hutt City | C101: Business | E101: =E67/D67-1 -> 0.06274311828 | F101: 0.05594178637 | G101: 0.06357822521 | H101: 0.07167766961 | I101: 0.05443536525 | J101: 0.03528555336 | K101: 0.04066056015 | L101: 0.03263520132 | M101: 0.04809467812 | N101: 0.03949203819
B102: Hutt City | C102: Residential | E102: =E68/D68-1 -> 0.05910603726 | F102: 0.03160021048 | G102: 0.03166005211 | H102: 0.04124685395 | I102: 0.02471643593 | J102: 0.006944476794 | K102: 0.04053376147 | L102: 0.03414414213 | M102: 0.04762291579 | N102: 0.04527343258
B103: Hutt City | C103: Rural | E103: =E69/D69-1 -> 0.08360435917 | F103: 0.06481270613 | G103: 0.02300231864 | H103: 0.05223897769 | I103: 0.03220380593 | J103: 0.02681983712 | K103: 0.04184428822 | L103: 0.04209193312 | M103: 0.04563010713 | N103: 0.06425300231
B104: Upper Hutt City | C104: Business | E104: =E70/D70-1 -> 0.04891111183 | F104: 0.05071144781 | G104: 0.05385452804 | H104: 0.06952643843 | I104: 0.03218543568 | J104: 0.0141342406 | K104: 0.03239678502 | L104: 0.02605521129 | M104: 0.04215594466 | N104: 0.020222576
B105: Upper Hutt City | C105: Residential | E105: =E71/D71-1 -> 0.01324523417 | F105: 0.02445416459 | G105: 0.01873564736 | H105: 0.03628450599 | I105: -0.004131019972 | J105: -0.02222272203 | K105: 0.0298505528 | L105: 0.02586680801 | M105: 0.03979908977 | N105: 0.02150436512
B106: Upper Hutt City | C106: Rural | E106: =E72/D72-1 -> 0.09980540528 | F106: 0.07321067643 | G106: 0.0115694407 | H106: 0.06011480803 | I106: 0.002102481557 | J106: 0.0005051215346 | K106: 0.02608101467 | L106: 0.03157039907 | M106: 0.03350265469 | N106: 0.03314711211
B107: Porirua City | C107: Business | E107: =E73/D73-1 -> 0.04328625723 | F107: 0.03599148343 | G107: 0.04720649826 | H107: 0.06195269348 | I107: 0.04065255384 | J107: 0.01077975804 | K107: 0.03448890467 | L107: 0.02685534584 | M107: 0.04451056172 | N107: 0.01973273915
B108: Porirua City | C108: Residential | E108: =E74/D74-1 -> 0.03037747701 | F108: 0.006965147153 | G108: 0.008635626283 | H108: 0.02469224314 | I108: 0.002395141496 | J108: -0.02995618398 | K108: 0.03247225916 | L108: 0.02702140954 | M108: 0.04283622343 | N108: 0.02108331989
B109: Porirua City | C109: Rural | E109: =E75/D75-1 -> 0.08077721466 | F109: 0.0538977772 | G109: -0.003723917832 | H109: 0.0494058168 | I109: 0.01920104834 | J109: -0.003466087239 | K109: 0.03005290914 | L109: 0.03484206012 | M109: 0.03779769261 | N109: 0.03474705845
B110: Kapiti Coast District | C110: Business | E110: =E76/D76-1 -> 0.02626826597 | F110: 0.1078730088 | G110: 0.1028728707 | H110: 0.128957498 | I110: 0.1041989 | J110: 0.07467040519 | K110: 0.03819886815 | L110: 0.02664816895 | M110: 0.04565810421 | N110: 0.02366395836
B111: Kapiti Coast District | C111: Residential | E111: =E77/D77-1 -> 0.1261564922 | F111: 0.07527384068 | G111: 0.06052990538 | H111: 0.09534089764 | I111: 0.07370723099 | J111: 0.04705829194 | K111: 0.03740697926 | L111: 0.02699406392 | M111: 0.044300484 | N111: 0.02654749446
B112: Kapiti Coast District | C112: Rural | E112: =E78/D78-1 -> 0.003810327605 | F112: 0.07334069334 | G112: 0.02024567795 | H112: 0.07775773996 | I112: 0.05015378361 | J112: 0.03201129834 | K112: 0.03735122262 | L112: 0.03252309611 | M112: 0.04041655934 | N112: 0.03932651445
B113: Masterton District | C113: Business | E113: =E79/D79-1 -> 0.1318842487 | F113: 0.1584370749 | G113: 0.1166519309 | H113: 0.1534463393 | I113: 0.1236816204 | J113: 0.09225281851 | K113: 0.03428369078 | L113: 0.02914962296 | M113: 0.04345715019 | N113: 0.02342649976
B114: Masterton District | C114: Residential | E114: =E80/D80-1 -> 0.2250434371 | F114: 0.1077115554 | G114: 0.04827341622 | H114: 0.1014581297 | I114: 0.07729123062 | J114: 0.05233765709 | K114: 0.03055415984 | L114: 0.03062307957 | M114: 0.03931106487 | N114: 0.02788182162
B115: Masterton District | C115: Rural | E115: =E81/D81-1 -> 0.1398371091 | F115: 0.112375685 | G115: 0.02812357541 | H115: 0.09505314705 | I115: 0.06753622598 | J115: 0.04637573248 | K115: 0.0295504716 | L115: 0.03415484603 | M115: 0.03715453426 | N115: 0.03398475677
B116: Carterton District | C116: Business | E116: =E82/D82-1 -> 0.003889270797 | F116: 0.1237802541 | G116: 0.09554132052 | H116: 0.1289942534 | I116: 0.1028513803 | J116: 0.07369747843 | K116: 0.03413273104 | L116: 0.02905699764 | M116: 0.04323613588 | N116: 0.02339625453
B117: Carterton District | C117: Residential | E117: =E83/D83-1 -> 0.221838567 | F117: 0.07518182523 | G117: 0.03008505938 | H117: 0.07525985388 | I117: 0.05269666506 | J117: 0.02819342014 | K117: 0.0305141297 | L117: 0.03059395421 | M117: 0.03920019543 | N117: 0.02788686457
B118: Carterton District | C118: Rural | E118: =E84/D84-1 -> 0.1122889702 | F118: 0.1019274446 | G118: 0.02328884729 | H118: 0.08709378967 | I118: 0.06023855871 | J118: 0.03923521469 | K118: 0.02966588352 | L118: 0.03425115178 | M118: 0.03722411046 | N118: 0.03408256064
B119: South Wairarapa District | C119: Business | E119: =E85/D85-1 -> 0.08175237056 | F119: 0.1050243316 | G119: 0.0836631382 | H119: 0.1150296076 | I119: 0.09014174426 | J119: 0.06154250377 | K119: 0.03428369078 | L119: 0.02914962296 | M119: 0.04345715019 | N119: 0.02342649976
B120: South Wairarapa District | C120: Residential | E120: =E86/D86-1 -> 0.3172309786 | F120: 0.05736247229 | G120: 0.01901728864 | H120: 0.05993291246 | I120: 0.03706931788 | J120: 0.01150714372 | K120: 0.03090766521 | L120: 0.03096675998 | M120: 0.03973899814 | N120: 0.02817373772
B121: South Wairarapa District | C121: Rural | E121: =E87/D87-1 -> 0.1388524311 | F121: 0.09763695712 | G121: 0.02016908392 | H121: 0.08368107682 | I121: 0.05634640315 | J121: 0.03475694669 | K121: 0.03002756155 | L121: 0.03469019792 | M121: 0.03771737885 | N121: 0.03448087107
B122: Tararua District | C122: Rural | E122: =E88/D88-1 -> 0.1743901362 | F122: 0.09163767591 | G122: -0.01110262018 | H122: 0.06487081082 | I122: 0.03355860814 | J122: 0.01730074878 | K122: 0.02766035148 | L122: 0.03923958528 | M122: 0.03344254326 | N122: 0.04305316456
B123: Region wide | E123: =E89/D89-1 -> 0.05947796938 | F123: 0.05925725581 | G123: 0.0625081736 | H123: 0.08017541208 | I123: 0.06152610652 | J123: 0.03345468239 | K123: 0.03507615019 | L123: 0.02653747261 | M123: 0.04508049515 | N123: 0.02260047075
B125: Kapiti split - annual % change
B126: Kapiti Coast District | C126: Residential - Otaki rating area | E126: =E92/D92-1 -> 0.100064171 | F126: 0.03672391639 | G126: 0.01395652232 | H126: 0.05100231107 | I126: 0.02701680794 | J126: 0.00420814769 | K126: 0.03707552552 | L126: 0.02979549036 | M126: 0.04184592631 | N126: 0.03332336497
B127: Kapiti Coast District | C127: Residential - ex-Otaki rating area | E127: =E93/D93-1 -> 0.1294409674 | F127: 0.07935715874 | G127: 0.0652682365 | H127: 0.09963457909 | I127: 0.07802869667 | J127: 0.05083664709 | K127: 0.03743490868 | L127: 0.02675808795 | M127: 0.04450785338 | N127: 0.02597650475
B128: Kapiti Coast District | C128: Residential | E128: =E94/D94-1 -> 0.1261564922 | F128: 0.07527384068 | G128: 0.06052990538 | H128: 0.09534089764 | I128: 0.07370723099 | J128: 0.04705829194 | K128: 0.03740697926 | L128: 0.02699406392 | M128: 0.044300484 | N128: 0.02654749446
B132: District-wide rates
B134: TA full name | C134: Category group | D134: 2017/18 | E134: 2018/19 | F134: 2019/20 | G134: 2020/21 | H134: 2021/22 | I134: 2022/23 | J134: 2023/24 | K134: 2024/25 | L134: 2025/26 | M134: 2026/27 | N134: 2027/28
B136: Rates per average CV - consulted version
B137: By TA - $
B138: Wellington City | C138: Regional CBD | D138: 8606.006461 | E138: 8946.122383 | F138: 9695.934821 | G138: 10597.47758 | H138: 11556.13901 | I138: 12231.84189 | J138: 12747.10302 | K138: 13244.96491 | L138: 13535.34581 | M138: 14201.49704 | N138: 14292.31624
B139: Wellington City | C139: Business | D139: 1709.291723 | E139: 2006.947738 | F139: 2352.404944 | G139: 2669.358573 | H139: 2891.158752 | I139: 3035.85094 | J139: 3143.776251 | K139: 3254.713668 | L139: 3351.220428 | M139: 3502.514929 | N139: 3567.925091
B140: Wellington City | C140: Residential | D140: 419.4153473 | E140: 454.3860195 | F140: 499.6523201 | G140: 528.4488784 | H140: 569.5245136 | I140: 596.1256267 | J140: 615.0612201 | K140: 634.9780173 | L140: 654.388968 | M140: 682.9202914 | N140: 696.7781466
B141: Wellington City | C141: Rural | D141: 401.0300002 | E141: 429.4484222 | F141: 454.1248399 | G141: 447.7002764 | H141: 477.3191021 | I141: 494.4662433 | J141: 505.5854036 | K141: 518.8412389 | L141: 538.6457776 | M141: 559.089905 | N141: 577.4943566
B142: Hutt City | C142: Business | D142: 1881.269392 | E142: 2040.278176 | F142: 2216.591345 | G142: 2373.064614 | H142: 2556.621668 | I142: 2652.867974 | J142: 2779.888946 | K142: 2911.017683 | L142: 3022.304691 | M142: 3204.339779 | N142: 3343.951698
B143: Hutt City | C143: Residential | D143: 519.2523726 | E143: 542.4780606 | F143: 559.404041 | G143: 564.1197238 | H143: 604.5760436 | I143: 623.8563872 | J143: 653.9630135 | K143: 685.4054309 | L143: 713.4452336 | M143: 758.270081 | N143: 796.8229144
B144: Hutt City | C144: Rural | D144: 456.8468442 | E144: 504.5087402 | F144: 546.914455 | G144: 569.5482939 | H144: 605.2810059 | I144: 617.5587493 | J144: 647.7766874 | K144: 680.376637 | L144: 713.5561925 | M144: 761.0062924 | N144: 812.9412242
B145: Upper Hutt City | C145: Business | D145: 1849.441913 | E145: 1956.905718 | F145: 2063.394464 | G145: 2137.050823 | H145: 2323.021164 | I145: 2397.682014 | J145: 2478.056119 | K145: 2560.705252 | L145: 2630.778707 | M145: 2739.704797 | N145: 2790.855427
B146: Upper Hutt City | C146: Residential | D146: 448.6329345 | E146: 436.9843289 | F146: 432.8992137 | G146: 415.1042446 | H146: 449.4809001 | I146: 460.1096067 | J146: 473.642592 | K146: 487.8467229 | L146: 501.0613283 | M146: 520.3478932 | N146: 530.6617058
B147: Upper Hutt City | C147: Rural | D147: 403.6135574 | E147: 444.0598588 | F147: 468.9030375 | G147: 468.7026245 | H147: 504.8118973 | I147: 507.6405275 | J147: 518.5972382 | K147: 531.2446102 | L147: 547.7142219 | M147: 565.1889844 | N147: 581.5897142
B148: Porirua City | C148: Business | D148: 1472.533531 | E148: 1499.765226 | F148: 1527.57525 | G148: 1527.035203 | H148: 1655.606665 | I148: 1737.205898 | J148: 1798.854392 | K148: 1862.503243 | L148: 1917.469544 | M148: 2003.852863 | N148: 2041.152157
B149: Porirua City | C149: Residential | D149: 490.8425897 | E149: 470.3317983 | F149: 443.8800392 | G149: 400.8061824 | H149: 432.3019065 | I149: 451.8910564 | J149: 466.1059638 | K149: 481.1553916 | L149: 495.6596181 | M149: 517.0559264 | N149: 527.4260641
B150: Porirua City | C150: Rural | D150: 520.2592046 | E150: 542.2210833 | F150: 539.6124055 | G150: 499.5012632 | H150: 534.0771725 | I150: 552.5618581 | J150: 565.0663319 | K150: 580.1505899 | L150: 602.1606607 | M150: 625.0523391 | N150: 645.5310886
B151: Kapiti Coast District | C151: Business | D151: 864.7223223 | E151: 935.0806426 | F151: 1088.223777 | G151: 1236.103565 | H151: 1331.356301 | I151: 1396.272065 | J151: 1447.205691 | K151: 1507.331434 | L151: 1550.045107 | M151: 1622.250305 | N151: 1660.422141
B152: Kapiti Coast District | C152: Residential | D152: 342.0246951 | E152: 398.0909016 | F152: 438.1726431 | G152: 469.3307943 | H152: 502.2762607 | I152: 524.9957431 | J152: 542.5226626 | K152: 564.6974584 | L152: 580.7751117 | M152: 607.1844441 | N152: 623.1360387
B153: Kapiti Coast District | C153: Rural | D153: 392.4001229 | E153: 403.0941291 | F153: 433.479697 | G153: 445.5803434 | H153: 471.4018112 | I153: 488.5467562 | J153: 501.8229692 | K153: 522.0645412 | L153: 539.1910928 | M153: 561.8802325 | N153: 583.3613689
B154: Masterton District | C154: Business | D154: 388.3910052 | E154: 498.2367948 | F154: 613.8404911 | G154: 724.1288852 | H154: 791.1156452 | I154: 837.6708698 | J154: 865.3872556 | K154: 900.8839627 | L154: 928.6390304 | M154: 977.9633753 | N154: 985.3276933
B155: Masterton District | C155: Residential | D155: 130.2916845 | E155: 180.9948682 | F155: 208.5379802 | G155: 229.7443714 | H155: 249.8523367 | I155: 264.117479 | J155: 271.3009561 | K155: 281.9309763 | L155: 290.7893024 | M155: 306.3163862 | N155: 307.684112
B156: Masterton District | C156: Rural | D156: 261.8022089 | E156: 327.1664608 | F156: 377.052173 | G156: 411.7630388 | H156: 447.5161858 | I156: 472.7914042 | J156: 484.3156745 | K156: 503.2320525 | L156: 520.1456877 | M156: 548.2115371 | N156: 550.9250146
B157: Carterton District | C157: Business | D157: 266.742406 | E157: 282.4544697 | F157: 330.8190814 | G157: 378.7854987 | H157: 413.8256881 | I157: 438.1783197 | J157: 452.6765192 | K157: 471.2445368 | L157: 485.7629704 | M157: 511.5641047 | N157: 515.4163151
B158: Carterton District | C158: Residential | D158: 159.5694071 | E158: 204.4550311 | F158: 222.4765401 | G158: 236.0082375 | H158: 256.7000122 | I158: 271.3793249 | J158: 278.7713652 | K158: 289.7100146 | L158: 298.8255311 | M158: 314.8034241 | N158: 316.2108602
B159: Carterton District | C159: Rural | D159: 330.9690513 | E159: 407.1047174 | F159: 456.7591967 | G159: 493.9160196 | H159: 537.3229198 | I159: 568.0088587 | J159: 582.0001544 | K159: 604.9660021 | L159: 625.5003757 | M159: 659.574342 | N159: 662.8686994
B160: South Wairarapa District | C160: Business | D160: 412.6142189 | E160: 479.0045006 | F160: 553.0679779 | G160: 620.0263753 | H160: 677.3829576 | I160: 717.2452911 | J160: 740.9771027 | K160: 771.3707178 | L160: 795.1356502 | M160: 837.3690087 | N160: 843.6746146
B161: South Wairarapa District | C161: Residential | D161: 178.7825321 | E161: 245.7381363 | F161: 263.6171791 | G161: 272.3598793 | H161: 296.4397265 | I161: 313.5226307 | J161: 322.1250441 | K161: 334.8547886 | L161: 345.4628804 | M161: 364.0569945 | N161: 365.6948842
B162: South Wairarapa District | C162: Rural | D162: 356.3929788 | E162: 447.702443 | F162: 507.3480273 | G162: 544.684813 | H162: 592.8215699 | I162: 626.8512189 | J162: 642.3670838 | K162: 667.8354176 | L162: 690.6073304 | M162: 728.3941851 | N162: 732.0475139
B163: Tararua District | C163: Rural | D163: 224.2035735 | E163: 257.7977134 | F163: 266.5973894 | G163: 251.887025 | H163: 266.210062 | I163: 273.6188089 | J163: 277.8652438 | K163: 283.768893 | L163: 295.89793 | M163: 305.7205654 | N163: 318.3019879
B164: Region wide | D164: 595.8141971 | E164: 633.7142234 | F164: 679.2633075 | G164: 713.2370733 | H164: 770.656254 | I164: 806.3691794 | J164: 836.369248 | K164: 868.2236397 | L164: 894.2125012 | M164: 938.057863 | N164: 958.6165379
B166: Difference in total rates - between agreed option and consulted version
B167: By TA - $ | D167: 2017/18 | E167: 2018/19 | F167: 2019/20 | G167: 2020/21 | H167: 2021/22 | I167: 2022/23 | J167: 2023/24 | K167: 2024/25 | L167: 2025/26 | M167: 2026/27 | N167: 2027/28
B168: Wellington City | C168: Regional CBD | D168: =D63-D138 -> 0 | E168: 8.251979106 | F168: -412.5493531 | G168: -399.9398547 | H168: -497.7604392 | I168: -356.0989145 | J168: -452.9264325 | K168: -511.5435077 | L168: -564.0611603 | M168: -596.5478206 | N168: -604.8524784
B169: Wellington City | C169: Business | D169: =D64-D139 -> 0 | E169: -96.01013716 | F169: -196.393624 | G169: -267.7915087 | H169: -157.1409257 | I169: 9.065265352 | J169: 147.5097773 | K169: 150.3960576 | L169: 145.4084854 | M169: 150.0885127 | N169: 156.5841187
B170: Wellington City | C170: Residential | D170: =D65-D140 -> 0 | E170: -3.879325372 | F170: -4.710411433 | G170: 2.719461157 | H170: 18.93404932 | I170: 43.55470268 | J170: 60.59210824 | K170: 62.84594915 | L170: 62.43813518 | M170: 64.90022064 | N170: 66.86545461
B171: Wellington City | C171: Rural | D171: =D66-D141 -> 0 | E171: 4.271173351 | F171: 20.64301781 | G171: 35.91484278 | H171: 45.63421409 | I171: 56.75401111 | J171: 63.5016638 | K171: 67.36866324 | L171: 67.9545055 | M171: 70.43914111 | N171: 73.81208478
B172: Hutt City | C172: Business | D172: =D67-D142 -> 0 | E172: -40.97207563 | F172: -105.4404895 | G172: -127.690534 | H172: -150.3044068 | I172: -115.5619533 | J172: -153.0526786 | K172: -177.3727814 | L172: -199.446738 | M172: -245.7173813 | N172: -268.4872716
B173: Hutt City | C173: Residential | D173: =D68-D143 -> 0 | E173: 7.465262066 | F173: 7.917606406 | G173: 21.16335652 | H173: 4.848122455 | I173: 0.6305721903 | J173: -25.13931889 | K173: -31.09314662 | L173: -36.79201767 | M173: -49.39266596 | N173: -55.85218547
B174: Hutt City | C174: Rural | D174: =D69-D144 -> 0 | E174: -9.467508311 | F174: -19.7882612 | G174: -30.2969755 | H174: -37.85974984 | I174: -31.8643693 | J174: -46.37407948 | K174: -53.80876499 | L174: -60.6148676 | M174: -78.27118484 | N174: -86.33833622
B175: Upper Hutt City | C175: Business | D175: =D70-D145 -> 0 | E175: -17.00554461 | F175: -25.11914429 | G175: 10.99485297 | H175: -25.62952326 | I175: -26.34782262 | J175: -73.20491917 | K175: -77.94460478 | L175: -83.32920667 | M175: -84.86515674 | N175: -82.32809025
B176: Upper Hutt City | C176: Residential | D176: =D71-D146 -> 0 | E176: 17.59085391 | F176: 32.79222548 | G176: 59.31222511 | H176: 42.14953684 | I176: 29.48989509 | J176: 5.076676162 | K176: 5.162580066 | L176: 4.700551648 | M176: 5.542849258 | N176: 6.537983207
B177: Upper Hutt City | C177: Rural | D177: =D72-D147 -> 0 | E177: -0.1634866563 | F177: 7.49128826 | G177: 13.20331719 | H177: 6.06372752 | I177: 4.309203931 | J177: -6.388909926 | K177: -5.677369075 | L177: -5.554613159 | M177: -4.865589553 | N177: -2.693216923
B178: Porirua City | C178: Business | D178: =D73-D148 -> 0 | E178: 36.5087708 | F178: 63.99152628 | G178: 139.6638682 | H178: 114.3489025 | I178: 104.702884 | J178: 62.90972035 | K178: 63.47107486 | L178: 60.22747981 | M178: 61.87256604 | N178: 65.33569383
B179: Porirua City | C179: Residential | D179: =D74-D149 -> 0 | E179: 35.42135085 | F179: 65.39575511 | G179: 112.8675273 | H179: 94.05555936 | I179: 75.7271101 | J179: 45.70677582 | K179: 47.2770639 | L179: 47.05182725 | M179: 48.90322761 | N179: 50.4653878
B180: Porirua City | C180: Rural | D180: =D75-D150 -> 0 | E180: 20.0632107 | F180: 52.97776212 | G180: 90.88214731 | H180: 85.47461268 | I180: 78.88597081 | J180: 64.19284381 | K180: 68.01965464 | L180: 68.59317039 | M180: 71.05443912 | N180: 74.76335256
B181: Kapiti Coast District | C181: Business | D181: =D76-D151 -> 0 | E181: -47.64356438 | F181: -105.0561916 | G181: -151.7947071 | H181: -107.2176855 | I181: -44.57955267 | J181: 5.418249284 | K181: 0.7810958473 | L181: -1.744138993 | M181: -3.256850487 | N181: -3.116892418
B182: Kapiti Coast District | C182: Residential | D182: =D77-D152 -> 0 | E182: -12.91757069 | F182: -24.00583625 | G182: -30.09450985 | H182: -21.16279462 | I182: -8.420735656 | J182: -1.638517625 | K182: -3.580471427 | L182: -4.511296872 | M182: -5.391863371 | N182: -5.36737285
B183: Kapiti Coast District | C183: Rural | D183: =D78-D153 -> 0 | E183: -9.198833164 | F183: -10.69584696 | G183: -14.23694765 | H183: -6.51812783 | I183: -0.3473972006 | J183: 2.004285167 | K183: 0.5812770604 | L183: 0.4527856134 | M183: -0.4258052209 | N183: 0.1731040415
B184: Masterton District | C184: Business | D184: =D79-D154 -> 0 | E184: -58.62313375 | F184: -104.5757274 | G184: -155.4574035 | H184: -135.1836064 | I184: -100.6120936 | J184: -60.33272989 | K184: -68.22919654 | L184: -71.71269174 | M184: -83.79746006 | N184: -70.21460044
B185: Masterton District | C185: Residential | D185: =D80-D155 -> 0 | E185: -21.38189518 | F185: -31.73284563 | G185: -44.404249 | H185: -45.7079521 | I185: -44.19452365 | J185: -39.86774857 | K185: -43.4265215 | L185: -44.98110678 | M185: -50.84520857 | N185: -45.08993258
B186: Masterton District | C186: Rural | D186: =D81-D156 -> 0 | E186: -28.75458786 | F186: -45.1060614 | G186: -70.48141564 | H186: -73.79467035 | I186: -73.83014804 | J186: -66.85229789 | K186: -73.43243617 | L186: -75.66633165 | M186: -87.21775767 | N186: -74.26447362
B187: Carterton District | C187: Business | D187: =D82-D157 -> 0 | E187: -14.67463026 | F187: -29.89338546 | G187: -49.10896437 | H187: -41.62277536 | I187: -27.69382359 | J187: -11.94035078 | K187: -15.46483929 | L187: -16.73968332 | M187: -22.26206301 | N187: -14.66643835
B188: Carterton District | C188: Residential | D188: =D83-D158 -> 0 | E188: -9.486975404 | F188: -12.85043014 | G188: -20.07551348 | H188: -24.51622294 | I188: -26.96022427 | J188: -27.46125422 | K188: -30.73139429 | L188: -31.92373076 | M188: -37.43902105 | N188: -31.11163351
B189: Carterton District | C189: Rural | D189: =D84-D159 -> 0 | E189: -38.97149218 | F189: -51.10309256 | G189: -78.81265238 | H189: -86.06662729 | I189: -89.5695375 | J189: -84.78916374 | K189: -93.00480814 | L189: -96.00392112 | M189: -110.367853 | N189: -94.94384688
B190: South Wairarapa District | C190: Business | D190: =D85-D160 -> 0 | E190: -32.65809123 | F190: -59.8443352 | G190: -85.53809483 | H190: -81.41269995 | I190: -67.55323493 | J190: -51.30137068 | K190: -58.05035624 | L190: -61.02226907 | M190: -71.35315208 | N190: -59.71368773
B191: South Wairarapa District | C191: Residential | D191: =D86-D161 -> 0 | E191: -10.24024666 | F191: -14.61054826 | G191: -18.61781753 | H191: -27.49016388 | I191: -34.60329127 | J191: -39.99613982 | K191: -44.00593858 | L191: -45.60738379 | M191: -52.28554094 | N191: -45.13966344
B192: South Wairarapa District | C192: Rural | D192: =D87-D162 -> 0 | E192: -41.82343264 | F192: -61.84022547 | G192: -90.19152694 | H192: -100.2957962 | I192: -106.5733894 | J192: -104.0059855 | K192: -113.3086483 | L192: -116.8439177 | M192: -132.9899204 | N192: -116.1131916
B193: Tararua District | C193: Rural | D193: =D88-D163 -> 0 | E193: 5.504751777 | F193: 20.83350171 | G193: 32.35263009 | H193: 36.46845001 | I193: 39.21717275 | J193: 40.3830345 | K193: 43.28224461 | L193: 43.98655862 | M193: 45.53052485 | N193: 48.07157342
B194: Region wide | D194: =D89-D164 -> 0 | E194: -2.462207754 | F194: -10.60502973 | G194: -2.782187797 | H194: -3.240355242 | I194: 8.262831711 | J194: 5.516018249 | K194: 3.191720644 | L194: 0.3280203838 | M194: -3.191011768 | N194: -2.621255779

Sheet Instructions
A1: Instructions
A3: Purpose
A4: This rating model is prepared to determine the rates sought by each rating category/TA to cover funding requirements for the forthcoming year.
A6: Conventions
A7: All yellow cells are input cells.
A8: The majority of tabs in this spreadhseet have been protected to ensure that values aren't inadvertantly changed.
A9: Should a user need to amend the content of a tab the password required is "gwrcrates".
A11: Process
A12: To run the rates model the following actions should be completed
B13: 1) | C13: On each of the tabs shaded green in the structure diagram below delete all values in the shaded yellow cell
B14: 2) | C14: Delete the entire contents of the "TA Split" tab.
B15: 3) | C15: In the control tab;
C16: a) | D16: In cell B5 enter the current rating year in the YYYY/YY date format
C17: b) | D17: Adjust the WRS rating basis if required by the rates funding policy
C18: c) | D18: Obtain "Flood protection" and "Pest rate" information from the Landcare & Wairarapa Accountant and enter in the relevant cells
C19: d) | D19: Obtian Water levy split from the water supply accountant and enter in the relevant cells
B20: 4) | C20: Obtain Capital Values (CVs) & corresponding assessments from each Territorial Authority (TA) and Equalised Capital Values (ECVs) & corresponding assessments from Quotable Value and enter into the relevant yellow cells on the "UHCC Adjustments" and "Capital values" tab
B21: 5) | C21: Select the cells to be updated in the ESSBase tab and retrieve the information from the ESSbase system
B22: 6) | C22: Email the ESSBase extract to the respective management accountants and obtain confirmation that these rates values are correct before proceeding further.
B23: 7) | C23: Populate the "Class rates" tab with data provided by the Landcare & Wairarapa Accountant
B24: 8) | C24: Populate the "TA Split" tab with data provided by the relevant accountant responsible for catchment management
B25: 9) | C25: Use the rating model from the previous year to populate the yellow cells using the PASTE SPECIAL>>VALUES comand in the "Comparison - TA" and "Comparison - Category" tabs.
B26: 10) | C26: On the "Check" tab if cell B7 says "Error" then a rounding/check total error occurs within the model and the error should be investigated and reconciled where possible. Explanations of the difference can be entered in the "Check" tab for future reference. If cell B7 reads "OK" then no rounding/check total errors have been found in the data that has been entered.
B27: 11) | C27: Once all checks have been completed the individual that has completed steps 1 through 9 above should forward the model to their manager for reivew and approval.
B28: 12) | C28: Once approval of the results is obtained the values can be used for distribution as required.
A30: Strucutre diagram
A31: The flow diagram below sets out the structure of this excel spreadsheet.

Sheet >>Input tabs

Sheet Control
A1: Control
A2: =check_total -> 0
A4: Years
A5: Current rating year | B5: 2018/19
A6: Previous rating year | B6: =VALUE(LEFT(year_current,4))-1&"/"&VALUE(RIGHT(year_current,2))-1 -> 2017/18
A9: GST
A10: GST % | B10: 0.15
A12: Error tolerance
A13: $ error tolerance | B13: 2
A15: TA's
A16: TA full name | B16: TA short name
A17: Wellington City | B17: Wellington
A18: Hutt City | B18: Hutt
A19: Upper Hutt City | B19: Upper Hutt
A20: Porirua City | B20: Porirua
A21: Kapiti Coast District | B21: Kapiti
A22: Masterton District | B22: Masterton
A23: Carterton District | B23: Carterton
A24: South Wairarapa District | B24: South Wairarapa
A25: Tararua District | B25: Tararua
A28: TA's
A29: TA full name | B29: Category group | C29: Concatenated row | D29: TA naming convention
A30: Wellington City | B30: District wide | C30: =A30&B30 -> Wellington CityDistrict wide | D30: Wellington City
A31: Hutt City | B31: District wide | C31: Hutt CityDistrict wide | D31: Hutt City
A32: Upper Hutt City | B32: District wide | C32: Upper Hutt CityDistrict wide | D32: Upper Hutt City
A33: Porirua City | B33: District wide | C33: Porirua CityDistrict wide | D33: Porirua City
A34: Kapiti Coast District | B34: District wide | C34: Kapiti Coast DistrictDistrict wide | D34: Kapiti Coast District
A35: Masterton District | B35: District wide | C35: Masterton DistrictDistrict wide | D35: Masterton District
A36: Carterton District | B36: District wide | C36: Carterton DistrictDistrict wide | D36: Carterton District
A37: South Wairarapa District | B37: District wide | C37: South Wairarapa DistrictDistrict wide | D37: South Wairarapa District
A38: Tararua District | B38: District wide | C38: Tararua DistrictDistrict wide | D38: Tararua District
A39: Region wide | C39: Region wide
A41: TA & Category | G41: PT differentials to use for rating model transition | L41: Calculation of differentials using the 2017/18 Transport rate
A42: TA full name | B42: Category group | C42: Concatenated name | D42: TA naming convention | E42: PT differential | G42: 2017/18 | H42: 2018/19 | I42: 2019/20 | J42: 2020/21 onwards | L42: Rate levied | M42: ECV | N42: Cents/ECV$
A43: Wellington City | B43: Regional CBD | C43: =A43&B43 -> Wellington CityRegional CBD | D43: CBD Business | E43: =IF(VALUE(LEFT(year_current,4))>2019,J43,INDEX($G43:$I43,,MATCH(year_current,$G$42:$I$42,0))) -> 7.162136754 | G43: =N43/N$75 -> 6.743205131 | H43: =($J43-$G43)/3+G43 -> 7.162136754 | I43: 7.581068377 | J43: 8 | L43: 25019166.08 | M43: 9699270191 | N43: =(L43*100)/M43 -> 0.2579489548
A44: Wellington City | B44: Business | C44: Wellington CityBusiness | D44: Business | E44: =IF(VALUE(LEFT(year_current,4))>2019,J44,INDEX($G44:$I44,,MATCH(year_current,$G$42:$I$42,0))) -> 0.9406814812 | G44: 0.6610222218 | H44: 0.9406814812 | I44: 1.220340741 | J44: 1.5 | L44: 1192769.666 | M44: 4717078733 | N44: 0.02528619372
A45: Wellington City | B45: Residential | C45: Wellington CityResidential | D45: Residential | E45: 0.7740148146 | G45: 0.6610222218 | H45: 0.7740148146 | I45: 0.8870074073 | J45: 1 | L45: 12199002 | M45: 4.824372595e+10 | N45: 0.02528619372
A46: Wellington City | B46: Rural | C46: Wellington CityRural | D46: Rural | E46: 0.1965188139 | G46: 0.1697782208 | H46: 0.1965188139 | I46: 0.2232594069 | J46: 0.25 | L46: 46420.2668 | M46: 714756729.4 | N46: 0.006494554705
A47: Hutt City | B47: Business | C47: Hutt CityBusiness | D47: Business | E47: 1.446888823 | G47: 1.420333234 | H47: 1.446888823 | I47: 1.473444411 | J47: 1.5 | L47: 2092334.59 | M47: 3850999697 | N47: 0.05433224499
A48: Hutt City | B48: Residential | C48: Hutt CityResidential | D48: Residential | E48: 1.280222156 | G48: 1.420333234 | H48: 1.280222156 | I48: 1.140111078 | J48: 1 | L48: 9399014.05 | M48: 1.729914538e+10 | N48: 0.05433224499
A49: Hutt City | B49: Rural | C49: Hutt CityRural | D49: Rural | E49: 0.3246422102 | G49: 0.3619633154 | H49: 0.3246422102 | I49: 0.2873211051 | J49: 0.25 | L49: 44664.56015 | M49: 322575294.9 | N49: 0.0138462433
A50: Upper Hutt City | B50: Business | C50: Upper Hutt CityBusiness | D50: Business | E50: 1.564524426 | G50: 1.596786638 | H50: 1.564524426 | I50: 1.532262213 | J50: 1.5 | L50: 725473.2635 | M50: 1187700996 | N50: 0.0610821466
A51: Upper Hutt City | B51: Residential | C51: Upper Hutt CityResidential | D51: Residential | E51: 1.397857759 | G51: 1.596786638 | H51: 1.397857759 | I51: 1.198928879 | J51: 1 | L51: 3744588.865 | M51: 6130414651 | N51: 0.0610821466
A52: Upper Hutt City | B52: Rural | C52: Upper Hutt CityRural | D52: Rural | E52: 0.35464047 | G52: 0.406960705 | H52: 0.35464047 | I52: 0.302320235 | J52: 0.25 | L52: 126321.4349 | M52: 811441419.6 | N52: 0.01556753598
A53: Porirua City | B53: Business | C53: Porirua CityBusiness | D53: Business | E53: 1.598538878 | G53: 1.647808317 | H53: 1.598538878 | I53: 1.549269439 | J53: 1.5 | L53: 691972.2213 | M53: 1097778116 | N53: 0.0630338874
A54: Porirua City | B54: Residential | C54: Porirua CityResidential | D54: Residential | E54: 1.431872211 | G54: 1.647808317 | H54: 1.431872211 | I54: 1.215936106 | J54: 1 | L54: 5277337.683 | M54: 8372223102 | N54: 0.0630338874
A55: Porirua City | B55: Rural | C55: Porirua CityRural | D55: Rural | E55: 0.3632344603 | G55: 0.4198516904 | H55: 0.3632344603 | I55: 0.3066172301 | J55: 0.25 | L55: 96761.34374 | M55: 602474380.3 | N55: 0.016060657
A56: Kapiti Coast District | B56: Business | C56: Kapiti Coast DistrictBusiness | D56: Urban - Commerical | E56: 0.9693177137 | G56: 0.7039765706 | H56: 0.9693177137 | I56: 1.234658857 | J56: 1.5 | L56: 403085.5329 | M56: 1496826987 | N56: 0.02692933361
A57: Kapiti Coast District | B57: Residential | C57: Kapiti Coast DistrictResidential | D57: Urban - Residential | L57: =L73 -> 2549190.973 | M57: =M73 -> 9466223746 | N57: 0.02692933361
A58: Kapiti Coast District | B58: Rural | C58: Kapiti Coast DistrictRural | D58: Rural | E58: 0.2047493834 | G58: 0.1821240752 | H58: 0.2047493834 | I58: 0.2273746917 | J58: 0.25 | L58: 138343.5821 | M58: 1985748559 | N58: 0.006966822737
A59: Masterton District | B59: Business | C59: Masterton DistrictBusiness | D59: Urban Ward | E59: 0.4993249485 | G59: 0.2489874227 | H59: 0.4993249485 | I59: 0.7496624742 | J59: 1 | L59: 38506.17602 | M59: 404283094.1 | N59: 0.009524557565
A60: Masterton District | B60: Residential | C60: Masterton DistrictResidential | D60: Urban - Residential | E60: 0.3326582818 | G60: 0.2489874227 | H60: 0.3326582818 | I60: 0.4163291409 | J60: 0.5 | L60: 199517.2283 | M60: 2094766366 | N60: 0.009524557565
A61: Masterton District | B61: Rural | C61: Masterton DistrictRural | D61: Rural Ward | E61: 0.131019333 | G61: 0.07152899945 | H61: 0.131019333 | I61: 0.1905096665 | J61: 0.25 | L61: 68725.16171 | M61: 2511691056 | N61: 0.002736210791
A62: Carterton District | B62: Business | C62: Carterton DistrictBusiness | D62: Urban Ward | E62: 0.6311347496 | G62: 0.4467021244 | H62: 0.6311347496 | I62: 0.8155673748 | J62: 1 | L62: 16823.53518 | M62: 98453654.54 | N62: 0.01708777115
A63: Carterton District | B63: Residential | C63: Carterton DistrictResidential | D63: Urban - Residential | E63: 0.4644680829 | G63: 0.4467021244 | H63: 0.4644680829 | I63: 0.4822340415 | J63: 0.5 | L63: 109887.4071 | M63: 643076303.8 | N63: 0.01708777115
A64: Carterton District | B64: Rural | C64: Carterton DistrictRural | D64: Rural Ward | E64: 0.1631445304 | G64: 0.1197167956 | H64: 0.1631445304 | I64: 0.2065722652 | J64: 0.25 | L64: 72077.97135 | M64: 1573910635 | N64: 0.004579546625
A65: South Wairarapa District | B65: Business | C65: South Wairarapa DistrictBusiness | D65: Urban Ward | E65: 0.7268331513 | G65: 0.5902497269 | H65: 0.7268331513 | I65: 0.8634165756 | J65: 1 | L65: 44332.49903 | M65: 196344625.2 | N65: 0.02257892162
A66: South Wairarapa District | B66: Residential | C66: South Wairarapa DistrictResidential | D66: Urban - Residential | E66: 0.5601664846 | G66: 0.5902497269 | H66: 0.5601664846 | I66: 0.5300832423 | J66: 0.5 | L66: 206694.8687 | M66: 915432863.5 | N66: 0.02257892162
A67: South Wairarapa District | B67: Rural | C67: South Wairarapa DistrictRural | D67: Rural Ward | E67: 0.1856285043 | G67: 0.1534427564 | H67: 0.1856285043 | I67: 0.2178142521 | J67: 0.25 | L67: 153385.1807 | M67: 2613181710 | N67: 0.005869671448
A68: Tararua District | B68: Rural | C68: Tararua DistrictRural | D68: Tararua District | E68: 0 | G68: 0 | H68: 0 | I68: 0 | J68: 0 | L68: 0 | M68: 7041800 | N68: 0
A69: Region wide | C69: Region wide | L69: =SUM(L43:L68) -> 64656396.14 | M69: =SUM(M43:M68) -> 1.27056566e+11
A71: =Control!A$34 -> Kapiti Coast District | B71: Residential - Otaki rating area | C71: Kapiti Coast DistrictResidential - Otaki rating area | D71: Urban - Residential | E71: =IF(VALUE(LEFT(year_current,4))>2019,J71,INDEX($G71:$I71,,MATCH(year_current,$G$42:$I$42,0))) -> 0.6359843804 | G71: =G73 -> 0.7039765706 | H71: =($J71-$G71)/3+G71 -> 0.6359843804 | I71: =($J71-$G71)/3+H71 -> 0.5679921902 | J71: 0.5
A72: =Control!A$34 -> Kapiti Coast District | B72: Residential - ex-Otaki rating area | C72: Kapiti Coast DistrictResidential - ex-Otaki rating area | D72: Urban - Residential | E72: 0.802651047 | G72: =G73 -> 0.7039765706 | H72: 0.802651047 | I72: 0.9013255235 | J72: 1
A73: =Control!A$34 -> Kapiti Coast District | B73: Residential | C73: Kapiti Coast DistrictResidential | D73: Urban - Residential | G73: =N73/N$75 -> 0.7039765706 | L73: 2549190.973 | M73: 9466223746 | N73: =(L73*100)/M73 -> 0.02692933361
A75: WRS rates | L75: =SUMIF($D$43:$D$68,"Residential",L$43:L$68) -> 30619942.6 | M75: =SUMIF($D$43:$D$68,"Residential",M$43:M$68) -> 8.004550909e+10 | N75: =(L75*100)/M75 -> 0.03825316741
A76: Category group | B76: Rating basis
A77: Regional CBD | B77: Remainder
A78: Business | B78: Remainder
A79: Residential | B79: 14
